Workbook

Sheet Instructions
B2: =CONCATENATE(dms_Sector," ",dms_Segment," ", "Network Service Provider") -> Electricity Distribution Network Service Provider
B3: =IF(dms_Model="Reset","Regulatory Proposal RIN Template","Annual Reporting RIN") -> Regulatory Proposal RIN Template
B4: =CONCATENATE("This template is to be used by ",INDEX(dms_TradingNameFull_List,MATCH(dms_TradingName,dms_TradingName_List))," to fulfil its reporting obligations to the AER.") -> This template is to be used by CitiPower to fulfil its reporting obligations to the AER.
B5: INSTRUCTIONS
B6: GENERAL | C6: Complete the Business & other details worksheet before entering data or values in any other worksheets. The Business & other details worksheet is linked to other worksheets within the workbook and automatically generates certain column headings and conditional formatting.
B8: CONFIDENTIAL INFORMATION | C8: Businesses must use the macro at the top of each worksheet to identify confidential information in the workbook.
C9: -Do this by selecting the cell or cells that contain confidential information and then run the CONFIDENTIAL macro. This will format the cells a specific colour that is identified by the AER's database which in turn marks that information as confidential. -To reverse this, select the cell or cells and run the NON-CONFIDENTIAL macro.
B11: PROTECTED (SOCI) INFORMATION | C11: Please use the macro at the top of each worksheet to identify information in the confidential workbook that is protected information under the SOCI Act. All information marked Protected (SOCI) is also deemed to be confidential information.
C12: -Do this by selecting the cell or cells that contain protected information and then run the PROTECTED (SOCI) macro. This will format the cells a specific colour that is identified by the AER's database which in turn marks that information as protected.. -To reverse this, select the cell or cells and run the NON-PROTECTED macro.
B14: RESPONSES | C14: Please return locked template files as provided by AER,with confidential/protected information marked using the appropriate macro.
B17: ORDER OF MAGNITUDE | C17: All amounts are to be unrounded and reported on a one for one basis: that is 1000 is to be entered as '1000'.
B19: INPUT / NON-INPUT CELLS
D20: Yellow = Input cell (mandatory)
D21: Darker yellow = input cell (mandatory)
D22: Orange = input cell (if data available)
D23: Grey = Not applicable/No inputs required
D24: PLEASE DO NOT ENTER TEXT into cells that are to contain numbers (including 'numbers stored as text')

Sheet CONTENTS
C1: =IF(dms_MultiYear_ResponseFlag="Yes","REGULATORY REPORTING STATEMENT - HISTORICAL INFORMATION",INDEX(dms_Worksheet_List,MATCH(dms_Model,dms_Model_List))) -> REGULATORY REPORTING STATEMENT
C2: =INDEX(dms_TradingNameFull_List,MATCH(dms_TradingName,dms_TradingName_List)) -> CitiPower
C3: =CONCATENATE("REGULATORY PERIOD FROM ", FRCP_y1," TO ",dms_MultiYear_FinalYear_Result) -> REGULATORY PERIOD FROM 2026-27 TO 2030-31
D7: CONTENTS
D9: DRAFT RIN ONLY - DO NOT USE FOR SUBMISSION
D11: TEMPLATE | E11: MARCH 2024 - PRELIMINARY RIN
D13: SUBMISSION | E13: Business & other details
D15: EXPENDITURE | E15: 2.1 Expenditure summary
E16: 2.2 Repex
E17: 2.3 Augex (b)
E18: 2.5 Connections
E19: 2.6 Non-network
E20: 2.10 Overheads
E21: 2.11 Labour
E22: 2.14 FORECAST price changes
E23: 2.16 Opex Summary
E24: 2.17 Step Changes
D26: ECONOMIC BENCHMARKING | E26: 3.1 Revenue
E27: 3.2 Operating expenditure
E28: 3.3 Assets (RAB)
E29: 3.4 Operational data
E30: 3.5 Physical assets
E31: 3.6 Quality of service
E32: 3.7 Operating Environment
D34: ALTERNATIVE CONTROL | E34: 4.1 Public lighting
D36: NETWORK | E36: 5.4 MD & utilisation-Spatial
D38: SERVICE | E38: 6.2 Reliability & Cust serv
D40: OTHER | E40: 7.1 Policies and Procedures
E41: 7.2 Contingent projects
E42: 7.3 Obligations
E43: 7.4 Shared Assets
E44: 7.7 TSS-LRMC
E45: 7.8 Export Services

Sheet Business & other details
V1: =INDEX(dms_Worksheet_List,MATCH(dms_Model,dms_Model_List)) -> REGULATORY REPORTING STATEMENT
V2: =INDEX(dms_TradingNameFull_List,MATCH(dms_TradingName,dms_TradingName_List)) -> CitiPower
V3: =CONCATENATE("REGULATORY PERIOD FROM ", FRCP_y1," TO ",dms_MultiYear_FinalYear_Result) -> REGULATORY PERIOD FROM 2026-27 TO 2030-31
V4: BUSINESS & OTHER DETAILS
V6: INSTRUCTIONS
V7: Complete the following business details regulatory template before entering data or values in any other regulatory template. This regulatory template is linked to other cells within the spreadsheet and automatically generates column headings and conditional formatting to distinguish business specific input and non-input cells.
Q9: SUBMISSION PARTICULARS INPUT SHEET
Q11: DRAFT TEMPLATE ONLY
Q12: DO NOT USE FOR SUBMISSIONS
V15: ENTITY DETAILS
V17: Business Name
V19: Short name | AL19: CitiPower
V20: ACN/ABN | AL20: =INDEX(dms_ABN_List,MATCH(dms_TradingName,dms_TradingName_List)) -> 76064651056
V24: Business Address | BQ24: Postal Address
V26: Address 1 | AL26: 40 Market Street | BI26: Address 1 | BQ26: Locked Bag 14090
V27: Address 2 | BI27: Address 2
V28: Suburb | AL28: Melbourne | BI28: Suburb | BQ28: Melbourne
V29: State | AL29: =INDEX(dms_State_List,MATCH(dms_TradingName,dms_TradingName_List)) -> Vic | AV29: Post code | AX29: 3000 | BI29: State | BQ29: =INDEX(dms_PState_List,MATCH(dms_TradingName,dms_TradingName_List)) -> Vic | CA29: Post code | CC29: 8001
BA31: `
V33: Contact Names
V35: Name | BI35: Name
V36: Phone | BI36: Phone
V37: Email | BI37: Email
Q42: REGULATORY CONTROL PERIODS
X45: RESETS | Z45: Forthcoming period | AL45: 2026-27 | AU45: =FRCP_y2 -> 2027-28 | BD45: =FRCP_y3 -> 2028-29 | BM45: =FRCP_y4 -> 2029-30 | BV45: =FRCP_y5 -> 2030-31
AL46: =FRCP_y6 -> 2031-32 | AU46: =FRCP_y7 -> 2032-33 | BD46: =FRCP_y8 -> 2033-34 | BM46: =FRCP_y9 -> 2034-35 | BV46: =FRCP_y10 -> 2035-36
AL47: =FRCP_y11 -> 2036-37 | AU47: =FRCP_y12 -> 2037-38 | BD47: =FRCP_y13 -> 2038-39 | BM47: =FRCP_y14 -> 2039-40 | BV47: =FRCP_y15 -> 2040-41
X49: RESETS | Z49: Current period | AL49: =CRCP_y1 -> 2021-22 | AU49: =CRCP_y2 -> 2022-23 | BD49: =CRCP_y3 -> 2023-24 | BM49: =CRCP_y4 -> 2024-25 | BV49: =CRCP_y5 -> 2025-26
AL50: =CRCP_y6 -> 2026-27 | AU50: =CRCP_y7 -> 2027-28 | BD50: =CRCP_y8 -> 2028-29 | BM50: =CRCP_y9 -> 2029-30 | BV50: =CRCP_y10 -> 2030-31
AL51: =CRCP_y11 -> 2031-32 | AU51: =CRCP_y12 -> 2032-33 | BD51: =CRCP_y13 -> 2033-34 | BM51: =CRCP_y14 -> 2034-35 | BV51: =CRCP_y15 -> 2035-36
Z53: Previous period | AL53: =PRCP_y1 -> 2016-17 | AU53: =PRCP_y2 -> 2017-18 | BD53: =PRCP_y3 -> 2018-19 | BM53: =PRCP_y4 -> 2019-20 | BV53: =PRCP_y5 -> 2020-21
AL54: =PRCP_y6 -> 2021-22 | AU54: =PRCP_y7 -> 2022-23 | BD54: =PRCP_y8 -> 2023-24 | BM54: =PRCP_y9 -> 2024-25 | BV54: =PRCP_y10 -> 2025-26
AL55: =PRCP_y11 -> 2026-27 | AU55: =PRCP_y12 -> 2027-28 | BD55: =PRCP_y13 -> 2028-29 | BM55: =PRCP_y14 -> 2029-30 | BV55: =PRCP_y15 -> 2030-31
Z57: Commencing year | AL57: 2022-23
X58: ANNUAL RINS
Z59: Final year | AL59: 2028-29
Q63: SUBMISSION DETAILS
Z65: RIN type | AL65: =INDIRECT(dms_Model) -> Regulatory Reporting (Reset)
Z67: Source | AL67: Regulatory proposal
X69: THIS FILE | Z69: Data Quality | AL69: Consolidated
Z71: Confidentiality Status | AL71: Public
Z73: Amended RIN Amendment Reason | AL73: Changes to the data after follow up queries
Z77: Submission Date | AL77: 2025-02-12 | BD77: Please enter date this file submitted to AER

Sheet 2.1 Expenditure summary
B1: =INDEX(dms_Worksheet_List,MATCH(dms_Model,dms_Model_List)) -> REGULATORY REPORTING STATEMENT
B2: =INDEX(dms_TradingNameFull_List,MATCH(dms_TradingName,dms_TradingName_List)) -> CitiPower
B3: =CONCATENATE("REGULATORY PERIOD FROM ", FRCP_y1," TO ",dms_MultiYear_FinalYear_Result) -> REGULATORY PERIOD FROM 2026-27 TO 2030-31
B4: 2.1 EXPENDITURE SUMMARY & RECONCILIATION
B5: TEMPLATE DATE - SEPTEMBER 2024 - FINAL RIN
B8: 2.1.1 - STANDARD CONTROL SERVICES CAPEX (excluding dual function assets)
C9: =CONCATENATE("EXPENDITURE ($, real ", dms_DollarReal, ")") -> EXPENDITURE ($, real June 2026)
C10: =CRCP_y4 -> 2024-25 | D10: =CRCP_y5 -> 2025-26 | E10: =FRCP_y1 -> 2026-27 | F10: =FRCP_y2 -> 2027-28 | G10: =FRCP_y3 -> 2028-29 | H10: =FRCP_y4 -> 2029-30 | I10: =FRCP_y5 -> 2030-31
B11: Replacement expenditure | C11: 49037145.54 | D11: 69493418.93 | E11: 81298096.74 | F11: 80542653.67 | G11: 67381782.28 | H11: 66098134.66 | I11: 58740845.31
B12: Connections | C12: 110249005.7 | D12: 137446895 | E12: 148024713.1 | F12: 145828317.8 | G12: 138840180.7 | H12: 194950567.7 | I12: 218236874.9 | Q12: ADELAIDE | R12: SA | S12: 5000 | T12: PO Box 6468 | U12: Halifax Street | V12: ADELAIDE | W12: SA | X12: 5000 | Y12: NO | Z12: NO | AA12: NO | AB12: NO | AC12: NO | AD12: CBD | AE12: Urban | AF12: Short rural | AG12: Long rural | AI12: NO | AJ12: NO | AK12: =B12 -> Connections
B13: Augmentation Expenditure | C13: 26596352.66 | D13: 45722372.98 | E13: 69256465.99 | F13: 65453717.36 | G13: 24010008.78 | H13: 28642905.79 | I13: 27594447.42 | Q13: ADELAIDE | R13: SA | S13: 5000 | T13: PO Box 6468 | U13: Halifax Street | V13: ADELAIDE | W13: SA | X13: 5000 | Y13: NO | Z13: NO | AA13: NO | AB13: NO | AC13: NO | AD13: CBD | AE13: Urban | AF13: Short rural | AG13: Long rural | AI13: NO | AJ13: NO | AK13: Augmentation Expenditure
B14: Export services | C14: 0 | D14: 0 | E14: 3120335.295 | F14: 1259900.289 | G14: 1355119.814 | H14: 2235235.05 | I14: 1147739.93
B15: ICT | C15: 26327792.81 | D15: 20369609.57 | E15: 29765992.38 | F15: 32393940.59 | G15: 26214916.57 | H15: 22340448.4 | I15: 16986077.73
B16: Property | C16: 7120284.612 | D16: 2130652.796 | E16: 9134147.034 | F16: 21812853.47 | G16: 44695197.46 | H16: 6088616.063 | I16: 2574706.354
B17: Fleet | C17: 625512.9716 | D17: 2094954.414 | E17: 6857693.523 | F17: 4704053.596 | G17: 2686367.093 | H17: 3376102.745 | I17: 3473917.037
B18: Other non-network | C18: 2611191.081 | D18: 2328420.392 | E18: 1394791.95 | F18: 1397301.121 | G18: 1400412.73 | H18: 1404042.111 | I18: 1407485.739
B19: Network overheads | C19: 29514806.41 | D19: 31081280.98 | E19: 33646902.48 | F19: 33113233.25 | G19: 26346913.67 | H19: 33477928.06 | I19: 35523456.32
B20: Corporate overheads | C20: 0 | D20: 0 | E20: 0 | F20: 0 | G20: 0 | H20: 0 | I20: 0
B21: Metering | C21: 0 | D21: 0 | E21: 0 | F21: 0 | G21: 0 | H21: 0 | I21: 0
B22: capital contributions (included in the above) | C22: 78106728.31 | D22: 95487122.67 | E22: 101448701.1 | F22: 100728900.8 | G22: 97150424.59 | H22: 145580280 | I22: 164262196.4
B23: Total | C23: =SUM(C11:C21) -> 252082091.8 | D23: 310667605 | E23: 382499138.4 | F23: 386505971.1 | G23: 332930899.1 | H23: 358613980.6 | I23: 365685550.8
B26: 2.1.2 - STANDARD CONTROL SERVICES OPEX BY CATEGORY (excluding dual function assets)
C27: =CONCATENATE("EXPENDITURE ($, real ", dms_DollarReal, ")") -> EXPENDITURE ($, real June 2026)
C28: =CRCP_y4 -> 2024-25 | D28: =CRCP_y5 -> 2025-26
B29: Vegetation management | C29: 2018158.485 | D29: 2550161.978
B30: Maintenance | C30: 27005342.72 | D30: 27371831.93
B31: Emergency response | C31: 6407806.038 | D31: 6494766.304
B32: Non-network | C32: 0 | D32: 0
B33: Export services | C33: 0 | D33: 0
B34: Metering | C34: 0 | D34: 0
B35: Network overheads | C35: 16705336.83 | D35: 16705336.83
B36: Corporate overheads | C36: 42686518.1 | D36: 42686518.1
B37: Total | C37: =SUM(C29:C36) -> 94823162.17 | D37: =SUM(D29:D36) -> 95808615.14
B40: 2.1.3 - ALTERNATIVE CONTROL SERVICES CAPEX
C41: =CONCATENATE("EXPENDITURE ($, real ", dms_DollarReal, ")") -> EXPENDITURE ($, real June 2026)
C42: =CRCP_y4 -> 2024-25 | D42: =CRCP_y5 -> 2025-26 | E42: =FRCP_y1 -> 2026-27 | F42: =FRCP_y2 -> 2027-28 | G42: =FRCP_y3 -> 2028-29 | H42: =FRCP_y4 -> 2029-30 | I42: =FRCP_y5 -> 2030-31
B43: Connections | C43: 0 | D43: 0 | E43: 0 | F43: 0 | G43: 0 | H43: 0 | I43: 0
B44: Metering | C44: 4298466.346 | D44: 6224912.416 | E44: 22479995.72 | F44: 21886795.58 | G44: 20873269.22 | H44: 22091264.07 | I44: 21902268.14
B45: Public lighting | C45: =SUM('4.1 Public lighting'!D16,'4.1 Public lighting'!D21,'4.1 Public lighting'!D26) -> 7233160.773 | D45: =SUM('4.1 Public lighting'!E16,'4.1 Public lighting'!E21,'4.1 Public lighting'!E26) -> 6460452.407 | E45: =SUM('4.1 Public lighting'!F16,'4.1 Public lighting'!F21,'4.1 Public lighting'!F26) -> 6400803.011 | F45: =SUM('4.1 Public lighting'!G16,'4.1 Public lighting'!G21,'4.1 Public lighting'!G26) -> 6409084.003 | G45: =SUM('4.1 Public lighting'!H16,'4.1 Public lighting'!H21,'4.1 Public lighting'!H26) -> 6386481.037 | H45: =SUM('4.1 Public lighting'!I16,'4.1 Public lighting'!I21,'4.1 Public lighting'!I26) -> 6394552.362 | I45: =SUM('4.1 Public lighting'!J16,'4.1 Public lighting'!J21,'4.1 Public lighting'!J26) -> 6397877.337
B46: Fee and quoted | C46: 0 | D46: 0 | E46: 0 | F46: 0 | G46: 0 | H46: 0 | I46: 0
B47: Network overheads | C47: ='2.10 Overheads'!D17 -> 522547.355 | D47: ='2.10 Overheads'!E17 -> 522547.355 | E47: ='2.10 Overheads'!F17 -> 522547.355 | F47: ='2.10 Overheads'!G17 -> 522547.355 | G47: ='2.10 Overheads'!H17 -> 522547.355 | H47: ='2.10 Overheads'!I17 -> 522547.355 | I47: ='2.10 Overheads'!J17 -> 522547.355
B48: Corporate overheads | C48: ='2.10 Overheads'!D32 -> 1504361.195 | D48: ='2.10 Overheads'!E32 -> 1504361.195 | E48: ='2.10 Overheads'!F32 -> 1504361.195 | F48: ='2.10 Overheads'!G32 -> 1504361.195 | G48: ='2.10 Overheads'!H32 -> 1504361.195 | H48: ='2.10 Overheads'!I32 -> 1504361.195 | I48: ='2.10 Overheads'!J32 -> 1504361.195
B49: capital contributions (included in the above) | C49: 0 | D49: 0 | E49: 0 | F49: 0 | G49: 0 | H49: 0 | I49: 0
B50: Total | C50: =SUM(C43:C48) -> 13558535.67 | D50: 14712273.37 | E50: 30907707.28 | F50: 30322788.13 | G50: 29286658.81 | H50: 30512724.98 | I50: 30327054.03
B53: 2.1.4 - ALTERNATIVE CONTROL SERVICES OPEX
C54: =CONCATENATE("EXPENDITURE ($, real ", dms_DollarReal, ")") -> EXPENDITURE ($, real June 2026)
C55: =CRCP_y4 -> 2024-25 | D55: =CRCP_y5 -> 2025-26 | E55: =FRCP_y1 -> 2026-27 | F55: =FRCP_y2 -> 2027-28 | G55: =FRCP_y3 -> 2028-29 | H55: =FRCP_y4 -> 2029-30 | I55: =FRCP_y5 -> 2030-31
B56: Connections | C56: =SUM('3.2 Operating expenditure'!C73) -> 3494808.656 | D56: =SUM('3.2 Operating expenditure'!D73) -> 3531128.575 | E56: =SUM('3.2 Operating expenditure'!E73) -> 3987207.13 | F56: =SUM('3.2 Operating expenditure'!F73) -> 4256551.76 | G56: =SUM('3.2 Operating expenditure'!G73) -> 4354316.358 | H56: =SUM('3.2 Operating expenditure'!H73) -> 4477206.805 | I56: =SUM('3.2 Operating expenditure'!I73) -> 4526470.304
B57: Metering | C57: ='3.2 Operating expenditure'!K72 -> 4422925.786 | D57: ='3.2 Operating expenditure'!L72 -> 4514885.781 | E57: ='3.2 Operating expenditure'!M72 -> 5433232.566 | F57: ='3.2 Operating expenditure'!N72 -> 5726840.111 | G57: ='3.2 Operating expenditure'!O72 -> 5887505.858 | H57: ='3.2 Operating expenditure'!P72 -> 6431260.026 | I57: ='3.2 Operating expenditure'!Q72 -> 7003713.514
B58: Public lighting | C58: ='3.2 Operating expenditure'!K74 -> 2809792.235 | D58: ='3.2 Operating expenditure'!L74 -> 2468962.741 | E58: ='3.2 Operating expenditure'!M74 -> 2128133.247 | F58: ='3.2 Operating expenditure'!N74 -> 2012878.747 | G58: ='3.2 Operating expenditure'!O74 -> 1906827.573 | H58: ='3.2 Operating expenditure'!P74 -> 1906069.487 | I58: ='3.2 Operating expenditure'!Q74 -> 1909033.668
B59: Fee and quoted | C59: ='3.2 Operating expenditure'!K21 -> 3395775.214 | D59: ='3.2 Operating expenditure'!L21 -> 3497648.47 | E59: ='3.2 Operating expenditure'!M21 -> 3602577.924 | F59: ='3.2 Operating expenditure'!N21 -> 3710655.262 | G59: ='3.2 Operating expenditure'!O21 -> 3821974.92 | H59: ='3.2 Operating expenditure'!P21 -> 3936634.167 | I59: ='3.2 Operating expenditure'!Q21 -> 4054733.192
B60: Network overheads | C60: ='2.10 Overheads'!D14 -> 742108.212 | D60: ='2.10 Overheads'!E14 -> 742108.212 | E60: ='2.10 Overheads'!F14 -> 742108.212 | F60: ='2.10 Overheads'!G14 -> 742108.212 | G60: ='2.10 Overheads'!H14 -> 742108.212 | H60: ='2.10 Overheads'!I14 -> 742108.212 | I60: ='2.10 Overheads'!J14 -> 742108.212
B61: Corporate overheads | C61: ='2.10 Overheads'!D29 -> 4819438.254 | D61: ='2.10 Overheads'!E29 -> 4819438.254 | E61: ='2.10 Overheads'!F29 -> 4819438.254 | F61: ='2.10 Overheads'!G29 -> 4819438.254 | G61: ='2.10 Overheads'!H29 -> 4819438.254 | H61: ='2.10 Overheads'!I29 -> 4819438.254 | I61: ='2.10 Overheads'!J29 -> 4819438.254
B62: Total | C62: =SUM(C56:C61) -> 19684848.36 | D62: 19574172.03 | E62: 20712697.33 | F62: 21268472.35 | G62: 21532171.18 | H62: 22312716.95 | I62: 23055497.14
B65: 2.1.5 - DUAL FUNCTION ASSETS CAPEX
C66: =CONCATENATE("EXPENDITURE ($, real ", dms_DollarReal, ")") -> EXPENDITURE ($, real June 2026)
C67: =CRCP_y4 -> 2024-25 | D67: =CRCP_y5 -> 2025-26 | E67: =FRCP_y1 -> 2026-27 | F67: =FRCP_y2 -> 2027-28 | G67: =FRCP_y3 -> 2028-29 | H67: =FRCP_y4 -> 2029-30 | I67: =FRCP_y5 -> 2030-31
B68: Replacement expenditure | C68: 0 | D68: 0 | E68: 0 | F68: 0 | G68: 0 | H68: 0 | I68: 0
B69: Connections | C69: 0 | D69: 0 | E69: 0 | F69: 0 | G69: 0 | H69: 0 | I69: 0
B70: Augmentation Expenditure | C70: 0 | D70: 0 | E70: 0 | F70: 0 | G70: 0 | H70: 0 | I70: 0
B71: Export services | C71: 0 | D71: 0 | E71: 0 | F71: 0 | G71: 0 | H71: 0 | I71: 0
B72: ICT | C72: 0 | D72: 0 | E72: 0 | F72: 0 | G72: 0 | H72: 0 | I72: 0
B73: Property | C73: 0 | D73: 0 | E73: 0 | F73: 0 | G73: 0 | H73: 0 | I73: 0
B74: Fleet | C74: 0 | D74: 0 | E74: 0 | F74: 0 | G74: 0 | H74: 0 | I74: 0
B75: Other non-network | C75: 0 | D75: 0 | E75: 0 | F75: 0 | G75: 0 | H75: 0 | I75: 0
B76: Network overheads | C76: 0 | D76: 0 | E76: 0 | F76: 0 | G76: 0 | H76: 0 | I76: 0
B77: Corporate overheads | C77: 0 | D77: 0 | E77: 0 | F77: 0 | G77: 0 | H77: 0 | I77: 0
B78: Metering | C78: 0 | D78: 0 | E78: 0 | F78: 0 | G78: 0 | H78: 0 | I78: 0
B79: capital contributions (included in the above) | C79: 0 | D79: 0 | E79: 0 | F79: 0 | G79: 0 | H79: 0 | I79: 0
B80: Total | C80: =SUM(C68:C78) -> 0 | D80: 0 | E80: 0 | F80: 0 | G80: 0 | H80: 0 | I80: 0
B83: 2.1.6 - DUAL FUNCTION ASSETS OPEX BY CATEGORY
C84: =CONCATENATE("EXPENDITURE ($, real ", dms_DollarReal, ")") -> EXPENDITURE ($, real June 2026)
C85: =CRCP_y4 -> 2024-25 | D85: =CRCP_y5 -> 2025-26
B86: Vegetation management | C86: 0 | D86: 0
B87: Maintenance | C87: 0 | D87: 0
B88: Emergency response | C88: 0 | D88: 0
B89: Non-network | C89: 0 | D89: 0
B90: Export services | C90: 0 | D90: 0
B91: Metering | C91: 0 | D91: 0
B92: Network overheads | C92: 0 | D92: 0
B93: Corporate overheads | C93: 0 | D93: 0
B94: Total | C94: =SUM(C86:C93) -> 0 | D94: =SUM(D86:D93) -> 0
B97: 2.1.7 - STANDARD CONTROL SERVICES (TOTAL) CAPITAL CONTRIBUTIONS
C98: =CONCATENATE("EXPENDITURE ($, real ", dms_DollarReal, ")") -> EXPENDITURE ($, real June 2026)
C99: =CRCP_y4 -> 2024-25 | D99: =CRCP_y5 -> 2025-26 | E99: =FRCP_y1 -> 2026-27 | F99: =FRCP_y2 -> 2027-28 | G99: =FRCP_y3 -> 2028-29 | H99: =FRCP_y4 -> 2029-30 | I99: =FRCP_y5 -> 2030-31
B100: Replacement expenditure | C100: 0 | D100: 0 | E100: 0 | F100: 0 | G100: 0 | H100: 0 | I100: 0
B101: Connections | C101: 78106728.31 | D101: 95487122.67 | E101: 101448701.1 | F101: 100728900.8 | G101: 97150424.59 | H101: 145580280 | I101: 164262196.4
B102: Augmentation Expenditure | C102: 0 | D102: 0 | E102: 0 | F102: 0 | G102: 0 | H102: 0 | I102: 0
B103: Export services | C103: 0 | D103: 0 | E103: 0 | F103: 0 | G103: 0 | H103: 0 | I103: 0
B104: ICT | C104: 0 | D104: 0 | E104: 0 | F104: 0 | G104: 0 | H104: 0 | I104: 0
B105: Property | C105: 0 | D105: 0 | E105: 0 | F105: 0 | G105: 0 | H105: 0 | I105: 0
B106: Fleet | C106: 0 | D106: 0 | E106: 0 | F106: 0 | G106: 0 | H106: 0 | I106: 0
B107: Other non-network | C107: 0 | D107: 0 | E107: 0 | F107: 0 | G107: 0 | H107: 0 | I107: 0
B108: Network overheads | C108: 0 | D108: 0 | E108: 0 | F108: 0 | G108: 0 | H108: 0 | I108: 0
B109: Corporate overheads | C109: 0 | D109: 0 | E109: 0 | F109: 0 | G109: 0 | H109: 0 | I109: 0
B110: Metering | C110: 0 | D110: 0 | E110: 0 | F110: 0 | G110: 0 | H110: 0 | I110: 0
B111: Total | C111: =SUM(C100:C110) -> 78106728.31 | D111: 95487122.67 | E111: 101448701.1 | F111: 100728900.8 | G111: 97150424.59 | H111: 145580280 | I111: 164262196.4
B114: 2.1.8 - STANDARD CONTROL SERVICES (TOTAL) CAPITALISED OVERHEADS
C115: =CONCATENATE("EXPENDITURE ($, real ", dms_DollarReal, ")") -> EXPENDITURE ($, real June 2026)
C116: =CRCP_y4 -> 2024-25 | D116: =CRCP_y5 -> 2025-26 | E116: =FRCP_y1 -> 2026-27 | F116: =FRCP_y2 -> 2027-28 | G116: =FRCP_y3 -> 2028-29 | H116: =FRCP_y4 -> 2029-30 | I116: =FRCP_y5 -> 2030-31
B117: Replacement expenditure | C117: 7786218.86 | D117: 8548727.581 | E117: 9161483.58 | F117: 9139143.395 | G117: 7710927.318 | H117: 7638566.444 | I117: 6851177.075
B118: Connections | C118: 17505563.96 | D118: 16908019.21 | E118: 16680906.84 | F118: 16547082.15 | G118: 15888367.84 | H118: 22529272.16 | I118: 25453829.72
B119: Augmentation Expenditure | C119: 4223023.596 | D119: 5624534.193 | E119: 7804512.055 | F119: 7427007.697 | G119: 2747618.516 | H119: 3310089.463 | I119: 3218449.523
B120: Export services | C120: 0 | D120: 0 | E120: 0 | F120: 0 | G120: 0 | H120: 0 | I120: 0
B121: ICT | C121: 0 | D121: 0 | E121: 0 | F121: 0 | G121: 0 | H121: 0 | I121: 0
B122: Property | C122: 0 | D122: 0 | E122: 0 | F122: 0 | G122: 0 | H122: 0 | I122: 0
B123: Fleet | C123: 0 | D123: 0 | E123: 0 | F123: 0 | G123: 0 | H123: 0 | I123: 0
B124: Other non-network | C124: 0 | D124: 0 | E124: 0 | F124: 0 | G124: 0 | H124: 0 | I124: 0
B125: Metering | C125: 0 | D125: 0 | E125: 0 | F125: 0 | G125: 0 | H125: 0 | I125: 0
B126: capital contributions (included in the above) | C126: 0 | D126: 0 | E126: 0 | F126: 0 | G126: 0 | H126: 0 | I126: 0
B127: Total | C127: =SUM(C117:C125) -> 29514806.41 | D127: 31081280.98 | E127: 33646902.48 | F127: 33113233.25 | G127: 26346913.67 | H127: 33477928.06 | I127: 35523456.32

Sheet 2.2 Repex
B1: =INDEX(dms_Worksheet_List,MATCH(dms_Model,dms_Model_List)) -> REGULATORY REPORTING STATEMENT
B2: =INDEX(dms_TradingNameFull_List,MATCH(dms_TradingName,dms_TradingName_List)) -> CitiPower
B3: =CONCATENATE("REGULATORY PERIOD FROM ", FRCP_y1," TO ",dms_MultiYear_FinalYear_Result) -> REGULATORY PERIOD FROM 2026-27 TO 2030-31
B4: 2.2 REPEX
B5: TEMPLATE DATE - SEPTEMBER 2024 - FINAL RIN
B8: 2.2.1 - REPLACEMENT EXPENDITURE, VOLUMES AND ASSET FAILURES BY ASSET CATEGORY
B9: EXPENDITURE
D10: =CONCATENATE("EXPENDITURE ($, real ", dms_DollarReal, ")") -> EXPENDITURE ($, real June 2026)
B11: ASSET GROUP | C11: ASSET CATEGORY | D11: =CRCP_y4 -> 2024-25 | E11: =CRCP_y5 -> 2025-26 | F11: =FRCP_y1 -> 2026-27 | G11: =FRCP_y2 -> 2027-28 | H11: =FRCP_y3 -> 2028-29 | I11: =FRCP_y4 -> 2029-30 | J11: =FRCP_y5 -> 2030-31
B12: POLES BY: HIGHEST OPERATING VOLTAGE; MATERIAL TYPE | C12: ˂ = 1 kV; wood | D12: 4834074.117 | E12: 4914646.727 | F12: 4959616.458 | G12: 4985612.42 | H12: 5017849.872 | I12: 5055451.633 | J12: 5091128.922
C13: > 1 kV & < = 11 kV; wood | D13: 1270119.791 | E13: 1291289.691 | F13: 1303105.179 | G13: 1309935.439 | H13: 1318405.609 | I13: 1328285.213 | J13: 1337659.176
C14: ˃ 11 kV & < = 22 kV; wood | D14: 431234.3056 | E14: 438421.964 | F14: 442433.5886 | G14: 444752.616 | H14: 447628.4295 | I14: 450982.778 | J14: 454165.4497
C15: > 22 kV & < = 66 kV; wood | D15: 454817.4317 | E15: 462398.1651 | F15: 466629.1755 | G15: 469075.0247 | H15: 472108.1092 | I15: 475645.8986 | J15: 479002.6228
C16: > 66 kV & < = 132 kV; wood | D16: 0 | E16: 0 | F16: 0 | G16: 0 | H16: 0 | I16: 0 | J16: 0
C17: > 132 kV; wood | D17: 0 | E17: 0 | F17: 0 | G17: 0 | H17: 0 | I17: 0 | J17: 0
C18: ˂ = 1 kV; concrete | D18: 0 | E18: 0 | F18: 0 | G18: 0 | H18: 0 | I18: 0 | J18: 0
C19: > 1 kV & < = 11 kV; concrete | D19: 0 | E19: 0 | F19: 0 | G19: 0 | H19: 0 | I19: 0 | J19: 0
C20: ˃ 11 kV & < = 22 kV; concrete | D20: 0 | E20: 0 | F20: 0 | G20: 0 | H20: 0 | I20: 0 | J20: 0
C21: > 22 kV & < = 66 kV; concrete | D21: 0 | E21: 0 | F21: 0 | G21: 0 | H21: 0 | I21: 0 | J21: 0
C22: > 66 kV & < = 132 kV; concrete | D22: 0 | E22: 0 | F22: 0 | G22: 0 | H22: 0 | I22: 0 | J22: 0
C23: > 132 kV; concrete | D23: 0 | E23: 0 | F23: 0 | G23: 0 | H23: 0 | I23: 0 | J23: 0
C24: ˂ = 1 kV; steel | D24: 0 | E24: 0 | F24: 0 | G24: 0 | H24: 0 | I24: 0 | J24: 0
C25: > 1 kV & < = 11 kV; steel | D25: 0 | E25: 0 | F25: 0 | G25: 0 | H25: 0 | I25: 0 | J25: 0
C26: ˃ 11 kV & < = 22 kV; steel | D26: 0 | E26: 0 | F26: 0 | G26: 0 | H26: 0 | I26: 0 | J26: 0
C27: > 22 kV & < = 66 kV; steel | D27: 0 | E27: 0 | F27: 0 | G27: 0 | H27: 0 | I27: 0 | J27: 0
C28: > 66 kV & < = 132 kV; steel | D28: 0 | E28: 0 | F28: 0 | G28: 0 | H28: 0 | I28: 0 | J28: 0
C29: > 132 kV; steel | D29: 0 | E29: 0 | F29: 0 | G29: 0 | H29: 0 | I29: 0 | J29: 0
C30: ˂ = 1 kV; composite pole | D30: 0 | E30: 0 | F30: 0 | G30: 0 | H30: 0 | I30: 0 | J30: 0
C31: > 1 kV & < = 11 kV; composite pole | D31: 0 | E31: 0 | F31: 0 | G31: 0 | H31: 0 | I31: 0 | J31: 0
C32: ˃ 11 kV & < = 22 kV; composite pole | D32: 0 | E32: 0 | F32: 0 | G32: 0 | H32: 0 | I32: 0 | J32: 0
C33: > 22 kV & < = 66 kV; composite pole | D33: 0 | E33: 0 | F33: 0 | G33: 0 | H33: 0 | I33: 0 | J33: 0
C34: > 66 kV & < = 132 kV; composite pole | D34: 0 | E34: 0 | F34: 0 | G34: 0 | H34: 0 | I34: 0 | J34: 0
C35: > 132 kV; composite pole | D35: 0 | E35: 0 | F35: 0 | G35: 0 | H35: 0 | I35: 0 | J35: 0
C36: ˂ = 1 kV; pole - other technology | D36: 0 | E36: 0 | F36: 0 | G36: 0 | H36: 0 | I36: 0 | J36: 0
C37: > 1 kV & < = 11 kV; pole - other technology | D37: 0 | E37: 0 | F37: 0 | G37: 0 | H37: 0 | I37: 0 | J37: 0
C38: ˃ 11 kV & < = 22 kV; pole - other technology | D38: 0 | E38: 0 | F38: 0 | G38: 0 | H38: 0 | I38: 0 | J38: 0
C39: > 22 kV & < = 66 kV; pole - other technology | D39: 0 | E39: 0 | F39: 0 | G39: 0 | H39: 0 | I39: 0 | J39: 0
C40: > 66 kV & < = 132 kV; pole - other technology | D40: 0 | E40: 0 | F40: 0 | G40: 0 | H40: 0 | I40: 0 | J40: 0
C41: > 132 kV; pole - other technology | D41: 0 | E41: 0 | F41: 0 | G41: 0 | H41: 0 | I41: 0 | J41: 0
C42: Other | D42: 0 | E42: 0 | F42: 0 | G42: 0 | H42: 0 | I42: 0 | J42: 0
B43: POLE TOP STRUCTURES BY: HIGHEST OPERATING VOLTAGE | C43: ˂ = 1 kV | D43: 5365759.759 | E43: 5455194.315 | F43: 5505110.135 | G43: 4976223.717 | H43: 4969686.805 | I43: 4122842.413 | J43: 4695297.843
C44: > 1 kV & < = 11 kV | D44: 2026041.197 | E44: 2068586.408 | F44: 3076186.696 | G44: 2603368.834 | H44: 2828941.382 | I44: 2808423.308 | J44: 2709774.821
C45: ˃ 11 kV & < = 22 kV | D45: 128988.8689 | E45: 132681.3169 | F45: 309161.9193 | G45: 224783.3258 | H45: 262912.7085 | I45: 257492.7219 | J45: 238471.4489
C46: > 22 kV & < = 66 kV | D46: 18181.10672 | E46: 18484.14287 | F46: 18653.27546 | G46: 18751.0471 | H46: 18872.29319 | I46: 19013.71461 | J46: 19147.89803
C47: > 66 kV & < = 132 kV | D47: 0 | E47: 0 | F47: 0 | G47: 0 | H47: 0 | I47: 0 | J47: 0
C48: > 132 kV | D48: 0 | E48: 0 | F48: 0 | G48: 0 | H48: 0 | I48: 0 | J48: 0
C49: Other | D49: 0 | E49: 0 | F49: 0 | G49: 0 | H49: 0 | I49: 0 | J49: 0
B50: STAKING OF/ STAKED WOODEN POLES BY: HIGHEST OPERATING VOLTAGE | C50: ˂ = 1 Kv | D50: 476394.0646 | E50: 484334.4297 | F50: 488766.16 | G50: 491328.0408 | H50: 494505.0155 | I50: 498210.6384 | J50: 501726.6062
C51: > 1 kV & < = 11 kV | D51: 0 | E51: 0 | F51: 0 | G51: 0 | H51: 0 | I51: 0 | J51: 0
C52: ˃ 11 kV & < = 22 kV | D52: 0 | E52: 0 | F52: 0 | G52: 0 | H52: 0 | I52: 0 | J52: 0
C53: > 22 kV & < = 66 kV | D53: 0 | E53: 0 | F53: 0 | G53: 0 | H53: 0 | I53: 0 | J53: 0
C54: > 66 kV & < = 132 kV | D54: 0 | E54: 0 | F54: 0 | G54: 0 | H54: 0 | I54: 0 | J54: 0
C55: > 132 kV | D55: 0 | E55: 0 | F55: 0 | G55: 0 | H55: 0 | I55: 0 | J55: 0
B56: OVERHEAD CONDUCTORS BY: Highest operating voltage; Number of phases (at HV) | C56: ˂ = 1 kV | D56: 0 | E56: 0 | F56: 0 | G56: 0 | H56: 0 | I56: 0 | J56: 0
C57: > 1 kV & < = 11 kV | D57: 121080.6786 | E57: 122568.8006 | F57: 187257.0808 | G57: 188238.5938 | H57: 189455.7628 | I57: 190875.4685 | J57: 192222.5132
C58: ˃ 11 kV & < = 22 kV ; SWER | D58: 0 | E58: 0 | F58: 0 | G58: 0 | H58: 0 | I58: 0 | J58: 0
C59: ˃ 11 kV & < = 22 kV ; Single-Phase | D59: 0 | E59: 0 | F59: 0 | G59: 0 | H59: 0 | I59: 0 | J59: 0
C60: ˃ 11 kV & < = 22 kV ; Multiple-Phase | D60: 0 | E60: 0 | F60: 0 | G60: 0 | H60: 0 | I60: 0 | J60: 0
C61: > 22 kV & < = 66 kV | D61: 0 | E61: 0 | F61: 0 | G61: 0 | H61: 0 | I61: 0 | J61: 0
C62: > 66 kV & < = 132 kV | D62: 0 | E62: 0 | F62: 0 | G62: 0 | H62: 0 | I62: 0 | J62: 0
C63: > 132 kV | D63: 0 | E63: 0 | F63: 0 | G63: 0 | H63: 0 | I63: 0 | J63: 0
C64: Other | D64: 0 | E64: 0 | F64: 0 | G64: 0 | H64: 0 | I64: 0 | J64: 0
B65: UNDERGROUND CABLES BY: Highest operating voltage | C65: ˂ = 1 kV | D65: 1042581.981 | E65: 1065785.555 | F65: 1055279.307 | G65: 1004407.842 | H65: 1005225.696 | I65: 1018477.739 | J65: 1025665.331
C66: > 1 kV & < = 11 kV | D66: 3325262.098 | E66: 6570566.122 | F66: 6913495.594 | G66: 8274660.818 | H66: 7861913.744 | I66: 7141159.408 | J66: 6018142.348
C67: > 11 kV & < = 22 kV | D67: 0 | E67: 193652.8936 | F67: 1367973.92 | G67: 0 | H67: 0 | I67: 0 | J67: 0
C68: > 22 kV & < = 33 kV | D68: 0 | E68: 0 | F68: 0 | G68: 0 | H68: 0 | I68: 0 | J68: 0
C69: > 33 kV & < = 66 kV | D69: 1490784.456 | E69: 3081286.762 | F69: 2935548.28 | G69: 2950935.034 | H69: 2970016.066 | I69: 2992272.179 | J69: 3013389.216
C70: > 66 kV & < = 132 kV | D70: 0 | E70: 0 | F70: 0 | G70: 0 | H70: 0 | I70: 0 | J70: 0
C71: > 132 kV | D71: 0 | E71: 0 | F71: 0 | G71: 0 | H71: 0 | I71: 0 | J71: 0
C72: Other | D72: 1660381.116 | E72: 1730417.428 | F72: 2385956.702 | G72: 2413917.372 | H72: 2452857.815 | I72: 2486909.656 | J72: 2528132.803
B73: SERVICE LINES BY: Connection voltage; Customer type; Connection complexity | C73: ˂ = 11 kV ; Residential ; Simple Type | D73: 1298222.569 | E73: 1337788.266 | F73: 619433.5785 | G73: 614774.2006 | H73: 636255.4004 | I73: 560854.1836 | J73: 622941.3156
C74: ˂ = 11 kV ; Commercial & Industrial ; Simple Type | D74: 0 | E74: 0 | F74: 0 | G74: 0 | H74: 0 | I74: 0 | J74: 0
C75: ˂ = 11 kV ; Residential ; Complex Type | D75: 0 | E75: 0 | F75: 0 | G75: 0 | H75: 0 | I75: 0 | J75: 0
C76: ˂ = 11 kV ; Commercial & Industrial ; Complex Type | D76: 0 | E76: 0 | F76: 0 | G76: 0 | H76: 0 | I76: 0 | J76: 0
C77: ˂ = 11 kV ; Subdivision ; Complex Type | D77: 0 | E77: 0 | F77: 0 | G77: 0 | H77: 0 | I77: 0 | J77: 0
C78: > 11 kV & < = 22 kV ; Commercial & Industrial | D78: 0 | E78: 0 | F78: 0 | G78: 0 | H78: 0 | I78: 0 | J78: 0
C79: > 11 kV & < = 22 kV ; Subdivision | D79: 0 | E79: 0 | F79: 0 | G79: 0 | H79: 0 | I79: 0 | J79: 0
C80: > 22 kV & < = 33 kV ; Commercial & Industrial | D80: 0 | E80: 0 | F80: 0 | G80: 0 | H80: 0 | I80: 0 | J80: 0
C81: > 22 kV & < = 33 kV ; Subdivision | D81: 0 | E81: 0 | F81: 0 | G81: 0 | H81: 0 | I81: 0 | J81: 0
C82: > 33 kV & < = 66 kV ; Commercial & Industrial | D82: 0 | E82: 0 | F82: 0 | G82: 0 | H82: 0 | I82: 0 | J82: 0
C83: > 33 kV & < = 66 kV ; Subdivision | D83: 0 | E83: 0 | F83: 0 | G83: 0 | H83: 0 | I83: 0 | J83: 0
C84: > 66 kV & < = 132 kV ; Commercial & Industrial | D84: 0 | E84: 0 | F84: 0 | G84: 0 | H84: 0 | I84: 0 | J84: 0
C85: > 66 kV & < = 132 kV ; Subdivision | D85: 0 | E85: 0 | F85: 0 | G85: 0 | H85: 0 | I85: 0 | J85: 0
C86: > 132 kV ; Commercial & Industrial | D86: 0 | E86: 0 | F86: 0 | G86: 0 | H86: 0 | I86: 0 | J86: 0
C87: > 132 kV ; Subdivision | D87: 0 | E87: 0 | F87: 0 | G87: 0 | H87: 0 | I87: 0 | J87: 0
C88: Other | D88: 0 | E88: 0 | F88: 0 | G88: 0 | H88: 0 | I88: 0 | J88: 0
B89: TRANSFORMERS BY: Mounting type; Highest operating voltage; Ampere rating; Number of phases (at LV) | C89: Pole Mounted ; < = 22kV ; < = 60 kVA ; Single Phase | D89: 0 | E89: 0 | F89: 0 | G89: 0 | H89: 0 | I89: 0 | J89: 0
C90: Pole Mounted ; < = 22kV ; > 60 kVA and < = 600 kVA ; Single Phase | D90: 0 | E90: 0 | F90: 0 | G90: 0 | H90: 0 | I90: 0 | J90: 0
C91: Pole Mounted ; < = 22kV ; > 600 kVA ; Single Phase | D91: 0 | E91: 0 | F91: 0 | G91: 0 | H91: 0 | I91: 0 | J91: 0
C92: Pole Mounted ; < = 22kV ; < = 60 kVA ; Multiple Phase | D92: 0 | E92: 0 | F92: 0 | G92: 0 | H92: 0 | I92: 0 | J92: 0
C93: Pole Mounted ; < = 22kV ; > 60 kVA and < = 600 kVA ; Multiple Phase | D93: 338488.3974 | E93: 344130.2003 | F93: 347279.0417 | G93: 349099.314 | H93: 351356.6239 | I93: 353989.55 | J93: 356487.722
C94: Pole Mounted ; < = 22kV ; > 600 kVA ; Multiple Phase | D94: 0 | E94: 0 | F94: 0 | G94: 0 | H94: 0 | I94: 0 | J94: 0
C95: Kiosk Mounted ; < = 22kV ; < = 60 kVA ; Single Phase | D95: 0 | E95: 0 | F95: 0 | G95: 0 | H95: 0 | I95: 0 | J95: 0
C96: Kiosk Mounted ; < = 22kV ; > 60 kVA and < = 600 kVA ; Single Phase | D96: 0 | E96: 0 | F96: 0 | G96: 0 | H96: 0 | I96: 0 | J96: 0
C97: Kiosk Mounted ; < = 22kV ; > 600 kVA ; Single Phase | D97: 0 | E97: 0 | F97: 0 | G97: 0 | H97: 0 | I97: 0 | J97: 0
C98: Kiosk Mounted ; < = 22kV ; < = 60 kVA ; Multiple Phase | D98: 0 | E98: 0 | F98: 0 | G98: 0 | H98: 0 | I98: 0 | J98: 0
C99: Kiosk Mounted ; < = 22kV ; > 60 kVA and < = 600 kVA ; Multiple Phase | D99: 1107365.571 | E99: 1144401.145 | F99: 768858.0248 | G99: 772888.0145 | H99: 777885.5832 | I99: 783714.7468 | J99: 789245.5717
C100: Kiosk Mounted ; < = 22kV ; > 600 kVA ; Multiple Phase | D100: 0 | E100: 0 | F100: 0 | G100: 0 | H100: 0 | I100: 0 | J100: 0
C101: Ground Outdoor / Indoor Chamber Mounted; ˂ 22 kV ; < = 60 kVA ; Single Phase | D101: 0 | E101: 0 | F101: 0 | G101: 0 | H101: 0 | I101: 0 | J101: 0
C102: Ground Outdoor / Indoor Chamber Mounted; ˂ 22 kV ; > 60 kVA and < = 600 kVA ; Single Phase | D102: 0 | E102: 0 | F102: 0 | G102: 0 | H102: 0 | I102: 0 | J102: 0
C103: Ground Outdoor / Indoor Chamber Mounted; ˂ 22 kV ; > 600 kVA ; Single Phase | D103: 0 | E103: 0 | F103: 0 | G103: 0 | H103: 0 | I103: 0 | J103: 0
C104: Ground Outdoor / Indoor Chamber Mounted; ˂ 22 kV ; < = 60 kVA ; Multiple Phase | D104: 0 | E104: 0 | F104: 0 | G104: 0 | H104: 0 | I104: 0 | J104: 0
C105: Ground Outdoor / Indoor Chamber Mounted; ˂ 22 kV ; > 60 kVA and < = 600 kVA ; Multiple Phase | D105: 285122.8311 | E105: 291435.519 | F105: 288676.6349 | G105: 290189.7411 | H105: 292066.1361 | I105: 294254.7629 | J105: 296331.3751
C106: Ground Outdoor / Indoor Chamber Mounted; ˂ 22 kV ; > 600 kVA ; Multiple Phase | D106: 703103.9621 | E106: 1544065.6 | F106: 1471034.499 | G106: 1478744.965 | H106: 1488306.673 | I106: 1499459.448 | J106: 1510041.421
C107: Ground Outdoor / Indoor Chamber Mounted; > = 22 kV & < = 33 kV ; < = 15 MVA | D107: 0 | E107: 0 | F107: 0 | G107: 0 | H107: 0 | I107: 0 | J107: 0
C108: Ground Outdoor / Indoor Chamber Mounted; > = 22 kV & < = 33 kV ; > 15 MVA and < = 40 MVA | D108: 0 | E108: 0 | F108: 0 | G108: 0 | H108: 0 | I108: 0 | J108: 0
C109: Ground Outdoor / Indoor Chamber Mounted; > = 22 kV & < = 33 kV ; > 40 MVA | D109: 0 | E109: 0 | F109: 0 | G109: 0 | H109: 0 | I109: 0 | J109: 0
C110: Ground Outdoor / Indoor Chamber Mounted; > 33 kV & < = 66 kV ; < = 15 MVA | D110: 0 | E110: 0 | F110: 0 | G110: 0 | H110: 0 | I110: 0 | J110: 0
C111: Ground Outdoor / Indoor Chamber Mounted; > 33 kV & < = 66 kV ; > 15 MVA and < = 40 MVA | D111: 942289.0201 | E111: 608213.5324 | F111: 5272885.161 | G111: 3383671.8 | H111: 3107626.953 | I111: 6200366.829 | J111: 4189813.455
C112: Ground Outdoor / Indoor Chamber Mounted; > 33 kV & < = 66 kV ; > 40 MVA | D112: 0 | E112: 0 | F112: 0 | G112: 0 | H112: 0 | I112: 0 | J112: 462771.1252
C113: Ground Outdoor / Indoor Chamber Mounted; > 66 kV & < = 132 kV ; < = 100 MVA | D113: 0 | E113: 0 | F113: 0 | G113: 0 | H113: 0 | I113: 0 | J113: 0
C114: Ground Outdoor / Indoor Chamber Mounted; > 66 kV & < = 132 kV ; > 100 MVA | D114: 0 | E114: 0 | F114: 0 | G114: 0 | H114: 0 | I114: 0 | J114: 0
C115: Ground Outdoor / Indoor Chamber Mounted; > 132 kV ; < = 100 MVA | D115: 0 | E115: 0 | F115: 0 | G115: 0 | H115: 0 | I115: 0 | J115: 0
C116: Ground Outdoor / Indoor Chamber Mounted; > 132 kV ; > 100 MVA | D116: 0 | E116: 0 | F116: 0 | G116: 0 | H116: 0 | I116: 0 | J116: 0
C117: Other | D117: 529406.0145 | E117: 545614.7053 | F117: 515928.1962 | G117: 604524.7619 | H117: 608134.6404 | I117: 568999.3966 | J117: 529732.6146
B118: SWITCHGEAR BY: Highest operating voltage; Switch function | C118: ˂ = 11 kV ; FUSE | D118: 808949.1511 | E118: 822432.4248 | F118: 829957.8009 | G118: 834308.0468 | H118: 839702.7634 | I118: 845995.1601 | J118: 851965.5099
C119: ˂ = 11 kV ; Switch | D119: 5430301.589 | E119: 8157299.25 | F119: 9737814.968 | G119: 8969681.244 | H119: 8894479.109 | I119: 9143517.277 | J119: 9273597.797
C120: ˂ = 11 kV ; Circuit Breaker | D120: 8736730.927 | E120: 15228986.03 | F120: 13613012.05 | G120: 12609838.8 | H120: 7173021.157 | I120: 4847214.789 | J120: 2471823.742
C121: > 11 kV & < = 22 kV ; Switch | D121: 0 | E121: 0 | F121: 0 | G121: 0 | H121: 0 | I121: 0 | J121: 0
C122: > 11 kV & < = 22 kV ; Circuit Breaker | D122: 0 | E122: 193652.8936 | F122: 1367973.92 | G122: 0 | H122: 0 | I122: 0 | J122: 0
C123: > 22 kV & < = 33 kV ; Switch | D123: 0 | E123: 0 | F123: 0 | G123: 0 | H123: 0 | I123: 0 | J123: 0
C124: > 22 kV & < = 33 kV ; Circuit Breaker | D124: 0 | E124: 0 | F124: 0 | G124: 0 | H124: 0 | I124: 0 | J124: 0
C125: > 33 kV & < = 66 kV ; Switch | D125: 79395.40948 | E125: 0 | F125: 880087.6108 | G125: 442350.3067 | H125: 376458.8952 | I125: 1087615.134 | J125: 662754.9699
C126: > 33 kV & < = 66 kV ; Circuit Breaker | D126: 0 | E126: 547005.1316 | F126: 0 | G126: 291035.8077 | H126: 0 | I126: 0 | J126: 0
C127: > 66 kV & < = 132 kV ; Switch | D127: 0 | E127: 0 | F127: 0 | G127: 0 | H127: 0 | I127: 0 | J127: 0
C128: > 66 kV & < = 132 kV ; Circuit Breaker | D128: 0 | E128: 0 | F128: 0 | G128: 0 | H128: 0 | I128: 0 | J128: 0
C129: > 132 kV ; Switch | D129: 0 | E129: 0 | F129: 0 | G129: 0 | H129: 0 | I129: 0 | J129: 0
C130: > 132 kV ; Circuit Breaker | D130: 0 | E130: 0 | F130: 0 | G130: 0 | H130: 0 | I130: 0 | J130: 0
C131: Other | D131: 290878.9779 | E131: 253365.7813 | F131: 249769.0684 | G131: 251078.2396 | H131: 252701.7358 | I131: 254595.3816 | J131: 256392.1099
B132: PUBLIC LIGHTING BY: Asset type ; Lighting obligation | C132: Luminaires ; Major Road
C133: Luminaires ; Minor Road
C134: Brackets ; Major Road
C135: Brackets ; Minor Road
C136: Lamps ; Major Road
C137: Lamps ; Minor Road
C138: Poles / Columns ; Major Road
C139: Poles / Columns ; Minor Road
C140: Other
B141: SCADA, NETWORK CONTROL AND PROTECTION SYSTEMS BY: Function | C141: Field Devices | D141: 1312598.951 | E141: 5800489.801 | F141: 8992305.43 | G141: 14488519.45 | H141: 7661128.86 | I141: 5927375.58 | J141: 3385993.118
C142: Local Network Wiring Assets | D142: 0 | E142: 0 | F142: 0 | G142: 0 | H142: 0 | I142: 0 | J142: 0
C143: Communications Network Assets | D143: 0 | E143: 0 | F143: 0 | G143: 0 | H143: 0 | I143: 0 | J143: 0
C144: Master Station Assets | D144: 0 | E144: 0 | F144: 0 | G144: 0 | H144: 0 | I144: 0 | J144: 0
C145: Communications Site Infrastructure | D145: 0 | E145: 0 | F145: 0 | G145: 0 | H145: 0 | I145: 0 | J145: 0
C146: Communications Linear Assets | D146: 0 | E146: 0 | F146: 0 | G146: 0 | H146: 0 | I146: 0 | J146: 0
C147: AFLC | D147: 0 | E147: 0 | F147: 0 | G147: 0 | H147: 0 | I147: 0 | J147: 0
C148: Other | D148: 0 | E148: 0 | F148: 0 | G148: 0 | H148: 0 | I148: 0 | J148: 0
B149: OTHER: | C149: Major zone substations replacement works | D149: 308654.875 | E149: 286893.1757 | F149: 582880.8268 | G149: 438485.9099 | H149: 418403.9718 | I149: 657651.0594 | J149: 518113.6713
C150: Plant and stations miscellaneous | D150: 1573174.648 | E150: 1621199.441 | F150: 561276.0647 | G150: 563076.5166 | H150: 566313.8203 | I150: 570919.6511 | J150: 576299.8816
C151: Environmental related expenditure | D151: 0 | E151: 0 | F151: 535510.0213 | G151: 538316.9113 | H151: 541797.7206 | I151: 545857.7361 | J151: 549709.9586
C152: VBRC ACR's | D152: 0 | E152: 0 | F152: 0 | G152: 0 | H152: 0 | I152: 0 | J152: 0
C153: Bushfire mitigation related replacement expenditure | D153: 0 | E153: 0 | F153: 0 | G153: 0 | H153: 0 | I153: 0 | J153: 0
C154: Other | D154: 2646761.677 | E154: 2736131.312 | F154: 3248240.37 | G154: 3266079.509 | H154: 3085762.933 | I154: 3109711.201 | J154: 3132902.952
B193: ASSET REPLACEMENTS
D194: VOLUMES (0's)
B195: ASSET GROUP | C195: ASSET CATEGORY | D195: =CRCP_y4 -> 2024-25 | E195: =CRCP_y5 -> 2025-26 | F195: =FRCP_y1 -> 2026-27 | G195: =FRCP_y2 -> 2027-28 | H195: =FRCP_y3 -> 2028-29 | I195: =FRCP_y4 -> 2029-30 | J195: =FRCP_y5 -> 2030-31
B196: POLES BY: HIGHEST OPERATING VOLTAGE; MATERIAL TYPE | C196: ˂ = 1 kV; wood | D196: 242.1 | E196: 242.1 | F196: 242.1 | G196: 242.1 | H196: 242.1 | I196: 242.1 | J196: 242.1
C197: > 1 kV & < = 11 kV; wood | D197: 58.14046875 | E197: 58.14046875 | F197: 58.14046875 | G197: 58.14046875 | H197: 58.14046875 | I197: 58.14046875 | J197: 58.14046875
C198: ˃ 11 kV & < = 22 kV; wood | D198: 19.74 | E198: 19.74 | F198: 19.74 | G198: 19.74 | H198: 19.74 | I198: 19.74 | J198: 19.74
C199: > 22 kV & < = 66 kV; wood | D199: 20.81953125 | E199: 20.81953125 | F199: 20.81953125 | G199: 20.81953125 | H199: 20.81953125 | I199: 20.81953125 | J199: 20.81953125
C200: > 66 kV & < = 132 kV; wood | D200: 0 | E200: 0 | F200: 0 | G200: 0 | H200: 0 | I200: 0 | J200: 0
C201: > 132 kV; wood | D201: 0 | E201: 0 | F201: 0 | G201: 0 | H201: 0 | I201: 0 | J201: 0
C202: ˂ = 1 kV; concrete | D202: 0 | E202: 0 | F202: 0 | G202: 0 | H202: 0 | I202: 0 | J202: 0
C203: > 1 kV & < = 11 kV; concrete | D203: 0 | E203: 0 | F203: 0 | G203: 0 | H203: 0 | I203: 0 | J203: 0
C204: ˃ 11 kV & < = 22 kV; concrete | D204: 0 | E204: 0 | F204: 0 | G204: 0 | H204: 0 | I204: 0 | J204: 0
C205: > 22 kV & < = 66 kV; concrete | D205: 0 | E205: 0 | F205: 0 | G205: 0 | H205: 0 | I205: 0 | J205: 0
C206: > 66 kV & < = 132 kV; concrete | D206: 0 | E206: 0 | F206: 0 | G206: 0 | H206: 0 | I206: 0 | J206: 0
C207: > 132 kV; concrete | D207: 0 | E207: 0 | F207: 0 | G207: 0 | H207: 0 | I207: 0 | J207: 0
C208: ˂ = 1 kV; steel | D208: 0 | E208: 0 | F208: 0 | G208: 0 | H208: 0 | I208: 0 | J208: 0
C209: > 1 kV & < = 11 kV; steel | D209: 0 | E209: 0 | F209: 0 | G209: 0 | H209: 0 | I209: 0 | J209: 0
C210: ˃ 11 kV & < = 22 kV; steel | D210: 0 | E210: 0 | F210: 0 | G210: 0 | H210: 0 | I210: 0 | J210: 0
C211: > 22 kV & < = 66 kV; steel | D211: 0 | E211: 0 | F211: 0 | G211: 0 | H211: 0 | I211: 0 | J211: 0
C212: > 66 kV & < = 132 kV; steel | D212: 0 | E212: 0 | F212: 0 | G212: 0 | H212: 0 | I212: 0 | J212: 0
C213: > 132 kV; steel | D213: 0 | E213: 0 | F213: 0 | G213: 0 | H213: 0 | I213: 0 | J213: 0
C214: ˂ = 1 kV; composite pole | D214: 0 | E214: 0 | F214: 0 | G214: 0 | H214: 0 | I214: 0 | J214: 0
C215: > 1 kV & < = 11 kV; composite pole | D215: 0 | E215: 0 | F215: 0 | G215: 0 | H215: 0 | I215: 0 | J215: 0
C216: ˃ 11 kV & < = 22 kV; composite pole | D216: 0 | E216: 0 | F216: 0 | G216: 0 | H216: 0 | I216: 0 | J216: 0
C217: > 22 kV & < = 66 kV; composite pole | D217: 0 | E217: 0 | F217: 0 | G217: 0 | H217: 0 | I217: 0 | J217: 0
C218: > 66 kV & < = 132 kV; composite pole | D218: 0 | E218: 0 | F218: 0 | G218: 0 | H218: 0 | I218: 0 | J218: 0
C219: > 132 kV; composite pole | D219: 0 | E219: 0 | F219: 0 | G219: 0 | H219: 0 | I219: 0 | J219: 0
C220: ˂ = 1 kV; pole - other technology | D220: 0 | E220: 0 | F220: 0 | G220: 0 | H220: 0 | I220: 0 | J220: 0
C221: > 1 kV & < = 11 kV; pole - other technology | D221: 0 | E221: 0 | F221: 0 | G221: 0 | H221: 0 | I221: 0 | J221: 0
C222: ˃ 11 kV & < = 22 kV; pole - other technology | D222: 0 | E222: 0 | F222: 0 | G222: 0 | H222: 0 | I222: 0 | J222: 0
C223: > 22 kV & < = 66 kV; pole - other technology | D223: 0 | E223: 0 | F223: 0 | G223: 0 | H223: 0 | I223: 0 | J223: 0
C224: > 66 kV & < = 132 kV; pole - other technology | D224: 0 | E224: 0 | F224: 0 | G224: 0 | H224: 0 | I224: 0 | J224: 0
C225: > 132 kV; pole - other technology | D225: 0 | E225: 0 | F225: 0 | G225: 0 | H225: 0 | I225: 0 | J225: 0
C226: Other | D226: 0 | E226: 0 | F226: 0 | G226: 0 | H226: 0 | I226: 0 | J226: 0
B227: POLE TOP STRUCTURES BY: HIGHEST OPERATING VOLTAGE | C227: ˂ = 1 kV | D227: 844.7 | E227: 844.7 | F227: 844.7 | G227: 757.7 | H227: 751.7 | I227: 615.7 | J227: 698.7
C228: > 1 kV & < = 11 kV | D228: 74.36640914 | E228: 75.27945102 | F228: 178.0826336 | G228: 127.9026081 | H228: 149.1653308 | I228: 144.9127863 | J228: 133.0056616
C229: ˃ 11 kV & < = 22 kV | D229: 13.38751395 | E229: 13.54799625 | F229: 31.61736641 | G229: 22.79739186 | H229: 26.53466921 | I229: 25.78721374 | J229: 23.69433842
C230: > 22 kV & < = 66 kV | D230: 1.8 | E230: 1.8 | F230: 1.8 | G230: 1.8 | H230: 1.8 | I230: 1.8 | J230: 1.8
C231: > 66 kV & < = 132 kV | D231: 0 | E231: 0 | F231: 0 | G231: 0 | H231: 0 | I231: 0 | J231: 0
C232: > 132 kV | D232: 0 | E232: 0 | F232: 0 | G232: 0 | H232: 0 | I232: 0 | J232: 0
C233: Other | D233: 0 | E233: 0 | F233: 0 | G233: 0 | H233: 0 | I233: 0 | J233: 0
B234: STAKING OF/ STAKED WOODEN POLES BY: HIGHEST OPERATING VOLTAGE | C234: ˂ = 1 Kv | D234: 331 | E234: 331 | F234: 331 | G234: 331 | H234: 331 | I234: 331 | J234: 331
C235: > 1 kV & < = 11 kV | D235: 0 | E235: 0 | F235: 0 | G235: 0 | H235: 0 | I235: 0 | J235: 0
C236: ˃ 11 kV & < = 22 kV | D236: 0 | E236: 0 | F236: 0 | G236: 0 | H236: 0 | I236: 0 | J236: 0
C237: > 22 kV & < = 66 kV | D237: 0 | E237: 0 | F237: 0 | G237: 0 | H237: 0 | I237: 0 | J237: 0
C238: > 66 kV & < = 132 kV | D238: 0 | E238: 0 | F238: 0 | G238: 0 | H238: 0 | I238: 0 | J238: 0
C239: > 132 kV | D239: 0 | E239: 0 | F239: 0 | G239: 0 | H239: 0 | I239: 0 | J239: 0
B240: OVERHEAD CONDUCTORS BY: Highest operating voltage; Number of phases (at HV) | C240: ˂ = 1 kV | D240: 0 | E240: 0 | F240: 0 | G240: 0 | H240: 0 | I240: 0 | J240: 0
... 248 more rows

Sheet 2.3 Augex (b)
B1: =INDEX(dms_Worksheet_List,MATCH(dms_Model,dms_Model_List)) -> REGULATORY REPORTING STATEMENT
B2: =INDEX(dms_TradingNameFull_List,MATCH(dms_TradingName,dms_TradingName_List)) -> CitiPower
B3: =CONCATENATE("REGULATORY PERIOD FROM ", FRCP_y1," TO ",dms_MultiYear_FinalYear_Result) -> REGULATORY PERIOD FROM 2026-27 TO 2030-31
B4: 2.3 AUGEX PROJECT DATA
B5: TEMPLATE DATE - SEPTEMBER 2024 - FINAL RIN
B7: There are FOUR tables on this worksheet. These tables have been 'grouped' (and sub-grouped) for easy navigation. See the Instructions sheet on how to group or ungroup tables.
B9: NOTE: DNSP must provide expenditure information on an 'as incurred' basis.
B10: 2.3.3 - AUGEX DATA - HV/LV FEEDERS AND DISTRIBUTION SUBSTATIONS
D11: VOLUMES
B12: PROJECT TYPE | C12: UNITS | D12: =CRCP_y4 -> 2024-25 | E12: =CRCP_y5 -> 2025-26 | F12: =FRCP_y1 -> 2026-27 | G12: =FRCP_y2 -> 2027-28 | H12: =FRCP_y3 -> 2028-29 | I12: =FRCP_y4 -> 2029-30 | J12: =FRCP_y5 -> 2030-31
B13: DESCRIPTOR METRICS - UNITS ADDED
B14: HV feeder augmentations - overhead conductor | C14: Circuit Line Length in KM | D14: 0 | E14: 0 | F14: 0 | G14: 0 | H14: 0 | I14: 0 | J14: 0
B15: HV feeder augmentations - underground asset (cable) | C15: Circuit Line Length in KM | D15: 0 | E15: 0 | F15: 2 | G15: 0 | H15: 0 | I15: 0 | J15: 0
B16: LV feeder augmentations - overhead conductor | C16: Circuit Line Length in KM | D16: 0 | E16: 0 | F16: 0 | G16: 0 | H16: 0 | I16: 0 | J16: 0
B17: LV feeder augmentations - underground asset (cable) | C17: Circuit Line Length in KM | D17: 0 | E17: 0 | F17: 0 | G17: 0 | H17: 0 | I17: 0 | J17: 0
B18: Distribution Substation Augmentations - Pole Mounted | C18: Number | D18: 0 | E18: 0 | F18: 0 | G18: 0 | H18: 0 | I18: 0 | J18: 0
B19: Distribution Substation Augmentations - Ground Mounted | C19: Number | D19: 0 | E19: 0 | F19: 3 | G19: 0 | H19: 0 | I19: 0 | J19: 0
B20: Distribution Substation Augmentations - Indoor | C20: Number | D20: 0 | E20: 0 | F20: 0 | G20: 0 | H20: 0 | I20: 0 | J20: 0
B21: DESCRIPTOR METRICS - UNITS UPGRADED
B22: HV feeder augmentations - overhead conductor | C22: Circuit Line Length in KM | D22: 14.84996822 | E22: 33.12494961 | F22: 2.18 | G22: 1.36 | H22: 3.44 | I22: 7.288 | J22: 4.64
B23: HV feeder augmentations - underground asset (cable) | C23: Circuit Line Length in KM | D23: 0.3978122992 | E23: 0.887376469 | F23: 0 | G23: 0.153 | H23: 0 | I23: 0.2 | J23: 0
B24: LV feeder augmentations - overhead conductor | C24: Circuit Line Length in KM | D24: 5.156238966 | E24: 19.37131556 | F24: 3.35 | G24: 3.9 | H24: 5.65 | I24: 6.25 | J24: 6.4
B25: LV feeder augmentations - underground asset (cable) | C25: Circuit Line Length in KM | D25: 0.01726615882 | E25: 0.04756891403 | F25: 0 | G25: 0 | H25: 0 | I25: 0 | J25: 0
B26: Distribution Substation Augmentations - Pole Mounted | C26: Number | D26: 9.983349555 | E26: 26.67103207 | F26: 99.15998071 | G26: 96.26853144 | H26: 107.034614 | I26: 109.9073232 | J26: 116.9125966
B27: Distribution Substation Augmentations - Ground Mounted | C27: Number | D27: 0 | E27: 0 | F27: 22.93810275 | G27: 28.16933473 | H27: 40.61102431 | I27: 41.55926102 | J27: 46.23157619
B28: Distribution Substation Augmentations - Indoor | C28: Number | D28: 0 | E28: 0 | F28: 8.901916547 | G28: 12.56213383 | H28: 15.35436172 | I28: 13.53341575 | J28: 14.85582723
B30: COST METRICS
D31: =CONCATENATE("TOTAL DIRECT EXPENDITURE ($, real ", dms_DollarReal,")") -> TOTAL DIRECT EXPENDITURE ($, real June 2026)
B32: PROJECT TYPE | D32: =CRCP_y4 -> 2024-25 | E32: =CRCP_y5 -> 2025-26 | F32: =FRCP_y1 -> 2026-27 | G32: =FRCP_y2 -> 2027-28 | H32: =FRCP_y3 -> 2028-29 | I32: =FRCP_y4 -> 2029-30 | J32: =FRCP_y5 -> 2030-31
B33: HV feeder augmentations - overhead conductor | D33: 2321136.232 | E33: 5233164.612 | F33: 295568.7754 | G33: 0 | H33: 1175121.446 | I33: 1562397.201 | J33: 0
B34: HV feeder augmentations - underground asset (cable) | D34: 9284544.929 | E34: 20932658.45 | F34: 27990688.8 | G34: 26809196.63 | H34: 892688.0507 | I34: 121376.1303 | J34: 121936.1701
B35: HV feeder non-material projects | D35: 0 | E35: 0 | F35: 0 | G35: 0 | H35: 0 | I35: 0 | J35: 0
B36: LV feeder augmentations - overhead conductor | D36: 805950.0806 | E36: 3060330.182 | F36: 231327.5671 | G36: 301623.7878 | H36: 589801.687 | I36: 661831.9699 | J36: 750025.0706
B37: LV feeder augmentations - underground asset (cable) | D37: 402975.0403 | E37: 1122121.067 | F37: 0 | G37: 0 | H37: 0 | I37: 0 | J37: 0
B38: LV feeder non-material projects | D38: 302231.2802 | E38: 408044.0243 | F38: 0 | G38: 0 | H38: 0 | I38: 0 | J38: 0
B39: Distribution substation augmentations - pole mounted | D39: 302231.2802 | E39: 816088.0486 | F39: 6179453.878 | G39: 7034938.538 | H39: 9451259.486 | I39: 9814112.794 | J39: 10567648.93
B40: Distribution substation augmentations - ground mounted | D40: 0 | E40: 0 | F40: 1429457.196 | G40: 2058507.962 | H40: 3585992.554 | I40: 3711010.907 | J40: 4178840.27
B41: Distribution substation augmentations - indoor | D41: 0 | E41: 0 | F41: 554749.8329 | G41: 917993.0145 | H41: 1355804.926 | I41: 1208458.771 | J41: 1342807.972
B45: 2.3.4 - AUGEX - TOTAL EXPENDITURE
D46: =CONCATENATE("TOTAL DIRECT EXPENDITURE ($, real ", dms_DollarReal,")") -> TOTAL DIRECT EXPENDITURE ($, real June 2026)
D47: =CRCP_y4 -> 2024-25 | E47: =CRCP_y5 -> 2025-26 | F47: =FRCP_y1 -> 2026-27 | G47: =FRCP_y2 -> 2027-28 | H47: =FRCP_y3 -> 2028-29 | I47: =FRCP_y4 -> 2029-30 | J47: =FRCP_y5 -> 2030-31
B48: Subtransmission Substations, Switching Stations, Zone Substations | D48: 9167682.167 | E48: 6244113.63 | F48: 25565281.39 | G48: 23629131.91 | H48: 1029202.893 | I48: 6312640.941 | J48: 6341768.007
B49: Subtransmission Lines | D49: 1289520.129 | E49: 2907313.673 | F49: 0 | G49: 0 | H49: 0 | I49: 0 | J49: 0
B50: HV Feeders | D50: 11605681.16 | E50: 26165823.06 | F50: 28286257.57 | G50: 26809196.63 | H50: 2067809.497 | I50: 1683773.331 | J50: 121936.1701
B51: HV Feeders - Land Purchases and Easements | D51: 0 | E51: 0 | F51: 0 | G51: 0 | H51: 0 | I51: 0 | J51: 0
B52: Distribution Substations | D52: 1511156.401 | E52: 4590495.273 | F52: 231327.5671 | G52: 301623.7878 | H52: 589801.687 | I52: 661831.9699 | J52: 750025.0706
B53: Distribution Substations - Land Purchases and Easements | D53: 0 | E53: 0 | F53: 0 | G53: 0 | H53: 0 | I53: 0 | J53: 0
B54: LV Feeders | D54: 302231.2802 | E54: 816088.0486 | F54: 8163660.906 | G54: 10011439.51 | H54: 14393056.97 | I54: 14733582.47 | J54: 16089297.17
B55: LV Feeders - Land Purchases and Easements | D55: 0 | E55: 0 | F55: 0 | G55: 0 | H55: 0 | I55: 0 | J55: 0
B56: Other Assets | D56: 2720081.522 | E56: 4998539.298 | F56: 7009938.558 | G56: 4702325.522 | H56: 5930137.738 | I56: 5251077.078 | J56: 4291421.006
B60: 2.3.5 - AUGEX - BY DRIVER
D61: =CONCATENATE("TOTAL DIRECT EXPENDITURE ($, real ", dms_DollarReal,")") -> TOTAL DIRECT EXPENDITURE ($, real June 2026)
D62: =CRCP_y4 -> 2024-25 | E62: =CRCP_y5 -> 2025-26 | F62: =FRCP_y1 -> 2026-27 | G62: =FRCP_y2 -> 2027-28 | H62: =FRCP_y3 -> 2028-29 | I62: =FRCP_y4 -> 2029-30 | J62: =FRCP_y5 -> 2030-31
B63: "Greenfield" driven augex (network expansion capex) | D63: 0 | E63: 0 | F63: 24279003.52 | G63: 25909449.65 | H63: 707154.3116 | I63: 0 | J63: 0
B64: Reinforcement driven augex (augmentation of the existing network) | D64: 26596352.66 | E64: 45722372.98 | F64: 44977462.47 | G64: 39544267.71 | H64: 23302854.47 | I64: 28642905.79 | J64: 27594447.42
B68: 2.3.6 - AUGEX - GREENFIELDS DRIVEN
D69: =CONCATENATE("TOTAL DIRECT EXPENDITURE ($, real ", dms_DollarReal,")") -> TOTAL DIRECT EXPENDITURE ($, real June 2026)
D70: =CRCP_y4 -> 2024-25 | E70: =CRCP_y5 -> 2025-26 | F70: =FRCP_y1 -> 2026-27 | G70: =FRCP_y2 -> 2027-28 | H70: =FRCP_y3 -> 2028-29 | I70: =FRCP_y4 -> 2029-30 | J70: =FRCP_y5 -> 2030-31
B71: Subtransmission Substations, Switching Stations, Zone Substations | D71: 0 | E71: 0 | F71: 14535187.73 | G71: 14584668.52 | H71: 0 | I71: 0 | J71: 0
B72: Subtransmission Lines | D72: 0 | E72: 0 | F72: 0 | G72: 0 | H72: 0 | I72: 0 | J72: 0
B73: HV Feeders | D73: 0 | E73: 0 | F73: 9042013.251 | G73: 10620589.51 | H73: 0 | I73: 0 | J73: 0
B74: HV Feeders - Land Purchases and Easements | D74: 0 | E74: 0 | F74: 0 | G74: 0 | H74: 0 | I74: 0 | J74: 0
B75: Distribution Substations | D75: 0 | E75: 0 | F75: 0 | G75: 0 | H75: 0 | I75: 0 | J75: 0
B76: Distribution Substations - Land Purchases and Easements | D76: 0 | E76: 0 | F76: 0 | G76: 0 | H76: 0 | I76: 0 | J76: 0
B77: LV Feeders | D77: 0 | E77: 0 | F77: 0 | G77: 0 | H77: 0 | I77: 0 | J77: 0
B78: LV Feeders - Land Purchases and Easements | D78: 0 | E78: 0 | F78: 0 | G78: 0 | H78: 0 | I78: 0 | J78: 0
B79: Other Assets | D79: 0 | E79: 0 | F79: 701802.5427 | G79: 704191.6243 | H79: 707154.3116 | I79: 0 | J79: 0

Sheet 2.5 Connections
B1: =INDEX(dms_Worksheet_List,MATCH(dms_Model,dms_Model_List)) -> REGULATORY REPORTING STATEMENT
B2: =INDEX(dms_TradingNameFull_List,MATCH(dms_TradingName,dms_TradingName_List)) -> CitiPower
B3: =CONCATENATE("REGULATORY PERIOD FROM ", FRCP_y1," TO ",dms_MultiYear_FinalYear_Result) -> REGULATORY PERIOD FROM 2026-27 TO 2030-31
B4: 2.5 CONNECTIONS
B5: TEMPLATE DATE - SEPTEMBER 2024 - FINAL RIN
B7: There are THREE tables on this worksheet - each has been 'grouped' (and sub-grouped) for easy navigation. See the Instructions sheet on how to group or ungroup tables.
B9: 2.5.1 - DESCRIPTOR METRICS
B10: VOLUMES AND EXPENDITURE - ALL SERVICE CLASSIFICATIONS
B11: CONNECTION SUBCATEGORY | C11: DESCRIPTOR METRIC | D11: Unit of Measure | E11: =CONCATENATE("VOLUMES and EXPENDITURE (0's, real ", dms_DollarReal, ")") -> VOLUMES and EXPENDITURE (0's, real June 2026)
E12: =CRCP_y4 -> 2024-25 | F12: =CRCP_y5 -> 2025-26 | G12: =FRCP_y1 -> 2026-27 | H12: =FRCP_y2 -> 2027-28 | I12: =FRCP_y3 -> 2028-29 | J12: =FRCP_y4 -> 2029-30 | K12: =FRCP_y5 -> 2030-31 | Q12: DRAFT TEMPLATE ONLY
B13: RESIDENTIAL | C13: Underground connections | D13: 0's | E13: 2325.30098 | F13: 3117.335768 | G13: 3519.333139 | H13: 3358.377668 | I13: 3026.655194 | J13: 2916.626499 | K13: 3064.215093 | Q13: DO NOT USE FOR SUBMISSIONS
C14: Overhead connections | D14: 0's | E14: 225.6420767 | F14: 302.499385 | G14: 341.508323 | H14: 325.8895592 | I14: 293.6999422 | J14: 283.0230004 | K14: 297.344672
C15: Distribution substations installed | D15: MVA | E15: 74.81816227 | F15: 100.3024277 | G15: 113.2369703 | H15: 108.058117 | I15: 97.38471767 | J15: 93.84446856 | K15: 98.59323334
C16: Distribution substations installed | D16: Number of substations | E16: 49.87877485 | F16: 66.86828511 | G16: 75.4913135 | H16: 72.03874467 | I16: 64.92314511 | J16: 62.56297904 | K16: 65.72882222
C17: Distribution substations installed | D17: $ | E17: 7902323.272 | F17: 10689050.12 | G17: 12127364.08 | H17: 11605768.1 | I17: 10496343.77 | J17: 10156278.1 | K17: 10711590.02
C18: Augmentation HV | D18: km added | E18: 7.125539264 | F18: 9.552612159 | G18: 10.78447336 | H18: 10.29124924 | I18: 9.274735016 | J18: 8.937568434 | K18: 9.389831746
C19: Augmentation HV | D19: $ | E19: 23689149.67 | F19: 32043046.01 | G19: 36354744.43 | H19: 34791132.69 | I19: 31465361.51 | J19: 30445931.38 | K19: 32110614.88
C20: Augmentation LV | D20: km added | E20: 20.18902791 | F20: 27.06573445 | G20: 30.55600785 | H20: 29.15853951 | I20: 26.27841588 | J20: 25.32311056 | K20: 26.60452328
C21: Augmentation LV | D21: $ | E21: 30049369.34 | F21: 40646175.05 | G21: 46115506.79 | H21: 44132086.23 | I21: 39913389.99 | J21: 38620256.52 | K21: 40731885.26
C22: Mean days to connect residential customer with LV single phase connection | D22: 0's | E22: 4.144688672 | F22: 5.556436073 | G22: 6.27296867 | H22: 5.98607664 | I22: 5.394804201 | J22: 5.198685639 | K22: 5.461752132
C23: Volume of GSL breaches for residential customers | D23: 0's | E23: 8.313129141 | F23: 11.14471419 | G23: 12.58188558 | H23: 12.00645744 | I23: 10.82052419 | J23: 10.42716317 | K23: 10.9548037
C24: Volume of customer complaints relating to connection services | D24: 0's | E24: 51.06636473 | F24: 68.46038714 | G24: 77.28872573 | H24: 73.75395287 | I24: 66.46893428 | J24: 64.05257378 | K24: 67.29379418
C25: GSL payments | D25: $ | E25: 2280.172564 | F25: 3056.835891 | G25: 3451.031474 | H25: 3293.199756 | I25: 2967.915205 | J25: 2860.021899 | K25: 3004.746159
B26: COMMERCIAL/INDUSTRIAL | C26: Underground connections | D26: 0's | E26: 824.5096363 | F26: 908.983961 | G26: 893.5849618 | H26: 920.3403627 | I26: 944.7863303 | J26: 964.2969985 | K26: 1004.698686
C27: Overhead connections | D27: 0's | E27: 373.1990985 | F27: 411.4348455 | G27: 404.4647722 | H27: 416.5751116 | I27: 427.6401285 | J27: 436.471273 | K27: 454.7583526
C28: Distribution substations installed | D28: MVA | E28: 23.14413014 | F28: 25.51533926 | G28: 25.08308665 | H28: 25.83411545 | I28: 26.52031804 | J28: 27.06798592 | K28: 28.20206838
C29: Distribution substations installed | D29: Number of substations | E29: 15.42942009 | F29: 17.01022617 | G29: 16.72205776 | H29: 17.22274363 | I29: 17.68021203 | J29: 18.04532395 | K29: 18.80137892
C30: Distribution substations installed | D30: $ | E30: 6997675.139 | F30: 7783844.92 | G30: 7689964.097 | H30: 7942829.639 | I30: 8182596.262 | J30: 16648727.77 | K30: 19377700
C31: Augmentation HV | D31: km added | E31: 2.893016268 | F31: 3.189417407 | G31: 3.135385831 | H31: 3.229264431 | I31: 3.315039756 | J31: 3.38349824 | K31: 3.525258547
C32: Augmentation HV | D32: $ | E32: 23588884.69 | F32: 26239031.76 | G32: 25922563.24 | H32: 26774962.93 | I32: 27583206.68 | J32: 56122199.41 | K32: 65321456.32
C33: Augmentation LV | D33: km added | E33: 3.857355024 | F33: 4.252556543 | G33: 4.180514441 | H33: 4.305685908 | I33: 4.420053007 | J33: 4.511330987 | K33: 4.70034473
C34: Augmentation LV | D34: $ | E34: 18016425.35 | F34: 20040521.76 | G34: 19798813.37 | H34: 20449848.61 | I34: 21067158.99 | J34: 42864316.37 | K34: 49890410.54
B35: SUBDIVISION | C35: Underground connections | D35: 0's | E35: 0 | F35: 0 | G35: 0 | H35: 0 | I35: 0 | J35: 0 | K35: 0
C36: Overhead connections | D36: 0's | E36: 0 | F36: 0 | G36: 0 | H36: 0 | I36: 0 | J36: 0 | K36: 0
C37: Distribution substations installed | D37: MVA | E37: 0 | F37: 0 | G37: 0 | H37: 0 | I37: 0 | J37: 0 | K37: 0
C38: Distribution substations installed | D38: Number of substations | E38: 0 | F38: 0 | G38: 0 | H38: 0 | I38: 0 | J38: 0 | K38: 0
C39: Distribution substations installed | D39: $ | E39: 0 | F39: 0 | G39: 0 | H39: 0 | I39: 0 | J39: 0 | K39: 0
C40: Augmentation HV | D40: km added | E40: 0 | F40: 0 | G40: 0 | H40: 0 | I40: 0 | J40: 0 | K40: 0
C41: Augmentation HV | D41: $ | E41: 0 | F41: 0 | G41: 0 | H41: 0 | I41: 0 | J41: 0 | K41: 0
C42: Augmentation LV | D42: km added | E42: 0 | F42: 0 | G42: 0 | H42: 0 | I42: 0 | J42: 0 | K42: 0
C43: Augmentation LV | D43: $ | E43: 0 | F43: 0 | G43: 0 | H43: 0 | I43: 0 | J43: 0 | K43: 0
C44: Cost per lot | D44: $ | E44: 0 | F44: 0 | G44: 0 | H44: 0 | I44: 0 | J44: 0 | K44: 0
B45: EMBEDDED GENERATION | C45: Underground connections | D45: 0's | E45: 0 | F45: 0 | G45: 0 | H45: 0 | I45: 0 | J45: 0 | K45: 0
C46: Overhead connections | D46: 0's | E46: 0 | F46: 0 | G46: 0 | H46: 0 | I46: 0 | J46: 0 | K46: 0
C47: Distribution substations installed | D47: MVA | E47: 0 | F47: 0 | G47: 0 | H47: 0 | I47: 0 | J47: 0 | K47: 0
C48: Distribution substations installed | D48: Number of substations | E48: 0 | F48: 0 | G48: 0 | H48: 0 | I48: 0 | J48: 0 | K48: 0
C49: Distribution substations installed | D49: $ | E49: 0 | F49: 0 | G49: 0 | H49: 0 | I49: 0 | J49: 0 | K49: 0
C50: Augmentation HV | D50: km added | E50: 0 | F50: 0 | G50: 0 | H50: 0 | I50: 0 | J50: 0 | K50: 0
C51: Augmentation HV | D51: $ | E51: 0 | F51: 0 | G51: 0 | H51: 0 | I51: 0 | J51: 0 | K51: 0
C52: Augmentation LV | D52: km added | E52: 0 | F52: 0 | G52: 0 | H52: 0 | I52: 0 | J52: 0 | K52: 0
C53: Augmentation LV | D53: $ | E53: 5178.245691 | F53: 5225.336236 | G53: 15757.04962 | H53: 131689.5713 | I53: 132123.536 | J53: 92858.17575 | K53: 93217.89468
B55: VOLUMES AND EXPENDITURE - STANDARD CONTROL SERVICES
B56: CONNECTION SUBCATEGORY | C56: DESCRIPTOR METRIC | D56: Unit of Measure | E56: =CONCATENATE("VOLUMES and EXPENDITURE (0's, real ", dms_DollarReal, ")") -> VOLUMES and EXPENDITURE (0's, real June 2026)
E57: =CRCP_y4 -> 2024-25 | F57: =CRCP_y5 -> 2025-26 | G57: =FRCP_y1 -> 2026-27 | H57: =FRCP_y2 -> 2027-28 | I57: =FRCP_y3 -> 2028-29 | J57: =FRCP_y4 -> 2029-30 | K57: =FRCP_y5 -> 2030-31
B58: RESIDENTIAL | C58: Underground connections | D58: 0's | E58: 2325.30098 | F58: 3117.335768 | G58: 3519.333139 | H58: 3358.377668 | I58: 3026.655194 | J58: 2916.626499 | K58: 3064.215093
C59: Overhead connections | D59: 0's | E59: 225.6420767 | F59: 302.499385 | G59: 341.508323 | H59: 325.8895592 | I59: 293.6999422 | J59: 283.0230004 | K59: 297.344672
C60: Distribution substations installed | D60: MVA | E60: 74.81816227 | F60: 100.3024277 | G60: 113.2369703 | H60: 108.058117 | I60: 97.38471767 | J60: 93.84446856 | K60: 98.59323334
C61: Distribution substations installed | D61: Number of substations | E61: 49.87877485 | F61: 66.86828511 | G61: 75.4913135 | H61: 72.03874467 | I61: 64.92314511 | J61: 62.56297904 | K61: 65.72882222
C62: Distribution substations installed | D62: $ | E62: 7902323.272 | F62: 10689050.12 | G62: 12127364.08 | H62: 11605768.1 | I62: 10496343.77 | J62: 10156278.1 | K62: 10711590.02
C63: Augmentation HV | D63: km added | E63: 7.125539264 | F63: 9.552612159 | G63: 10.78447336 | H63: 10.29124924 | I63: 9.274735016 | J63: 8.937568434 | K63: 9.389831746
C64: Augmentation HV | D64: $ | E64: 23689149.67 | F64: 32043046.01 | G64: 36354744.43 | H64: 34791132.69 | I64: 31465361.51 | J64: 30445931.38 | K64: 32110614.88
C65: Augmentation LV | D65: km added | E65: 20.18902791 | F65: 27.06573445 | G65: 30.55600785 | H65: 29.15853951 | I65: 26.27841588 | J65: 25.32311056 | K65: 26.60452328
C66: Augmentation LV | D66: $ | E66: 30049369.34 | F66: 40646175.05 | G66: 46115506.79 | H66: 44132086.23 | I66: 39913389.99 | J66: 38620256.52 | K66: 40731885.26
C67: Mean days to connect residential customer with LV single phase connection | D67: 0's | E67: 4.144688672 | F67: 5.556436073 | G67: 6.27296867 | H67: 5.98607664 | I67: 5.394804201 | J67: 5.198685639 | K67: 5.461752132
C68: Volume of GSL breaches for residential customers | D68: 0's | E68: 8.313129141 | F68: 11.14471419 | G68: 12.58188558 | H68: 12.00645744 | I68: 10.82052419 | J68: 10.42716317 | K68: 10.9548037
C69: Volume of customer complaints relating to connection services | D69: 0's | E69: 51.06636473 | F69: 68.46038714 | G69: 77.28872573 | H69: 73.75395287 | I69: 66.46893428 | J69: 64.05257378 | K69: 67.29379418
C70: GSL payments | D70: $ | E70: 2280.172564 | F70: 3056.835891 | G70: 3451.031474 | H70: 3293.199756 | I70: 2967.915205 | J70: 2860.021899 | K70: 3004.746159
B71: COMMERCIAL/INDUSTRIAL | C71: Underground connections | D71: 0's | E71: 824.5096363 | F71: 908.983961 | G71: 893.5849618 | H71: 920.3403627 | I71: 944.7863303 | J71: 964.2969985 | K71: 1004.698686
C72: Overhead connections | D72: 0's | E72: 373.1990985 | F72: 411.4348455 | G72: 404.4647722 | H72: 416.5751116 | I72: 427.6401285 | J72: 436.471273 | K72: 454.7583526
C73: Distribution substations installed | D73: MVA | E73: 23.14413014 | F73: 25.51533926 | G73: 25.08308665 | H73: 25.83411545 | I73: 26.52031804 | J73: 27.06798592 | K73: 28.20206838
C74: Distribution substations installed | D74: Number of substations | E74: 15.42942009 | F74: 17.01022617 | G74: 16.72205776 | H74: 17.22274363 | I74: 17.68021203 | J74: 18.04532395 | K74: 18.80137892
C75: Distribution substations installed | D75: $ | E75: 6997675.139 | F75: 7783844.92 | G75: 7689964.097 | H75: 7942829.639 | I75: 8182596.262 | J75: 16648727.77 | K75: 19377700
C76: Augmentation HV | D76: km added | E76: 2.893016268 | F76: 3.189417407 | G76: 3.135385831 | H76: 3.229264431 | I76: 3.315039756 | J76: 3.38349824 | K76: 3.525258547
C77: Augmentation HV | D77: $ | E77: 23588884.69 | F77: 26239031.76 | G77: 25922563.24 | H77: 26774962.93 | I77: 27583206.68 | J77: 56122199.41 | K77: 65321456.32
C78: Augmentation LV | D78: km added | E78: 3.857355024 | F78: 4.252556543 | G78: 4.180514441 | H78: 4.305685908 | I78: 4.420053007 | J78: 4.511330987 | K78: 4.70034473
C79: Augmentation LV | D79: $ | E79: 18016425.35 | F79: 20040521.76 | G79: 19798813.37 | H79: 20449848.61 | I79: 21067158.99 | J79: 42864316.37 | K79: 49890410.54
B80: SUBDIVISION | C80: Underground connections | D80: 0's | E80: 0 | F80: 0 | G80: 0 | H80: 0 | I80: 0 | J80: 0 | K80: 0
C81: Overhead connections | D81: 0's | E81: 0 | F81: 0 | G81: 0 | H81: 0 | I81: 0 | J81: 0 | K81: 0
C82: Distribution substations installed | D82: MVA | E82: 0 | F82: 0 | G82: 0 | H82: 0 | I82: 0 | J82: 0 | K82: 0
C83: Distribution substations installed | D83: Number of substations | E83: 0 | F83: 0 | G83: 0 | H83: 0 | I83: 0 | J83: 0 | K83: 0
C84: Distribution substations installed | D84: $ | E84: 0 | F84: 0 | G84: 0 | H84: 0 | I84: 0 | J84: 0 | K84: 0
C85: Augmentation HV | D85: km added | E85: 0 | F85: 0 | G85: 0 | H85: 0 | I85: 0 | J85: 0 | K85: 0
C86: Augmentation HV | D86: $ | E86: 0 | F86: 0 | G86: 0 | H86: 0 | I86: 0 | J86: 0 | K86: 0
C87: Augmentation LV | D87: km added | E87: 0 | F87: 0 | G87: 0 | H87: 0 | I87: 0 | J87: 0 | K87: 0
C88: Augmentation LV | D88: $ | E88: 0 | F88: 0 | G88: 0 | H88: 0 | I88: 0 | J88: 0 | K88: 0
C89: Cost per lot | D89: $ | E89: 0 | F89: 0 | G89: 0 | H89: 0 | I89: 0 | J89: 0 | K89: 0
B90: EMBEDDED GENERATION | C90: Underground connections | D90: 0's | E90: 0 | F90: 0 | G90: 0 | H90: 0 | I90: 0 | J90: 0 | K90: 0
C91: Overhead connections | D91: 0's | E91: 0 | F91: 0 | G91: 0 | H91: 0 | I91: 0 | J91: 0 | K91: 0
C92: Distribution substations installed | D92: MVA | E92: 0 | F92: 0 | G92: 0 | H92: 0 | I92: 0 | J92: 0 | K92: 0
C93: Distribution substations installed | D93: Number of substations | E93: 0 | F93: 0 | G93: 0 | H93: 0 | I93: 0 | J93: 0 | K93: 0
C94: Distribution substations installed | D94: $ | E94: 0 | F94: 0 | G94: 0 | H94: 0 | I94: 0 | J94: 0 | K94: 0
C95: Augmentation HV | D95: km added | E95: 0 | F95: 0 | G95: 0 | H95: 0 | I95: 0 | J95: 0 | K95: 0
C96: Augmentation HV | D96: $ | E96: 0 | F96: 0 | G96: 0 | H96: 0 | I96: 0 | J96: 0 | K96: 0
C97: Augmentation LV | D97: km added | E97: 0 | F97: 0 | G97: 0 | H97: 0 | I97: 0 | J97: 0 | K97: 0
C98: Augmentation LV | D98: $ | E98: 5178.245691 | F98: 5225.336236 | G98: 15757.04962 | H98: 131689.5713 | I98: 132123.536 | J98: 92858.17575 | K98: 93217.89468
B102: 2.5.2 - COST METRICS BY CONNECTION CLASSIFICATION
B103: EXPENDITURE - ALL SERVICE CLASSIFICATIONS INCLUDING CAPITAL CONTRIBUTIONS
B104: CONNECTION SUBCATEGORY | C104: CONNECTION CLASSICIATION | E104: =CONCATENATE("EXPENDITURE ($, real ", dms_DollarReal, ")") -> EXPENDITURE ($, real June 2026)
E105: =CRCP_y4 -> 2024-25 | F105: =CRCP_y5 -> 2025-26 | G105: =FRCP_y1 -> 2026-27 | H105: =FRCP_y2 -> 2027-28 | I105: =FRCP_y3 -> 2028-29 | J105: =FRCP_y4 -> 2029-30 | K105: =FRCP_y5 -> 2030-31
B106: RESIDENTIAL | C106: Simple connection LV | E106: 0 | F106: 0 | G106: 0 | H106: 0 | I106: 0 | J106: 0 | K106: 0
C107: Complex connection LV | E107: 30089026.19 | F107: 40699816.74 | G107: 46176366.48 | H107: 44190328.36 | I107: 39966064.61 | J107: 38671224.56 | K107: 40785640.07
C108: Complex connection HV | E108: 31551816.1 | F108: 42678454.44 | G108: 48421248.82 | H108: 46338658.66 | I108: 41909030.66 | J108: 40551241.44 | K108: 42768450.1
B109: COMMERCIAL/INDUSTRIAL | C109: Simple connection LV | E109: 3309481.62 | F109: 3681292.884 | G109: 3636892.872 | H109: 3756483.143 | I109: 3869878.408 | J109: 3966004.497 | K109: 4148194.861
C110: Complex connection HV (customer connected at LV, minor HV works) | E110: 33622124.43 | F110: 37399478.72 | G110: 36948404.24 | H110: 38163361.57 | I110: 39315381.79 | J110: 40291958.7 | K110: 42142891.19
C111: Complex connection HV (customer connected at LV, upstream asset works) | E111: 10943191.34 | F111: 12172629.14 | G111: 12025815.27 | H111: 12421254.6 | I111: 12796209.42 | J111: 13114061.68 | K111: 13716495.6
C112: Complex connection HV (customer connected at HV) | E112: 728187.7808 | F112: 809997.6986 | G112: 800228.33 | H112: 826541.869 | I112: 851492.3163 | J112: 872643.0135 | K112: 912730.499
C113: Complex connection sub-transmission | E113: 0 | F113: 0 | G113: 0 | H113: 0 | I113: 0 | J113: 57390575.68 | K113: 73669254.71
B114: SUBDIVISION | C114: Complex connection LV | E114: 0 | F114: 0 | G114: 0 | H114: 0 | I114: 0 | J114: 0 | K114: 0
C115: Complex connection HV (no upstream asset works) | E115: 0 | F115: 0 | G115: 0 | H115: 0 | I115: 0 | J115: 0 | K115: 0
C116: Complex connection HV (with upstream asset works) | E116: 0 | F116: 0 | G116: 0 | H116: 0 | I116: 0 | J116: 0 | K116: 0
B117: EMBEDDED GENERATION | C117: Simple connection LV | E117: 5178.245691 | F117: 5225.336236 | G117: 15757.04962 | H117: 131689.5713 | I117: 132123.536 | J117: 92858.17575 | K117: 93217.89468
C118: Complex connection HV (small capacity) | E118: 0 | F118: 0 | G118: 0 | H118: 0 | I118: 0 | J118: 0 | K118: 0
C119: Complex connection HV (large capacity) | E119: 0 | F119: 0 | G119: 0 | H119: 0 | I119: 0 | J119: 0 | K119: 0
B121: EXPENDITURE - STANDARD CONTROL SERVICES EXCLUDING CAPITAL CONTRIBUTIONS
E122: =CONCATENATE("EXPENDITURE ($, real ", dms_DollarReal, ")") -> EXPENDITURE ($, real June 2026)
E123: =CRCP_y4 -> 2024-25 | F123: =CRCP_y5 -> 2025-26 | G123: =FRCP_y1 -> 2026-27 | H123: =FRCP_y2 -> 2027-28 | I123: =FRCP_y3 -> 2028-29 | J123: =FRCP_y4 -> 2029-30 | K123: =FRCP_y5 -> 2030-31
B124: RESIDENTIAL | C124: Simple connection LV | E124: 0 | F124: 0 | G124: 0 | H124: 0 | I124: 0 | J124: 0 | K124: 0
C125: Complex connection LV | E125: 30089026.19 | F125: 40699816.74 | G125: 46176366.48 | H125: 44190328.36 | I125: 39966064.61 | J125: 38671224.56 | K125: 40785640.07
C126: Complex connection HV | E126: 31551816.1 | F126: 42678454.44 | G126: 48421248.82 | H126: 46338658.66 | I126: 41909030.66 | J126: 40551241.44 | K126: 42768450.1
B127: COMMERCIAL/INDUSTRIAL | C127: Simple connection LV | E127: 3309481.62 | F127: 3681292.884 | G127: 3636892.872 | H127: 3756483.143 | I127: 3869878.408 | J127: 3966004.497 | K127: 4148194.861
C128: Complex connection HV (customer connected at LV, minor HV works) | E128: 33622124.43 | F128: 37399478.72 | G128: 36948404.24 | H128: 38163361.57 | I128: 39315381.79 | J128: 40291958.7 | K128: 42142891.19
C129: Complex connection HV (customer connected at LV, upstream asset works) | E129: 10943191.34 | F129: 12172629.14 | G129: 12025815.27 | H129: 12421254.6 | I129: 12796209.42 | J129: 13114061.68 | K129: 13716495.6
C130: Complex connection HV (customer connected at HV) | E130: 728187.7808 | F130: 809997.6986 | G130: 800228.33 | H130: 826541.869 | I130: 851492.3163 | J130: 872643.0135 | K130: 912730.499
C131: Complex connection sub-transmission | E131: 0 | F131: 0 | G131: 0 | H131: 0 | I131: 0 | J131: 57390575.68 | K131: 73669254.71
B132: SUBDIVISION | C132: Complex connection LV | E132: 0 | F132: 0 | G132: 0 | H132: 0 | I132: 0 | J132: 0 | K132: 0
C133: Complex connection HV (no upstream asset works) | E133: 0 | F133: 0 | G133: 0 | H133: 0 | I133: 0 | J133: 0 | K133: 0
C134: Complex connection HV (with upstream asset works) | E134: 0 | F134: 0 | G134: 0 | H134: 0 | I134: 0 | J134: 0 | K134: 0
B135: EMBEDDED GENERATION | C135: Simple connection LV | E135: 5178.245691 | F135: 5225.336236 | G135: 15757.04962 | H135: 131689.5713 | I135: 132123.536 | J135: 92858.17575 | K135: 93217.89468
C136: Complex connection HV (small capacity) | E136: 0 | F136: 0 | G136: 0 | H136: 0 | I136: 0 | J136: 0 | K136: 0
C137: Complex connection HV (large capacity) | E137: 0 | F137: 0 | G137: 0 | H137: 0 | I137: 0 | J137: 0 | K137: 0
B139: EXPENDITURE - STANDARD CONTROL SERVICES - TYPE 1 CAPITAL CONTRIBUTIONS
E140: =CONCATENATE("EXPENDITURE ($, real ", dms_DollarReal, ")") -> EXPENDITURE ($, real June 2026)
E141: =CRCP_y4 -> 2024-25 | F141: =CRCP_y5 -> 2025-26 | G141: =FRCP_y1 -> 2026-27 | H141: =FRCP_y2 -> 2027-28 | I141: =FRCP_y3 -> 2028-29 | J141: =FRCP_y4 -> 2029-30 | K141: =FRCP_y5 -> 2030-31
B142: RESIDENTIAL | C142: Simple connection LV | E142: 0 | F142: 0 | G142: 0 | H142: 0 | I142: 0 | J142: 0 | K142: 0
C143: Complex connection LV | E143: 16836441.55 | F143: 22773754.18 | G143: 25838180.69 | H143: 24726884.68 | I143: 22363180.07 | J143: 21638646.86 | K143: 22821776.98
C144: Complex connection HV | E144: 18976614.93 | F144: 25668652.27 | G144: 29122615.01 | H144: 27870056.01 | I144: 25205887.82 | J144: 24389255.17 | K144: 25722779.51
B145: COMMERCIAL/INDUSTRIAL | C145: Simple connection LV | E145: 1346995.962 | F145: 1498327.297 | G145: 1480255.996 | H145: 1528930.571 | I145: 1575083.71 | J145: 1614208.102 | K145: 1688361.613
C146: Complex connection HV (customer connected at LV, minor HV works) | E146: 33622124.43 | F146: 37399478.72 | G146: 36948404.24 | H146: 38163361.57 | I146: 39315381.79 | J146: 40291958.7 | K146: 42142891.19
C147: Complex connection HV (customer connected at LV, upstream asset works) | E147: 6592830.357 | F147: 7333516.928 | G147: 7245067.503 | H147: 7483303.715 | I147: 7709198.836 | J147: 7900691.967 | K147: 8263634.052
C148: Complex connection HV (customer connected at HV) | E148: 726542.8314 | F148: 808167.9436 | G148: 798420.6436 | H148: 824674.7413 | I148: 849568.8265 | J148: 870671.745 | K148: 910668.6743
C149: Complex connection sub-transmission | E149: 0 | F149: 0 | G149: 0 | H149: 0 | I149: 0 | J149: 48781989.32 | K149: 62618866.51
B150: SUBDIVISION | C150: Complex connection LV | E150: 0 | F150: 0 | G150: 0 | H150: 0 | I150: 0 | J150: 0 | K150: 0
C151: Complex connection HV (no upstream asset works) | E151: 0 | F151: 0 | G151: 0 | H151: 0 | I151: 0 | J151: 0 | K151: 0
C152: Complex connection HV (with upstream asset works) | E152: 0 | F152: 0 | G152: 0 | H152: 0 | I152: 0 | J152: 0 | K152: 0
B153: EMBEDDED GENERATION | C153: Simple connection LV | E153: 5178.245691 | F153: 5225.336236 | G153: 15757.04962 | H153: 131689.5713 | I153: 132123.536 | J153: 92858.17575 | K153: 93217.89468
C154: Complex connection HV (small capacity) | E154: 0 | F154: 0 | G154: 0 | H154: 0 | I154: 0 | J154: 0 | K154: 0
C155: Complex connection HV (large capacity) | E155: 0 | F155: 0 | G155: 0 | H155: 0 | I155: 0 | J155: 0 | K155: 0
B159: 2.5.3 - VOLUMES BY CONNECTION CLASSIFICATION
B160: NEW CONNECTIONS - ALL
E161: VOLUMES
E162: =CRCP_y4 -> 2024-25 | F162: =CRCP_y5 -> 2025-26 | G162: =FRCP_y1 -> 2026-27 | H162: =FRCP_y2 -> 2027-28 | I162: =FRCP_y3 -> 2028-29 | J162: =FRCP_y4 -> 2029-30 | K162: =FRCP_y5 -> 2030-31
B163: RESIDENTIAL | C163: Simple connection LV | E163: 0 | F163: 0 | G163: 0 | H163: 0 | I163: 0 | J163: 0 | K163: 0
C164: Complex connection LV | E164: 619.921916 | F164: 831.0772579 | G164: 938.2491821 | H164: 895.3386837 | I164: 806.9019464 | J164: 777.5684537 | K164: 816.9153619
C165: Complex connection HV | E165: 67.69262301 | F165: 90.74981551 | G165: 102.4524969 | H165: 97.76686776 | I165: 88.10998265 | J165: 84.90690012 | K165: 89.20340159
B166: COMMERCIAL/INDUSTRIAL | C166: Simple connection LV | E166: 25.07280765 | F166: 27.64161753 | G166: 27.17334387 | H166: 27.9869584 | I166: 28.73034455 | J166: 29.32365142 | K166: 30.55224074
C167: Complex connection HV (customer connected at LV, minor HV works) | E167: 171.6522986 | F167: 189.2387661 | G167: 186.0328926 | H167: 191.6030229 | I167: 196.6923588 | J167: 200.7542289 | K167: 209.1653405
C168: Complex connection HV (customer connected at LV, upstream asset works) | E168: 24.1084689 | F168: 26.57847839 | G168: 26.12821526 | H168: 26.91053692 | I168: 27.6253313 | J168: 28.19581867 | K168: 29.37715456
C169: Complex connection HV (customer connected at HV) | E169: 0.2893016268 | F169: 0.3189417407 | G169: 0.3135385831 | H169: 0.3229264431 | I169: 0.3315039756 | J169: 0.338349824 | K169: 0.3525258547
C170: Complex connection sub-transmission | E170: 0 | F170: 0 | G170: 0 | H170: 0 | I170: 0 | J170: 2 | K170: 2
B171: SUBDIVISION | C171: Complex connection LV | E171: 0 | F171: 0 | G171: 0 | H171: 0 | I171: 0 | J171: 0 | K171: 0
C172: Complex connection HV (no upstream asset works) | E172: 0 | F172: 0 | G172: 0 | H172: 0 | I172: 0 | J172: 0 | K172: 0
C173: Complex connection HV (with upstream asset works) | E173: 0 | F173: 0 | G173: 0 | H173: 0 | I173: 0 | J173: 0 | K173: 0
B174: EMBEDDED GENERATION | C174: Simple connection LV | E174: 1.600037617 | F174: 1.600228012 | G174: 4.801666842 | H174: 40.01567867 | I174: 40.00628714 | J174: 28.00203141 | K174: 28.00191634
C175: Complex connection HV (small capacity) | E175: 0 | F175: 0 | G175: 0 | H175: 0 | I175: 0 | J175: 0 | K175: 0
C176: Complex connection HV (large capacity) | E176: 0 | F176: 0 | G176: 0 | H176: 0 | I176: 0 | J176: 0 | K176: 0
B178: NEW CONNECTIONS - STANDARD CONTROL SERVICES
E179: VOLUMES
E180: =CRCP_y4 -> 2024-25 | F180: =CRCP_y5 -> 2025-26 | G180: =FRCP_y1 -> 2026-27 | H180: =FRCP_y2 -> 2027-28 | I180: =FRCP_y3 -> 2028-29 | J180: =FRCP_y4 -> 2029-30 | K180: =FRCP_y5 -> 2030-31
B181: RESIDENTIAL | C181: Simple connection LV | E181: 0 | F181: 0 | G181: 0 | H181: 0 | I181: 0 | J181: 0 | K181: 0
C182: Complex connection LV | E182: 619.921916 | F182: 831.0772579 | G182: 938.2491821 | H182: 895.3386837 | I182: 806.9019464 | J182: 777.5684537 | K182: 816.9153619
C183: Complex connection HV | E183: 67.69262301 | F183: 90.74981551 | G183: 102.4524969 | H183: 97.76686776 | I183: 88.10998265 | J183: 84.90690012 | K183: 89.20340159
B184: COMMERCIAL/INDUSTRIAL | C184: Simple connection LV | E184: 25.07280765 | F184: 27.64161753 | G184: 27.17334387 | H184: 27.9869584 | I184: 28.73034455 | J184: 29.32365142 | K184: 30.55224074
C185: Complex connection HV (customer connected at LV, minor HV works) | E185: 171.6522986 | F185: 189.2387661 | G185: 186.0328926 | H185: 191.6030229 | I185: 196.6923588 | J185: 200.7542289 | K185: 209.1653405
C186: Complex connection HV (customer connected at LV, upstream asset works) | E186: 24.1084689 | F186: 26.57847839 | G186: 26.12821526 | H186: 26.91053692 | I186: 27.6253313 | J186: 28.19581867 | K186: 29.37715456
C187: Complex connection HV (customer connected at HV) | E187: 0.2893016268 | F187: 0.3189417407 | G187: 0.3135385831 | H187: 0.3229264431 | I187: 0.3315039756 | J187: 0.338349824 | K187: 0.3525258547
C188: Complex connection sub-transmission | E188: 0 | F188: 0 | G188: 0 | H188: 0 | I188: 0 | J188: 2 | K188: 2
B189: SUBDIVISION | C189: Complex connection LV | E189: 0 | F189: 0 | G189: 0 | H189: 0 | I189: 0 | J189: 0 | K189: 0
C190: Complex connection HV (no upstream asset works) | E190: 0 | F190: 0 | G190: 0 | H190: 0 | I190: 0 | J190: 0 | K190: 0
C191: Complex connection HV (with upstream asset works) | E191: 0 | F191: 0 | G191: 0 | H191: 0 | I191: 0 | J191: 0 | K191: 0
B192: EMBEDDED GENERATION | C192: Simple connection LV | E192: 1.600037617 | F192: 1.600228012 | G192: 4.801666842 | H192: 40.01567867 | I192: 40.00628714 | J192: 28.00203141 | K192: 28.00191634
C193: Complex connection HV (small capacity) | E193: 0 | F193: 0 | G193: 0 | H193: 0 | I193: 0 | J193: 0 | K193: 0
C194: Complex connection HV (large capacity) | E194: 0 | F194: 0 | G194: 0 | H194: 0 | I194: 0 | J194: 0 | K194: 0
B196: EXISTING CONNECTIONS - ALL
E197: VOLUMES
E198: =CRCP_y4 -> 2024-25 | F198: =CRCP_y5 -> 2025-26 | G198: =FRCP_y1 -> 2026-27 | H198: =FRCP_y2 -> 2027-28 | I198: =FRCP_y3 -> 2028-29 | J198: =FRCP_y4 -> 2029-30 | K198: =FRCP_y5 -> 2030-31
B199: RESIDENTIAL | C199: Simple connection LV | E199: 0 | F199: 0 | G199: 0 | H199: 0 | I199: 0 | J199: 0 | K199: 0
C200: Complex connection LV | E200: 0 | F200: 0 | G200: 0 | H200: 0 | I200: 0 | J200: 0 | K200: 0
C201: Complex connection HV | E201: 0 | F201: 0 | G201: 0 | H201: 0 | I201: 0 | J201: 0 | K201: 0
B202: COMMERCIAL/INDUSTRIAL | C202: Simple connection LV | E202: 0 | F202: 0 | G202: 0 | H202: 0 | I202: 0 | J202: 0 | K202: 0
C203: Complex connection HV (customer connected at LV, minor HV works) | E203: 0 | F203: 0 | G203: 0 | H203: 0 | I203: 0 | J203: 0 | K203: 0
C204: Complex connection HV (customer connected at LV, upstream asset works) | E204: 0 | F204: 0 | G204: 0 | H204: 0 | I204: 0 | J204: 0 | K204: 0
C205: Complex connection HV (customer connected at HV) | E205: 0 | F205: 0 | G205: 0 | H205: 0 | I205: 0 | J205: 0 | K205: 0
C206: Complex connection sub-transmission | E206: 0 | F206: 0 | G206: 0 | H206: 0 | I206: 0 | J206: 0 | K206: 0
B207: SUBDIVISION | C207: Complex connection LV | E207: 0 | F207: 0 | G207: 0 | H207: 0 | I207: 0 | J207: 0 | K207: 0
C208: Complex connection HV (no upstream asset works) | E208: 0 | F208: 0 | G208: 0 | H208: 0 | I208: 0 | J208: 0 | K208: 0
C209: Complex connection HV (with upstream asset works) | E209: 0 | F209: 0 | G209: 0 | H209: 0 | I209: 0 | J209: 0 | K209: 0
B210: EMBEDDED GENERATION | C210: Simple connection LV | E210: 0 | F210: 0 | G210: 0 | H210: 0 | I210: 0 | J210: 0 | K210: 0
C211: Complex connection HV (small capacity) | E211: 0 | F211: 0 | G211: 0 | H211: 0 | I211: 0 | J211: 0 | K211: 0
C212: Complex connection HV (large capacity) | E212: 0 | F212: 0 | G212: 0 | H212: 0 | I212: 0 | J212: 0 | K212: 0

Sheet 2.6 Non-network
B1: =INDEX(dms_Worksheet_List,MATCH(dms_Model,dms_Model_List)) -> REGULATORY REPORTING STATEMENT
B2: =INDEX(dms_TradingNameFull_List,MATCH(dms_TradingName,dms_TradingName_List)) -> CitiPower
B3: =CONCATENATE("REGULATORY PERIOD FROM ", FRCP_y1," TO ",dms_MultiYear_FinalYear_Result) -> REGULATORY PERIOD FROM 2026-27 TO 2030-31
B4: 2.6 NON-NETWORK EXPENDITURE
B5: TEMPLATE DATE - SEPTEMBER 2024 - FINAL RIN
B7: There are THREE tables on this worksheet - each has been 'grouped' (and sub-grouped) for easy navigation. See the Instructions sheet on how to group or ungroup tables.
B9: 2.6.1 - NON-NETWORK EXPENDITURE
E10: =CONCATENATE("EXPENDITURE ($, real ", dms_DollarReal, ")") -> EXPENDITURE ($, real June 2026)
B11: SERVICE SUBCATEGORY | C11: ASSET CATEGORY | E11: =CRCP_y4 -> 2024-25 | F11: =CRCP_y5 -> 2025-26 | G11: =FRCP_y1 -> 2026-27 | H11: =FRCP_y2 -> 2027-28 | I11: =FRCP_y3 -> 2028-29 | J11: =FRCP_y4 -> 2029-30 | K11: =FRCP_y5 -> 2030-31
B12: OPEX
B13: IT & COMMUNICATIONS | C13: Total IT and communications | E13: 21230876.18 | F13: 21419287.71 | G13: 30802113.68 | H13: 36952240.16 | I13: 38289609.55 | J13: 39808543.94 | K13: 38993382.2
B14: MOTOR VEHICLES | C14: Car | E14: 2091997.476 | F14: 2110562.722 | G14: 2129292.724 | H14: 2140054.861 | I14: 2153354.833 | J14: 2168802.165 | K14: 2183387.301
C15: Light commercial vehicle | E15: 1547692.903 | F15: 1561427.767 | G15: 1575284.519 | H15: 1583246.519 | I15: 1593086.049 | J15: 1604514.23 | K15: 1615304.545
C16: Elevated work platform (LCV) | E16: 392260.9652 | F16: 395742.0504 | G16: 399254.0281 | H16: 401271.9876 | I16: 403765.8051 | J16: 406662.2642 | K16: 409397.0571
C17: Elevated work platform (HCV) | E17: 744036.4014 | F17: 750639.2864 | G17: 757300.7682 | H17: 761128.4122 | I17: 765858.6586 | J17: 771352.6312 | K17: 776539.9571
C18: Heavy commercial vehicle | E18: 1650144.04 | F18: 1664788.097 | G18: 1679562.111 | H18: 1688051.163 | I18: 1698542.032 | J18: 1710726.712 | K18: 1722231.304
B19: BUILDINGS AND PROPERTY | C19: Total buildings and property expenditure | E19: 3567219.958 | F19: 3598876.935 | G19: 3630814.849 | H19: 3649166.166 | I19: 3671844.935 | J19: 3698185.325 | K19: 3723055.522
B20: OTHER | C20: Other expenditure | E20: 0 | F20: 0 | G20: 0 | H20: 0 | I20: 0 | J20: 0 | K20: 0
B21: OTHER - DNSP nominated | E21: 0 | F21: 0 | G21: 0 | H21: 0 | I21: 0 | J21: 0 | K21: 0
E22: 0 | F22: 0 | G22: 0 | H22: 0 | I22: 0 | J22: 0 | K22: 0
E23: 0 | F23: 0 | G23: 0 | H23: 0 | I23: 0 | J23: 0 | K23: 0
E24: 0 | F24: 0 | G24: 0 | H24: 0 | I24: 0 | J24: 0 | K24: 0
E25: 0 | F25: 0 | G25: 0 | H25: 0 | I25: 0 | J25: 0 | K25: 0
E26: 0 | F26: 0 | G26: 0 | H26: 0 | I26: 0 | J26: 0 | K26: 0
E27: 0 | F27: 0 | G27: 0 | H27: 0 | I27: 0 | J27: 0 | K27: 0
E28: 0 | F28: 0 | G28: 0 | H28: 0 | I28: 0 | J28: 0 | K28: 0
E29: 0 | F29: 0 | G29: 0 | H29: 0 | I29: 0 | J29: 0 | K29: 0
E30: 0 | F30: 0 | G30: 0 | H30: 0 | I30: 0 | J30: 0 | K30: 0
E31: 0 | F31: 0 | G31: 0 | H31: 0 | I31: 0 | J31: 0 | K31: 0
B32: CAPEX
B33: IT & COMMUNICATIONS | C33: Total IT and communications | E33: 26327792.81 | F33: 20369609.57 | G33: 29765992.38 | H33: 32393940.59 | I33: 26214916.57 | J33: 22340448.4 | K33: 16986077.73
B34: MOTOR VEHICLES | C34: Car | E34: 191128.9635 | F34: 852184.8464 | G34: 1210450.67 | H34: 418294.5431 | I34: 95353.81075 | J34: 254194.4165 | K34: 616348.5151
C35: Light commercial vehicle | E35: 417008.6477 | F35: 1029723.356 | G35: 4488848.97 | H35: 3370202.977 | I35: 2290826.867 | J35: 2512153.937 | K35: 1696190.629
C36: Elevated work platform (LCV) | E36: 17375.36032 | F36: 0 | G36: 532121.9192 | H36: 533079.1837 | I36: 0 | J36: 0 | K36: 0
C37: Elevated work platform (HCV) | E37: 0 | F37: 71015.40387 | G37: 93582.7007 | H37: 93751.05196 | I37: 98640.82045 | J37: 98896.46302 | K37: 0
C38: Heavy commercial vehicle | E38: 0 | F38: 142030.8077 | G38: 532689.2625 | H38: 288725.8398 | I38: 201545.5947 | J38: 510857.9287 | K38: 1161377.893
B39: BUILDINGS AND PROPERTY | C39: Total buildings and property expenditure | E39: 7120284.612 | F39: 2130652.796 | G39: 9134147.034 | H39: 21812853.47 | I39: 44695197.46 | J39: 6088616.063 | K39: 2574706.354
B40: OTHER | C40: Other expenditure | E40: 2611191.081 | F40: 2328420.392 | G40: 1394791.95 | H40: 1397301.121 | I40: 1400412.73 | J40: 1404042.111 | K40: 1407485.739
B41: OTHER - DNSP nominated | E41: 0 | F41: 0 | G41: 0 | H41: 0 | I41: 0 | J41: 0 | K41: 0
E42: 0 | F42: 0 | G42: 0 | H42: 0 | I42: 0 | J42: 0 | K42: 0
E43: 0 | F43: 0 | G43: 0 | H43: 0 | I43: 0 | J43: 0 | K43: 0
E44: 0 | F44: 0 | G44: 0 | H44: 0 | I44: 0 | J44: 0 | K44: 0
E45: 0 | F45: 0 | G45: 0 | H45: 0 | I45: 0 | J45: 0 | K45: 0
E46: 0 | F46: 0 | G46: 0 | H46: 0 | I46: 0 | J46: 0 | K46: 0
E47: 0 | F47: 0 | G47: 0 | H47: 0 | I47: 0 | J47: 0 | K47: 0
E48: 0 | F48: 0 | G48: 0 | H48: 0 | I48: 0 | J48: 0 | K48: 0
E49: 0 | F49: 0 | G49: 0 | H49: 0 | I49: 0 | J49: 0 | K49: 0
E50: 0 | F50: 0 | G50: 0 | H50: 0 | I50: 0 | J50: 0 | K50: 0
E51: 0 | F51: 0 | G51: 0 | H51: 0 | I51: 0 | J51: 0 | K51: 0
B55: 2.6.2 - ANNUAL DESCRIPTOR METRICS
B56: IT & COMMUNICATIONS
E57: VOLUMES
E58: =CRCP_y4 -> 2024-25 | F58: =CRCP_y5 -> 2025-26 | G58: =FRCP_y1 -> 2026-27 | H58: =FRCP_y2 -> 2027-28 | I58: =FRCP_y3 -> 2028-29 | J58: =FRCP_y4 -> 2029-30 | K58: =FRCP_y5 -> 2030-31
B59: Number of devices | E59: 1934.7 | F59: 1937.1 | G59: 1939.5 | H59: 1939.5 | I59: 1939.5 | J59: 1939.5 | K59: 1939.5
B61: MOTOR VEHICLES
E62: VOLUMES or PER CENT
B63: ASSET CATEGORY | C63: DESCRIPTOR METRIC | D63: UNITS | E63: =CRCP_y4 -> 2024-25 | F63: =CRCP_y5 -> 2025-26 | G63: =FRCP_y1 -> 2026-27 | H63: =FRCP_y2 -> 2027-28 | I63: =FRCP_y3 -> 2028-29 | J63: =FRCP_y4 -> 2029-30 | K63: =FRCP_y5 -> 2030-31
B64: CAR | C64: Average kilometres travelled | D64: 0's | E64: 19573.13333 | F64: 19573.13333 | G64: 19573.13333 | H64: 19573.13333 | I64: 19573.13333 | J64: 19573.13333 | K64: 19573.13333
C65: Number purchased | D65: 0's | E65: 11 | F65: 24 | G65: 17.5 | H65: 7 | I65: 2 | J65: 4 | K65: 9.5
C66: Number leased | D66: 0's | E66: 0 | F66: 0 | G66: 0 | H66: 0 | I66: 0 | J66: 0 | K66: 0
C67: Number in fleet | D67: 0's | E67: 186.5 | F67: 210.5 | G67: 210.5 | H67: 211 | I67: 211.5 | J67: 211.5 | K67: 212
C68: Proportion of total fleet expenditure allocated as regulatory expenditure | D68: % | E68: 100% | F68: 100% | G68: 100% | H68: 100% | I68: 100% | J68: 100% | K68: 100%
B69: LIGHT COMMERCIAL VEHICLE | C69: Average kilometres travelled | D69: 0's | E69: 21549.83333 | F69: 21549.83333 | G69: 21549.83333 | H69: 21549.83333 | I69: 21549.83333 | J69: 21549.83333 | K69: 21549.83333
C70: Number purchased | D70: 0's | E70: 24 | F70: 29 | G70: 41.5 | H70: 34 | I70: 21.5 | J70: 21.5 | K70: 13.5
C71: Number leased | D71: 0's | E71: 0 | F71: 0 | G71: 0 | H71: 0 | I71: 0 | J71: 0 | K71: 0
C72: Number in fleet | D72: 0's | E72: 142 | F72: 171 | G72: 173.5 | H72: 176.5 | I72: 179 | J72: 181 | K72: 181.5
C73: Proportion of total fleet expenditure allocated as regulatory expenditure | D73: % | E73: 100% | F73: 100% | G73: 100% | H73: 100% | I73: 100% | J73: 100% | K73: 100%
B74: ELEVATED WORK PLATFORM (LCV) | C74: Average kilometres travelled | D74: 0's | E74: 14883.93333 | F74: 14883.93333 | G74: 14883.93333 | H74: 14883.93333 | I74: 14883.93333 | J74: 14883.93333 | K74: 14883.93333
C75: Number purchased | D75: 0's | E75: 1 | F75: 0 | G75: 1 | H75: 1 | I75: 0 | J75: 0 | K75: 0
C76: Number leased | D76: 0's | E76: 0 | F76: 0 | G76: 0 | H76: 0 | I76: 0 | J76: 0 | K76: 0
C77: Number in fleet | D77: 0's | E77: 11 | F77: 11 | G77: 11 | H77: 11 | I77: 11 | J77: 11 | K77: 11
C78: Proportion of total fleet expenditure allocated as regulatory expenditure | D78: % | E78: 100% | F78: 100% | G78: 100% | H78: 100% | I78: 100% | J78: 100% | K78: 100%
B79: ELEVATED WORK PLATFORM (HCV) | C79: Average kilometres travelled | D79: 0's | E79: 12070.93333 | F79: 12070.93333 | G79: 12070.93333 | H79: 12070.93333 | I79: 12070.93333 | J79: 12070.93333 | K79: 12070.93333
C80: Number purchased | D80: 0's | E80: 0 | F80: 2 | G80: 0.5 | H80: 0.5 | I80: 0.5 | J80: 0.5 | K80: 0
C81: Number leased | D81: 0's | E81: 0 | F81: 0 | G81: 0 | H81: 0 | I81: 0 | J81: 0 | K81: 0
C82: Number in fleet | D82: 0's | E82: 18 | F82: 20 | G82: 20 | H82: 20 | I82: 20 | J82: 20 | K82: 20
C83: Proportion of total fleet expenditure allocated as regulatory expenditure | D83: % | E83: 100% | F83: 100% | G83: 100% | H83: 100% | I83: 100% | J83: 100% | K83: 100%
B84: HEAVY COMMERCIAL VEHICLE | C84: Average kilometres travelled | D84: 0's | E84: 3285.033333 | F84: 3285.033333 | G84: 3285.033333 | H84: 3285.033333 | I84: 3285.033333 | J84: 3285.033333 | K84: 3285.033333
C85: Number purchased | D85: 0's | E85: 0 | F85: 4 | G85: 2.5 | H85: 2 | I85: 3.5 | J85: 6.5 | K85: 7
C86: Number leased | D86: 0's | E86: 0 | F86: 0 | G86: 0 | H86: 0 | I86: 0 | J86: 0 | K86: 0
C87: Number in fleet | D87: 0's | E87: 135 | F87: 139 | G87: 139 | H87: 139 | I87: 139 | J87: 139 | K87: 139
C88: Proportion of total fleet expenditure allocated as regulatory expenditure | D88: % | E88: 100% | F88: 100% | G88: 100% | H88: 100% | I88: 100% | J88: 100% | K88: 100%
B93: 2.6.5 - INFORMATION & COMMUNICATIONS TECHNOLOGY - CAPEX
E94: =CONCATENATE("EXPENDITURE ($, real ", dms_DollarReal, ")") -> EXPENDITURE ($, real June 2026)
E95: =CRCP_y4 -> 2024-25 | F95: =CRCP_y5 -> 2025-26 | G95: =FRCP_y1 -> 2026-27 | H95: =FRCP_y2 -> 2027-28 | I95: =FRCP_y3 -> 2028-29 | J95: =FRCP_y4 -> 2029-30 | K95: =FRCP_y5 -> 2030-31
B96: RECURRENT
B97: Market Compliance | E97: 1695781.672 | F97: 1218362.545 | G97: 5044495.807 | H97: 1694679.033 | I97: 1483413.299 | J97: 1503298.911 | K97: 4672007.823
B98: Customer Engagement | E98: 1302635.708 | F98: 797200.1839 | G98: 675989.505 | H98: 1185173.744 | I98: 4191571.902 | J98: 502541.4049 | K98: 89726.07843
B99: Corporate Services | E99: 4749601.307 | F99: 2771026.803 | G99: 9645639.582 | H99: 6248812.771 | I99: 5891395.729 | J99: 4023437.143 | K99: 3501785.679
B100: Field Work & Construction | E100: 395287.1031 | F100: 205111.5396 | G100: 842789.4987 | H100: 420613.6563 | I100: 518403.1849 | J100: 408519.8081 | K100: 348150.2745
B101: Service Management and Ops | E101: 196099.1648 | F101: 101754.399 | G101: 0 | H101: 0 | I101: 0 | J101: 0 | K101: 0
B102: Network Assets and Network Operations | E102: 7580289.014 | F102: 3843106.547 | G102: 3396559.852 | H102: 3472223.283 | I102: 2941932.214 | J102: 4449911.74 | K102: 3225354.498
B103: Cyber Security | E103: 731577.6061 | F103: 338434.0403 | G103: 645860.4309 | H103: 510213.372 | I103: 410353.6489 | J103: 415854.5659 | K103: 421056.6552
B104: Client device | E104: 1739263.254 | F104: 902490.7742 | G104: 1859966.066 | H104: 1446788.263 | I104: 2099176.336 | J104: 2944539.866 | K104: 2280137.759
B107: NON-RECURRENT
B108: Market Compliance | E108: 2167408.675 | F108: 6908780.073 | G108: 4027684.357 | H108: 11537310.3 | I108: 4932891.16 | J108: 4310105.044 | K108: 1044013.245
B109: Customer Engagement | E109: 597871.7435 | F109: 310231.2036 | G109: 0 | H109: 0 | I109: 0 | J109: 0 | K109: 0
B110: Corporate Services | E110: 181173.2556 | F110: 893089.8287 | G110: 1563193.08 | H110: 4578081.508 | I110: 2886070.651 | J110: 3149268.133 | K110: 1044013.245
B111: Field Work & Construction | E111: 1337058.626 | F111: 0 | G111: 0 | H111: 0 | I111: 0 | J111: 0 | K111: 0
B112: Service Management and Ops | E112: 0 | F112: 0 | G112: 0 | H112: 0 | I112: 0 | J112: 0 | K112: 0
B113: Network Assets and Network Operations | E113: 471285.8383 | F113: -65231.52461 | G113: 0 | H113: 0 | I113: 0 | J113: 0 | K113: 0
B114: Cyber Security | E114: 76092.76735 | F114: 0 | G114: 457750.1067 | H114: 884779.5436 | I114: 859708.4447 | J114: 632971.78 | K114: 359832.4723
B115: CER IT | E115: 3106367.08 | F115: 2145253.153 | G115: 1606064.091 | H115: 415265.1115 | I115: 0 | J115: 0 | K115: 0

Sheet 2.10 Overheads
B1: =INDEX(dms_Worksheet_List,MATCH(dms_Model,dms_Model_List)) -> REGULATORY REPORTING STATEMENT
B2: =INDEX(dms_TradingNameFull_List,MATCH(dms_TradingName,dms_TradingName_List)) -> CitiPower
B3: =CONCATENATE("REGULATORY PERIOD FROM ", FRCP_y1," TO ",dms_MultiYear_FinalYear_Result) -> REGULATORY PERIOD FROM 2026-27 TO 2030-31
B4: 2.10 OVERHEADS
B5: TEMPLATE DATE - SEPTEMBER 2024 - FINAL RIN
B7: There are TWO tables on this worksheet. Each table has been 'grouped' (and sub-grouped) for easy navigation. See the Instructions sheet on how to group or ungroup data.
B9: 2.10.1 - NETWORK OVERHEADS EXPENDITURE
D10: =CONCATENATE("EXPENDITURE ($, real ", dms_DollarReal, ")") -> EXPENDITURE ($, real June 2026)
D11: =CRCP_y4 -> 2024-25 | E11: =CRCP_y5 -> 2025-26 | F11: =FRCP_y1 -> 2026-27 | G11: =FRCP_y2 -> 2027-28 | H11: =FRCP_y3 -> 2028-29 | I11: =FRCP_y4 -> 2029-30 | J11: =FRCP_y5 -> 2030-31
B12: OPEX
B13: Standard Control Services | C13: Total | D13: 16705336.83 | E13: 16705336.83 | F13: 16705336.83 | G13: 16705336.83 | H13: 16705336.83 | I13: 16705336.83 | J13: 16705336.83
B14: Alternative Control Services | C14: Total | D14: 742108.212 | E14: 742108.212 | F14: 742108.212 | G14: 742108.212 | H14: 742108.212 | I14: 742108.212 | J14: 742108.212
B15: CAPEX
B16: Standard Control Services | C16: Total | D16: 29514806.41 | E16: 31081280.98 | F16: 33646902.48 | G16: 33113233.25 | H16: 26346913.67 | I16: 33477928.06 | J16: 35523456.32
B17: Alternative Control Services | C17: Total | D17: 522547.355 | E17: 522547.355 | F17: 522547.355 | G17: 522547.355 | H17: 522547.355 | I17: 522547.355 | J17: 522547.355
B18: OTHER DISTRIBUTION SERVICES
B19: Negotiated Services | C19: Total | D19: 0 | E19: 0 | F19: 0 | G19: 0 | H19: 0 | I19: 0 | J19: 0
B20: Unregulated Distribution Services | C20: Total | D20: 0 | E20: 0 | F20: 0 | G20: 0 | H20: 0 | I20: 0 | J20: 0
B24: 2.10.2 - CORPORATE OVERHEADS EXPENDITURE
D25: =CONCATENATE("EXPENDITURE ($, real ", dms_DollarReal, ")") -> EXPENDITURE ($, real June 2026)
D26: =CRCP_y4 -> 2024-25 | E26: =CRCP_y5 -> 2025-26 | F26: =FRCP_y1 -> 2026-27 | G26: =FRCP_y2 -> 2027-28 | H26: =FRCP_y3 -> 2028-29 | I26: =FRCP_y4 -> 2029-30 | J26: =FRCP_y5 -> 2030-31
B27: OPEX
B28: Standard Control Services | C28: Total | D28: 42686518.1 | E28: 42686518.1 | F28: 42686518.1 | G28: 42686518.1 | H28: 42686518.1 | I28: 42686518.1 | J28: 42686518.1
B29: Alternative Control Services | C29: Total | D29: 4819438.254 | E29: 4819438.254 | F29: 4819438.254 | G29: 4819438.254 | H29: 4819438.254 | I29: 4819438.254 | J29: 4819438.254
B30: CAPEX
B31: Standard Control Services | C31: Total | D31: 0 | E31: 0 | F31: 0 | G31: 0 | H31: 0 | I31: 0 | J31: 0
B32: Alternative Control Services | C32: Total | D32: 1504361.195 | E32: 1504361.195 | F32: 1504361.195 | G32: 1504361.195 | H32: 1504361.195 | I32: 1504361.195 | J32: 1504361.195
B33: OTHER DISTRIBUTION SERVICES
B34: Negotiated Services | C34: Total | D34: 0 | E34: 0 | F34: 0 | G34: 0 | H34: 0 | I34: 0 | J34: 0
B35: Unregulated Distribution Services | C35: Total | D35: 0 | E35: 0 | F35: 0 | G35: 0 | H35: 0 | I35: 0 | J35: 0

Sheet 2.11 Labour
B1: =INDEX(dms_Worksheet_List,MATCH(dms_Model,dms_Model_List)) -> REGULATORY REPORTING STATEMENT
B2: =INDEX(dms_TradingNameFull_List,MATCH(dms_TradingName,dms_TradingName_List)) -> CitiPower
B3: =CONCATENATE("REGULATORY PERIOD FROM ", FRCP_y1," TO ",dms_MultiYear_FinalYear_Result) -> REGULATORY PERIOD FROM 2026-27 TO 2030-31
B4: 2.11 LABOUR
B5: TEMPLATE DATE - SEPTEMBER 2024 - FINAL RIN
B7: Table numbering on this worksheet starts at 2.11.3.
B9: 2.11.3 - LABOUR / NON-LABOUR EXPENDITURE SPLIT - STANDARD CONTROL SERVICES
C10: =CONCATENATE("EXPENDITURE ($, real ", dms_DollarReal, ")") -> EXPENDITURE ($, real June 2026)
C11: =CRCP_y4 -> 2024-25 | D11: =CRCP_y5 -> 2025-26 | E11: =FRCP_y1 -> 2026-27 | F11: =FRCP_y2 -> 2027-28 | G11: =FRCP_y3 -> 2028-29 | H11: =FRCP_y4 -> 2029-30 | I11: =FRCP_y5 -> 2030-31
B12: OPEX
B13: In-house labour expenditure | C13: 7750968.655 | D13: 7831520.863 | E13: 8843035.636 | F13: 9440402.185 | G13: 9657229.602 | H13: 9929782.436 | I13: 10039041.59
B14: Labour expenditure outsourced to related parties | C14: 57392352.49 | D14: 57988804.48 | E14: 65478605.43 | F14: 69901829.56 | G14: 71507336.7 | H14: 73525464.89 | I14: 74334478.59
B15: Labour expenditure outsourced to unrelated parties | C15: 6131883.234 | D15: 6195609.041 | E15: 6995830.374 | F15: 7468414.137 | G15: 7639948.877 | H15: 7855568.658 | I15: 7942004.87
B16: Non-labour expenditure | C16: 23547957.79 | D16: 23792680.75 | E16: 26865729.84 | F16: 28680569.11 | G16: 29339305.21 | H16: 30167338.83 | I16: 30499275.4
B17: Total | C17: =SUM(C13:C16) -> 94823162.17 | D17: 95808615.14 | E17: 108183201.3 | F17: 115491215 | G17: 118143820.4 | H17: 121478154.8 | I17: 122814800.4
B18: CAPEX
B19: In-house labour expenditure | C19: 18793332.57 | D19: 23161024.96 | E19: 28516240.35 | F19: 28814959.46 | G19: 24820807.64 | H19: 26735543.78 | I19: 27262746.53
B20: Labour expenditure outsourced to related parties | C20: 94944658.67 | D20: 117010413.2 | E20: 144065172.9 | F20: 145574313.7 | G20: 125395700.9 | H20: 135069023.5 | I20: 137732472.6
B21: Labour expenditure outsourced to unrelated parties | C21: 9612606.517 | D21: 11846638.62 | E21: 14585779.12 | F21: 14738571.03 | G21: 12695601.29 | H21: 13674970.17 | I21: 13944629.24
B22: Non-labour expenditure | C22: 128731494 | D22: 158649528.2 | E22: 195331946.1 | F22: 197378126.9 | G22: 170018789.3 | H22: 183134443.1 | I22: 186745702.4
B23: Total | C23: =SUM(C19:C22) -> 252082091.8 | D23: 310667605 | E23: 382499138.4 | F23: 386505971.1 | G23: 332930899.1 | H23: 358613980.6 | I23: 365685550.8

Sheet 2.14 Forecast price changes
B1: =INDEX(dms_Worksheet_List,MATCH(dms_Model,dms_Model_List)) -> REGULATORY REPORTING STATEMENT
B2: =INDEX(dms_TradingNameFull_List,MATCH(dms_TradingName,dms_TradingName_List)) -> CitiPower
B3: =CONCATENATE("REGULATORY PERIOD FROM ", FRCP_y1," TO ",dms_MultiYear_FinalYear_Result) -> REGULATORY PERIOD FROM 2026-27 TO 2030-31
B4: 2.14 FORECAST PRICE CHANGES
B5: TEMPLATE DATE - SEPTEMBER 2024 - FINAL RIN
B7: There is ONE table on this worksheet.
B9: Instructions
B10: =CONCATENATE(dms_TradingName, " must provide all forecast price changes used to forecast opex and capex, including forecast changes in CPI. FORECAST price changes must be expressed in real terms, except for CPI. "&"If the same escalators are not used for capex and opex, report capex and opex escalators separately. Add additional rows as required. If price changes for a given year were not used to forecast either opex or capex enter '0' for that year.") -> CitiPower must provide all forecast price changes used to forecast opex and capex, including forecast changes in CPI. FORECAST price changes must be expressed in real terms, except for CPI. If the same escalators are not used for capex and opex, report capex and opex escalators separately. Add additional rows as required. If price changes for a given year were not used to forecast either opex or capex enter '0' for that year.
B12: 2.14.2 - FORECAST CAPEX AND OPEX PRICE CHANGES
C13: Price changes (% YoY real) Current regulatory period | E13: Price changes (%YoY real) Forthcoming regulatory period
C14: FORECAST
B15: DESCRIPTION | C15: =CRCP_y4 -> 2024-25 | D15: =CRCP_y5 -> 2025-26 | E15: =FRCP_y1 -> 2026-27 | F15: =FRCP_y2 -> 2027-28 | G15: =FRCP_y3 -> 2028-29 | H15: =FRCP_y4 -> 2029-30 | I15: =FRCP_y5 -> 2030-31
B16: OPEX
B17: Wage Price Index (ave of BIS Oxford and DAE SAPN placeholder) + Superannuation guarantee increase | C17: 0 | D17: 0 | E17: 0.01499055967 | F17: 0.008537710637 | G17: 0.01049794094 | H17: 0.01211758728 | I17: 0.01135975224
B18: CPI | C18: 0 | D18: 0 | E18: 0 | F18: 0 | G18: 0 | H18: 0 | I18: 0
B20: CAPEX
B21: Internal labour | C21: 0.0238 | D21: 0.0276 | E21: 0.01499055967 | F21: 0.008537710637 | G21: 0.01049794094 | H21: 0.01211758728 | I21: 0.01135975224
B22: Contract labour | C22: 0.0238 | D22: 0.0276 | E22: 0.01499055967 | F22: 0.008537710637 | G22: 0.01049794094 | H22: 0.01211758728 | I22: 0.01135975224
B23: Non-labour | C23: 0 | D23: 0 | E23: 0 | F23: 0 | G23: 0 | H23: 0 | I23: 0

Sheet 2.16 Opex Summary
B1: =INDEX(dms_Worksheet_List,MATCH(dms_Model,dms_Model_List)) -> REGULATORY REPORTING STATEMENT
B2: =INDEX(dms_TradingNameFull_List,MATCH(dms_TradingName,dms_TradingName_List)) -> CitiPower
B3: =CONCATENATE("REGULATORY PERIOD FROM ", FRCP_y1," TO ",dms_MultiYear_FinalYear_Result) -> REGULATORY PERIOD FROM 2026-27 TO 2030-31
B4: 2.16 OPEX SUMMARY
B5: TEMPLATE DATE - SEPTEMBER 2024 - FINAL RIN
B7: Instructions | J7: IMPORTANT!
B8: =CONCATENATE("Complete the tables below in accordance with the regulatory information notice. ",dms_TradingName,"'s total forecast opex must reconcile to Table 2.16.1 (and if ",dms_TradingName," owns any dual function assets Table 2.16.3). If ",dms_TradingName," did not forecast its total opex using a Base Year approach, total forecast opex must reconcile to Table 2.16.2 (and if ",dms_TradingName," owns any dual function assets Table 2.16.4).") -> Complete the tables below in accordance with the regulatory information notice. CitiPower's total forecast opex must reconcile to Table 2.16.1 (and if CitiPower owns any dual function assets Table 2.16.3). If CitiPower did not forecast its total opex using a Base Year approach, total forecast opex must reconcile to Table 2.16.2 (and if CitiPower owns any dual function assets Table 2.16.4). | J8: =CONCATENATE("Has ",dms_TradingName," used a base-step-trend model to derive its opex forecast? ") -> Has CitiPower used a base-step-trend model to derive its opex forecast? | L8: Yes
B9: =CONCATENATE("If ",dms_TradingName," does not own any dual function assets,Table 2.16.3 and 2.16.4 may be left blank.") -> If CitiPower does not own any dual function assets,Table 2.16.3 and 2.16.4 may be left blank. | J9: Yes / No
B10: The total step changes in Table 2.16.1 and Table 2.16.3 must "&"reconcile (in each year) to the total step changes for each year in Table 2.17.1 and Table 2.17.3 of worksheet '2.17 Step Changes', respectively.") | J10: Please nominate the base year. | L10: 2024-25
B13: 2.16.1 - STANDARD CONTROL SERVICES - OPEX BY DRIVER
C14: =CONCATENATE("EXPENDITURE ($, real ", dms_DollarReal, ")") -> EXPENDITURE ($, real June 2026)
C15: =CRCP_y1 -> 2021-22 | D15: =CRCP_y2 -> 2022-23 | E15: =CRCP_y3 -> 2023-24 | F15: =CRCP_y4 -> 2024-25 | G15: =CRCP_y5 -> 2025-26 | H15: =FRCP_y1 -> 2026-27 | I15: =FRCP_y2 -> 2027-28 | J15: =FRCP_y3 -> 2028-29 | K15: =FRCP_y4 -> 2029-30 | L15: =FRCP_y5 -> 2030-31
B16: Base year total opex, excluding category specific | F16: 94416034.73 | G16: 94823162.17 | H16: 94700752.99 | I16: 94700752.99 | J16: 94700752.99 | K16: 94700752.99 | L16: 94700752.99
B17: Increment from base year to final year | G17: 1107862.146 | H17: 1107862.146 | I17: 1107862.146 | J17: 1107862.146 | K17: 1107862.146 | L17: 1107862.146
B18: Price growth | H18: 849581.8818 | I18: 1338492.69 | J18: 1944204.226 | K18: 2650115.071 | L18: 3318609.272
B19: Output growth | H19: 858695.0421 | I19: 2077171.276 | J19: 3593797.473 | K19: 5319517.511 | L19: 7433272.585
B20: Productivity growth | H20: -478669.43 | I20: -960267.8371 | J20: -1445564.112 | K20: -1935225.724 | L20: -2428618.721
B21: Step changes | H21: 9192742.396 | I21: 15207309.89 | J21: 16396577.37 | K21: 17755819.61 | L21: 16787537.7
B22: Category specific | F22: 407127.4345 | G22: -122409.1762 | H22: 1952236.254 | I22: 2019893.833 | J22: 1846190.293 | K22: 1879313.206 | L22: 1895384.475
B23: Total opex | C23: =SUM(C16:C22) -> 0 | D23: 0 | E23: 0 | F23: 94823162.17 | G23: 95808615.14 | H23: 108183201.3 | I23: 115491215 | J23: 118143820.4 | K23: 121478154.8 | L23: 122814800.4
B26: 2.16.2 - STANDARD CONTROL SERVICES - OPEX BY CATEGORY
C27: =CONCATENATE("EXPENDITURE ($, real ", dms_DollarReal, ")") -> EXPENDITURE ($, real June 2026)
C28: =CRCP_y1 -> 2021-22 | D28: =CRCP_y2 -> 2022-23 | E28: =CRCP_y3 -> 2023-24 | F28: =CRCP_y4 -> 2024-25 | G28: =CRCP_y5 -> 2025-26 | H28: =FRCP_y1 -> 2026-27 | I28: =FRCP_y2 -> 2027-28 | J28: =FRCP_y3 -> 2028-29 | K28: =FRCP_y4 -> 2029-30 | L28: =FRCP_y5 -> 2030-31
B29: Vegetation management
B30: Maintenance
B31: Emergency response
B32: Non-network
B33: Metering
B34: Network overheads
B35: Corporate overheads
B36: Total opex | C36: =SUM(C29:C35) -> 0 | D36: 0 | E36: 0 | F36: 0 | G36: 0 | H36: 0 | I36: 0 | J36: 0 | K36: 0 | L36: 0
B39: 2.16.3 - DUAL FUNCTION ASSETS - OPEX BY DRIVER
C40: =CONCATENATE("EXPENDITURE ($, real ", dms_DollarReal, ")") -> EXPENDITURE ($, real June 2026)
C41: =CRCP_y1 -> 2021-22 | D41: =CRCP_y2 -> 2022-23 | E41: =CRCP_y3 -> 2023-24 | F41: =CRCP_y4 -> 2024-25 | G41: =CRCP_y5 -> 2025-26 | H41: =FRCP_y1 -> 2026-27 | I41: =FRCP_y2 -> 2027-28 | J41: =FRCP_y3 -> 2028-29 | K41: =FRCP_y4 -> 2029-30 | L41: =FRCP_y5 -> 2030-31
B42: Base year total opex, excluding category specific | F42: 0 | G42: 0 | H42: 0 | I42: 0 | J42: 0 | K42: 0 | L42: 0
B43: Increment from base year to final year | G43: 0 | H43: 0 | I43: 0 | J43: 0 | K43: 0 | L43: 0
B44: Price growth | H44: 0 | I44: 0 | J44: 0 | K44: 0 | L44: 0
B45: Output growth | H45: 0 | I45: 0 | J45: 0 | K45: 0 | L45: 0
B46: Productivity growth | H46: 0 | I46: 0 | J46: 0 | K46: 0 | L46: 0
B47: Step changes | H47: 0 | I47: 0 | J47: 0 | K47: 0 | L47: 0
B48: Category specific | F48: 0 | G48: 0 | H48: 0 | I48: 0 | J48: 0 | K48: 0 | L48: 0
B49: Total opex | C49: =SUM(C42:C48) -> 0 | D49: 0 | E49: 0 | F49: 0 | G49: 0 | H49: 0 | I49: 0 | J49: 0 | K49: 0 | L49: 0
B52: 2.16.4 - DUAL FUNCTION ASSETS - OPEX BY CATEGORY
C53: =CONCATENATE("EXPENDITURE ($, real ", dms_DollarReal, ")") -> EXPENDITURE ($, real June 2026)
C54: =CRCP_y1 -> 2021-22 | D54: =CRCP_y2 -> 2022-23 | E54: =CRCP_y3 -> 2023-24 | F54: =CRCP_y4 -> 2024-25 | G54: =CRCP_y5 -> 2025-26 | H54: =FRCP_y1 -> 2026-27 | I54: =FRCP_y2 -> 2027-28 | J54: =FRCP_y3 -> 2028-29 | K54: =FRCP_y4 -> 2029-30 | L54: =FRCP_y5 -> 2030-31
B55: Vegetation management
B56: Maintenance
B57: Emergency response
B58: Non-network
B59: Metering
B60: Network overheads
B61: Corporate overheads
B62: Total opex | C62: =SUM(C55:C61) -> 0 | D62: 0 | E62: 0 | F62: 0 | G62: 0 | H62: 0 | I62: 0 | J62: 0 | K62: 0 | L62: 0

Sheet 2.17 Step Changes
B1: =INDEX(dms_Worksheet_List,MATCH(dms_Model,dms_Model_List)) -> REGULATORY REPORTING STATEMENT
B2: =INDEX(dms_TradingNameFull_List,MATCH(dms_TradingName,dms_TradingName_List)) -> CitiPower
B3: =CONCATENATE("REGULATORY PERIOD FROM ", FRCP_y1," TO ",dms_MultiYear_FinalYear_Result) -> REGULATORY PERIOD FROM 2026-27 TO 2030-31
B4: 2.17 STEP CHANGES
B5: TEMPLATE DATE - SEPTEMBER 2024 - FINAL RIN
B7: 2.17.1 - STEP CHANGES FOR STANDARD CONTROL SERVICES - FORECAST OPEX
E8: =CONCATENATE("EXPENDITURE ($, real ", dms_DollarReal, ")") -> EXPENDITURE ($, real June 2026)
B9: STEP CHANGE | C9: DESCRIPTION | E9: =CRCP_y4 -> 2024-25 | F9: =CRCP_y5 -> 2025-26 | G9: =FRCP_y1 -> 2026-27 | H9: =FRCP_y2 -> 2027-28 | I9: =FRCP_y3 -> 2028-29 | J9: =FRCP_y4 -> 2029-30 | K9: =FRCP_y5 -> 2030-31
B10: Flexible services | D10: 0 | E10: 0 | F10: 0 | G10: 1357216.259 | H10: 1349552.617 | I10: 1361934.467 | J10: 1375735.782 | K10: 1389059.746
B11: Vegetation management | D11: 0 | E11: 0 | F11: 0 | G11: 5724529.052 | H11: 6473797.124 | I11: 7042709.082 | J11: 7125570.016 | K11: 7203855.484
B12: CER integration | D12: 0 | E12: 0 | F12: 0 | G12: 801386.397 | H12: 2650317.674 | I12: 2686021.639 | J12: 3007566.19 | K12: 3162761.063
B13: Cloud services | D13: 0 | E13: 0 | F13: 0 | G13: 1488905.401 | H13: 3788111.501 | I13: 2308398.379 | J13: 2562696.879 | K13: 1016347.1
B14: ICT modernisation and new capability | D14: 0 | E14: 0 | F14: 0 | G14: -179294.7132 | H14: 971869.1783 | I14: 3036977.626 | J14: 3726637.71 | K14: 4063002.513
B15: Network and community resilience | D15: 0 | E15: 0 | F15: 0 | G15: 0 | H15: 0 | I15: 0 | J15: 0 | K15: 0
B16: Fleet electrification | D16: 0 | E16: 0 | F16: 0 | G16: 0 | H16: -26338.20175 | I16: -39463.82497 | J16: -42386.96443 | K16: -47488.20631
D17: 0
D18: 0
D19: 0
D20: 0
D21: 0
D22: 0
D23: 0
D24: 0
D25: 0
D26: 0
D27: 0
D28: 0
D29: 0
B30: Total | E30: =SUM(E10:E29) -> 0 | F30: 0 | G30: 9192742.396 | H30: 15207309.89 | I30: 16396577.37 | J30: 17755819.61 | K30: 16787537.7
B31: Check | G31: =IF(ROUND(G$30,0)-ROUND('2.16 Opex Summary'!H$21,0)=0,"OK","Error") -> OK | H31: =IF(ROUND(H$30,0)-ROUND('2.16 Opex Summary'!I$21,0)=0,"OK","Error") -> OK | I31: =IF(ROUND(I$30,0)-ROUND('2.16 Opex Summary'!J$21,0)=0,"OK","Error") -> OK | J31: =IF(ROUND(J$30,0)-ROUND('2.16 Opex Summary'!K$21,0)=0,"OK","Error") -> OK | K31: =IF(ROUND(K$30,0)-ROUND('2.16 Opex Summary'!L$21,0)=0,"OK","Error") -> OK
B33: 2.17.2 - STEP CHANGES FOR STANDARD CONTROL SERVICES - FORECAST CAPEX
E34: =CONCATENATE("EXPENDITURE ($, real ", dms_DollarReal, ")") -> EXPENDITURE ($, real June 2026)
B35: STEP CHANGE | C35: DESCRIPTION | E35: =CRCP_y4 -> 2024-25 | F35: =CRCP_y5 -> 2025-26 | G35: =FRCP_y1 -> 2026-27 | H35: =FRCP_y2 -> 2027-28 | I35: =FRCP_y3 -> 2028-29 | J35: =FRCP_y4 -> 2029-30 | K35: =FRCP_y5 -> 2030-31
D36: 0 | E36: 0 | F36: 0 | G36: 0 | H36: 0 | I36: 0 | J36: 0 | K36: 0
D37: 0 | E37: 0 | F37: 0 | G37: 0 | H37: 0 | I37: 0 | J37: 0 | K37: 0
D38: 0 | E38: 0 | F38: 0 | G38: 0 | H38: 0 | I38: 0 | J38: 0 | K38: 0
D39: 0 | E39: 0 | F39: 0 | G39: 0 | H39: 0 | I39: 0 | J39: 0 | K39: 0
D40: 0 | E40: 0 | F40: 0 | G40: 0 | H40: 0 | I40: 0 | J40: 0 | K40: 0
D41: 0 | E41: 0 | F41: 0 | G41: 0 | H41: 0 | I41: 0 | J41: 0 | K41: 0
D42: 0 | E42: 0 | F42: 0 | G42: 0 | H42: 0 | I42: 0 | J42: 0 | K42: 0
D43: 0 | E43: 0 | F43: 0 | G43: 0 | H43: 0 | I43: 0 | J43: 0 | K43: 0
D44: 0 | E44: 0 | F44: 0 | G44: 0 | H44: 0 | I44: 0 | J44: 0 | K44: 0
D45: 0 | E45: 0 | F45: 0 | G45: 0 | H45: 0 | I45: 0 | J45: 0 | K45: 0
D46: 0 | E46: 0 | F46: 0 | G46: 0 | H46: 0 | I46: 0 | J46: 0 | K46: 0
D47: 0 | E47: 0 | F47: 0 | G47: 0 | H47: 0 | I47: 0 | J47: 0 | K47: 0
D48: 0 | E48: 0 | F48: 0 | G48: 0 | H48: 0 | I48: 0 | J48: 0 | K48: 0
D49: 0 | E49: 0 | F49: 0 | G49: 0 | H49: 0 | I49: 0 | J49: 0 | K49: 0
D50: 0 | E50: 0 | F50: 0 | G50: 0 | H50: 0 | I50: 0 | J50: 0 | K50: 0
D51: 0 | E51: 0 | F51: 0 | G51: 0 | H51: 0 | I51: 0 | J51: 0 | K51: 0
D52: 0 | E52: 0 | F52: 0 | G52: 0 | H52: 0 | I52: 0 | J52: 0 | K52: 0
D53: 0 | E53: 0 | F53: 0 | G53: 0 | H53: 0 | I53: 0 | J53: 0 | K53: 0
D54: 0 | E54: 0 | F54: 0 | G54: 0 | H54: 0 | I54: 0 | J54: 0 | K54: 0
D55: 0 | E55: 0 | F55: 0 | G55: 0 | H55: 0 | I55: 0 | J55: 0 | K55: 0
B56: Total | E56: =SUM(E36:E55) -> 0 | F56: 0 | G56: 0 | H56: 0 | I56: 0 | J56: 0 | K56: 0
B58: 2.17.3 - STEP CHANGES FOR DUAL FUNCTION ASSETS - FORECAST OPEX
E59: =CONCATENATE("EXPENDITURE ($, real ", dms_DollarReal, ")") -> EXPENDITURE ($, real June 2026)
B60: STEP CHANGE | C60: DESCRIPTION | E60: =CRCP_y4 -> 2024-25 | F60: =CRCP_y5 -> 2025-26 | G60: =FRCP_y1 -> 2026-27 | H60: =FRCP_y2 -> 2027-28 | I60: =FRCP_y3 -> 2028-29 | J60: =FRCP_y4 -> 2029-30 | K60: =FRCP_y5 -> 2030-31
D61: 0 | E61: 0 | F61: 0 | G61: 0 | H61: 0 | I61: 0 | J61: 0 | K61: 0
D62: 0 | E62: 0 | F62: 0 | G62: 0 | H62: 0 | I62: 0 | J62: 0 | K62: 0
D63: 0 | E63: 0 | F63: 0 | G63: 0 | H63: 0 | I63: 0 | J63: 0 | K63: 0
D64: 0 | E64: 0 | F64: 0 | G64: 0 | H64: 0 | I64: 0 | J64: 0 | K64: 0
D65: 0 | E65: 0 | F65: 0 | G65: 0 | H65: 0 | I65: 0 | J65: 0 | K65: 0
D66: 0 | E66: 0 | F66: 0 | G66: 0 | H66: 0 | I66: 0 | J66: 0 | K66: 0
D67: 0 | E67: 0 | F67: 0 | G67: 0 | H67: 0 | I67: 0 | J67: 0 | K67: 0
D68: 0 | E68: 0 | F68: 0 | G68: 0 | H68: 0 | I68: 0 | J68: 0 | K68: 0
D69: 0 | E69: 0 | F69: 0 | G69: 0 | H69: 0 | I69: 0 | J69: 0 | K69: 0
D70: 0 | E70: 0 | F70: 0 | G70: 0 | H70: 0 | I70: 0 | J70: 0 | K70: 0
D71: 0 | E71: 0 | F71: 0 | G71: 0 | H71: 0 | I71: 0 | J71: 0 | K71: 0
D72: 0 | E72: 0 | F72: 0 | G72: 0 | H72: 0 | I72: 0 | J72: 0 | K72: 0
D73: 0 | E73: 0 | F73: 0 | G73: 0 | H73: 0 | I73: 0 | J73: 0 | K73: 0
D74: 0 | E74: 0 | F74: 0 | G74: 0 | H74: 0 | I74: 0 | J74: 0 | K74: 0
D75: 0 | E75: 0 | F75: 0 | G75: 0 | H75: 0 | I75: 0 | J75: 0 | K75: 0
D76: 0 | E76: 0 | F76: 0 | G76: 0 | H76: 0 | I76: 0 | J76: 0 | K76: 0
D77: 0 | E77: 0 | F77: 0 | G77: 0 | H77: 0 | I77: 0 | J77: 0 | K77: 0
D78: 0 | E78: 0 | F78: 0 | G78: 0 | H78: 0 | I78: 0 | J78: 0 | K78: 0
D79: 0 | E79: 0 | F79: 0 | G79: 0 | H79: 0 | I79: 0 | J79: 0 | K79: 0
D80: 0 | E80: 0 | F80: 0 | G80: 0 | H80: 0 | I80: 0 | J80: 0 | K80: 0
B81: Total | E81: =SUM(E61:E80) -> 0 | F81: 0 | G81: 0 | H81: 0 | I81: 0 | J81: 0 | K81: 0
B82: Check | G82: =IF(ROUND(G$30,0)-ROUND('2.16 Opex Summary'!H$47,0)=0,"OK","Error") -> Error | H82: =IF(ROUND(H$30,0)-ROUND('2.16 Opex Summary'!I$47,0)=0,"OK","Error") -> Error | I82: =IF(ROUND(I$30,0)-ROUND('2.16 Opex Summary'!J$47,0)=0,"OK","Error") -> Error | J82: =IF(ROUND(J$30,0)-ROUND('2.16 Opex Summary'!K$47,0)=0,"OK","Error") -> Error | K82: =IF(ROUND(K$30,0)-ROUND('2.16 Opex Summary'!L$47,0)=0,"OK","Error") -> Error
B84: 2.17.4 - STEP CHANGES FOR DUAL FUNCTION ASSETS - FORECAST CAPEX
E85: =CONCATENATE("EXPENDITURE ($, real ", dms_DollarReal, ")") -> EXPENDITURE ($, real June 2026)
B86: STEP CHANGE | C86: DESCRIPTION | E86: =CRCP_y4 -> 2024-25 | F86: =CRCP_y5 -> 2025-26 | G86: =FRCP_y1 -> 2026-27 | H86: =FRCP_y2 -> 2027-28 | I86: =FRCP_y3 -> 2028-29 | J86: =FRCP_y4 -> 2029-30 | K86: =FRCP_y5 -> 2030-31
D87: 0 | E87: 0 | F87: 0 | G87: 0 | H87: 0 | I87: 0 | J87: 0 | K87: 0
D88: 0 | E88: 0 | F88: 0 | G88: 0 | H88: 0 | I88: 0 | J88: 0 | K88: 0
D89: 0 | E89: 0 | F89: 0 | G89: 0 | H89: 0 | I89: 0 | J89: 0 | K89: 0
D90: 0 | E90: 0 | F90: 0 | G90: 0 | H90: 0 | I90: 0 | J90: 0 | K90: 0
D91: 0 | E91: 0 | F91: 0 | G91: 0 | H91: 0 | I91: 0 | J91: 0 | K91: 0
D92: 0 | E92: 0 | F92: 0 | G92: 0 | H92: 0 | I92: 0 | J92: 0 | K92: 0
D93: 0 | E93: 0 | F93: 0 | G93: 0 | H93: 0 | I93: 0 | J93: 0 | K93: 0
D94: 0 | E94: 0 | F94: 0 | G94: 0 | H94: 0 | I94: 0 | J94: 0 | K94: 0
D95: 0 | E95: 0 | F95: 0 | G95: 0 | H95: 0 | I95: 0 | J95: 0 | K95: 0
D96: 0 | E96: 0 | F96: 0 | G96: 0 | H96: 0 | I96: 0 | J96: 0 | K96: 0
D97: 0 | E97: 0 | F97: 0 | G97: 0 | H97: 0 | I97: 0 | J97: 0 | K97: 0
D98: 0 | E98: 0 | F98: 0 | G98: 0 | H98: 0 | I98: 0 | J98: 0 | K98: 0
D99: 0 | E99: 0 | F99: 0 | G99: 0 | H99: 0 | I99: 0 | J99: 0 | K99: 0
D100: 0 | E100: 0 | F100: 0 | G100: 0 | H100: 0 | I100: 0 | J100: 0 | K100: 0
D101: 0 | E101: 0 | F101: 0 | G101: 0 | H101: 0 | I101: 0 | J101: 0 | K101: 0
D102: 0 | E102: 0 | F102: 0 | G102: 0 | H102: 0 | I102: 0 | J102: 0 | K102: 0
D103: 0 | E103: 0 | F103: 0 | G103: 0 | H103: 0 | I103: 0 | J103: 0 | K103: 0
D104: 0 | E104: 0 | F104: 0 | G104: 0 | H104: 0 | I104: 0 | J104: 0 | K104: 0
D105: 0 | E105: 0 | F105: 0 | G105: 0 | H105: 0 | I105: 0 | J105: 0 | K105: 0
D106: 0 | E106: 0 | F106: 0 | G106: 0 | H106: 0 | I106: 0 | J106: 0 | K106: 0
B107: Total | E107: =SUM(E87:E106) -> 0 | F107: 0 | G107: 0 | H107: 0 | I107: 0 | J107: 0 | K107: 0
B110: 2.17.5 - FORECAST CATEGORY SPECIFIC OPEX
D111: EXPENDITURE ($, real June 2024)
B112: CATEGORY | C112: DESCRIPTION | D112: =CRCP_y3 -> 2023-24 | E112: =CRCP_y4 -> 2024-25 | F112: =CRCP_y5 -> 2025-26 | G112: =FRCP_y1 -> 2026-27 | H112: =FRCP_y2 -> 2027-28 | I112: =FRCP_y3 -> 2028-29 | J112: =FRCP_y4 -> 2029-30 | K112: =FRCP_y5 -> 2030-31
B113: GSL payments | D113: 0 | E113: 0 | F113: 0 | G113: 56336.67452 | H113: 54828.96146 | I113: 53361.59864 | J113: 51933.5062 | K113: 50543.63315
B114: Network innovation fund | D114: 0 | E114: 0 | F114: 0 | G114: 712500 | H114: 712500 | I114: 475000 | J114: 475000 | K114: 475000
B133: Total | D133: =SUM(D113:D132) -> 0 | E133: =SUM(E113:E132) -> 0 | F133: =SUM(F113:F132) -> 0 | G133: 768836.6745 | H133: 767328.9615 | I133: 528361.5986 | J133: 526933.5062 | K133: 525543.6331

Sheet 3.1 Revenue
B1: =INDEX(dms_Worksheet_List,MATCH(dms_Model,dms_Model_List)) -> REGULATORY REPORTING STATEMENT
B2: =INDEX(dms_TradingNameFull_List,MATCH(dms_TradingName,dms_TradingName_List)) -> CitiPower
B3: =CONCATENATE("REGULATORY PERIOD FROM ", FRCP_y1," TO ",dms_MultiYear_FinalYear_Result) -> REGULATORY PERIOD FROM 2026-27 TO 2030-31
B4: 3.1 REVENUE
B5: TEMPLATE DATE - SEPTEMBER 2024 - FINAL RIN
B7: There are THREE tables on this worksheet. Each table has been 'grouped' (and 'sub-grouped') for easy navigation. See the Instructions sheet on how to group or ungroup data.
B9: 3.1.1 - REVENUE GROUPING BY CHARGEABLE QUANTITY
C10: Standard control services | K10: Alternative control services
C11: =CONCATENATE("REVENUE FORECAST ($, real ", dms_DollarReal,")") -> REVENUE FORECAST ($, real June 2026) | K11: =CONCATENATE("REVENUE FORECAST ($, real ", dms_DollarReal,")") -> REVENUE FORECAST ($, real June 2026)
C12: =CRCP_y4 -> 2024-25 | D12: =CRCP_y5 -> 2025-26 | E12: =FRCP_y1 -> 2026-27 | F12: =FRCP_y2 -> 2027-28 | G12: =FRCP_y3 -> 2028-29 | H12: =FRCP_y4 -> 2029-30 | I12: =FRCP_y5 -> 2030-31 | K12: =CRCP_y4 -> 2024-25 | L12: =CRCP_y5 -> 2025-26 | M12: =FRCP_y1 -> 2026-27 | N12: =FRCP_y2 -> 2027-28 | O12: =FRCP_y3 -> 2028-29 | P12: =FRCP_y4 -> 2029-30 | Q12: =FRCP_y5 -> 2030-31
A13: DREV0101 | B13: Revenue from Fixed Customer Charges | C13: 43082717.93 | D13: 46496495.01 | E13: 49752489.48 | F13: 53825965.5 | G13: 57886520.59 | H13: 62104601.15 | I13: 66532238.85 | K13: 0 | L13: 0 | M13: 0 | N13: 0 | O13: 0 | P13: 0 | Q13: 0
A14: DREV0102 | B14: Revenue from Energy Delivery charges where time of use is not a determinant | C14: 108322703.1 | D14: 115372984 | E14: 110649942.7 | F14: 109486211.8 | G14: 108804612.2 | H14: 109224109.9 | I14: 109719200.1 | K14: 0 | L14: 0 | M14: 0 | N14: 0 | O14: 0 | P14: 0 | Q14: 0
A15: DREV0103 | B15: Revenue from On–Peak Energy Delivery charges | C15: 45977498.73 | D15: 49330393.89 | E15: 46530979.38 | F15: 45739321.07 | G15: 44893428.3 | H15: 44463215.49 | I15: 44388725.46 | K15: 0 | L15: 0 | M15: 0 | N15: 0 | O15: 0 | P15: 0 | Q15: 0
A16: DREV0104 | B16: Revenue from Shoulder period Energy Delivery Charges | C16: 0 | D16: 0 | E16: 0.5822295722 | F16: 1.157331409 | G16: 1.718436124 | H16: 2.291547755 | I16: 2.88717828 | K16: 0 | L16: 0 | M16: 0 | N16: 0 | O16: 0 | P16: 0 | Q16: 0
A17: DREV0105 | B17: Revenue from Off–Peak Energy Delivery charges | C17: 32701524.06 | D17: 35077532.88 | E17: 34343328.78 | F17: 34545664.64 | G17: 34734884.69 | H17: 35370586.61 | I17: 36581414.76 | K17: 0 | L17: 0 | M17: 0 | N17: 0 | O17: 0 | P17: 0 | Q17: 0
A18: DREV0106 | B18: Revenue from controlled load customer charges | C18: 945138.957 | D18: 996973.5622 | E18: 223408.1448 | F18: 228404.8508 | G18: 236138.1601 | H18: 247274.7982 | I18: 258071.9802 | K18: 0 | L18: 0 | M18: 0 | N18: 0 | O18: 0 | P18: 0 | Q18: 0
A19: DREV0107 | B19: Revenue from unmetered supplies | C19: 2938068.958 | D19: 3155994.547 | E19: 3118587.146 | F19: 3174167.528 | G19: 3212651 | H19: 3276205.69 | I19: 3372808.626 | K19: 0 | L19: 0 | M19: 0 | N19: 0 | O19: 0 | P19: 0 | Q19: 0
A20: DREV0108 | B20: Revenue from Contracted Maximum Demand charges | C20: 0 | D20: 0 | E20: 0 | F20: 0 | G20: 0 | H20: 0 | I20: 0 | K20: 0 | L20: 0 | M20: 0 | N20: 0 | O20: 0 | P20: 0 | Q20: 0
A21: DREV0109 | B21: Revenue from Measured Maximum Demand charges | C21: 121874971.8 | D21: 129803146.5 | E21: 127204134.3 | F21: 128541362.7 | G21: 129528273.6 | H21: 132196444.5 | I21: 137636451 | K21: 0 | L21: 0 | M21: 0 | N21: 0 | O21: 0 | P21: 0 | Q21: 0
A22: DREV0110 | B22: Revenue from metering charges | C22: 0 | D22: 0 | E22: 0 | F22: 0 | G22: 0 | H22: 0 | I22: 0 | K22: 24837641.28 | L22: 26189105.64 | M22: 26189105.64 | N22: 26189105.64 | O22: 26189105.64 | P22: 26189105.64 | Q22: 26189105.64
A23: DREV0111 | B23: Revenue from connection charges | C23: 0 | D23: 0 | E23: 0 | F23: 0 | G23: 0 | H23: 0 | I23: 0 | K23: 10362404.85 | L23: 10880525.09 | M23: 11098135.59 | N23: 11320098.31 | O23: 11546500.27 | P23: 11777430.28 | Q23: 12012978.88
A24: DREV0112 | B24: Revenue from public lighting charges | C24: 0 | D24: 0 | E24: 0 | F24: 0 | G24: 0 | H24: 0 | I24: 0 | K24: 4010102.267 | L24: 4170506.358 | M24: 4012293.738 | N24: 3940462.296 | O24: 3878170.157 | P24: 3929737.509 | Q24: 3988364.159
A25: DREV0113 | B25: Revenue from other Sources | C25: 0 | D25: 0 | E25: 0 | F25: 0 | G25: 0 | H25: 0 | I25: 0 | K25: 4321336.95 | L25: 4537403.798 | M25: 4628151.873 | N25: 4720714.911 | O25: 4815129.209 | P25: 4911431.793 | Q25: 5009660.429
A26: DREV01 | B26: Total revenue by chargeable quantity | C26: =SUM(C13:C25) -> 355842623.5 | D26: 380233520.4 | E26: 371822870.5 | F26: 375541099.2 | G26: 379296510.2 | H26: 386882440.4 | I26: 398488913.6 | K26: =SUM(K13:K25) -> 43531485.35 | L26: 45777540.89 | M26: 45927686.85 | N26: 46170381.16 | O26: 46428905.28 | P26: 46807705.22 | Q26: 47200109.11
B29: 3.1.2 - REVENUE GROUPING BY CUSTOMER TYPE OR CLASS
C30: Standard control services | K30: Alternative control services
C31: =CONCATENATE("REVENUE FORECAST ($, real ", dms_DollarReal,")") -> REVENUE FORECAST ($, real June 2026) | K31: =CONCATENATE("REVENUE FORECAST ($, real ", dms_DollarReal,")") -> REVENUE FORECAST ($, real June 2026)
C32: =CRCP_y4 -> 2024-25 | D32: =CRCP_y5 -> 2025-26 | E32: =FRCP_y1 -> 2026-27 | F32: =FRCP_y2 -> 2027-28 | G32: =FRCP_y3 -> 2028-29 | H32: =FRCP_y4 -> 2029-30 | I32: =FRCP_y5 -> 2030-31 | K32: =CRCP_y4 -> 2024-25 | L32: =CRCP_y5 -> 2025-26 | M32: =FRCP_y1 -> 2026-27 | N32: =FRCP_y2 -> 2027-28 | O32: =FRCP_y3 -> 2028-29 | P32: =FRCP_y4 -> 2029-30 | Q32: =FRCP_y5 -> 2030-31
A33: DREV0201 | B33: Revenue from residential Customers | C33: 109885285.9 | D33: 116991670.3 | E33: 115043890 | F33: 117798068.3 | G33: 121521208.2 | H33: 126447872.9 | I33: 131188671.3 | K33: 0 | L33: 0 | M33: 0 | N33: 0 | O33: 0 | P33: 0 | Q33: 0
A34: DREV0202 | B34: Revenue from Non residential customers not on demand tariffs | C34: 51495056.55 | D34: 55747996.24 | E34: 54099036.41 | F34: 53993251.64 | G34: 53598280.08 | H34: 53507003.57 | I34: 53811739.34 | K34: 0 | L34: 0 | M34: 0 | N34: 0 | O34: 0 | P34: 0 | Q34: 0
A35: DREV0203 | B35: Revenue from Non-residential low voltage demand tariff customers | C35: 171850793.9 | D35: 182974860.4 | E35: 178234719.8 | F35: 178411579.8 | G35: 177589827.1 | H35: 177897587.5 | I35: 179723281.7 | K35: 0 | L35: 0 | M35: 0 | N35: 0 | O35: 0 | P35: 0 | Q35: 0
A36: DREV0204 | B36: Revenue from Non-residential high voltage demand tariff customers | C36: 19673418.16 | D36: 21362998.91 | E36: 21326637.2 | F36: 22164032.04 | G36: 23374543.82 | H36: 25753770.77 | I36: 30392412.71 | K36: 0 | L36: 0 | M36: 0 | N36: 0 | O36: 0 | P36: 0 | Q36: 0
A37: DREV0205 | B37: Revenue from unmetered supplies | C37: 2938068.958 | D37: 3155994.547 | E37: 3118587.146 | F37: 3174167.528 | G37: 3212651 | H37: 3276205.69 | I37: 3372808.626 | K37: 3553624 | L37: 4170506.358 | M37: 4012293.738 | N37: 3940462.296 | O37: 3878170.157 | P37: 3929737.509 | Q37: 3988364.159
A38: DREV0206 | B38: Revenue from Other Customers | C38: 0 | D38: 0 | E38: 0 | F38: 0 | G38: 0 | H38: 0 | I38: 0 | K38: 39977861.35 | L38: 41607034.53 | M38: 41915393.11 | N38: 42229918.86 | O38: 42550735.12 | P38: 42877967.71 | Q38: 43211744.95
A39: DREV02 | B39: Total revenue by customer class | C39: =SUM(C33:C38) -> 355842623.5 | D39: 380233520.4 | E39: 371822870.5 | F39: 375541099.2 | G39: 379296510.2 | H39: 386882440.4 | I39: 398488913.6 | K39: =SUM(K33:K38) -> 43531485.35 | L39: 45777540.89 | M39: 45927686.85 | N39: 46170381.16 | O39: 46428905.28 | P39: 46807705.22 | Q39: 47200109.11
B42: 3.1.3 - REVENUE (penalties) ALLOWED (deducted) THROUGH INCENTIVE SCHEMES
C43: Standard control services | K43: Alternative control services
C44: =CONCATENATE("REVENUE FORECAST ($, real ", dms_DollarReal,")") -> REVENUE FORECAST ($, real June 2026) | K44: =CONCATENATE("REVENUE FORECAST ($, real ", dms_DollarReal,")") -> REVENUE FORECAST ($, real June 2026)
C45: =CRCP_y4 -> 2024-25 | D45: =CRCP_y5 -> 2025-26 | E45: =FRCP_y1 -> 2026-27 | F45: =FRCP_y2 -> 2027-28 | G45: =FRCP_y3 -> 2028-29 | H45: =FRCP_y4 -> 2029-30 | I45: =FRCP_y5 -> 2030-31 | K45: =CRCP_y4 -> 2024-25 | L45: =CRCP_y5 -> 2025-26 | M45: =FRCP_y1 -> 2026-27 | N45: =FRCP_y2 -> 2027-28 | O45: =FRCP_y3 -> 2028-29 | P45: =FRCP_y4 -> 2029-30 | Q45: =FRCP_y5 -> 2030-31
A46: DREV0301 | B46: EBSS | C46: -4566475.746 | D46: 0 | E46: -1782776.829 | F46: -4502552.12 | G46: 640810.2955 | H46: 3300749.264 | I46: 0 | K46: 0 | L46: 0 | M46: 0 | N46: 0 | O46: 0 | P46: 0 | Q46: 0
A47: DREV0306 | B47: CESS | C47: 16469204.34 | D47: 16469204.34 | E47: 2651384.064 | F47: 2651384.064 | G47: 2651384.064 | H47: 2651384.064 | I47: 2651384.064 | K47: 0 | L47: 0 | M47: 0 | N47: 0 | O47: 0 | P47: 0 | Q47: 0
A48: DREV0302 | B48: STPIS | C48: 9.592622519e-10 | D48: 8138494.524 | E48: 0 | F48: 0 | G48: 0 | H48: 0 | I48: 0 | K48: 0 | L48: 0 | M48: 0 | N48: 0 | O48: 0 | P48: 0 | Q48: 0
A49: DREV0307 | B49: CSIS | C49: 1728287.47 | D49: 1500000 | E49: 0 | F49: 0 | G49: 0 | H49: 0 | I49: 0 | K49: 0 | L49: 0 | M49: 0 | N49: 0 | O49: 0 | P49: 0 | Q49: 0
A50: DREV0308 | B50: ESIS | C50: 0 | D50: 0 | E50: 0 | F50: 0 | G50: 0 | H50: 0 | I50: 0 | K50: 0 | L50: 0 | M50: 0 | N50: 0 | O50: 0 | P50: 0 | Q50: 0
A51: DREV0309 | B51: DMIS/DMIA/DMIAM | C51: 530770.5953 | D51: 540640.1954 | E51: 444115.4097 | F51: 453814.2734 | G51: 462289.618 | H51: 471635.2174 | I51: 476939.1479 | K51: 0 | L51: 0 | M51: 0 | N51: 0 | O51: 0 | P51: 0 | Q51: 0
A52: DREV0303 | B52: F-Factor | C52: 12360 | D52: 0 | E52: 0 | F52: 0 | G52: 0 | H52: 0 | I52: 0 | K52: 0 | L52: 0 | M52: 0 | N52: 0 | O52: 0 | P52: 0 | Q52: 0
A53: DREV0305 | B53: Other | C53: -361025.141 | D53: -361025.141 | E53: -575331.1728 | F53: -575331.1728 | G53: -575331.1728 | H53: -575331.1728 | I53: -575331.1728 | K53: 0 | L53: 0 | M53: 0 | N53: 0 | O53: 0 | P53: 0 | Q53: 0
A54: DREV03 | B54: Total revenue rewards and penalties - incentive schemes | C54: =SUM(C46:C53) -> 13813121.52 | D54: 26287313.92 | E54: 737391.4724 | F54: -1972684.955 | G54: 3179152.805 | H54: 5848437.373 | I54: 2552992.039 | K54: =SUM(K46:K53) -> 0 | L54: 0 | M54: 0 | N54: 0 | O54: 0 | P54: 0 | Q54: 0

Sheet 3.2 Operating expenditure
B1: =INDEX(dms_Worksheet_List,MATCH(dms_Model,dms_Model_List)) -> REGULATORY REPORTING STATEMENT
B2: =INDEX(dms_TradingNameFull_List,MATCH(dms_TradingName,dms_TradingName_List)) -> CitiPower
B3: =CONCATENATE("REGULATORY PERIOD FROM ", FRCP_y1," TO ",dms_MultiYear_FinalYear_Result) -> REGULATORY PERIOD FROM 2026-27 TO 2030-31
B4: 3.2 OPERATING EXPENDITURE
B5: TEMPLATE DATE - SEPTEMBER 2024 - FINAL RIN
B7: There are TWO tables on this worksheet. Both ROWS and COLUMNS have been grouped for ease of navigation. see the Instructions sheet on how to group or ungroup tables.
B9: 3.2.1 - OPEX CATEGORIES
B10: CURRENT OPEX CATEGORIES AND COST ALLOCATIONS
C11: Standard control services | K11: Alternative control services
C12: =CONCATENATE("EXPENDITURE ($, real ", dms_DollarReal, ")") -> EXPENDITURE ($, real June 2026) | K12: =CONCATENATE("EXPENDITURE ($, real ", dms_DollarReal, ")") -> EXPENDITURE ($, real June 2026)
C13: =CRCP_y4 -> 2024-25 | D13: =CRCP_y5 -> 2025-26 | E13: =FRCP_y1 -> 2026-27 | F13: =FRCP_y2 -> 2027-28 | G13: =FRCP_y3 -> 2028-29 | H13: =FRCP_y4 -> 2029-30 | I13: =FRCP_y5 -> 2030-31 | K13: =CRCP_y4 -> 2024-25 | L13: =CRCP_y5 -> 2025-26 | M13: =FRCP_y1 -> 2026-27 | N13: =FRCP_y2 -> 2027-28 | O13: =FRCP_y3 -> 2028-29 | P13: =FRCP_y4 -> 2029-30 | Q13: =FRCP_y5 -> 2030-31
A14: DOPEX0101 | B14: Maintenance | C14: 27005342.72 | D14: 27371831.93 | E14: 34658511.65 | F14: 39282093.79 | G14: 41313153.06 | H14: 43651610.93 | I14: 44555638.19 | K14: 0 | L14: 0 | M14: 0 | N14: 0 | O14: 0 | P14: 0 | Q14: 0
A15: DOPEX0102 | B15: Vegetation Management | C15: 2018158.485 | D15: 2550161.978 | E15: 3982820.277 | F15: 4009500.244 | G15: 4040181.271 | H15: 4077245.162 | I15: 4112206.688 | K15: 0 | L15: 0 | M15: 0 | N15: 0 | O15: 0 | P15: 0 | Q15: 0
A16: DOPEX0103 | B16: Emergency | C16: 6407806.038 | D16: 6494766.304 | E16: 9544881.921 | F16: 10818206.81 | G16: 11377556.31 | H16: 12021562.73 | I16: 12270529.96 | K16: 0 | L16: 0 | M16: 0 | N16: 0 | O16: 0 | P16: 0 | Q16: 0
A17: DOPEX0104 | B17: Overheads | C17: 59391854.93 | D17: 59391854.93 | E17: 59391854.93 | F17: 59391854.93 | G17: 59391854.93 | H17: 59391854.93 | I17: 59391854.93 | K17: 5561546.466 | L17: 5561546.466 | M17: 5561546.466 | N17: 5561546.466 | O17: 5561546.466 | P17: 5561546.466 | Q17: 5561546.466
A18: DOPEX0105 | B18: Public Lighting | C18: 0 | D18: 0 | E18: 0 | F18: 0 | G18: 0 | H18: 0 | I18: 0 | K18: 2809792.235 | L18: 2468962.741 | M18: 2128133.247 | N18: 2012878.747 | O18: 1906827.573 | P18: 1906069.487 | Q18: 1909033.668
A19: DOPEX0106 | B19: Connection Services | C19: 0 | D19: 0 | E19: 0 | F19: 0 | G19: 0 | H19: 0 | I19: 0 | K19: 2426729.533 | L19: 2475264.124 | M19: 2524769.407 | N19: 2575264.795 | O19: 2626770.091 | P19: 2679305.492 | Q19: 2732891.602
A20: DOPEX0107 | B20: Metering Services | C20: 0 | D20: 0 | E20: 0 | F20: 0 | G20: 0 | H20: 0 | I20: 0 | K20: 4422925.786 | L20: 4514885.781 | M20: 5433232.566 | N20: 5726840.111 | O20: 5887505.858 | P20: 6431260.026 | Q20: 7003713.514
A21: DOPEX0108 | B21: Ancillary Network Services | C21: 0 | D21: 0 | E21: 0 | F21: 0 | G21: 0 | H21: 0 | I21: 0 | K21: 3395775.214 | L21: 3497648.47 | M21: 3602577.924 | N21: 3710655.262 | O21: 3821974.92 | P21: 3936634.167 | Q21: 4054733.192
A22: DOPEX0109 | B22: Export services | C22: 0 | D22: 0 | E22: 605132.5096 | F22: 1989559.219 | G22: 2021074.824 | H22: 2335881.062 | I22: 2484570.683 | K22: 0 | L22: 0 | M22: 0 | N22: 0 | O22: 0 | P22: 0 | Q22: 0
A23: DOPEX0110
A24: DOPEX0111
A25: DOPEX0112
A26: DOPEX0113
A27: DOPEX0114
A28: DOPEX0115
A29: DOPEX0116
A30: DOPEX0117
A31: DOPEX0118
A32: DOPEX0119
A33: DOPEX0120
A34: DOPEX0121
A35: DOPEX0122
A36: DOPEX0123
A37: DOPEX0124
A38: DOPEX0125
A39: DOPEX0126
A40: DOPEX0127
A41: DOPEX0128
A42: DOPEX0129
A43: DOPEX0130
A44: DOPEX0131
A45: DOPEX0132
A46: DOPEX0133
A47: DOPEX0134
A48: DOPEX0135
A49: DOPEX0136
A50: DOPEX0137
A51: DOPEX0138
A52: DOPEX0139
A53: DOPEX0140
A54: DOPEX0141
A55: DOPEX0142
A56: DOPEX0143
A57: DOPEX0144
A58: DOPEX0145
A59: DOPEX0146
A60: DOPEX0147
A61: DOPEX0148
A62: DOPEX0149
A63: DOPEX01 | B63: Total opex | C63: =SUM(C14:C62) -> 94823162.17 | D63: 95808615.14 | E63: 108183201.3 | F63: 115491215 | G63: 118143820.4 | H63: 121478154.8 | I63: 122814800.4 | K63: =SUM(K14:K62) -> 18616769.23 | L63: 18518307.58 | M63: 19250259.61 | N63: 19587185.38 | O63: 19804624.91 | P63: 20514815.64 | Q63: 21261918.44
B66: 3.2.2 - OPEX CONSISTENCY
B67: OPEX CONSISTENCY - CURRENT COST ALLOCATION APPROACH
C68: Standard control services | K68: Alternative control services
C69: =CONCATENATE("EXPENDITURE ($, real ", dms_DollarReal, ")") -> EXPENDITURE ($, real June 2026) | K69: =CONCATENATE("EXPENDITURE ($, real ", dms_DollarReal, ")") -> EXPENDITURE ($, real June 2026)
C70: =CRCP_y4 -> 2024-25 | D70: =CRCP_y5 -> 2025-26 | E70: =FRCP_y1 -> 2026-27 | F70: =FRCP_y2 -> 2027-28 | G70: =FRCP_y3 -> 2028-29 | H70: =FRCP_y4 -> 2029-30 | I70: =FRCP_y5 -> 2030-31 | K70: =CRCP_y4 -> 2024-25 | L70: =CRCP_y5 -> 2025-26 | M70: =FRCP_y1 -> 2026-27 | N70: =FRCP_y2 -> 2027-28 | O70: =FRCP_y3 -> 2028-29 | P70: =FRCP_y4 -> 2029-30 | Q70: =FRCP_y5 -> 2030-31
A71: DOPEX0201 | B71: Opex for network services | C71: 91057975.95 | D71: 92004299.09 | E71: 103887521.9 | F71: 110905353 | G71: 113452630.2 | H71: 116654566.7 | I71: 117938137.6 | K71: 0 | L71: 0 | M71: 0 | N71: 0 | O71: 0 | P71: 0 | Q71: 0
A72: DOPEX0202 | B72: Opex for metering | C72: 0 | D72: 0 | E72: 0 | F72: 0 | G72: 0 | H72: 0 | I72: 0 | K72: 4422925.786 | L72: 4514885.781 | M72: 5433232.566 | N72: 5726840.111 | O72: 5887505.858 | P72: 6431260.026 | Q72: 7003713.514
A73: DOPEX0203 | B73: Opex for connection services | C73: 3494808.656 | D73: 3531128.575 | E73: 3987207.13 | F73: 4256551.76 | G73: 4354316.358 | H73: 4477206.805 | I73: 4526470.304 | K73: 2426729.533 | L73: 2475264.124 | M73: 2524769.407 | N73: 2575264.795 | O73: 2626770.091 | P73: 2679305.492 | Q73: 2732891.602
A74: DOPEX0204 | B74: Opex for public lighting | C74: 0 | D74: 0 | E74: 0 | F74: 0 | G74: 0 | H74: 0 | I74: 0 | K74: 2809792.235 | L74: 2468962.741 | M74: 2128133.247 | N74: 2012878.747 | O74: 1906827.573 | P74: 1906069.487 | Q74: 1909033.668
A75: DOPEX0205 | B75: Opex for amounts payable for easement levy or similar direct charges on DNSP | C75: 0 | D75: 0 | E75: 0 | F75: 0 | G75: 0 | H75: 0 | I75: 0 | K75: 0 | L75: 0 | M75: 0 | N75: 0 | O75: 0 | P75: 0 | Q75: 0
A76: DOPEX0207 | B76: Opex for transmission connection point planning | C76: 270377.5611 | D76: 273187.4692 | E76: 308472.2071 | F76: 329310.1846 | G76: 336873.7899 | H76: 346381.2688 | I76: 350192.5632 | K76: 0 | L76: 0 | M76: 0 | N76: 0 | O76: 0 | P76: 0 | Q76: 0

Sheet 3.3 Assets (RAB)
B1: =INDEX(dms_Worksheet_List,MATCH(dms_Model,dms_Model_List)) -> REGULATORY REPORTING STATEMENT
B2: =INDEX(dms_TradingNameFull_List,MATCH(dms_TradingName,dms_TradingName_List)) -> CitiPower
B3: =CONCATENATE("REGULATORY PERIOD FROM ", FRCP_y1," TO ",dms_MultiYear_FinalYear_Result) -> REGULATORY PERIOD FROM 2026-27 TO 2030-31
B4: 3.3 ASSETS
B5: TEMPLATE DATE - SEPTEMBER 2024 - FINAL RIN
B7: There are FOUR tables on this worksheet. Both ROWS and COLUMNS in each have been grouped (and sub-grouped) for ease of navigation. see the Instructions sheet on how to group or ungroup tables.
B9: 3.3.1 - BENCHMARKING ASSET BASE VALUES
C10: Network services | K10: Standard control services | S10: Alternative control services
C11: =CONCATENATE(" VALUE FORECAST ($, real ", dms_DollarReal, ")") -> VALUE FORECAST ($, real June 2026) | K11: =CONCATENATE(" VALUE FORECAST ($, real ", dms_DollarReal, ")") -> VALUE FORECAST ($, real June 2026) | S11: =CONCATENATE(" VALUE FORECAST ($, real ", dms_DollarReal, ")") -> VALUE FORECAST ($, real June 2026)
C12: =CRCP_y4 -> 2024-25 | D12: =CRCP_y5 -> 2025-26 | E12: =FRCP_y1 -> 2026-27 | F12: =FRCP_y2 -> 2027-28 | G12: =FRCP_y3 -> 2028-29 | H12: =FRCP_y4 -> 2029-30 | I12: =FRCP_y5 -> 2030-31 | K12: =CRCP_y4 -> 2024-25 | L12: =CRCP_y5 -> 2025-26 | M12: =FRCP_y1 -> 2026-27 | N12: =FRCP_y2 -> 2027-28 | O12: =FRCP_y3 -> 2028-29 | P12: =FRCP_y4 -> 2029-30 | Q12: =FRCP_y5 -> 2030-31 | S12: =CRCP_y4 -> 2024-25 | T12: =CRCP_y5 -> 2025-26 | U12: =FRCP_y1 -> 2026-27 | V12: =FRCP_y2 -> 2027-28 | W12: =FRCP_y3 -> 2028-29 | X12: =FRCP_y4 -> 2029-30 | Y12: =FRCP_y5 -> 2030-31
B13: For total asset base:
A14: DRAB0101 | B14: Opening value | C14: 1862329491 | D14: =C21 -> 1891214583 | E14: 1911726418 | F14: 2035929105 | G14: 2157688502 | H14: 2234041791 | I14: 2270521768 | K14: 2290615572 | L14: =K21 -> 2317228427 | M14: 2336886441 | N14: 2473468738 | O14: 2602346713 | P14: 2670575381 | Q14: 2705056301 | S14: 80650732.73 | T14: =S21 -> 72028330.15 | U14: 66877239.97 | V14: 83480510.38 | W14: 96942324.15 | X14: 107793468.1 | Y14: 118480434.7
A15: DRAB0102 | B15: Inflation addition | C15: 5382094.546 | D15: 4511238.573 | E15: 4283741.256 | F15: 5666801.982 | G15: 7251343.231 | H15: 8962218.613 | I15: 9184719.476 | K15: 0 | L15: 0 | M15: 0 | N15: 0 | O15: 0 | P15: 0 | Q15: 0 | S15: 0 | T15: 0 | U15: 0 | V15: 0 | W15: 0 | X15: 0 | Y15: 0
A16: DRAB0103 | B16: Actual straight line depreciation | C16: 124706843.4 | D16: 129479665.4 | E16: 130919345.9 | F16: 138094142.9 | G16: 148688119.9 | H16: 160908215.8 | I16: 168588708.3 | K16: 148955485.5 | L16: 153314515.6 | M16: 154093609.5 | N16: 161103332 | O16: 171061322.7 | P16: 181819880.5 | Q16: 188299012.1 | S16: 14298694.28 | T16: 14318627.22 | U16: 8465455.361 | V16: 10363730.34 | W16: 11979316.29 | X16: 13415133.86 | Y16: 14873097.39
A17: DRAB0104 | B17: Gross capex | C17: 212507742.3 | D17: 260559363.5 | E17: 333883589.4 | F17: 336671490.1 | G17: 297376469.8 | H17: 307671908.9 | I17: 310612114.3 | K17: 255404087.5 | L17: 314832933.2 | M17: 393787847.9 | N17: 392391785.7 | O17: 338095017.1 | P17: 364362459.9 | Q17: 371849602.7 | S17: 5676291.707 | T17: 7522226.844 | U17: 25068725.77 | V17: 23825544.11 | W17: 22830460.25 | X17: 24102100.49 | Y17: 23953488.39
A18: DRAB0108 | B18: Capital contributions included in gross capex | C18: 63710152.72 | D18: 77904643.23 | E18: 82893628.29 | F18: 82328868.1 | G18: 79426187.99 | H18: 119081229.3 | I18: 134471886.3 | K18: 79136036.72 | L18: 96767382.33 | M18: 102964330.4 | N18: 102262827.1 | O18: 98657332.64 | P18: 147913890.2 | Q18: 167031025.3 | S18: 0 | T18: 0 | U18: 0 | V18: 0 | W18: 0 | X18: 0 | Y18: 0
A19: DRAB0106 | B19: Disposals | C19: 587747.9101 | D19: 40940659.55 | E19: 151669.5154 | F19: 155884.4799 | G19: 160215.6857 | H19: 164705.4474 | I19: 169372.2525 | K19: 699709.7084 | L19: 50817771.03 | M19: 147610.4524 | N19: 147652.3973 | O19: 147693.5296 | P19: 147768.9583 | Q19: 147889.1539 | S19: 0 | T19: 0 | U19: 0 | V19: 0 | W19: 0 | X19: 0 | Y19: 0
A20: DRAB0109 | B20: Capex timing adjustment | C20: 0 | D20: 3766201.052 | E20: 0 | F20: 0 | G20: 0 | H20: 0 | I20: 0 | K20: 0 | L20: 5724749.425 | M20: 0 | N20: 0 | O20: 0 | P20: 0 | Q20: 0 | S20: 0 | T20: 1645310.201 | U20: 0 | V20: 0 | W20: 0 | X20: 0 | Y20: 0
A21: DRAB0107 | B21: Closing value | C21: =C14+C15-C16+C17-C18-C19+C20 -> 1891214583 | D21: 1911726418 | E21: 2035929105 | F21: 2157688502 | G21: 2234041791 | H21: 2270521768 | I21: 2287088635 | K21: =K14+K15-K16+K17-K18-K19+K20 -> 2317228427 | L21: 2336886441 | M21: 2473468738 | N21: 2602346713 | O21: 2670575381 | P21: 2705056301 | Q21: 2721427977 | S21: =S14+S15-S16+S17-S18-S19+S20 -> 72028330.15 | T21: 66877239.97 | U21: 83480510.38 | V21: 96942324.15 | W21: 107793468.1 | X21: 118480434.7 | Y21: 127560825.7
B24: 3.3.2 - ASSET VALUE ROLL FORWARD
C25: Network services | K25: Standard control services | S25: Alternative control services
C26: =CONCATENATE(" VALUE FORECAST ($, real ", dms_DollarReal, ")") -> VALUE FORECAST ($, real June 2026) | K26: =CONCATENATE(" VALUE FORECAST ($, real ", dms_DollarReal, ")") -> VALUE FORECAST ($, real June 2026) | S26: =CONCATENATE(" VALUE FORECAST ($, real ", dms_DollarReal, ")") -> VALUE FORECAST ($, real June 2026)
C27: =CRCP_y4 -> 2024-25 | D27: =CRCP_y5 -> 2025-26 | E27: =FRCP_y1 -> 2026-27 | F27: =FRCP_y2 -> 2027-28 | G27: =FRCP_y3 -> 2028-29 | H27: =FRCP_y4 -> 2029-30 | I27: =FRCP_y5 -> 2030-31 | K27: =CRCP_y4 -> 2024-25 | L27: =CRCP_y5 -> 2025-26 | M27: =FRCP_y1 -> 2026-27 | N27: =FRCP_y2 -> 2027-28 | O27: =FRCP_y3 -> 2028-29 | P27: =FRCP_y4 -> 2029-30 | Q27: =FRCP_y5 -> 2030-31 | S27: =CRCP_y4 -> 2024-25 | T27: =CRCP_y5 -> 2025-26 | U27: =FRCP_y1 -> 2026-27 | V27: =FRCP_y2 -> 2027-28 | W27: =FRCP_y3 -> 2028-29 | X27: =FRCP_y4 -> 2029-30 | Y27: =FRCP_y5 -> 2030-31
B28: For overhead network assets less than 33kV:
A29: DRAB0201 | B29: Opening value | C29: 186370203.9 | D29: =C36 -> 187591818.6 | E29: 189219570.2 | F29: 197183719.2 | G29: 204095031.1 | H29: 205618339 | I29: 208677475.5 | K29: 231495274.6 | L29: =K36 -> 233012673.9 | M29: 235034546.6 | N29: 244927023.1 | O29: 253511743.2 | P29: 255403883.6 | Q29: 259203716.5 | S29: 0 | T29: =S36 -> 0 | U29: 0 | V29: 0 | W29: 0 | X29: 0 | Y29: 0
A30: DRAB0202 | B30: Inflation addition | C30: 0 | D30: 0 | E30: 0 | F30: 0 | G30: 0 | H30: 0 | I30: 0 | K30: 0 | L30: 0 | M30: 0 | N30: 0 | O30: 0 | P30: 0 | Q30: 0 | S30: 0 | T30: 0 | U30: 0 | V30: 0 | W30: 0 | X30: 0 | Y30: 0
A31: DRAB0203 | B31: Actual straight line depreciation | C31: 10417716.58 | D31: 10607817.93 | E31: 10691435.05 | F31: 11071262.3 | G31: 11437388.08 | H31: 11701287.19 | I31: 12001840.59 | K31: 12940116.55 | L31: 13176246.39 | M31: 13280109.38 | N31: 13751902.68 | O31: 14206677.03 | P31: 14534472.97 | Q31: 14907798.16 | S31: 0 | T31: 0 | U31: 0 | V31: 0 | W31: 0 | X31: 0 | Y31: 0
A32: DRAB0204 | B32: Gross capex | C32: 18552616.21 | D32: 24154720.58 | E32: 27588149.24 | F32: 26854281.22 | G32: 21519611.98 | H32: 27592541.97 | I32: 29391379.07 | K32: 23044686.83 | L32: 30003206.28 | M32: 34267957.27 | N32: 33356400.72 | O32: 26730069.4 | P32: 34273413.6 | Q32: 36507795.92 | S32: 0 | T32: 0 | U32: 0 | V32: 0 | W32: 0 | X32: 0 | Y32: 0
A33: DRAB0208 | B33: Capital contributions included in gross capex | C33: 6865365.947 | D33: 8394955.308 | E33: 8932565.197 | F33: 8871706.995 | G33: 8558916.014 | H33: 12832118.3 | I33: 14490605.81 | K33: 8527649.495 | L33: 10427592.2 | M33: 11095371.42 | N33: 11019777.86 | O33: 10631252.05 | P33: 15939107.69 | Q33: 17999158.13 | S33: 0 | T33: 0 | U33: 0 | V33: 0 | W33: 0 | X33: 0 | Y33: 0
A34: DRAB0206 | B34: Disposals | C34: 47919.03341 | D34: 4395857.301 | E34: 0 | F34: 0 | G34: 0 | H34: 0 | I34: 0 | K34: 59521.47696 | L34: 5460208.616 | M34: 0 | N34: 0 | O34: 0 | P34: 0 | Q34: 0 | S34: 0 | T34: 0 | U34: 0 | V34: 0 | W34: 0 | X34: 0 | Y34: 0
A35: DRAB0209 | B35: Capex timing adjustment | C35: 0 | D35: 871661.6373 | E35: 0 | F35: 0 | G35: 0 | H35: 0 | I35: 0 | K35: 0 | L35: 1082713.577 | M35: 0 | N35: 0 | O35: 0 | P35: 0 | Q35: 0 | S35: 0 | T35: 0 | U35: 0 | V35: 0 | W35: 0 | X35: 0 | Y35: 0
A36: DRAB0207 | B36: Closing value | C36: =C29+C30-C31+C32-C33-C34+C35 -> 187591818.6 | D36: 189219570.2 | E36: 197183719.2 | F36: 204095031.1 | G36: 205618339 | H36: 208677475.5 | I36: 211576408.2 | K36: =K29+K30-K31+K32-K33-K34+K35 -> 233012673.9 | L36: 235034546.6 | M36: 244927023.1 | N36: 253511743.2 | O36: 255403883.6 | P36: 259203716.5 | Q36: 262804556.1 | S36: =S29+S30-S31+S32-S33-S34+S35 -> 0 | T36: 0 | U36: 0 | V36: 0 | W36: 0 | X36: 0 | Y36: 0
B37: For underground network assets less than 33kV:
A38: DRAB0301 | B38: Opening value | C38: 942104375.4 | D38: =C45 -> 948279657 | E38: 956507967.9 | F38: 996766869 | G38: 1031703662 | H38: 1039404008 | I38: 1054867992 | K38: 1170212333 | L38: =K45 -> 1177882811 | M38: 1188103410 | N38: 1238110037 | O38: 1281505936 | P38: 1291070735 | Q38: 1310278952 | S38: 0 | T38: =S45 -> 0 | U38: 0 | V38: 0 | W38: 0 | X38: 0 | Y38: 0
A39: DRAB0302 | B39: Inflation addition | C39: 0 | D39: 0 | E39: 0 | F39: 0 | G39: 0 | H39: 0 | I39: 0 | K39: 0 | L39: 0 | M39: 0 | N39: 0 | O39: 0 | P39: 0 | Q39: 0 | S39: 0 | T39: 0 | U39: 0 | V39: 0 | W39: 0 | X39: 0 | Y39: 0
A40: DRAB0303 | B40: Actual straight line depreciation | C40: 52661724.69 | D40: 53622690.1 | E40: 54045375.98 | F40: 55965408.84 | G40: 57816180.53 | H40: 59150194.76 | I40: 60669497.03 | K40: 65412497.08 | L40: 66606137.2 | M40: 67131166.31 | N40: 69516089.04 | O40: 71814980.66 | P40: 73471994.41 | Q40: 75359159.25 | S40: 0 | T40: 0 | U40: 0 | V40: 0 | W40: 0 | X40: 0 | Y40: 0
A41: DRAB0304 | B41: Gross capex | C41: 93783773.04 | D41: 122102500.6 | E41: 139458537.7 | F41: 135748823 | G41: 108781984.3 | H41: 139480743 | I41: 148573893.5 | K41: 116491262.2 | L41: 151666689.9 | M41: 173225074.6 | N41: 168617141.6 | O41: 135120930.3 | P41: 173252656.5 | Q41: 184547495 | S41: 0 | T41: 0 | U41: 0 | V41: 0 | W41: 0 | X41: 0 | Y41: 0
A42: DRAB0308 | B42: Capital contributions included in gross capex | C42: 34704535.17 | D42: 42436633.97 | E42: 45154260.6 | F42: 44846621.41 | G42: 43265457.97 | H42: 64866564.19 | I42: 73250245.18 | K42: 43107405.22 | L42: 52711646.11 | M42: 56087280.79 | N42: 55705154.16 | O42: 53741149.95 | P42: 80572445.46 | Q42: 90986033.54 | S42: 0 | T42: 0 | U42: 0 | V42: 0 | W42: 0 | X42: 0 | Y42: 0
A43: DRAB0306 | B43: Disposals | C43: 242231.4838 | D43: 22221129.29 | E43: 0 | F43: 0 | G43: 0 | H43: 0 | I43: 0 | K43: 300882.0224 | L43: 27601442.29 | M43: 0 | N43: 0 | O43: 0 | P43: 0 | Q43: 0 | S43: 0 | T43: 0 | U43: 0 | V43: 0 | W43: 0 | X43: 0 | Y43: 0
A44: DRAB0309 | B44: Capex timing adjustment | C44: 0 | D44: 4406263.582 | E44: 0 | F44: 0 | G44: 0 | H44: 0 | I44: 0 | K44: 0 | L44: 5473134.528 | M44: 0 | N44: 0 | O44: 0 | P44: 0 | Q44: 0 | S44: 0 | T44: 0 | U44: 0 | V44: 0 | W44: 0 | X44: 0 | Y44: 0
A45: DRAB0307 | B45: Closing value | C45: =C38+C39-C40+C41-C42-C43+C44 -> 948279657 | D45: 956507967.9 | E45: 996766869 | F45: 1031703662 | G45: 1039404008 | H45: 1054867992 | I45: 1069522143 | K45: =K38+K39-K40+K41-K42-K43+K44 -> 1177882811 | L45: 1188103410 | M45: 1238110037 | N45: 1281505936 | O45: 1291070735 | P45: 1310278952 | Q45: 1328481254 | S45: =S38+S39-S40+S41-S42-S43+S44 -> 0 | T45: 0 | U45: 0 | V45: 0 | W45: 0 | X45: 0 | Y45: 0
B46: For distribution substations and transformers:
A47: DRAB0401 | B47: Opening value | C47: 33585036.65 | D47: =C54 -> 33805178.99 | E47: 34098509.68 | F47: 35533697.44 | G47: 36779157.6 | H47: 37053666.88 | I47: 37604941.76 | K47: 41716847.01 | L47: =K54 -> 41990291.53 | M47: 42354645.2 | N47: 44137329.22 | O47: 45684347.66 | P47: 46025322.78 | Q47: 46710075.63 | S47: 0 | T47: =S54 -> 0 | U47: 0 | V47: 0 | W47: 0 | X47: 0 | Y47: 0
A48: DRAB0402 | B48: Inflation addition | C48: 0 | D48: 0 | E48: 0 | F48: 0 | G48: 0 | H48: 0 | I48: 0 | K48: 0 | L48: 0 | M48: 0 | N48: 0 | O48: 0 | P48: 0 | Q48: 0 | S48: 0 | T48: 0 | U48: 0 | V48: 0 | W48: 0 | X48: 0 | Y48: 0
A49: DRAB0403 | B49: Actual straight line depreciation | C49: 1877335.463 | D49: 1911592.876 | E49: 1926661.186 | F49: 1995108.351 | G49: 2061086.429 | H49: 2108642.642 | I49: 2162804.18 | K49: 2331887.177 | L49: 2374439.2 | M49: 2393155.939 | N49: 2478175.942 | O49: 2560129.027 | P49: 2619199.836 | Q49: 2686475.291 | S49: 0 | T49: 0 | U49: 0 | V49: 0 | W49: 0 | X49: 0 | Y49: 0
A50: DRAB0404 | B50: Gross capex | C50: 3343293.522 | D50: 4352826.572 | E50: 4971551.16 | F50: 4839303.708 | G50: 3877964.084 | H50: 4972342.757 | I50: 5296504.069 | K50: 4152791.786 | L50: 5406759.029 | M50: 6175292.922 | N50: 6011024.925 | O50: 4816919.989 | P50: 6176276.185 | Q50: 6578925.377 | S50: 0 | T50: 0 | U50: 0 | V50: 0 | W50: 0 | X50: 0 | Y50: 0
A51: DRAB0408 | B51: Capital contributions included in gross capex | C51: 1237180.419 | D51: 1512821.662 | E51: 1609702.212 | F51: 1598735.197 | G51: 1542368.372 | H51: 2312425.239 | I51: 2611294.707 | K51: 1536733.957 | L51: 1879115.11 | M51: 1999452.959 | N51: 1985830.544 | O51: 1915815.846 | P51: 2872323.497 | Q51: 3243557.032 | S51: 0 | T51: 0 | U51: 0 | V51: 0 | W51: 0 | X51: 0 | Y51: 0
A52: DRAB0406 | B52: Disposals | C52: 8635.29931 | D52: 792160.0422 | E52: 0 | F52: 0 | G52: 0 | H52: 0 | I52: 0 | K52: 10726.12973 | L52: 983962.5791 | M52: 0 | N52: 0 | O52: 0 | P52: 0 | Q52: 0 | S52: 0 | T52: 0 | U52: 0 | V52: 0 | W52: 0 | X52: 0 | Y52: 0
A53: DRAB0409 | B53: Capex timing adjustment | C53: 0 | D53: 157078.693 | E53: 0 | F53: 0 | G53: 0 | H53: 0 | I53: 0 | K53: 0 | L53: 195111.5275 | M53: 0 | N53: 0 | O53: 0 | P53: 0 | Q53: 0 | S53: 0 | T53: 0 | U53: 0 | V53: 0 | W53: 0 | X53: 0 | Y53: 0
A54: DRAB0407 | B54: Closing value | C54: =C47+C48-C49+C50-C51-C52+C53 -> 33805178.99 | D54: 34098509.68 | E54: 35533697.44 | F54: 36779157.6 | G54: 37053666.88 | H54: 37604941.76 | I54: 38127346.94 | K54: =K47+K48-K49+K50-K51-K52+K53 -> 41990291.53 | L54: 42354645.2 | M54: 44137329.22 | N54: 45684347.66 | O54: 46025322.78 | P54: 46710075.63 | Q54: 47358968.68 | S54: =S47+S48-S49+S50-S51-S52+S53 -> 0 | T54: 0 | U54: 0 | V54: 0 | W54: 0 | X54: 0 | Y54: 0
B55: For overhead network assets 33kV and above:
A56: DRAB0501 | B56: Opening value | C56: 15114752.51 | D56: =C63 -> 15213826.31 | E56: 15345838.09 | F56: 15991736.09 | G56: 16552248.27 | H56: 16675789.59 | I56: 16923887.68 | K56: 18774426.98 | L56: =K63 -> 18897489.11 | M56: 19061464.38 | N56: 19863751.07 | O56: 20559977.82 | P56: 20713431.71 | Q56: 21021600.79 | S56: 0 | T56: =S63 -> 0 | U56: 0 | V56: 0 | W56: 0 | X56: 0 | Y56: 0
A57: DRAB0502 | B57: Inflation addition | C57: 0 | D57: 0 | E57: 0 | F57: 0 | G57: 0 | H57: 0 | I57: 0 | K57: 0 | L57: 0 | M57: 0 | N57: 0 | O57: 0 | P57: 0 | Q57: 0 | S57: 0 | T57: 0 | U57: 0 | V57: 0 | W57: 0 | X57: 0 | Y57: 0
A58: DRAB0503 | B58: Actual straight line depreciation | C58: 844884.0239 | D58: 860301.3756 | E58: 867082.7817 | F58: 897887.0347 | G58: 927580.0887 | H58: 948982.4889 | I58: 973357.5777 | K58: 1049452.407 | L58: 1068602.7 | M58: 1077026.061 | N58: 1115288.825 | O58: 1152171.339 | P58: 1178755.816 | Q58: 1209032.748 | S58: 0 | T58: 0 | U58: 0 | V58: 0 | W58: 0 | X58: 0 | Y58: 0
A59: DRAB0504 | B59: Gross capex | C59: 1504630.014 | D59: 1958964.555 | E59: 2237417.996 | F59: 2177900.791 | G59: 1745255.424 | H59: 2237774.249 | I59: 2383661.183 | K59: 1868940.05 | L59: 2433280.793 | M59: 2779155.05 | N59: 2705227.183 | O59: 2167827.127 | P59: 2779597.562 | Q59: 2960807.514 | S59: 0 | T59: 0 | U59: 0 | V59: 0 | W59: 0 | X59: 0 | Y59: 0
A60: DRAB0508 | B60: Capital contributions included in gross capex | C60: 556785.9294 | D60: 680836.6851 | E60: 724437.2192 | F60: 719501.5769 | G60: 694134.0119 | H60: 1040693.674 | I60: 1175198.159 | K60: 691598.2755 | L60: 845684.9436 | M60: 899842.3003 | N60: 893711.6108 | O60: 862201.8988 | P60: 1292672.664 | Q60: 1459744.18 | S60: 0 | T60: 0 | U60: 0 | V60: 0 | W60: 0 | X60: 0 | Y60: 0
A61: DRAB0506 | B61: Disposals | C61: 3886.266771 | D61: 356507.0693 | E61: 0 | F61: 0 | G61: 0 | H61: 0 | I61: 0 | K61: 4827.232973 | L61: 442826.6975 | M61: 0 | N61: 0 | O61: 0 | P61: 0 | Q61: 0 | S61: 0 | T61: 0 | U61: 0 | V61: 0 | W61: 0 | X61: 0 | Y61: 0
A62: DRAB0509 | B62: Capex timing adjustment | C62: 0 | D62: 70692.36201 | E62: 0 | F62: 0 | G62: 0 | H62: 0 | I62: 0 | K62: 0 | L62: 87808.82037 | M62: 0 | N62: 0 | O62: 0 | P62: 0 | Q62: 0 | S62: 0 | T62: 0 | U62: 0 | V62: 0 | W62: 0 | X62: 0 | Y62: 0
A63: DRAB0507 | B63: Closing value | C63: =C56+C57-C58+C59-C60-C61+C62 -> 15213826.31 | D63: 15345838.09 | E63: 15991736.09 | F63: 16552248.27 | G63: 16675789.59 | H63: 16923887.68 | I63: 17158993.12 | K63: =K56+K57-K58+K59-K60-K61+K62 -> 18897489.11 | L63: 19061464.38 | M63: 19863751.07 | N63: 20559977.82 | O63: 20713431.71 | P63: 21021600.79 | Q63: 21313631.37 | S63: =S56+S57-S58+S59-S60-S61+S62 -> 0 | T63: 0 | U63: 0 | V63: 0 | W63: 0 | X63: 0 | Y63: 0
B64: For underground network assets 33kV and above:
A65: DRAB0601 | B65: Opening value | C65: 185207807.6 | D65: =C72 -> 186421803.1 | E65: 188039402.4 | F65: 195953878.8 | G65: 202822084.6 | H65: 204335891.6 | I65: 207375948.2 | K65: 230051432 | L65: =K72 -> 231559367.3 | M65: 233568629.4 | N65: 243399406.3 | O65: 251930583.3 | P65: 253810922.3 | Q65: 257587055.6 | S65: 0 | T65: =S72 -> 0 | U65: 0 | V65: 0 | W65: 0 | X65: 0 | Y65: 0
A66: DRAB0602 | B66: Inflation addition | C66: 0 | D66: 0 | E66: 0 | F66: 0 | G66: 0 | H66: 0 | I66: 0 | K66: 0 | L66: 0 | M66: 0 | N66: 0 | O66: 0 | P66: 0 | Q66: 0 | S66: 0 | T66: 0 | U66: 0 | V66: 0 | W66: 0 | X66: 0 | Y66: 0
A67: DRAB0603 | B67: Actual straight line depreciation | C67: 10352740.98 | D67: 10541656.67 | E67: 10624752.27 | F67: 11002210.53 | G67: 11366052.77 | H67: 11628305.93 | I67: 11926984.77 | K67: 12859408.67 | L67: 13094065.76 | M67: 13197280.96 | N67: 13666131.68 | O67: 14118069.58 | P67: 14443821.05 | Q67: 14814817.8 | S67: 0 | T67: 0 | U67: 0 | V67: 0 | W67: 0 | X67: 0 | Y67: 0
A68: DRAB0604 | B68: Gross capex | C68: 18436903.01 | D68: 24004066.9 | E68: 27416081.17 | F68: 26686790.3 | G68: 21385393.55 | H68: 27420446.5 | I68: 29208064.2 | K68: 22900956.47 | L68: 29816075.43 | M68: 34054227.05 | N68: 33148355.9 | O68: 26563353.2 | P68: 34059649.35 | Q68: 36280095.76 | S68: 0 | T68: 0 | U68: 0 | V68: 0 | W68: 0 | X68: 0 | Y68: 0
A69: DRAB0608 | B69: Capital contributions included in gross capex | C69: 6822546.464 | D69: 8342595.732 | E69: 8876852.534 | F69: 8816373.906 | G69: 8505533.811 | H69: 12752084.01 | I69: 14400227.49 | K69: 8474462.303 | L69: 10362555.01 | M69: 11026169.27 | N69: 10951047.19 | O69: 10564944.63 | P69: 15839695.02 | Q69: 17886896.87 | S69: 0 | T69: 0 | U69: 0 | V69: 0 | W69: 0 | X69: 0 | Y69: 0
A70: DRAB0606 | B70: Disposals | C70: 47620.16103 | D70: 4368440.214 | E70: 0 | F70: 0 | G70: 0 | H70: 0 | I70: 0 | K70: 59150.23981 | L70: 5426153.14 | M70: 0 | N70: 0 | O70: 0 | P70: 0 | Q70: 0 | S70: 0 | T70: 0 | U70: 0 | V70: 0 | W70: 0 | X70: 0 | Y70: 0
A71: DRAB0609 | B71: Capex timing adjustment | C71: 0 | D71: 866225.0588 | E71: 0 | F71: 0 | G71: 0 | H71: 0 | I71: 0 | K71: 0 | L71: 1075960.661 | M71: 0 | N71: 0 | O71: 0 | P71: 0 | Q71: 0 | S71: 0 | T71: 0 | U71: 0 | V71: 0 | W71: 0 | X71: 0 | Y71: 0
A72: DRAB0607 | B72: Closing value | C72: =C65+C66-C67+C68-C69-C70+C71 -> 186421803.1 | D72: 188039402.4 | E72: 195953878.8 | F72: 202822084.6 | G72: 204335891.6 | H72: 207375948.2 | I72: 210256800.1 | K72: =K65+K66-K67+K68-K69-K70+K71 -> 231559367.3 | L72: 233568629.4 | M72: 243399406.3 | N72: 251930583.3 | O72: 253810922.3 | P72: 257587055.6 | Q72: 261165436.6 | S72: =S65+S66-S67+S68-S69-S70+S71 -> 0 | T72: 0 | U72: 0 | V72: 0 | W72: 0 | X72: 0 | Y72: 0
B73: Zone substations and transformers
A74: DRAB0701 | B74: Opening value | C74: 367121283 | D74: =C81 -> 369527680.3 | E74: 372734106.3 | F74: 388422282.5 | G74: 402036528 | H74: 405037215.5 | I74: 411063254.4 | K74: 456010888.3 | L74: =K81 -> 458999936.8 | M74: 462982722 | N74: 482469413.4 | O74: 499380021.6 | P74: 503107253.5 | Q74: 510592353.2 | S74: 0 | T74: =S81 -> 0 | U74: 0 | V74: 0 | W74: 0 | X74: 0 | Y74: 0
A75: DRAB0702 | B75: Inflation addition | C75: 0 | D75: 0 | E75: 0 | F75: 0 | G75: 0 | H75: 0 | I75: 0 | K75: 0 | L75: 0 | M75: 0 | N75: 0 | O75: 0 | P75: 0 | Q75: 0 | S75: 0 | T75: 0 | U75: 0 | V75: 0 | W75: 0 | X75: 0 | Y75: 0
A76: DRAB0703 | B76: Actual straight line depreciation | C76: 20521335.47 | D76: 20895806.57 | E76: 21060519.72 | F76: 21808722.3 | G76: 22529935.04 | H76: 23049776.61 | I76: 23641821.62 | K76: 25490084.2 | L76: 25955224.48 | M76: 26159818.97 | N76: 27089180.85 | O76: 27985017.94 | P76: 28630726.66 | Q76: 29366121.16 | S76: 0 | T76: 0 | U76: 0 | V76: 0 | W76: 0 | X76: 0 | Y76: 0
A77: DRAB0704 | B77: Gross capex | C77: 36545864.75 | D77: 47581168.14 | E77: 54344506.44 | F77: 52898896.76 | G77: 42390400.37 | H77: 54353159.46 | I77: 57896598.11 | K77: 45394568.55 | L77: 59101805.73 | M77: 67502724.03 | N77: 65707094.67 | O77: 52654218.16 | P77: 67513472.17 | Q77: 71914869.42 | S77: 0 | T77: 0 | U77: 0 | V77: 0 | W77: 0 | X77: 0 | Y77: 0
A78: DRAB0708 | B78: Capital contributions included in gross capex | C78: 13523738.79 | D78: 16536799.87 | E78: 17595810.53 | F78: 17475929.02 | G78: 16859777.81 | H78: 25277343.88 | I78: 28544314.94 | K78: 16798187.47 | L78: 20540788.96 | M78: 21856213.63 | N78: 21707305.69 | O78: 20941968.26 | P78: 31397645.87 | Q78: 35455635.54 | S78: 0 | T78: 0 | U78: 0 | V78: 0 | W78: 0 | X78: 0 | Y78: 0
A79: DRAB0706 | B79: Disposals | C79: 94393.29172 | D79: 8659178.016 | E79: 0 | F79: 0 | G79: 0 | H79: 0 | I79: 0 | K79: 117248.3612 | L79: 10755790.09 | M79: 0 | N79: 0 | O79: 0 | P79: 0 | Q79: 0 | S79: 0 | T79: 0 | U79: 0 | V79: 0 | W79: 0 | X79: 0 | Y79: 0
A80: DRAB0709 | B80: Capex timing adjustment | C80: 0 | D80: 1717042.381 | E80: 0 | F80: 0 | G80: 0 | H80: 0 | I80: 0 | K80: 0 | L80: 2132782.973 | M80: 0 | N80: 0 | O80: 0 | P80: 0 | Q80: 0 | S80: 0 | T80: 0 | U80: 0 | V80: 0 | W80: 0 | X80: 0 | Y80: 0
A81: DRAB0707 | B81: Closing value | C81: =C74+C75-C76+C77-C78-C79+C80 -> 369527680.3 | D81: 372734106.3 | E81: 388422282.5 | F81: 402036528 | G81: 405037215.5 | H81: 411063254.4 | I81: 416773716 | K81: =K74+K75-K76+K77-K78-K79+K80 -> 458999936.8 | L81: 462982722 | M81: 482469413.4 | N81: 499380021.6 | O81: 503107253.5 | P81: 510592353.2 | Q81: 517685465.9 | S81: =S74+S75-S76+S77-S78-S79+S80 -> 0 | T81: 0 | U81: 0 | V81: 0 | W81: 0 | X81: 0 | Y81: 0
B82: For easements:
A83: DRAB0801 | B83: Opening value | C83: 0 | D83: =C90 -> 0 | E83: 0 | F83: 0 | G83: 0 | H83: 0 | I83: 0 | K83: 0 | L83: =K90 -> 0 | M83: 0 | N83: 0 | O83: 0 | P83: 0 | Q83: 0 | S83: 0 | T83: =S90 -> 0 | U83: 0 | V83: 0 | W83: 0 | X83: 0 | Y83: 0
A84: DRAB0802 | B84: Inflation addition | C84: 0 | D84: 0 | E84: 0 | F84: 0 | G84: 0 | H84: 0 | I84: 0 | K84: 0 | L84: 0 | M84: 0 | N84: 0 | O84: 0 | P84: 0 | Q84: 0 | S84: 0 | T84: 0 | U84: 0 | V84: 0 | W84: 0 | X84: 0 | Y84: 0
B85: Actual straight line depreciation
A86: DRAB0804 | B86: Gross capex | C86: 0 | D86: 0 | E86: 0 | F86: 0 | G86: 0 | H86: 0 | I86: 0 | K86: 0 | L86: 0 | M86: 0 | N86: 0 | O86: 0 | P86: 0 | Q86: 0 | S86: 0 | T86: 0 | U86: 0 | V86: 0 | W86: 0 | X86: 0 | Y86: 0
A87: DRAB0808 | B87: Capital contributions included in gross capex | C87: 0 | D87: 0 | E87: 0 | F87: 0 | G87: 0 | H87: 0 | I87: 0 | K87: 0 | L87: 0 | M87: 0 | N87: 0 | O87: 0 | P87: 0 | Q87: 0 | S87: 0 | T87: 0 | U87: 0 | V87: 0 | W87: 0 | X87: 0 | Y87: 0
A88: DRAB0806 | B88: Disposals | C88: 0 | D88: 0 | E88: 0 | F88: 0 | G88: 0 | H88: 0 | I88: 0 | K88: 0 | L88: 0 | M88: 0 | N88: 0 | O88: 0 | P88: 0 | Q88: 0 | S88: 0 | T88: 0 | U88: 0 | V88: 0 | W88: 0 | X88: 0 | Y88: 0
A89: DRAB0809 | B89: Capex timing adjustment | C89: 0 | D89: 0 | E89: 0 | F89: 0 | G89: 0 | H89: 0 | I89: 0 | K89: 0 | L89: 0 | M89: 0 | N89: 0 | O89: 0 | P89: 0 | Q89: 0 | S89: 0 | T89: 0 | U89: 0 | V89: 0 | W89: 0 | X89: 0 | Y89: 0
A90: DRAB0807 | B90: Closing value | C90: =C83+C84-C85+C86-C87-C88+C89 -> 0 | D90: 0 | E90: 0 | F90: 0 | G90: 0 | H90: 0 | I90: 0 | K90: =K83+K84-K85+K86-K87-K88+K89 -> 0 | L90: 0 | M90: 0 | N90: 0 | O90: 0 | P90: 0 | Q90: 0 | S90: =S83+S84-S85+S86-S87-S88+S89 -> 0 | T90: 0 | U90: 0 | V90: 0 | W90: 0 | X90: 0 | Y90: 0
B91: For meters:
A92: DRAB0901 | B92: Opening value | C92: 0 | D92: =C99 -> 0 | E92: 0 | F92: 0 | G92: 0 | H92: 0 | I92: 0 | K92: 0 | L92: =K99 -> 0 | M92: 0 | N92: 0 | O92: 0 | P92: 0 | Q92: 0 | S92: 87713824 | T92: =S99 -> 80339995.01 | U92: 71958908.46 | V92: 62095873.6 | W92: 53430368.77 | X92: 48356656.3 | Y92: 64395988.04
A93: DRAB0902 | B93: Inflation addition | C93: 0 | D93: 0 | E93: 0 | F93: 0 | G93: 0 | H93: 0 | I93: 0 | K93: 0 | L93: 0 | M93: 0 | N93: 0 | O93: 0 | P93: 0 | Q93: 0 | S93: 0 | T93: 0 | U93: 0 | V93: 0 | W93: 0 | X93: 0 | Y93: 0
A94: DRAB0903 | B94: Actual straight line depreciation | C94: 0 | D94: 0 | E94: 0 | F94: 0 | G94: 0 | H94: 0 | I94: 0 | K94: 0 | L94: 0 | M94: 0 | N94: 0 | O94: 0 | P94: 0 | Q94: 0 | S94: 12195795.5 | T94: 12607933.13 | U94: 12904821.81 | V94: 13120500.82 | W94: 13121323.02 | X94: 7452168.323 | Y94: 9243646.757
A95: DRAB0904 | B95: Gross capex | C95: 0 | D95: 0 | E95: 0 | F95: 0 | G95: 0 | H95: 0 | I95: 0 | K95: 0 | L95: 0 | M95: 0 | N95: 0 | O95: 0 | P95: 0 | Q95: 0 | S95: 4821966.512 | T95: 4226846.579 | U95: 3041786.957 | V95: 4454995.987 | W95: 6402300.344 | X95: 23491500.07 | Y95: 22220093.46
A96: DRAB0908 | B96: Capital contributions included in gross capex | C96: 0 | D96: 0 | E96: 0 | F96: 0 | G96: 0 | H96: 0 | I96: 0 | K96: 0 | L96: 0 | M96: 0 | N96: 0 | O96: 0 | P96: 0 | Q96: 0 | S96: 0 | T96: 0 | U96: 0 | V96: 0 | W96: 0 | X96: 0 | Y96: 0
A97: DRAB0906 | B97: Disposals | C97: 0 | D97: 0 | E97: 0 | F97: 0 | G97: 0 | H97: 0 | I97: 0 | K97: 0 | L97: 0 | M97: 0 | N97: 0 | O97: 0 | P97: 0 | Q97: 0 | S97: 0 | T97: 0 | U97: 0 | V97: 0 | W97: 0 | X97: 0 | Y97: 0
A98: DRAB0909 | B98: Capex timing adjustment | C98: 0 | D98: 0 | E98: 0 | F98: 0 | G98: 0 | H98: 0 | I98: 0 | K98: 0 | L98: 0 | M98: 0 | N98: 0 | O98: 0 | P98: 0 | Q98: 0 | S98: 0 | T98: 0 | U98: 0 | V98: 0 | W98: 1645310.201 | X98: 0 | Y98: 0
A99: DRAB0907 | B99: Closing value | C99: =C92+C93-C94+C95-C96-C97+C98 -> 0 | D99: 0 | E99: 0 | F99: 0 | G99: 0 | H99: 0 | I99: 0 | K99: =K92+K93-K94+K95-K96-K97+K98 -> 0 | L99: 0 | M99: 0 | N99: 0 | O99: 0 | P99: 0 | Q99: 0 | S99: =S92+S93-S94+S95-S96-S97+S98 -> 80339995.01 | T99: 71958908.46 | U99: 62095873.6 | V99: 53430368.77 | W99: 48356656.3 | X99: 64395988.04 | Y99: 77372434.75
B100: For “other” asset items with long lives:
A101: DRAB1001 | B101: Opening value | C101: 76499790.3 | D101: =C108 -> 85518074.36 | E101: 90712351.94 | F101: 127622667.8 | G101: 171011007.4 | H101: 227718191.3 | I101: 235166386 | K101: 81987539.01 | L101: =K108 -> 88083616.59 | M101: 90712351.94 | N101: 124207159.8 | O101: 161980110.1 | P101: 209920166.5 | Q101: 210984472.3 | S101: 16292393.02 | T101: =S108 -> 17493280.06 | U101: 18443865.31 | V101: 18554859.13 | W101: 18597961.38 | X101: 18520583.68 | Y101: 19084522.34
A102: DRAB1002 | B102: Inflation addition | C102: 3099762.145 | D102: 2565542.231 | E102: 2494451.734 | F102: 3509429.292 | G102: 4702542.651 | H102: 6261903.973 | I102: 6466718.002 | K102: 0 | L102: 0 | M102: 0 | N102: 0 | O102: 0 | P102: 0 | Q102: 0 | S102: 0 | T102: 0 | U102: 0 | V102: 0 | W102: 0 | X102: 0 | Y102: 0
A103: DRAB1003 | B103: Actual straight line depreciation | C103: 8381265.291 | D103: 8916261.918 | E103: 9004332.786 | F103: 11359489.35 | G103: 15139550.24 | H103: 22432395.06 | I103: 25445658.11 | K103: 8632703.249 | L103: 8916261.918 | M103: 8763353.881 | N103: 10759607.6 | O103: 13956271.52 | P103: 20125695.32 | Q103: 22218142.54 | S103: 1282066.752 | T103: 1261279.581 | U103: 1167716.278 | V103: 1178193.465 | W103: 1197304.206 | X103: 1013287.038 | Y103: 1120083.583
A104: DRAB1004 | B104: Gross capex | C104: 14442849.59 | D104: 15762397.56 | E104: 43571866.47 | F104: 51394284.13 | G104: 67304407.11 | H104: 23783391.27 | I104: 16743920.89 | K104: 14876135.07 | L104: 15762397.56 | M104: 42405772.22 | N104: 48680210.29 | O104: 62044021.47 | P104: 21337770 | Q104: 14620129.67 | S104: 2482953.797 | T104: 2211864.825 | U104: 1278710.1 | V104: 1221295.72 | W104: 1119926.5 | X104: 1577225.699 | Y104: 1605450.648
A105: DRAB1008 | B105: Capital contributions included in gross capex | C105: 0 | D105: 0 | E105: 0 | F105: 0 | G105: 0 | H105: 0 | I105: 0 | K105: 0 | L105: 0 | M105: 0 | N105: 0 | O105: 0 | P105: 0 | Q105: 0 | S105: 0 | T105: 0 | U105: 0 | V105: 0 | W105: 0 | X105: 0 | Y105: 0
A106: DRAB1006 | B106: Disposals | C106: 143062.3741 | D106: 147387.6143 | E106: 151669.5154 | F106: 155884.4799 | G106: 160215.6857 | H106: 164705.4474 | I106: 169372.2525 | K106: 147354.2453 | L106: 147387.6143 | M106: 147610.4524 | N106: 147652.3973 | O106: 147693.5296 | P106: 147768.9583 | Q106: 147889.1539 | S106: 0 | T106: 0 | U106: 0 | V106: 0 | W106: 0 | X106: 0 | Y106: 0
A107: DRAB1009 | B107: Capex timing adjustment | C107: 0 | D107: -4070012.68 | E107: 0 | F107: 0 | G107: 0 | H107: 0 | I107: 0 | K107: 0 | L107: -4070012.68 | M107: 0 | N107: 0 | O107: 0 | P107: 0 | Q107: 0 | S107: 0 | T107: 0 | U107: 0 | V107: 0 | W107: 0 | X107: 0 | Y107: 0
A108: DRAB1007 | B108: Closing value | C108: =C101+C102-C103+C104-C105-C106+C107 -> 85518074.36 | D108: 90712351.94 | E108: 127622667.8 | F108: 171011007.4 | G108: 227718191.3 | H108: 235166386 | I108: 232761994.5 | K108: =K101+K102-K103+K104-K105-K106+K107 -> 88083616.59 | L108: 90712351.94 | M108: 124207159.8 | N108: 161980110.1 | O108: 209920166.5 | P108: 210984472.3 | Q108: 203238570.2 | S108: =S101+S102-S103+S104-S105-S106+S107 -> 17493280.06 | T108: 18443865.31 | U108: 18554859.13 | V108: 18597961.38 | W108: 18520583.68 | X108: 19084522.34 | Y108: 19569889.4
B109: For “other” asset items with short lives:
A110: DRAB1101 | B110: Opening value | C110: 56326241.15 | D110: =C117 -> 64856544.75 | E110: 65068671.67 | F110: 78454254.31 | G110: 92688782.91 | H110: 98198689.78 | I110: 98841882.95 | K110: 60366830.76 | L110: =K117 -> 66802241.09 | M110: 65068671.67 | N110: 76354618.42 | O110: 87793993.42 | P110: 90523665.23 | Q110: 88678075.41 | S110: 0 | T110: =S117 -> 0 | U110: 0 | V110: 0 | W110: 0 | X110: 0 | Y110: 0
A111: DRAB1102 | B111: Inflation addition | C111: 2282332.401 | D111: 1945696.342 | E111: 1789289.522 | F111: 2157372.69 | G111: 2548800.58 | H111: 2700314.64 | I111: 2718001.474 | K111: 0 | L111: 0 | M111: 0 | N111: 0 | O111: 0 | P111: 0 | Q111: 0 | S111: 0 | T111: 0 | U111: 0 | V111: 0 | W111: 0 | X111: 0 | Y111: 0
A112: DRAB1103 | B112: Actual straight line depreciation | C112: 19649840.95 | D112: 22123537.96 | E112: 22699186.11 | F112: 23994054.21 | G112: 27410346.67 | H112: 29888631.14 | I112: 31766744.38 | K112: 20239336.18 | L112: 22123537.96 | M112: 22091698.01 | N112: 22726955.42 | O112: 25268005.63 | P112: 26815214.43 | Q112: 27737465.13 | S112: 0 | T112: 0 | U112: 0 | V112: 0 | W112: 0 | X112: 0 | Y112: 0
A113: DRAB1104 | B113: Gross capex | C113: 25897812.15 | D113: 20642718.53 | E113: 34295479.22 | F113: 36071210.11 | G113: 30371452.97 | H113: 27831509.67 | I113: 21118093.32 | K113: 26674746.51 | L113: 20642718.53 | M113: 33377644.75 | N113: 34166330.42 | O113: 27997677.44 | P113: 24969624.61 | Q113: 18439484.08 | S113: 0 | T113: 0 | U113: 0 | V113: 0 | W113: 0 | X113: 0 | Y113: 0
A114: DRAB1108 | B114: Capital contributions included in gross capex | C114: 0 | D114: 0 | E114: 0 | F114: 0 | G114: 0 | H114: 0 | I114: 0 | K114: 0 | L114: 0 | M114: 0 | N114: 0 | O114: 0 | P114: 0 | Q114: 0 | S114: 0 | T114: 0 | U114: 0 | V114: 0 | W114: 0 | X114: 0 | Y114: 0
A115: DRAB1106 | B115: Disposals | C115: 0 | D115: 0 | E115: 0 | F115: 0 | G115: 0 | H115: 0 | I115: 0 | K115: 0 | L115: 0 | M115: 0 | N115: 0 | O115: 0 | P115: 0 | Q115: 0 | S115: 0 | T115: 0 | U115: 0 | V115: 0 | W115: 0 | X115: 0 | Y115: 0
A116: DRAB1109 | B116: Capex timing adjustment | C116: 0 | D116: -252749.9817 | E116: 0 | F116: 0 | G116: 0 | H116: 0 | I116: 0 | K116: 0 | L116: -252749.9817 | M116: 0 | N116: 0 | O116: 0 | P116: 0 | Q116: 0 | S116: 0 | T116: 0 | U116: 0 | V116: 0 | W116: 0 | X116: 0 | Y116: 0
A117: DRAB1107 | B117: Closing value | C117: =C110+C111-C112+C113-C114-C115+C116 -> 64856544.75 | D117: 65068671.67 | E117: 78454254.31 | F117: 92688782.91 | G117: 98198689.78 | H117: 98841882.95 | I117: 90911233.38 | K117: =K110+K111-K112+K113-K114-K115+K116 -> 66802241.09 | L117: 65068671.67 | M117: 76354618.42 | N117: 87793993.42 | O117: 90523665.23 | P117: 88678075.41 | Q117: 79380094.36 | S117: =S110+S111-S112+S113-S114-S115+S116 -> 0 | T117: 0 | U117: 0 | V117: 0 | W117: 0 | X117: 0 | Y117: 0
B121: 3.3.3 - TOTAL DISAGGREGATED BENCHMARKING ASSET BASE VALUES
C122: Network services | K122: Standard control services | S122: Alternative control services
C123: =CONCATENATE(" VALUE FORECAST ($, real ", dms_DollarReal, ")") -> VALUE FORECAST ($, real June 2026) | K123: =CONCATENATE(" VALUE FORECAST ($, real ", dms_DollarReal, ")") -> VALUE FORECAST ($, real June 2026) | S123: =CONCATENATE(" VALUE FORECAST ($, real ", dms_DollarReal, ")") -> VALUE FORECAST ($, real June 2026)
C124: =CRCP_y4 -> 2024-25 | D124: =CRCP_y5 -> 2025-26 | E124: =FRCP_y1 -> 2026-27 | F124: =FRCP_y2 -> 2027-28 | G124: =FRCP_y3 -> 2028-29 | H124: =FRCP_y4 -> 2029-30 | I124: =FRCP_y5 -> 2030-31 | K124: =CRCP_y4 -> 2024-25 | L124: =CRCP_y5 -> 2025-26 | M124: =FRCP_y1 -> 2026-27 | N124: =FRCP_y2 -> 2027-28 | O124: =FRCP_y3 -> 2028-29 | P124: =FRCP_y4 -> 2029-30 | Q124: =FRCP_y5 -> 2030-31 | S124: =CRCP_y4 -> 2024-25 | T124: =CRCP_y5 -> 2025-26 | U124: =FRCP_y1 -> 2026-27 | V124: =FRCP_y2 -> 2027-28 | W124: =FRCP_y3 -> 2028-29 | X124: =FRCP_y4 -> 2029-30 | Y124: =FRCP_y5 -> 2030-31
A125: DRAB1201 | B125: Overhead network assets less than 33kV (wires and poles) | C125: =IFERROR(AVERAGE(C29,C36),"") -> 186981011.2 | D125: 188405694.4 | E125: 193201644.7 | F125: 200639375.2 | G125: 204856685.1 | H125: 207147907.3 | I125: 210126941.8 | K125: =IFERROR(AVERAGE(K29,K36),"") -> 232253974.3 | L125: 234023610.3 | M125: 239980784.8 | N125: 249219383.2 | O125: 254457813.4 | P125: 257303800 | Q125: 261004136.3 | S125: =IFERROR(AVERAGE(S29,S36),"") -> 0 | T125: 0 | U125: 0 | V125: 0 | W125: 0 | X125: 0 | Y125: 0
A126: DRAB1202 | B126: Underground network assets less than 33kV (cables) | C126: =IFERROR(AVERAGE(C38,C45),"") -> 945192016.2 | D126: 952393812.5 | E126: 976637418.5 | F126: 1014235265 | G126: 1035553835 | H126: 1047136000 | I126: 1062195067 | K126: =IFERROR(AVERAGE(K38,K45),"") -> 1174047572 | L126: 1182993110 | M126: 1213106723 | N126: 1259807986 | O126: 1286288335 | P126: 1300674844 | Q126: 1319380103 | S126: =IFERROR(AVERAGE(S38,S45),"") -> 0 | T126: 0 | U126: 0 | V126: 0 | W126: 0 | X126: 0 | Y126: 0
A127: DRAB1203 | B127: Distribution substations including transformers | C127: =IFERROR(AVERAGE(C47,C54),"") -> 33695107.82 | D127: 33951844.34 | E127: 34816103.56 | F127: 36156427.52 | G127: 36916412.24 | H127: 37329304.32 | I127: 37866144.35 | K127: =IFERROR(AVERAGE(K47,K54),"") -> 41853569.27 | L127: 42172468.36 | M127: 43245987.21 | N127: 44910838.44 | O127: 45854835.22 | P127: 46367699.2 | Q127: 47034522.15 | S127: =IFERROR(AVERAGE(S47,S54),"") -> 0 | T127: 0 | U127: 0 | V127: 0 | W127: 0 | X127: 0 | Y127: 0
A128: DRAB1204 | B128: Overhead network assets 33kV and above (wires and towers / poles etc) | C128: =IFERROR(AVERAGE(C56,C63),"") -> 15164289.41 | D128: 15279832.2 | E128: 15668787.09 | F128: 16271992.18 | G128: 16614018.93 | H128: 16799838.63 | I128: 17041440.4 | K128: =IFERROR(AVERAGE(K56,K63),"") -> 18835958.04 | L128: 18979476.75 | M128: 19462607.73 | N128: 20211864.44 | O128: 20636704.76 | P128: 20867516.25 | Q128: 21167616.08 | S128: =IFERROR(AVERAGE(S56,S63),"") -> 0 | T128: 0 | U128: 0 | V128: 0 | W128: 0 | X128: 0 | Y128: 0
A129: DRAB1205 | B129: Underground network assets 33kV and above(cables, ducts etc) | C129: =IFERROR(AVERAGE(C65,C72),"") -> 185814805.4 | D129: 187230602.7 | E129: 191996640.6 | F129: 199387981.7 | G129: 203578988.1 | H129: 205855919.9 | I129: 208816374.1 | K129: =IFERROR(AVERAGE(K65,K72),"") -> 230805399.6 | L129: 232563998.3 | M129: 238484017.8 | N129: 247664994.8 | O129: 252870752.8 | P129: 255698988.9 | Q129: 259376246.1 | S129: =IFERROR(AVERAGE(S65,S72),"") -> 0 | T129: 0 | U129: 0 | V129: 0 | W129: 0 | X129: 0 | Y129: 0
A130: DRAB1206 | B130: Zone substations and transformers | C130: =IFERROR(AVERAGE(C74,C81),"") -> 368324481.6 | D130: 371130893.3 | E130: 380578194.4 | F130: 395229405.2 | G130: 403536871.7 | H130: 408050235 | I130: 413918485.2 | K130: =IFERROR(AVERAGE(K74,K81),"") -> 457505412.6 | L130: 460991329.4 | M130: 472726067.7 | N130: 490924717.5 | O130: 501243637.5 | P130: 506849803.3 | Q130: 514138909.5 | S130: =IFERROR(AVERAGE(S74,S81),"") -> 0 | T130: 0 | U130: 0 | V130: 0 | W130: 0 | X130: 0 | Y130: 0
A131: DRAB1207 | B131: Easements | C131: =IFERROR(AVERAGE(C83,C90),"") -> 0 | D131: 0 | E131: 0 | F131: 0 | G131: 0 | H131: 0 | I131: 0 | K131: =IFERROR(AVERAGE(K83,K90),"") -> 0 | L131: 0 | M131: 0 | N131: 0 | O131: 0 | P131: 0 | Q131: 0 | S131: =IFERROR(AVERAGE(S83,S90),"") -> 0 | T131: 0 | U131: 0 | V131: 0 | W131: 0 | X131: 0 | Y131: 0
A132: DRAB1208 | B132: Meters | C132: =IFERROR(AVERAGE(C92,C99),"") -> 0 | D132: =IFERROR(AVERAGE(D92,D99),"") -> 0 | E132: 0 | F132: 0 | G132: 0 | H132: 0 | I132: 0 | K132: =IFERROR(AVERAGE(K92,K99),"") -> 0 | L132: =IFERROR(AVERAGE(L92,L99),"") -> 0 | M132: 0 | N132: 0 | O132: 0 | P132: 0 | Q132: 0 | S132: =IFERROR(AVERAGE(S92,S99),"") -> 84026909.5 | T132: =IFERROR(AVERAGE(T92,T99),"") -> 76149451.73 | U132: 67027391.03 | V132: 57763121.19 | W132: 50893512.53 | X132: 56376322.17 | Y132: 70884211.39
A133: DRAB1209 | B133: “Other” assets with long lives | C133: =IFERROR(AVERAGE(C101,C108),"") -> 81008932.33 | D133: =IFERROR(AVERAGE(D101,D108),"") -> 88115213.15 | E133: 109167509.9 | F133: 149316837.6 | G133: 199364599.4 | H133: 231442288.6 | I133: 233964190.3 | K133: =IFERROR(AVERAGE(K101,K108),"") -> 85035577.8 | L133: =IFERROR(AVERAGE(L101,L108),"") -> 89397984.27 | M133: 107459755.9 | N133: 143093635 | O133: 185950138.3 | P133: 210452319.4 | Q133: 207111521.2 | S133: =IFERROR(AVERAGE(S101,S108),"") -> 16892836.54 | T133: =IFERROR(AVERAGE(T101,T108),"") -> 17968572.68 | U133: 18499362.22 | V133: 18576410.26 | W133: 18559272.53 | X133: 18802553.01 | Y133: 19327205.87
A134: DRAB1210 | B134: “Other” assets with short lives | C134: =IFERROR(AVERAGE(C110,C117),"") -> 60591392.95 | D134: =IFERROR(AVERAGE(D110,D117),"") -> 64962608.21 | E134: 71761462.99 | F134: 85571518.61 | G134: 95443736.35 | H134: 98520286.37 | I134: 94876558.16 | K134: =IFERROR(AVERAGE(K110,K117),"") -> 63584535.92 | L134: =IFERROR(AVERAGE(L110,L117),"") -> 65935456.38 | M134: 70711645.05 | N134: 82074305.92 | O134: 89158829.32 | P134: 89600870.32 | Q134: 84029084.88 | S134: =IFERROR(AVERAGE(S110,S117),"") -> 0 | T134: =IFERROR(AVERAGE(T110,T117),"") -> 0 | U134: 0 | V134: 0 | W134: 0 | X134: 0 | Y134: 0
A135: DRAB13 | B135: Value of Capital Contributions or Contributed Assets (included in the above) | C135: 0 | D135: 0 | E135: 0 | F135: 0 | G135: 0 | H135: 0 | I135: 0 | K135: 0 | L135: 0 | M135: 0 | N135: 0 | O135: 0 | P135: 0 | Q135: 0 | S135: 0 | T135: 0 | U135: 0 | V135: 0 | W135: 0 | X135: 0 | Y135: 0
B138: 3.3.4 - ASSET LIVES
C139: Network services | K139: Standard control services | S139: Alternative control services
C140: FORECAST ( years ) | K140: FORECAST ( years ) | S140: FORECAST ( years )
C141: =CRCP_y4 -> 2024-25 | D141: =CRCP_y5 -> 2025-26 | E141: =FRCP_y1 -> 2026-27 | F141: =FRCP_y2 -> 2027-28 | G141: =FRCP_y3 -> 2028-29 | H141: =FRCP_y4 -> 2029-30 | I141: =FRCP_y5 -> 2030-31 | K141: =CRCP_y4 -> 2024-25 | L141: =CRCP_y5 -> 2025-26 | M141: =FRCP_y1 -> 2026-27 | N141: =FRCP_y2 -> 2027-28 | O141: =FRCP_y3 -> 2028-29 | P141: =FRCP_y4 -> 2029-30 | Q141: =FRCP_y5 -> 2030-31 | S141: =CRCP_y4 -> 2024-25 | T141: =CRCP_y5 -> 2025-26 | U141: =FRCP_y1 -> 2026-27 | V141: =FRCP_y2 -> 2027-28 | W141: =FRCP_y3 -> 2028-29 | X141: =FRCP_y4 -> 2029-30 | Y141: =FRCP_y5 -> 2030-31
B142: Estimated service life of new assets
A143: DRAB1401 | B143: Overhead network assets less than 33kV (wires and poles) | C143: 49.1155381 | D143: 49.16207012 | E143: 49.11805768 | F143: 49.11792271 | G143: 49.11434463 | H143: 49.11282554 | I143: 49.11119053 | K143: 49.1155381 | L143: =K150 -> 10.89267259 | M143: =L150 -> 11.75225551 | N143: =M150 -> 11.56895594 | O143: =N150 -> 11.257357 | P143: =O150 -> 10.60611268 | Q143: =P150 -> 11.45749676 | S143: 49.00754003 | T143: 48.99836589 | U143: 49 | V143: 49.1155381 | W143: 49.16207012 | X143: 49.11805768 | Y143: 49.11792271
A144: DRAB1402 | B144: Underground network assets less than 33kV (cables) | C144: 49.1155381 | D144: 49.16207012 | E144: 49.11805768 | F144: 49.11792271 | G144: 49.11434463 | H144: 49.11282554 | I144: 49.11119053 | K144: 49.1155381 | L144: 49.16207012 | M144: 49.11805768 | N144: 49.11792271 | O144: 49.11434463 | P144: 49.11282554 | Q144: 49.11119053 | S144: 49.00754003 | T144: 48.99836589 | U144: 49 | V144: 49.1155381 | W144: 49.16207012 | X144: 49.11805768 | Y144: 49.11792271
A145: DRAB1403 | B145: Distribution substations including transformers | C145: 49.1155381 | D145: 49.16207012 | E145: 49.11805768 | F145: 49.11792271 | G145: 49.11434463 | H145: 49.11282554 | I145: 49.11119053 | K145: 49.1155381 | L145: 49.16207012 | M145: 49.11805768 | N145: 49.11792271 | O145: 49.11434463 | P145: 49.11282554 | Q145: 49.11119053 | S145: 49.00754003 | T145: 48.99836589 | U145: 49 | V145: 49.1155381 | W145: 49.16207012 | X145: 49.11805768 | Y145: 49.11792271
A146: DRAB1404 | B146: Overhead network assets 33kV and above (wires and towers / poles etc) | C146: 49.1155381 | D146: 49.16207012 | E146: 49.11805768 | F146: 49.11792271 | G146: 49.11434463 | H146: 49.11282554 | I146: 49.11119053 | K146: 49.1155381 | L146: 49.16207012 | M146: 49.11805768 | N146: 49.11792271 | O146: 49.11434463 | P146: 49.11282554 | Q146: 49.11119053 | S146: 49.00754003 | T146: 48.99836589 | U146: 49 | V146: 49.1155381 | W146: 49.16207012 | X146: 49.11805768 | Y146: 49.11792271
A147: DRAB1405 | B147: Underground network assets 33kV and above(cables, ducts etc) | C147: 49.1155381 | D147: 49.16207012 | E147: 49.11805768 | F147: 49.11792271 | G147: 49.11434463 | H147: 49.11282554 | I147: 49.11119053 | K147: 49.1155381 | L147: 49.16207012 | M147: 49.11805768 | N147: 49.11792271 | O147: 49.11434463 | P147: 49.11282554 | Q147: 49.11119053 | S147: 49.00754003 | T147: 48.99836589 | U147: 49 | V147: 49.1155381 | W147: 49.16207012 | X147: 49.11805768 | Y147: 49.11792271
A148: DRAB1406 | B148: Zone substations and transformers | C148: 49.1155381 | D148: 49.16207012 | E148: 49.11805768 | F148: 49.11792271 | G148: 49.11434463 | H148: 49.11282554 | I148: 49.11119053 | K148: 49.1155381 | L148: 49.16207012 | M148: 49.11805768 | N148: 49.11792271 | O148: 49.11434463 | P148: 49.11282554 | Q148: 49.11119053 | S148: 49.00754003 | T148: 48.99836589 | U148: 49 | V148: 49.1155381 | W148: 49.16207012 | X148: 49.11805768 | Y148: 49.11792271
A149: DRAB1407 | B149: Meters | C149: 0 | D149: 0 | E149: 0 | F149: 0 | G149: 0 | H149: 0 | I149: 0 | K149: 0 | L149: 0 | M149: 0 | N149: 0 | O149: 0 | P149: 0 | Q149: 0 | S149: 0 | T149: 0 | U149: 0 | V149: 0 | W149: 0 | X149: 0 | Y149: 0
A150: DRAB1408 | B150: “Other” assets with long lives | C150: 10.89267259 | D150: 11.75225551 | E150: 11.56895594 | F150: 11.257357 | G150: 10.60611268 | H150: 11.45749676 | I150: 11.45900129 | K150: 10.89267259 | L150: 11.75225551 | M150: 11.56895594 | N150: 11.257357 | O150: 10.60611268 | P150: 11.45749676 | Q150: 11.45900129 | S150: 10.91797648 | T150: 10.22547997 | U150: 10.19306575 | V150: 10.89267259 | W150: 11.75225551 | X150: 11.56895594 | Y150: 11.257357
A151: DRAB1409 | B151: “Other” assets with short lives | C151: 5.293894259 | D151: 5.283296111 | E151: 5.318300758 | F151: 5.241865106 | G151: 5.242160166 | H151: 5.278800162 | I151: 5.255353994 | K151: 5.293894259 | L151: 5.283296111 | M151: 5.318300758 | N151: 5.241865106 | O151: 5.242160166 | P151: 5.278800162 | Q151: 5.255353994 | S151: 5.15 | T151: 5.15 | U151: 5.15 | V151: 5.293894259 | W151: 5.283296111 | X151: 5.318300758 | Y151: 5.241865106
B152: Estimated residual service life
A153: DRAB1501 | B153: Overhead network assets less than 33kV (wires and poles) | C153: 19 | D153: 18 | E153: 18 | F153: 18 | G153: 18 | H153: 18 | I153: 18 | K153: 19 | L153: =K160 -> 10 | M153: =L160 -> 10 | N153: =M160 -> 11 | O153: =N160 -> 12 | P153: =O160 -> 12 | Q153: =P160 -> 11 | S153: 20 | T153: 20 | U153: 20 | V153: 19 | W153: 18 | X153: 18 | Y153: 18
A154: DRAB1502 | B154: Underground network assets less than 33kV (cables) | C154: 19 | D154: 18 | E154: 18 | F154: 18 | G154: 18 | H154: 18 | I154: 18 | K154: 19 | L154: 18 | M154: 18 | N154: 18 | O154: 18 | P154: 18 | Q154: 18 | S154: 20 | T154: 20 | U154: 20 | V154: 19 | W154: 18 | X154: 18 | Y154: 18
A155: DRAB1503 | B155: Distribution substations including transformers | C155: 19 | D155: 18 | E155: 18 | F155: 18 | G155: 18 | H155: 18 | I155: 18 | K155: 19 | L155: 18 | M155: 18 | N155: 18 | O155: 18 | P155: 18 | Q155: 18 | S155: 20 | T155: 20 | U155: 20 | V155: 19 | W155: 18 | X155: 18 | Y155: 18
A156: DRAB1504 | B156: Overhead network assets 33kV and above (wires and towers / poles etc) | C156: 19 | D156: 18 | E156: 18 | F156: 18 | G156: 18 | H156: 18 | I156: 18 | K156: 19 | L156: 18 | M156: 18 | N156: 18 | O156: 18 | P156: 18 | Q156: 18 | S156: 20 | T156: 20 | U156: 20 | V156: 19 | W156: 18 | X156: 18 | Y156: 18
A157: DRAB1505 | B157: Underground network assets 33kV and above (cables, ducts etc) | C157: 19 | D157: 18 | E157: 18 | F157: 18 | G157: 18 | H157: 18 | I157: 18 | K157: 19 | L157: 18 | M157: 18 | N157: 18 | O157: 18 | P157: 18 | Q157: 18 | S157: 20 | T157: 20 | U157: 20 | V157: 19 | W157: 18 | X157: 18 | Y157: 18
A158: DRAB1506 | B158: Zone substations and transformers | C158: 19 | D158: 18 | E158: 18 | F158: 18 | G158: 18 | H158: 18 | I158: 18 | K158: 19 | L158: 18 | M158: 18 | N158: 18 | O158: 18 | P158: 18 | Q158: 18 | S158: 20 | T158: 20 | U158: 20 | V158: 19 | W158: 18 | X158: 18 | Y158: 18
A159: DRAB1507 | B159: Meters | C159: 0 | D159: 0 | E159: 0 | F159: 0 | G159: 0 | H159: 0 | I159: 0 | K159: 0 | L159: 0 | M159: 0 | N159: 0 | O159: 0 | P159: 0 | Q159: 0 | S159: 0 | T159: 0 | U159: 0 | V159: 0 | W159: 0 | X159: 0 | Y159: 0
A160: DRAB1508 | B160: “Other” assets with long lives | C160: 10 | D160: 10 | E160: 11 | F160: 12 | G160: 12 | H160: 11 | I160: 10 | K160: 10 | L160: 10 | M160: 11 | N160: 12 | O160: 12 | P160: 11 | Q160: 10 | S160: 12 | T160: 11 | U160: 9 | V160: 10 | W160: 10 | X160: 11 | Y160: 12
A161: DRAB1509 | B161: “Other” assets with short lives | C161: 3 | D161: 3 | E161: 3 | F161: 3 | G161: 4 | H161: 3 | I161: 3 | K161: 3 | L161: 3 | M161: 3 | N161: 3 | O161: 4 | P161: 3 | Q161: 3 | S161: 3 | T161: 3 | U161: 4 | V161: 3 | W161: 3 | X161: 3 | Y161: 3

Sheet 3.4 Operational data
B1: =INDEX(dms_Worksheet_List,MATCH(dms_Model,dms_Model_List)) -> REGULATORY REPORTING STATEMENT
B2: =INDEX(dms_TradingNameFull_List,MATCH(dms_TradingName,dms_TradingName_List)) -> CitiPower
B3: =CONCATENATE("REGULATORY PERIOD FROM ", FRCP_y1," TO ",dms_MultiYear_FinalYear_Result) -> REGULATORY PERIOD FROM 2026-27 TO 2030-31
B4: 3.4 OPERATIONAL DATA
B5: TEMPLATE DATE - SEPTEMBER 2024 - FINAL RIN
B7: There are THREE tables on this worksheet. Each table has been grouped for ease of navigation.
B9: 3.4.1 - ENERGY DELIVERY
D10: Standard control services
D11: FORECAST
C12: Units | D12: =CRCP_y4 -> 2024-25 | E12: =CRCP_y5 -> 2025-26 | F12: =FRCP_y1 -> 2026-27 | G12: =FRCP_y2 -> 2027-28 | H12: =FRCP_y3 -> 2028-29 | I12: =FRCP_y4 -> 2029-30 | J12: =FRCP_y5 -> 2030-31
A13: DOPED01 | B13: TOTAL ENERGY DELIVERED
B14: 3.4.1.1 - Energy grouping - delivery by chargeable quantity
A15: DOPED0201 | B15: Energy Delivery where time of use is not a determinant | C15: GWh | D15: 1219.1895 | E15: 1237.746545 | F15: 1261.12932 | G15: 1295.767128 | H15: 1345.90656 | I15: 1399.734819 | J15: 1444.388196
A16: DOPED0202 | B16: Energy Delivery at On-peak times | C16: GWh | D16: 1833.460016 | E16: 1893.801564 | F16: 1935.896903 | G16: 2001.267725 | H16: 2086.013564 | I16: 2206.826834 | J16: 2411.021261
A17: DOPED0203 | B17: Energy Delivery at Shoulder times | C17: GWh | D17: 0 | E17: 0 | F17: 54.46770951 | G17: 56.20329238 | H17: 58.86362002 | I17: 61.78588701 | J17: 64.12988395
A18: DOPED0204 | B18: Energy Delivery at Off-peak times | C18: GWh | D18: 2347.611172 | E18: 2424.4924 | F18: 2461.808552 | G18: 2547.623054 | H18: 2661.862648 | I18: 2827.674103 | J18: 3109.101507
A19: DOPED0205 | B19: Controlled load energy deliveries | C19: GWh | D19: 48.48358249 | E19: 48.99143571 | F19: 49.84167655 | G19: 51.27025526 | H19: 53.54783745 | I19: 56.06590484 | J19: 58.05306541
A20: DOPED0206 | B20: Energy Delivery to unmetered supplies | C20: GWh | D20: 32.95923933 | E20: 33.91477391 | F20: 34.81724405 | G20: 35.65602026 | H20: 36.45710488 | I20: 37.17346177 | J20: 37.96810043
B21: 3.4.1.2 - Energy - received from TNSP and other DNSPs by time of receipt
A22: DOPED0301 | B22: Energy into DNSP network at On-peak times | C22: GWh | D22: 0 | E22: 0 | F22: 0 | G22: 0 | H22: 0 | I22: 0 | J22: 0
A23: DOPED0302 | B23: Energy into DNSP network at Shoulder times | C23: GWh | D23: 0 | E23: 0 | F23: 0 | G23: 0 | H23: 0 | I23: 0 | J23: 0
A24: DOPED0303 | B24: Energy into DNSP network at Off-peak times | C24: GWh | D24: 0 | E24: 0 | F24: 0 | G24: 0 | H24: 0 | I24: 0 | J24: 0
A25: DOPED0304 | B25: Energy received from TNSP and other DNSPs not included in the above categories | C25: GWh | D25: 5834.455758 | E25: 5995.855865 | F25: 6140.028586 | G25: 6321.395441 | H25: 6571.684267 | I25: 6924.05539 | J25: 7479.503102
B26: 3.4.1.3 - Energy - received into DNSP system from embedded generation by time of receipt
A27: DOPED0401 | B27: Energy into DNSP network at On-peak times from non-residential embedded generation | C27: GWh | D27: 0 | E27: 0 | F27: 0 | G27: 0 | H27: 0 | I27: 0 | J27: 0
A28: DOPED0402 | B28: Energy into DNSP network at Shoulder times from non-residential embedded generation | C28: GWh | D28: 0 | E28: 0 | F28: 0 | G28: 0 | H28: 0 | I28: 0 | J28: 0
A29: DOPED0403 | B29: Energy into DNSP network at Off-peak times from non-residential embedded generation | C29: GWh | D29: 0 | E29: 0 | F29: 0 | G29: 0 | H29: 0 | I29: 0 | J29: 0
A30: DOPED0404 | B30: Energy received from embedded generation not included in above categories from non-residential embedded generation | C30: GWh | D30: 3.5805 | E30: 3.759525 | F30: 3.94750125 | G30: 4.144876313 | H30: 4.352120128 | I30: 4.569726135 | J30: 4.798212441
A31: DOPED0405 | B31: Energy into DNSP network at On-peak times from residential embedded generation | C31: GWh | D31: 0 | E31: 0 | F31: 0 | G31: 0 | H31: 0 | I31: 0 | J31: 0
A32: DOPED0406 | B32: Energy into DNSP network at Shoulder times from residential embedded generation | C32: GWh | D32: 0 | E32: 0 | F32: 0 | G32: 0 | H32: 0 | I32: 0 | J32: 0
A33: DOPED0407 | B33: Energy into DNSP network at Off-peak times from residential embedded generation | C33: GWh | D33: 0 | E33: 0 | F33: 0 | G33: 0 | H33: 0 | I33: 0 | J33: 0
A34: DOPED0408 | B34: Energy received from embedded generation not included in above categories from residential embedded generation | C34: GWh | D34: 82.20353326 | E34: 90.44706652 | F34: 117.8222294 | G34: 141.2701557 | H34: 166.0270532 | I34: 187.7767745 | J34: 210.3336602
B35: 3.4.1.4 - Energy grouping - customer type or class
A36: DOPED0501 | B36: Residential customers energy deliveries | C36: GWh | D36: 1236.395694 | E36: 1249.346625 | F36: 1270.622117 | G36: 1307.041111 | H36: 1365.103891 | I36: 1429.2974 | J36: 1479.956414
A37: DOPED0502 | B37: Non residential customers not on demand tariffs energy deliveries | C37: GWh | D37: 686.1145131 | E37: 706.0059351 | F37: 724.7927117 | G37: 742.2535676 | H37: 758.9297954 | I37: 773.8422409 | J37: 790.3842827
A38: DOPED0503 | B38: Non-residential low voltage demand tariff customers energy deliveries | C38: GWh | D38: 2769.179564 | E38: 2849.461964 | F38: 2925.28598 | G38: 2995.758538 | H38: 3063.064314 | I38: 3123.251409 | J38: 3190.015605
A39: DOPED0504 | B39: Non-residential high voltage demand tariff customers energy deliveries | C39: GWh | D39: 790.0137391 | E39: 834.1321949 | F39: 877.0779179 | G39: 942.3689016 | H39: 1055.005299 | I39: 1262.139247 | J39: 1663.39232
A40: DOPED0505 | B40: Other Customer Class Energy Deliveries | C40: GWh | D40: 0 | E40: 0 | F40: 0.182678496 | G40: 0.365356992 | H40: 0.548035488 | I40: 0.730713984 | J40: 0.91339248
B44: 3.4.2 - CUSTOMER NUMBERS (Benchmarking)
D45: FORECAST
C46: Units | D46: =CRCP_y4 -> 2024-25 | E46: =CRCP_y5 -> 2025-26 | F46: =FRCP_y1 -> 2026-27 | G46: =FRCP_y2 -> 2027-28 | H46: =FRCP_y3 -> 2028-29 | I46: =FRCP_y4 -> 2029-30 | J46: =FRCP_y5 -> 2030-31
B47: 3.4.2.1 - Distribution customer numbers by customer type or class
A48: DOPCN0101 | B48: Residential customer numbers | C48: number | D48: 293907.4526 | E48: 298232.6319 | F48: 304189.5916 | G48: 310149.6202 | H48: 316088.1658 | I48: 322001.1362 | J48: 327874.2094
A49: DOPCN0102 | B49: Non residential customers not on demand tariff customer numbers | C49: number | D49: 47455.23922 | E49: 48153.6068 | F49: 49115.49121 | G49: 50077.77543 | H49: 51036.61822 | I49: 51991.37475 | J49: 52939.7197
A50: DOPCN0103 | B50: Low voltage demand tariff customer numbers | C50: number | D50: 9070.549391 | E50: 9204.034707 | F50: 9387.888381 | G50: 9571.818474 | H50: 9755.090775 | I50: 9937.582032 | J50: 10118.84779
A51: DOPCN0104 | B51: High voltage demand tariff customer numbers | C51: number | D51: 127.8542592 | E51: 129.7358064 | F51: 132.3273225 | G51: 134.9199158 | H51: 137.5032372 | I51: 140.0755494 | J51: 142.6305874
A52: DOPCN0105 | B52: Unmetered Customer Numbers | C52: number | D52: 5247.09821 | E52: 5324.316307 | F52: 5430.671307 | G52: 5537.070514 | H52: 5643.089204 | I52: 5748.656079 | J52: 5853.514028
A53: DOPCN0106 | B53: Other Customer Numbers | C53: number | D53: 0 | E53: 0 | F53: 2 | G53: 4 | H53: 6 | I53: 8 | J53: 10
B54: Total customer numbers | D54: =SUM(D48:D53) -> 355808.1936 | E54: =SUM(E48:E53) -> 361044.3255 | F54: 368257.9698 | G54: 375475.2046 | H54: 382666.4672 | I54: 389826.8246 | J54: 396938.9215
B57: Table 3.4.2.2 Distribution customer numbers by location on the network
A58: DOPCN0201 | B58: =INDEX(dms_FeederName_1,MATCH(dms_TradingName,dms_TradingName_List)) -> CBD | C58: number | D58: 64680.07399 | E58: 65631.9166 | F58: 66943.2384 | G58: 68255.21291 | H58: 69562.46611 | I58: 70864.10124 | J58: 72156.96341
A59: DOPCN0202 | B59: =INDEX(dms_FeederName_2,MATCH(dms_TradingName,dms_TradingName_List)) -> Urban | C59: number | D59: 291128.1197 | E59: 295412.4089 | F59: 301314.7314 | G59: 307219.9916 | H59: 313104.0011 | I59: 318962.7233 | J59: 324781.9581
A60: DOPCN0203 | B60: =INDEX(dms_FeederName_3,MATCH(dms_TradingName,dms_TradingName_List)) -> Short rural | C60: number | D60: 0 | E60: 0 | F60: 0 | G60: 0 | H60: 0 | I60: 0 | J60: 0
A61: DOPCN0204 | B61: =INDEX(dms_FeederName_4,MATCH(dms_TradingName,dms_TradingName_List)) -> Long rural | C61: number | D61: 0 | E61: 0 | F61: 0 | G61: 0 | H61: 0 | I61: 0 | J61: 0
A62: DOPCN0205 | B62: =IF((INDEX(dms_FeederName_5,MATCH(dms_TradingName,dms_TradingName_List))=0),"",(INDEX(dms_FeederName_5,MATCH(dms_TradingName,dms_TradingName_List)))) ->  | C62: number
B63: Total customer numbers | D63: =SUM(D58:D62) -> 355808.1936 | E63: =SUM(E58:E62) -> 361044.3255 | F63: 368257.9698 | G63: 375475.2046 | H63: 382666.4672 | I63: 389826.8246 | J63: 396938.9215
B66: 3.4.2.4 - Unmetered Supply
A67: DOPCN0301 | B67: Number of unmetered connections reported in customer numbers in the economic benchmarking RIN | D67: =D52 -> 5247.09821 | E67: =E52 -> 5324.316307 | F67: 5430.671307 | G67: 5537.070514 | H67: 5643.089204 | I67: 5748.656079 | J67: 5853.514028
A68: DOPCN0302 | B68: Unmetered connections not reported in customer numbers in the economic benchmarking RIN | D68: 0 | E68: 0 | F68: 0 | G68: 0 | H68: 0 | I68: 0 | J68: 0
A69: DOPCN0303 | B69: Total unmetered connections | D69: =SUM(D67:D68) -> 5247.09821 | E69: =SUM(E67:E68) -> 5324.316307 | F69: 5430.671307 | G69: 5537.070514 | H69: 5643.089204 | I69: 5748.656079 | J69: 5853.514028
B72: 3.4.3 - SYSTEM DEMAND
D73: Standard control services
D74: FORECAST
C75: Units | D75: =CRCP_y4 -> 2024-25 | E75: =CRCP_y5 -> 2025-26 | F75: =FRCP_y1 -> 2026-27 | G75: =FRCP_y2 -> 2027-28 | H75: =FRCP_y3 -> 2028-29 | I75: =FRCP_y4 -> 2029-30 | J75: =FRCP_y5 -> 2030-31
B76: 3.4.3.1 - Annual system maximum demand characteristics at the zone substation level – MW measure
A77: DOPSD0102 | B77: Non–coincident Summated Weather Adjusted System Annual Maximum Demand 10% POE | C77: MW | D77: 1560.65 | E77: 1660.43 | F77: 1686.02 | G77: 1721.4 | H77: 1752.3 | I77: 1775.96 | J77: 1802.56
A78: DOPSD0103 | B78: Non–coincident Summated Weather Adjusted System Annual Maximum Demand 50% POE | C78: MW | D78: 1380.85 | E78: 1475.82 | F78: 1495.25 | G78: 1526.82 | H78: 1552.66 | I78: 1573.1 | J78: 1595.82
A79: DOPSD0105 | B79: Coincident Weather Adjusted System Annual Maximum Demand 10% POE | C79: MW | D79: 1508.023815 | E79: 1604.439165 | F79: 1629.166253 | G79: 1663.353215 | H79: 1693.211246 | I79: 1716.073415 | J79: 1741.776445
A80: DOPSD0106 | B80: Coincident Weather Adjusted System Annual Maximum Demand 50% POE | C80: MW | D80: 1334.2882 | E80: 1426.055844 | F80: 1444.830671 | G80: 1475.336141 | H80: 1500.304825 | I80: 1520.055595 | J80: 1542.009484
B81: 3.4.3.2 - Annual system maximum demand characteristics at the transmission connection point – MW measure
A82: DOPSD0108 | B82: Non–coincident Summated Weather Adjusted System Annual Maximum Demand 10% POE | C82: MW | D82: 1781.62 | E82: 1876.08 | F82: 1906.14 | G82: 1931.99 | H82: 1970.86 | I82: 1993.77 | J82: 2021.41
A83: DOPSD0109 | B83: Non–coincident Summated Weather Adjusted System Annual Maximum Demand 50% POE | C83: MW | D83: 1533.43 | E83: 1619.95 | F83: 1646.39 | G83: 1665.91 | H83: 1698.17 | I83: 1717.43 | J83: 1736.71
A84: DOPSD0111 | B84: Coincident Weather Adjusted System Annual Maximum Demand 10% POE | C84: MW | D84: 1600.11 | E84: 1693.95 | F84: 1707.47 | G84: 1710.25 | H84: 1717.92 | I84: 1726.82 | J84: 1735.97
A85: DOPSD0112 | B85: Coincident Weather Adjusted System Annual Maximum Demand 50% POE | C85: MW | D85: 1351.25 | E85: 1444.26 | F85: 1458.39 | G85: 1460.95 | H85: 1467.76 | I85: 1482.06 | J85: 1495.88
B86: 3.4.3.3 - Annual system maximum demand characteristics at the zone substation level – MVA measure
A87: DOPSD0202 | B87: Non–coincident Summated Weather Adjusted System Annual Maximum Demand 10% POE | C87: MVA | D87: 1636.69 | E87: 1740.06 | F87: 1767.42 | G87: 1804.69 | H87: 1837.13 | I87: 1861.74 | J87: 1889.53
A88: DOPSD0203 | B88: Non–coincident Summated Weather Adjusted System Annual Maximum Demand 50% POE | C88: MVA | D88: 1444.42 | E88: 1542.72 | F88: 1563.63 | G88: 1596.88 | H88: 1624.1 | I88: 1644.56 | J88: 1668.52
A89: DOPSD0205 | B89: Coincident Weather Adjusted System Annual Maximum Demand 10% POE | C89: MVA | D89: 1574.398449 | E89: 1673.834242 | F89: 1700.152935 | G89: 1736.004459 | H89: 1767.20981 | I89: 1790.883166 | J89: 1817.615494
A90: DOPSD0206 | B90: Coincident Weather Adjusted System Annual Maximum Demand 50% POE | C90: MVA | D90: 1392.954131 | E90: 1487.751622 | F90: 1507.916581 | G90: 1539.981856 | H90: 1566.231985 | I90: 1585.962979 | J90: 1609.069264
B91: 3.4.3.4 - Annual system maximum demand characteristics at the transmission connection point – MVA measure
A92: DOPSD0208 | B92: Non–coincident Summated Weather Adjusted System Annual Maximum Demand 10% POE | C92: MVA | D92: 1837.95 | E92: 1938.88 | F92: 1972.72 | G92: 2001.19 | H92: 2042.84 | I92: 2067.33 | J92: 2097.03
A93: DOPSD0209 | B93: Non–coincident Summated Weather Adjusted System Annual Maximum Demand 50% POE | C93: MVA | D93: 1571.41 | E93: 1663.59 | F93: 1693.09 | G93: 1714.57 | H93: 1748.94 | I93: 1769.44 | J93: 1789.98
A94: DOPSD0211 | B94: Coincident Weather Adjusted System Annual Maximum Demand 10% POE | C94: MVA | D94: 1664.84 | E94: 1766.63 | F94: 1781.31 | G94: 1784.32 | H94: 1792.64 | I94: 1802.29 | J94: 1812.22
A95: DOPSD0212 | B95: Coincident Weather Adjusted System Annual Maximum Demand 50% POE | C95: MVA | D95: 1394.9 | E95: 1495.79 | F95: 1511.12 | G95: 1513.89 | H95: 1521.29 | I95: 1536.79 | J95: 1551.79
B96: 3.4.3.5 - Power factor conversion between MVA and MW
A97: DOPSD0301 | B97: Average overall network power factor conversion between MVA and MW | C97: Factor | D97: 0 | E97: 0 | F97: 0 | G97: 0 | H97: 0 | I97: 0 | J97: 0
A98: DOPSD0302 | B98: Average power factor conversion for low voltage distribution lines | C98: Factor | D98: 0.85 | E98: 0.85 | F98: 0.85 | G98: 0.85 | H98: 0.85 | I98: 0.85 | J98: 0.85
A99: DOPSD0303 | B99: Average power factor conversion for 3.3 kV lines | C99: Factor | D99: 0 | E99: 0 | F99: 0 | G99: 0 | H99: 0 | I99: 0 | J99: 0
A100: DOPSD0304 | B100: Average power factor conversion for 6.6 kV lines | C100: Factor | D100: 0.9 | E100: 0.9 | F100: 0.9 | G100: 0.9 | H100: 0.9 | I100: 0.9 | J100: 0.9
A101: DOPSD0305 | B101: Average power factor conversion for 7.6 kV lines | C101: Factor | D101: 0 | E101: 0 | F101: 0 | G101: 0 | H101: 0 | I101: 0 | J101: 0
A102: DOPSD0306 | B102: Average power factor conversion for 11 kV lines | C102: Factor | D102: 0.9 | E102: 0.9 | F102: 0.9 | G102: 0.9 | H102: 0.9 | I102: 0.9 | J102: 0.9
A103: DOPSD0307 | B103: Average power factor conversion for SWER lines | C103: Factor | D103: 0.9 | E103: 0.9 | F103: 0.9 | G103: 0.9 | H103: 0.9 | I103: 0.9 | J103: 0.9
A104: DOPSD0308 | B104: Average power factor conversion for 22 kV lines | C104: Factor | D104: 0.95 | E104: 0.95 | F104: 0.95 | G104: 0.95 | H104: 0.95 | I104: 0.95 | J104: 0.95
A105: DOPSD0309 | B105: Average power factor conversion for 33 kV lines | C105: Factor | D105: 0 | E105: 0 | F105: 0 | G105: 0 | H105: 0 | I105: 0 | J105: 0
A106: DOPSD0310 | B106: Average power factor conversion for 44 kV lines | C106: Factor | D106: 0 | E106: 0 | F106: 0 | G106: 0 | H106: 0 | I106: 0 | J106: 0
A107: DOPSD0311 | B107: Average power factor conversion for 66 kV lines | C107: Factor | D107: 0.9 | E107: 0.9 | F107: 0.9 | G107: 0.9 | H107: 0.9 | I107: 0.9 | J107: 0.9
A108: DOPSD0312 | B108: Average power factor conversion for 110 kV lines | C108: Factor | D108: 0 | E108: 0 | F108: 0 | G108: 0 | H108: 0 | I108: 0 | J108: 0
A109: DOPSD0313 | B109: Average power factor conversion for 132 kV lines | C109: Factor | D109: 0 | E109: 0 | F109: 0 | G109: 0 | H109: 0 | I109: 0 | J109: 0
A110: DOPSD0314 | B110: Average power factor conversion for 220 kV lines | C110: Factor | D110: 0 | E110: 0 | F110: 0 | G110: 0 | H110: 0 | I110: 0 | J110: 0

Sheet 3.5 Physical assets
B1: =INDEX(dms_Worksheet_List,MATCH(dms_Model,dms_Model_List)) -> REGULATORY REPORTING STATEMENT
B2: =INDEX(dms_TradingNameFull_List,MATCH(dms_TradingName,dms_TradingName_List)) -> CitiPower
B3: =CONCATENATE("REGULATORY PERIOD FROM ", FRCP_y1," TO ",dms_MultiYear_FinalYear_Result) -> REGULATORY PERIOD FROM 2026-27 TO 2030-31
B4: 3.5 PHYSICAL ASSETS DATA
B5: TEMPLATE DATE - SEPTEMBER 2024 - FINAL RIN
B7: There are THREE tables on this worksheet. Each table has been grouped (and sub-grouped) for ease of navigation. See the Instructions sheet on how to group or ungroup tables.
B9: 3.5.1 - NETWORK CAPACITIES VARIABLES
D10: FORECAST
C11: Units | D11: =CRCP_y4 -> 2024-25 | E11: =CRCP_y5 -> 2025-26 | F11: =FRCP_y1 -> 2026-27 | G11: =FRCP_y2 -> 2027-28 | H11: =FRCP_y3 -> 2028-29 | I11: =FRCP_y4 -> 2029-30 | J11: =FRCP_y5 -> 2030-31
B12: CIRCUIT LENGTH
B13: 3.5.1.1 - Overhead network length of circuit at each voltage
A14: DPA0101 | B14: Overhead low voltage distribution | C14: km | D14: 1630.092937 | E14: 1627.225878 | F14: 1625.218823 | G14: 1624.431771 | H14: 1621.084723 | I14: 1614.37768 | J14: 1609.83064
A15: DPA0102 | B15: Overhead 2.2 kV | C15: km | D15: 0 | E15: 0 | F15: 0 | G15: 0 | H15: 0 | I15: 0 | J15: 0
A16: DPA0111 | B16: Overhead 6.6kv | C16: km | D16: 91 | E16: 91 | F16: 91 | G16: 91 | H16: 91 | I16: 91 | J16: 91
A17: DPA0103 | B17: Overhead 7.6 kV | C17: km | D17: 0 | E17: 0 | F17: 0 | G17: 0 | H17: 0 | I17: 0 | J17: 0
A18: DPA0104 | B18: Overhead 11 kV | C18: km | D18: 383 | E18: 385.96 | F18: 388.06 | G18: 388.94 | H18: 392.38 | I18: 399.18 | J18: 403.82
A19: DPA0105 | B19: Overhead SWER | C19: km | D19: 0 | E19: 0 | F19: 0 | G19: 0 | H19: 0 | I19: 0 | J19: 0
A20: DPA0106 | B20: Overhead 22 kV | C20: km | D20: 7 | E20: 7 | F20: 7 | G20: 7 | H20: 7 | I20: 7 | J20: 7
A21: DPA0107 | B21: Overhead 33 kV | C21: km | D21: 0 | E21: 0 | F21: 0 | G21: 0 | H21: 0 | I21: 0 | J21: 0
A22: DPA0108 | B22: Overhead 44 kV | C22: km | D22: 0 | E22: 0 | F22: 0 | G22: 0 | H22: 0 | I22: 0 | J22: 0
A23: DPA0109 | B23: Overhead 66 kV | C23: km | D23: 141 | E23: 141 | F23: 141 | G23: 141 | H23: 141 | I23: 141 | J23: 141
A24: DPA0112 | B24: Overhead 110kV | C24: km | D24: 0 | E24: 0 | F24: 0 | G24: 0 | H24: 0 | I24: 0 | J24: 0
A25: DPA0110 | B25: Overhead 132 kV | C25: km | D25: 0 | E25: 0 | F25: 0 | G25: 0 | H25: 0 | I25: 0 | J25: 0
A26: DPA0113 | B26: Overhead 220kV | C26: km | D26: 0 | E26: 0 | F26: 0 | G26: 0 | H26: 0 | I26: 0 | J26: 0
A27: DPA0114 | B27: Other | C27: km | D27: 7 | E27: 7 | F27: 7 | G27: 7 | H27: 7 | I27: 7 | J27: 7
A28: DPA01 | B28: Total overhead circuit km | D28: =SUM(D14:D27) -> 2259.092937 | E28: 2259.185878 | F28: 2259.278823 | G28: 2259.371771 | H28: 2259.464723 | I28: 2259.55768 | J28: 2259.65064
B29: 3.5.1.2 - Underground network circuit length at each voltage
A30: DPA0201 | B30: Underground low voltage distribution | C30: km | D30: 685.5933744 | E30: 679.7447105 | F30: 682.0740229 | G30: 686.2583265 | H30: 690.603636 | I30: 694.756966 | J30: 699.1183316
A31: DPA0202 | B31: Underground 5 kV | C31: km | D31: 0 | E31: 0 | F31: 0 | G31: 0 | H31: 0 | I31: 0 | J31: 0
A32: DPA0203 | B32: Underground 6.6 Kv | C32: km | D32: 90.53 | E32: 90.53 | F32: 90.53 | G32: 90.53 | H32: 90.53 | I32: 90.53 | J32: 90.53
A33: DPA0204 | B33: Underground 7.6 kV | C33: km | D33: 0 | E33: 0 | F33: 0 | G33: 0 | H33: 0 | I33: 0 | J33: 0
A34: DPA0205 | B34: Underground 11 kV | C34: km | D34: 1375.08 | E34: 1385.25 | F34: 1387.25 | G34: 1387.403 | H34: 1387.403 | I34: 1387.603 | J34: 1387.603
A35: DPA0206 | B35: Underground SWER | C35: km | D35: 0 | E35: 0 | F35: 0 | G35: 0 | H35: 0 | I35: 0 | J35: 0
A36: DPA0207 | B36: Underground 22 kV | C36: km | D36: 55.28 | E36: 55.28 | F36: 55.28 | G36: 55.28 | H36: 55.28 | I36: 55.28 | J36: 55.28
A37: DPA0208 | B37: Underground 33 kV | C37: km | D37: 0 | E37: 0 | F37: 0 | G37: 0 | H37: 0 | I37: 0 | J37: 0
A38: DPA0209 | B38: Underground 66 kV | C38: km | D38: 80.88 | E38: 80.88 | F38: 80.88 | G38: 80.88 | H38: 80.88 | I38: 80.88 | J38: 80.88
A39: DPA0210 | B39: Underground 110 kV | C39: km | D39: 0 | E39: 0 | F39: 0 | G39: 0 | H39: 0 | I39: 0 | J39: 0
A40: DPA0211 | B40: Underground 132 kV | C40: km | D40: 0 | E40: 0 | F40: 0 | G40: 0 | H40: 0 | I40: 0 | J40: 0
A41: DPA0212 | B41: Other | C41: km | D41: 53.79 | E41: 53.79 | F41: 53.79 | G41: 53.79 | H41: 53.79 | I41: 53.79 | J41: 53.79
A42: DPA02 | B42: Total underground circuit km | D42: =SUM(D30:D41) -> 2341.153374 | E42: 2345.47471 | F42: 2349.804023 | G42: 2354.141327 | H42: 2358.486636 | I42: 2362.839966 | J42: 2367.201332
B44: CIRCUIT CAPACITY MVA
B45: 3.5.1.3 - Estimated overhead network weighted average MVA capacity by voltage class
A46: DPA0301 | B46: Overhead low voltage distribution | C46: MVA | D46: 0.2 | E46: 0.2 | F46: 0.2 | G46: 0.2 | H46: 0.2 | I46: 0.2 | J46: 0.2
A47: DPA0302 | B47: Overhead 6.6 kV | C47: MVA | D47: 2.3 | E47: 2.3 | F47: 2.3 | G47: 2.3 | H47: 2.3 | I47: 2.3 | J47: 2.3
A48: DPA0303 | B48: Overhead 7.6 kV | C48: MVA | D48: 0 | E48: 0 | F48: 0 | G48: 0 | H48: 0 | I48: 0 | J48: 0
A49: DPA0304 | B49: Overhead 11 kV | C49: MVA | D49: 4 | E49: 4 | F49: 4 | G49: 4 | H49: 4 | I49: 4 | J49: 4
A50: DPA0305 | B50: Overhead SWER | C50: MVA | D50: 0 | E50: 0 | F50: 0 | G50: 0 | H50: 0 | I50: 0 | J50: 0
A51: DPA0306 | B51: Overhead 22 kV | C51: MVA | D51: 8 | E51: 8 | F51: 8 | G51: 8 | H51: 8 | I51: 8 | J51: 8
A52: DPA0307 | B52: Overhead 33 kV | C52: MVA | D52: 0 | E52: 0 | F52: 0 | G52: 0 | H52: 0 | I52: 0 | J52: 0
A53: DPA0308 | B53: Overhead 44 kV | C53: MVA | D53: 0 | E53: 0 | F53: 0 | G53: 0 | H53: 0 | I53: 0 | J53: 0
A54: DPA0309 | B54: Overhead 66 kV | C54: MVA | D54: 50 | E54: 50 | F54: 50 | G54: 50 | H54: 50 | I54: 50 | J54: 50
A55: DPA0310 | B55: Overhead 110 kV | C55: MVA | D55: 0 | E55: 0 | F55: 0 | G55: 0 | H55: 0 | I55: 0 | J55: 0
A56: DPA0311 | B56: Overhead 132 kV | C56: MVA | D56: 0 | E56: 0 | F56: 0 | G56: 0 | H56: 0 | I56: 0 | J56: 0
A57: DPA0312 | B57: Overhead 220 kV | C57: MVA | D57: 0 | E57: 0 | F57: 0 | G57: 0 | H57: 0 | I57: 0 | J57: 0
A58: DPA0313 | B58: Other | C58: MVA | D58: 15 | E58: 15 | F58: 15 | G58: 15 | H58: 15 | I58: 15 | J58: 15
B59: 3.5.1.4 - Estimated underground network weighted average MVA capacity by voltage class
A60: DPA0401 | B60: Underground low voltage distribution | C60: MVA | D60: 0.2 | E60: 0.2 | F60: 0.2 | G60: 0.2 | H60: 0.2 | I60: 0.2 | J60: 0.2
A61: DPA0402 | B61: Underground 5 kV | C61: MVA | D61: 0 | E61: 0 | F61: 0 | G61: 0 | H61: 0 | I61: 0 | J61: 0
A62: DPA0403 | B62: Underground 6.6 kV | C62: MVA | D62: 2.3 | E62: 2.3 | F62: 2.3 | G62: 2.3 | H62: 2.3 | I62: 2.3 | J62: 2.3
A63: DPA0404 | B63: Underground 7.6 kV | C63: MVA | D63: 0 | E63: 0 | F63: 0 | G63: 0 | H63: 0 | I63: 0 | J63: 0
A64: DPA0405 | B64: Underground 11 kV | C64: MVA | D64: 4 | E64: 4 | F64: 4 | G64: 4 | H64: 4 | I64: 4 | J64: 4
A65: DPA0406 | B65: Underground SWER | C65: MVA | D65: 0 | E65: 0 | F65: 0 | G65: 0 | H65: 0 | I65: 0 | J65: 0
A66: DPA0407 | B66: Underground 12.7 kV | C66: MVA | D66: 0 | E66: 0 | F66: 0 | G66: 0 | H66: 0 | I66: 0 | J66: 0
A67: DPA0408 | B67: Underground 22 kV | C67: MVA | D67: 8 | E67: 8 | F67: 8 | G67: 8 | H67: 8 | I67: 8 | J67: 8
A68: DPA0409 | B68: Underground 33 kV | C68: MVA | D68: 0 | E68: 0 | F68: 0 | G68: 0 | H68: 0 | I68: 0 | J68: 0
A69: DPA0410 | B69: Underground 66 kV | C69: MVA | D69: 60 | E69: 60 | F69: 60 | G69: 60 | H69: 60 | I69: 60 | J69: 60
A70: DPA0411 | B70: Underground 110 kV | C70: MVA | D70: 0 | E70: 0 | F70: 0 | G70: 0 | H70: 0 | I70: 0 | J70: 0
A71: DPA0412 | B71: Underground 132 kV | C71: MVA | D71: 0 | E71: 0 | F71: 0 | G71: 0 | H71: 0 | I71: 0 | J71: 0
A72: DPA0413 | B72: Other | C72: MVA | D72: 15 | E72: 15 | F72: 15 | G72: 15 | H72: 15 | I72: 15 | J72: 15
B76: 3.5.2 - TRANSFORMER CAPACITIES VARIABLES
D77: VOLUMES
C78: Units | D78: =CRCP_y4 -> 2024-25 | E78: =CRCP_y5 -> 2025-26 | F78: =FRCP_y1 -> 2026-27 | G78: =FRCP_y2 -> 2027-28 | H78: =FRCP_y3 -> 2028-29 | I78: =FRCP_y4 -> 2029-30 | J78: =FRCP_y5 -> 2030-31
B79: Distribution transformer total installed capacity
A80: DPA0501 | B80: Distribution transformer capacity owned by utility | C80: MVA | D80: 0 | E80: 0 | F80: 0 | G80: 0 | H80: 0 | I80: 0 | J80: 0
A81: DPA0503 | B81: Cold spare capacity included in DPA0501 | C81: MVA | D81: 84.20666667 | E81: 84.20666667 | F81: 84.20666667 | G81: 84.20666667 | H81: 84.20666667 | I81: 84.20666667 | J81: 84.20666667
B82: Zone substation transformer capacity
A83: DPA0601 | B83: Total installed capacity for first step transformation where there are two steps to reach distribution voltage | C83: MVA | D83: 0 | E83: 0 | F83: 0 | G83: 0 | H83: 0 | I83: 0 | J83: 0
A84: DPA0602 | B84: Total installed capacity for second step transformation where there are two steps to reach distribution voltage | C84: MVA | D84: 0 | E84: 0 | F84: 0 | G84: 0 | H84: 0 | I84: 0 | J84: 0
A85: DPA0603 | B85: Total zone substation transformer capacity where there is only a single step transformation to reach distribution voltage | C85: MVA | D85: 2670 | E85: 2670 | F85: 2670 | G85: 2752 | H85: 2752 | I85: 2752 | J85: 2782
A86: DPA0604 | B86: Total zone substation transformer capacity | C86: MVA | D86: 0 | E86: 0 | F86: 0 | G86: 0 | H86: 0 | I86: 0 | J86: 0
A87: DPA0605 | B87: Cold spare capacity of zone substation transformers included in DPA0604 | C87: MVA | D87: 13 | E87: 13 | F87: 13 | G87: 13 | H87: 13 | I87: 13 | J87: 13
B91: 3.5.3 - PUBLIC LIGHTING
D92: VOLUMES
C93: Units | D93: =CRCP_y4 -> 2024-25 | E93: =CRCP_y5 -> 2025-26 | F93: =FRCP_y1 -> 2026-27 | G93: =FRCP_y2 -> 2027-28 | H93: =FRCP_y3 -> 2028-29 | I93: =FRCP_y4 -> 2029-30 | J93: =FRCP_y5 -> 2030-31
A94: DPA0701 | B94: Public lighting luminaires | C94: 0's | D94: 52578.86747 | E94: 52618.08434 | F94: 52618.97573 | G94: 52674.61114 | H94: 52736.50212 | I94: 52798.51688 | J94: 52860.65568
A95: DPA0702 | B95: Public lighting poles | C95: 0's | D95: 8859 | E95: 8837 | F95: 8834.333333 | G95: 8843.444444 | H95: 8838.259259 | I95: 8838.679012 | J95: 8840.127572
A96: DPA0703 | B96: Public lighting columns | C96: 0's | D96: 0 | E96: 0 | F96: 0 | G96: 0 | H96: 0 | I96: 0 | J96: 0

Sheet 3.6 Quality of service
B1: =INDEX(dms_Worksheet_List,MATCH(dms_Model,dms_Model_List)) -> REGULATORY REPORTING STATEMENT
B2: =INDEX(dms_TradingNameFull_List,MATCH(dms_TradingName,dms_TradingName_List)) -> CitiPower
B3: =CONCATENATE("REGULATORY PERIOD FROM ", FRCP_y1," TO ",dms_MultiYear_FinalYear_Result) -> REGULATORY PERIOD FROM 2026-27 TO 2030-31
B4: 3.6 QUALITY OF SERVICE DATA
B5: TEMPLATE DATE - SEPTEMBER 2024 - FINAL RIN
B7: 3.6.2 - ENERGY NOT SUPPLIED
D8: FORECAST
C9: Units | D9: =CRCP_y4 -> 2024-25 | E9: =CRCP_y5 -> 2025-26 | F9: =FRCP_y1 -> 2026-27 | G9: =FRCP_y2 -> 2027-28 | H9: =FRCP_y3 -> 2028-29 | I9: =FRCP_y4 -> 2029-30 | J9: =FRCP_y5 -> 2030-31
A10: DQS0201 | B10: Energy Not Supplied (planned) | C10: GWh | D10: 0.2197904935 | E10: 0.2256820462 | F10: 0.2316565102 | G10: 0.2384653675 | H10: 0.2470799303 | I10: 0.2577691445 | J10: 0.2728201427
A11: DQS0202 | B11: Energy Not Supplied (unplanned) | C11: GWh | D11: 0.250515187 | E11: 0.2572303247 | F11: 0.2640399639 | G11: 0.271800637 | H11: 0.2816194366 | I11: 0.2938029049 | J11: 0.3109578944
A12: DQS02 | B12: Total | D12: =SUM(D10:D11) -> 0.4703056806 | E12: 0.4829123709 | F12: 0.495696474 | G12: 0.5102660044 | H12: 0.528699367 | I12: 0.5515720494 | J12: 0.5837780371
B14: 3.6.3 - SYSTEM LOSSES
D15: FORECAST
C16: Units | D16: =CRCP_y4 -> 2024-25 | E16: =CRCP_y5 -> 2025-26 | F16: =FRCP_y1 -> 2026-27 | G16: =FRCP_y2 -> 2027-28 | H16: =FRCP_y3 -> 2028-29 | I16: =FRCP_y4 -> 2029-30 | J16: =FRCP_y5 -> 2030-31
A17: DQS03 | B17: System losses | C17: % | D17: 0.03006 | E17: 0.03006 | F17: 0.03006 | G17: 0.03006 | H17: 0.03006 | I17: 0.03006 | J17: 0.03006
B19: 3.6.4 - CAPACITY UTILISATION
D20: FORECAST
C21: Units | D21: =CRCP_y4 -> 2024-25 | E21: =CRCP_y5 -> 2025-26 | F21: =FRCP_y1 -> 2026-27 | G21: =FRCP_y2 -> 2027-28 | H21: =FRCP_y3 -> 2028-29 | I21: =FRCP_y4 -> 2029-30 | J21: =FRCP_y5 -> 2030-31
A22: DQS04 | B22: Overall utilisation | C22: % | D22: 0.5479305898 | E22: 0.5862860046 | F22: 0.5943838668 | G22: 0.5883705078 | H22: 0.598640512 | I22: 0.606437687 | J22: 0.608563298

Sheet 3.7 Operating Environment
B1: =INDEX(dms_Worksheet_List,MATCH(dms_Model,dms_Model_List)) -> REGULATORY REPORTING STATEMENT
B2: =INDEX(dms_TradingNameFull_List,MATCH(dms_TradingName,dms_TradingName_List)) -> CitiPower
B3: =CONCATENATE("REGULATORY PERIOD FROM ", FRCP_y1," TO ",dms_MultiYear_FinalYear_Result) -> REGULATORY PERIOD FROM 2026-27 TO 2030-31
B4: 3.7 OPERATING ENVIRONMENT FACTORS
B5: TEMPLATE DATE - SEPTEMBER 2024 - FINAL RIN
B7: There are THREE tables on this worksheet. Each table has been grouped (and sub-grouped) for ease of navigation. See the Instructions sheet on how to group or ungroup tables.
A9: DOEF01 | B9: 3.7.1 - DENSITY FACTORS
D10: FORECAST
C11: Units | D11: =CRCP_y4 -> 2024-25 | E11: =CRCP_y5 -> 2025-26 | F11: =FRCP_y1 -> 2026-27 | G11: =FRCP_y2 -> 2027-28 | H11: =FRCP_y3 -> 2028-29 | I11: =FRCP_y4 -> 2029-30 | J11: =FRCP_y5 -> 2030-31
A12: DOEF0101 | B12: Customer density | C12: Customer / km | D12: 107.2153723
A13: DOEF0102 | B13: Energy density | C13: MWh/customer | D13: 15.40634423
A14: DOEF0103 | B14: Demand density | C14: kVA / customer | D14: 4.059546761
A16: DOEF02 | B16: 3.7.2 - TERRAIN FACTORS
D17: FORECAST
C18: Units | D18: =CRCP_y4 -> 2024-25 | E18: =CRCP_y5 -> 2025-26 | F18: =FRCP_y1 -> 2026-27 | G18: =FRCP_y2 -> 2027-28 | H18: =FRCP_y3 -> 2028-29 | I18: =FRCP_y4 -> 2029-30 | J18: =FRCP_y5 -> 2030-31
A19: DOEF0201 | B19: Rural proportion | C19: % | D19: 0
A20: DOEF0202 | B20: Urban and CBD vegetation maintenance spans | C20: 0's | D20: 5452.666667
A21: DOEF0203 | B21: Rural vegetation maintenance spans | C21: 0's | D21: 0
A22: DOEF0204 | B22: Total vegetation maintenance spans | C22: 0's | D22: 5452.666667
A23: DOEF0205 | B23: Total number of spans | C23: 0's | D23: 60911
A24: DOEF0206 | B24: Average urban and CBD vegetation maintenance span cycle | C24: Years | D24: 3.08
A25: DOEF0207 | B25: Average rural vegetation maintenance span cycle | C25: Years | D25: 0
A26: DOEF0208 | B26: Average number of trees per urban and CBD vegetation maintenance span | C26: Trees | D26: 23.8
A27: DOEF0209 | B27: Average number of trees per rural vegetation maintenance span | C27: Trees | D27: 0
A28: DOEF0210 | B28: Average number of defects per urban and CBD vegetation maintenance span | C28: Defects | D28: 1.03
A29: DOEF0211 | B29: Average number of defects per rural vegetation maintenance span | C29: Defects | D29: 0
A30: DOEF0212 | B30: Tropical proportion | C30: Spans | D30: 0
A31: DOEF0213 | B31: Standard vehicle access | C31: km | D31: 0 | E31: 0 | F31: 0 | G31: 0 | H31: 0 | I31: 0 | J31: 0
A32: DOEF0214 | B32: Bushfire risk | C32: Spans | D32: 0
A34: DOEF03 | B34: 3.7.3 - SERVICE AREA FACTORS
D35: FORECAST
C36: Units | D36: =CRCP_y4 -> 2024-25 | E36: =CRCP_y5 -> 2025-26 | F36: =FRCP_y1 -> 2026-27 | G36: =FRCP_y2 -> 2027-28 | H36: =FRCP_y3 -> 2028-29 | I36: =FRCP_y4 -> 2029-30 | J36: =FRCP_y5 -> 2030-31
A37: DOEF0301 | B37: Route Line length | C37: km | D37: 3318.630398 | E37: 3336.447469 | F37: 3354.360197 | G37: 3372.369094 | H37: 3390.474677 | I37: 3408.677466 | J37: 3426.977982

Sheet 4.1 Public lighting
B1: =INDEX(dms_Worksheet_List,MATCH(dms_Model,dms_Model_List)) -> REGULATORY REPORTING STATEMENT
B2: =INDEX(dms_TradingNameFull_List,MATCH(dms_TradingName,dms_TradingName_List)) -> CitiPower
B3: =CONCATENATE("REGULATORY PERIOD FROM ", FRCP_y1," TO ",dms_MultiYear_FinalYear_Result) -> REGULATORY PERIOD FROM 2026-27 TO 2030-31
B4: 4.1 PUBLIC LIGHTING
B5: TEMPLATE DATE - SEPTEMBER 2024 - FINAL RIN
B7: There are TWO tables on this worksheet. Each table has been grouped (and sub-grouped) for ease of navigation. There are no further instructions.
B9: 4.1.2 - DESCRIPTOR METRICS ANNUALLY
D10: VOLUMES & EXPENDITURE
C11: Units | D11: =CRCP_y4 -> 2024-25 | E11: =CRCP_y5 -> 2025-26 | F11: =FRCP_y1 -> 2026-27 | G11: =FRCP_y2 -> 2027-28 | H11: =FRCP_y3 -> 2028-29 | I11: =FRCP_y4 -> 2029-30 | J11: =FRCP_y5 -> 2030-31
B12: PUBLIC LIGHT INSTALLATION
B13: Major road light installed | C13: number | D13: 20 | E13: 20 | F13: 20 | G13: 20 | H13: 20 | I13: 20 | J13: 20
B14: Minor road light installed | C14: number | D14: 30 | E14: 30 | F14: 30 | G14: 30 | H14: 30 | I14: 30 | J14: 30
B15: Number of poles installed | C15: number | D15: 10 | E15: 10 | F15: 10 | G15: 10 | H15: 10 | I15: 10 | J15: 10
B16: Total expenditure | C16: $ | D16: 3152898 | E16: 2791519.333 | F16: 2718667.111 | G16: 2814842.593 | H16: 2871185.16 | I16: 2857907.523 | J16: 2834700.787
B17: PUBLIC LIGHT REPLACEMENT
B18: Major road light installed | C18: number | D18: 374.5 | E18: 379.75 | F18: 382.375 | G18: 383.6875 | H18: 384.34375 | I18: 384.671875 | J18: 384.8359375
B19: Minor road light installed | C19: number | D19: 904.6666667 | E19: 887.2222222 | F19: 2313.222222 | G19: 3833.222222 | H19: 3175.222222 | I19: 4406.222222 | J19: 1555.222222
B20: Number of poles replaced | C20: number | D20: 24.9 | E20: 31.2 | F20: 36 | G20: 40.8 | H20: 44.4 | I20: 48 | J20: 52.8
B21: Total expenditure | C21: $ | D21: 1270470.538 | E21: 1199970.333 | F21: 1554002.653 | G21: 1581362.663 | H21: 1608468.303 | I21: 1630575.352 | J21: 1654142.882
B22: PUBLIC LIGHT MAINTENANCE
B23: Major road light installed | C23: number | D23: 1385 | E23: 1416 | F23: 1400.5 | G23: 1408.25 | H23: 1404.375 | I23: 1406.3125 | J23: 1405.34375
B24: Minor road light installed | C24: number | D24: 7127 | E24: 8268 | F24: 8268 | G24: 7887.666667 | H24: 8141.222222 | I24: 8098.962963 | J24: 8042.617284
B25: Number of poles maintained | C25: number | D25: 0 | E25: 0 | F25: 0 | G25: 0 | H25: 0 | I25: 0 | J25: 0
B26: Total expenditure | C26: $ | D26: 2809792.235 | E26: 2468962.741 | F26: 2128133.247 | G26: 2012878.747 | H26: 1906827.573 | I26: 1906069.487 | J26: 1909033.668
B27: QUALITY OF SUPPLY
B28: Mean days to rectify/replace public lighting assets | C28: number of days | D28: 1.093333333 | E28: 1.093333333 | F28: 1.093333333 | G28: 1.093333333 | H28: 1.093333333 | I28: 1.093333333 | J28: 1.093333333
B29: GSO breaches | C29: number | D29: 5.666666667 | E29: 5.666666667 | F29: 5.666666667 | G29: 5.666666667 | H29: 5.666666667 | I29: 5.666666667 | J29: 5.666666667
B30: GSL payments | C30: $ | D30: 150 | E30: 150 | F30: 150 | G30: 150 | H30: 150 | I30: 150 | J30: 150
B31: Customer complaints | C31: number | D31: 5.333333333 | E31: 5.333333333 | F31: 5.333333333 | G31: 5.333333333 | H31: 5.333333333 | I31: 5.333333333 | J31: 5.333333333
B35: 4.1.3 - COST METRICS
D36: =CONCATENATE("AVERAGE UNIT COST ($, real ",dms_DollarReal, ")") -> AVERAGE UNIT COST ($, real June 2026)
D37: =CRCP_y4 -> 2024-25 | E37: =CRCP_y5 -> 2025-26 | F37: =FRCP_y1 -> 2026-27 | G37: =FRCP_y2 -> 2027-28 | H37: =FRCP_y3 -> 2028-29 | I37: =FRCP_y4 -> 2029-30 | J37: =FRCP_y5 -> 2030-31
B38: PUBLIC LIGHT INSTALLATION
B39: Major Road | D39: 1008.88 | E39: 1008.88 | F39: 1008.88 | G39: 1008.88 | H39: 1008.88 | I39: 1008.88 | J39: 1008.88
B40: Minor Road | D40: 940.69 | E40: 940.69 | F40: 940.69 | G40: 940.69 | H40: 940.69 | I40: 940.69 | J40: 940.69
B99: PUBLIC LIGHT REPLACEMENT
B100: Major Road | D100: 1070.66 | E100: 1070.66 | F100: 1070.66 | G100: 1070.66 | H100: 1070.66 | I100: 1070.66 | J100: 1070.66
B101: Minor Road | D101: 639.18 | E101: 639.18 | F101: 639.18 | G101: 639.18 | H101: 639.18 | I101: 639.18 | J101: 639.18
B160: PUBLIC LIGHT MAINTENANCE
B161: Major/Minor - Routine Maintenance | D161: 84.15 | E161: 84.15 | F161: 84.15 | G161: 84.15 | H161: 84.15 | I161: 84.15 | J161: 84.15
B162: Major/Minor - Non-Routine Maintenance | D162: 345.1 | E162: 345.1 | F162: 345.1 | G162: 345.1 | H162: 345.1 | I162: 345.1 | J162: 345.1

Sheet 5.4 MD & utilisation-Spatial
B1: =INDEX(dms_Worksheet_List,MATCH(dms_Model,dms_Model_List)) -> REGULATORY REPORTING STATEMENT
B2: =INDEX(dms_TradingNameFull_List,MATCH(dms_TradingName,dms_TradingName_List)) -> CitiPower
B3: =CONCATENATE("REGULATORY PERIOD FROM ", FRCP_y1," TO ",dms_MultiYear_FinalYear_Result) -> REGULATORY PERIOD FROM 2026-27 TO 2030-31
B4: 5.4 MAXIMUM DEMAND AND UTILISATION AT SPATIAL LEVEL
B5: TEMPLATE DATE - SEPTEMBER 2024 - FINAL RIN
B7: There are two tables on this worksheet. The tables have been sub-grouped for ease of navigation. See the Instructions sheet on how to group or ungroup tables.
B9: 5.4.1 - NON-COINCIDENT & COINCIDENT MAXIMUM DEMAND
B10: SUBTRANSMISSION SUBSTATION
F11: DEMAND
B12: SUBSTATION | C12: FORECASTING ELEMENTS | D12: UNIT | E12: MAX DEMAND | F12: =CRCP_y4 -> 2024-25 | G12: =CRCP_y5 -> 2025-26 | H12: =FRCP_y1 -> 2026-27 | I12: =FRCP_y2 -> 2027-28 | J12: =FRCP_y3 -> 2028-29 | K12: =FRCP_y4 -> 2029-30 | L12: =FRCP_y5 -> 2030-31
B13: <Enter substation name> | C13: Substation Rating | D13: MVA | E13: Non-Coincident
E14: Coincident
C15: Raw Adjusted MD | D15: MW | E15: Non-Coincident
E16: Coincident
C17: Raw Adjusted MD | D17: MVA | E17: Non-Coincident
E18: Coincident
C19: Date MD occurred | E19: Non-Coincident
E20: Coincident
C21: Half hour time period MD occurred | E21: Non-Coincident
E22: Coincident
C23: Winter/Summer Peaking | E23: Non-Coincident
E24: Coincident
C25: Adjustments - Embedded generation | D25: MW | E25: Non-Coincident
E26: Coincident
C27: Weather Corrected 10% POE | D27: MW | E27: Non-Coincident
E28: Coincident
C29: Weather Corrected MD 10% POE | D29: MVA | E29: Non-Coincident
E30: Coincident
C31: Weather Corrected MD 50% POE | D31: MW | E31: Non-Coincident
E32: Coincident
C33: Weather Corrected MD 50% POE | D33: MVA | E33: Non-Coincident
E34: Coincident
B35: <Enter substation name> | C35: Substation Rating | D35: MVA | E35: Non-Coincident
E36: Coincident
C37: Raw Adjusted MD | D37: MW | E37: Non-Coincident
E38: Coincident
C39: Raw Adjusted MD | D39: MVA | E39: Non-Coincident
E40: Coincident
C41: Date MD occurred | E41: Non-Coincident
E42: Coincident
C43: Half hour time period MD occurred | E43: Non-Coincident
E44: Coincident
C45: Winter/Summer Peaking | E45: Non-Coincident
E46: Coincident
C47: Adjustments - Embedded generation | D47: MW | E47: Non-Coincident
E48: Coincident
C49: Weather Corrected 10% POE | D49: MW | E49: Non-Coincident
E50: Coincident
C51: Weather Corrected MD 10% POE | D51: MVA | E51: Non-Coincident
E52: Coincident
C53: Weather Corrected MD 50% POE | D53: MW | E53: Non-Coincident
E54: Coincident
C55: Weather Corrected MD 50% POE | D55: MVA | E55: Non-Coincident
E56: Coincident
B57: <Enter substation name> | C57: Substation Rating | D57: MVA | E57: Non-Coincident
E58: Coincident
C59: Raw Adjusted MD | D59: MW | E59: Non-Coincident
E60: Coincident
C61: Raw Adjusted MD | D61: MVA | E61: Non-Coincident
E62: Coincident
C63: Date MD occurred | E63: Non-Coincident
E64: Coincident
C65: Half hour time period MD occurred | E65: Non-Coincident
E66: Coincident
C67: Winter/Summer Peaking | E67: Non-Coincident
E68: Coincident
C69: Adjustments - Embedded generation | D69: MW | E69: Non-Coincident
E70: Coincident
C71: Weather Corrected 10% POE | D71: MW | E71: Non-Coincident
E72: Coincident
C73: Weather Corrected MD 10% POE | D73: MVA | E73: Non-Coincident
E74: Coincident
C75: Weather Corrected MD 50% POE | D75: MW | E75: Non-Coincident
E76: Coincident
C77: Weather Corrected MD 50% POE | D77: MVA | E77: Non-Coincident
E78: Coincident
B79: <Enter substation name> | C79: Substation Rating | D79: MVA | E79: Non-Coincident
E80: Coincident
C81: Raw Adjusted MD | D81: MW | E81: Non-Coincident
E82: Coincident
C83: Raw Adjusted MD | D83: MVA | E83: Non-Coincident
E84: Coincident
C85: Date MD occurred | E85: Non-Coincident
E86: Coincident
C87: Half hour time period MD occurred | E87: Non-Coincident
E88: Coincident
C89: Winter/Summer Peaking | E89: Non-Coincident
E90: Coincident
C91: Adjustments - Embedded generation | D91: MW | E91: Non-Coincident
E92: Coincident
C93: Weather Corrected 10% POE | D93: MW | E93: Non-Coincident
E94: Coincident
C95: Weather Corrected MD 10% POE | D95: MVA | E95: Non-Coincident
E96: Coincident
C97: Weather Corrected MD 50% POE | D97: MW | E97: Non-Coincident
E98: Coincident
C99: Weather Corrected MD 50% POE | D99: MVA | E99: Non-Coincident
E100: Coincident
B101: <Enter substation name> | C101: Substation Rating | D101: MVA | E101: Non-Coincident
E102: Coincident
C103: Raw Adjusted MD | D103: MW | E103: Non-Coincident
E104: Coincident
C105: Raw Adjusted MD | D105: MVA | E105: Non-Coincident
E106: Coincident
C107: Date MD occurred | E107: Non-Coincident
E108: Coincident
C109: Half hour time period MD occurred | E109: Non-Coincident
E110: Coincident
C111: Winter/Summer Peaking | E111: Non-Coincident
E112: Coincident
C113: Adjustments - Embedded generation | D113: MW | E113: Non-Coincident
E114: Coincident
C115: Weather Corrected 10% POE | D115: MW | E115: Non-Coincident
E116: Coincident
C117: Weather Corrected MD 10% POE | D117: MVA | E117: Non-Coincident
E118: Coincident
C119: Weather Corrected MD 50% POE | D119: MW | E119: Non-Coincident
E120: Coincident
C121: Weather Corrected MD 50% POE | D121: MVA | E121: Non-Coincident
E122: Coincident
B123: <Enter substation name> | C123: Substation Rating | D123: MVA | E123: Non-Coincident
E124: Coincident
C125: Raw Adjusted MD | D125: MW | E125: Non-Coincident
E126: Coincident
C127: Raw Adjusted MD | D127: MVA | E127: Non-Coincident
E128: Coincident
C129: Date MD occurred | E129: Non-Coincident
E130: Coincident
C131: Half hour time period MD occurred | E131: Non-Coincident
E132: Coincident
C133: Winter/Summer Peaking | E133: Non-Coincident
E134: Coincident
C135: Adjustments - Embedded generation | D135: MW | E135: Non-Coincident
E136: Coincident
C137: Weather Corrected 10% POE | D137: MW | E137: Non-Coincident
E138: Coincident
C139: Weather Corrected MD 10% POE | D139: MVA | E139: Non-Coincident
E140: Coincident
C141: Weather Corrected MD 50% POE | D141: MW | E141: Non-Coincident
E142: Coincident
C143: Weather Corrected MD 50% POE | D143: MVA | E143: Non-Coincident
E144: Coincident
B145: <Enter substation name> | C145: Substation Rating | D145: MVA | E145: Non-Coincident
E146: Coincident
C147: Raw Adjusted MD | D147: MW | E147: Non-Coincident
E148: Coincident
C149: Raw Adjusted MD | D149: MVA | E149: Non-Coincident
E150: Coincident
C151: Date MD occurred | E151: Non-Coincident
E152: Coincident
C153: Half hour time period MD occurred | E153: Non-Coincident
E154: Coincident
C155: Winter/Summer Peaking | E155: Non-Coincident
E156: Coincident
C157: Adjustments - Embedded generation | D157: MW | E157: Non-Coincident
E158: Coincident
C159: Weather Corrected 10% POE | D159: MW | E159: Non-Coincident
E160: Coincident
C161: Weather Corrected MD 10% POE | D161: MVA | E161: Non-Coincident
E162: Coincident
C163: Weather Corrected MD 50% POE | D163: MW | E163: Non-Coincident
E164: Coincident
C165: Weather Corrected MD 50% POE | D165: MVA | E165: Non-Coincident
E166: Coincident
B167: <Enter substation name> | C167: Substation Rating | D167: MVA | E167: Non-Coincident
E168: Coincident
C169: Raw Adjusted MD | D169: MW | E169: Non-Coincident
E170: Coincident
C171: Raw Adjusted MD | D171: MVA | E171: Non-Coincident
E172: Coincident
C173: Date MD occurred | E173: Non-Coincident
E174: Coincident
C175: Half hour time period MD occurred | E175: Non-Coincident
E176: Coincident
C177: Winter/Summer Peaking | E177: Non-Coincident
E178: Coincident
C179: Adjustments - Embedded generation | D179: MW | E179: Non-Coincident
E180: Coincident
C181: Weather Corrected 10% POE | D181: MW | E181: Non-Coincident
E182: Coincident
C183: Weather Corrected MD 10% POE | D183: MVA | E183: Non-Coincident
E184: Coincident
C185: Weather Corrected MD 50% POE | D185: MW | E185: Non-Coincident
E186: Coincident
C187: Weather Corrected MD 50% POE | D187: MVA | E187: Non-Coincident
E188: Coincident
B189: <Enter substation name> | C189: Substation Rating | D189: MVA | E189: Non-Coincident
E190: Coincident
C191: Raw Adjusted MD | D191: MW | E191: Non-Coincident
E192: Coincident
C193: Raw Adjusted MD | D193: MVA | E193: Non-Coincident
E194: Coincident
C195: Date MD occurred | E195: Non-Coincident
E196: Coincident
C197: Half hour time period MD occurred | E197: Non-Coincident
E198: Coincident
C199: Winter/Summer Peaking | E199: Non-Coincident
E200: Coincident
C201: Adjustments - Embedded generation | D201: MW | E201: Non-Coincident
E202: Coincident
... 11371 more rows

Sheet 6.2 Reliability & Cust serv
B1: =INDEX(dms_Worksheet_List,MATCH(dms_Model,dms_Model_List)) -> REGULATORY REPORTING STATEMENT
B2: =INDEX(dms_TradingNameFull_List,MATCH(dms_TradingName,dms_TradingName_List)) -> CitiPower
B3: =CONCATENATE("REGULATORY PERIOD FROM ", FRCP_y1," TO ",dms_MultiYear_FinalYear_Result) -> REGULATORY PERIOD FROM 2026-27 TO 2030-31
B4: 6.2 RELIABILITY AND CUSTOMER SERVICE PERFORMANCE
B5: TEMPLATE DATE - SEPTEMBER 2024 - FINAL RIN
B7: There are FIVE tables on this worksheet. Each table has been grouped for ease of navigation. There are no further instructions.
B9: 6.2.1 - UNPLANNED MINUTES OFF SUPPLY (SAIDI)
E10: Proposed target
B11: SAIDI | E11: =FRCP_y1 -> 2026-27 | F11: =FRCP_y2 -> 2027-28 | G11: =FRCP_y3 -> 2028-29 | H11: =FRCP_y4 -> 2029-30 | I11: =FRCP_y5 -> 2030-31
B12: Total sustained minutes off supply after removing excluded events
B13: =INDEX(dms_FeederName_1,MATCH(dms_TradingName,dms_TradingName_List)) -> CBD | E13: 7.454369542 | F13: 7.454369542 | G13: 7.454369542 | H13: 7.454369542 | I13: 7.454369542
B14: =INDEX(dms_FeederName_2,MATCH(dms_TradingName,dms_TradingName_List)) -> Urban | E14: 24.26185687 | F14: 24.26185687 | G14: 24.26185687 | H14: 24.26185687 | I14: 24.26185687
B15: =INDEX(dms_FeederName_3,MATCH(dms_TradingName,dms_TradingName_List)) -> Short rural
B16: =INDEX(dms_FeederName_4,MATCH(dms_TradingName,dms_TradingName_List)) -> Long rural
B17: =IF(ISBLANK(INDEX(dms_FeederName_5,MATCH(dms_TradingName,dms_TradingName_List))),"",INDEX(dms_FeederName_5,MATCH(dms_TradingName,dms_TradingName_List))) -> 
B18: Total | E18: =SUM(E13:E17) -> 31.71622642 | F18: =SUM(F13:F17) -> 31.71622642 | G18: =SUM(G13:G17) -> 31.71622642 | H18: =SUM(H13:H17) -> 31.71622642 | I18: =SUM(I13:I17) -> 31.71622642
B21: 6.2.2 - UNPLANNED INTERRUPTIONS TO SUPPLY (SAIFI)
E22: Proposed target
B23: SAIFI | E23: =FRCP_y1 -> 2026-27 | F23: =FRCP_y2 -> 2027-28 | G23: =FRCP_y3 -> 2028-29 | H23: =FRCP_y4 -> 2029-30 | I23: =FRCP_y5 -> 2030-31
B24: Total sustained interruptions after removing excluded events
B25: =INDEX(dms_FeederName_1,MATCH(dms_TradingName,dms_TradingName_List)) -> CBD | E25: 0.08266737003 | F25: 0.08266737003 | G25: 0.08266737003 | H25: 0.08266737003 | I25: 0.08266737003
B26: =INDEX(dms_FeederName_2,MATCH(dms_TradingName,dms_TradingName_List)) -> Urban | E26: 0.3164811798 | F26: 0.3164811798 | G26: 0.3164811798 | H26: 0.3164811798 | I26: 0.3164811798
B27: =INDEX(dms_FeederName_3,MATCH(dms_TradingName,dms_TradingName_List)) -> Short rural
B28: =INDEX(dms_FeederName_4,MATCH(dms_TradingName,dms_TradingName_List)) -> Long rural
B29: =IF(ISBLANK(INDEX(dms_FeederName_5,MATCH(dms_TradingName,dms_TradingName_List))),"",INDEX(dms_FeederName_5,MATCH(dms_TradingName,dms_TradingName_List))) -> 
B30: Total | E30: =SUM(E25:E29) -> 0.3991485498 | F30: =SUM(F25:F29) -> 0.3991485498 | G30: =SUM(G25:G29) -> 0.3991485498 | H30: =SUM(H25:H29) -> 0.3991485498 | I30: =SUM(I25:I29) -> 0.3991485498
B33: 6.2.3 - UNPLANNED MOMENTARY INTERRUPTIONS TO SUPPLY (MAIFI)
E34: Proposed target
B35: MAIFI | E35: =FRCP_y1 -> 2026-27 | F35: =FRCP_y2 -> 2027-28 | G35: =FRCP_y3 -> 2028-29 | H35: =FRCP_y4 -> 2029-30 | I35: =FRCP_y5 -> 2030-31
B36: Total momentary interruptions after removing excluded events
B37: =INDEX(dms_FeederName_1,MATCH(dms_TradingName,dms_TradingName_List)) -> CBD
B38: =INDEX(dms_FeederName_2,MATCH(dms_TradingName,dms_TradingName_List)) -> Urban
B39: =INDEX(dms_FeederName_3,MATCH(dms_TradingName,dms_TradingName_List)) -> Short rural
B40: =INDEX(dms_FeederName_4,MATCH(dms_TradingName,dms_TradingName_List)) -> Long rural
B41: =IF(ISBLANK(INDEX(dms_FeederName_5,MATCH(dms_TradingName,dms_TradingName_List))),"",INDEX(dms_FeederName_5,MATCH(dms_TradingName,dms_TradingName_List))) -> 
B42: Total | E42: =SUM(E37:E41) -> 0 | F42: =SUM(F37:F41) -> 0 | G42: =SUM(G37:G41) -> 0 | H42: =SUM(H37:H41) -> 0 | I42: =SUM(I37:I41) -> 0
B45: 6.2.3(B) - UNPLANNED MOMENTARY INTERRUPTIONS TO SUPPLY (MAIFIe)
E46: Proposed target
B47: MAIFIe | E47: =FRCP_y1 -> 2026-27 | F47: =FRCP_y2 -> 2027-28 | G47: =FRCP_y3 -> 2028-29 | H47: =FRCP_y4 -> 2029-30 | I47: =FRCP_y5 -> 2030-31
B48: Total momentary interruptions after removing excluded events
B49: =INDEX(dms_FeederName_1,MATCH(dms_TradingName,dms_TradingName_List)) -> CBD
B50: =INDEX(dms_FeederName_2,MATCH(dms_TradingName,dms_TradingName_List)) -> Urban
B51: =INDEX(dms_FeederName_3,MATCH(dms_TradingName,dms_TradingName_List)) -> Short rural
B52: =INDEX(dms_FeederName_4,MATCH(dms_TradingName,dms_TradingName_List)) -> Long rural
B53: =IF(ISBLANK(INDEX(dms_FeederName_5,MATCH(dms_TradingName,dms_TradingName_List))),"",INDEX(dms_FeederName_5,MATCH(dms_TradingName,dms_TradingName_List))) -> 
B54: Total | E54: =SUM(E49:E53) -> 0 | F54: =SUM(F49:F53) -> 0 | G54: =SUM(G49:G53) -> 0 | H54: =SUM(H49:H53) -> 0 | I54: =SUM(I49:I53) -> 0
B57: The number of distribution customers is calculated as the average of the number of customers at the beginning of the reporting period and the number of customers at the end of the reporting period.
B59: 6.2.4 - DISTRIBUTION CUSTOMER NUMBERS (STPIS)
C60: FORECAST
B61: Average customer numbers | C61: =CRCP_y4 -> 2024-25 | D61: =CRCP_y5 -> 2025-26 | E61: =FRCP_y1 -> 2026-27 | F61: =FRCP_y2 -> 2027-28 | G61: =FRCP_y3 -> 2028-29 | H61: =FRCP_y4 -> 2029-30 | I61: =FRCP_y5 -> 2030-31
B62: =INDEX(dms_FeederName_1,MATCH(dms_TradingName,dms_TradingName_List)) -> CBD | C62: 64680.07399 | D62: 65631.9166 | E62: 66943.2384 | F62: 68255.21291 | G62: 69562.46611 | H62: 70864.10124 | I62: 72156.96341
B63: =INDEX(dms_FeederName_2,MATCH(dms_TradingName,dms_TradingName_List)) -> Urban | C63: 291128.1197 | D63: 295412.4089 | E63: 301314.7314 | F63: 307219.9916 | G63: 313104.0011 | H63: 318962.7233 | I63: 324781.9581
B64: =INDEX(dms_FeederName_3,MATCH(dms_TradingName,dms_TradingName_List)) -> Short rural
B65: =INDEX(dms_FeederName_4,MATCH(dms_TradingName,dms_TradingName_List)) -> Long rural
B66: =IF(ISBLANK(INDEX(dms_FeederName_5,MATCH(dms_TradingName,dms_TradingName_List))),"",INDEX(dms_FeederName_5,MATCH(dms_TradingName,dms_TradingName_List))) -> 
B67: Total | C67: =SUM(C62:C66) -> 355808.1936 | D67: 361044.3255 | E67: 368257.9698 | F67: 375475.2046 | G67: 382666.4672 | H67: 389826.8246 | I67: 396938.9215
B69: The AER's definition of calls answered within 30 seconds is as follows: Calls to the fault line answered in 30 seconds where the time to answer a call is measured from when the call enters the telephone system of the call centre (including that time when it may be ringing unanswered by any response) and the caller speaks with a human operator, but excluding the time that the caller is connected to an automated interactive service that provides substantive information. This measure does not apply to: - calls to payment lines and automated interactive services; - calls abandoned by the customer within 30 seconds of the call being queued for response by a human operator. Where the time in which a telephone call is abandoned is not measured, then an estimate of the number of calls abandoned within 30 seconds will be determined by taking 20 per cent of all calls abandoned. Note: Being placed in a queuing system (automated or otherwise) does not constitute a response. 'Calls answered within 30 seconds' and 'Calls received' should be calculated excluding calls abandoned within 30 seconds of being queued for a human operator; and calls to payment lines and automated interactive services.
B71: 6.2.5 - CUSTOMER SERVICE
E72: Proposed target
E73: =FRCP_y1 -> 2026-27 | F73: =FRCP_y2 -> 2027-28 | G73: =FRCP_y3 -> 2028-29 | H73: =FRCP_y4 -> 2029-30 | I73: =FRCP_y5 -> 2030-31
B74: Number of calls received | E74: 20,238 | F74: 20,238 | G74: 20,238 | H74: 20,238 | I74: 20,238
B75: Number of calls answered within 30 seconds | E75: 18,959 | F75: 18,959 | G75: 18,959 | H75: 18,959 | I75: 18,959
B76: Percentage of calls answered within 30 seconds | E76: =IFERROR((E75/E74),"") ->  | F76: =IFERROR((F75/F74),"") ->  | G76: =IFERROR((G75/G74),"") ->  | H76: =IFERROR((H75/H74),"") ->  | I76: =IFERROR((I75/I74),"") -> 

Sheet 7.1 Policies and Procedures
B1: =INDEX(dms_Worksheet_List,MATCH(dms_Model,dms_Model_List)) -> REGULATORY REPORTING STATEMENT
B2: =INDEX(dms_TradingNameFull_List,MATCH(dms_TradingName,dms_TradingName_List)) -> CitiPower
B3: =CONCATENATE("REGULATORY PERIOD FROM ", FRCP_y1," TO ",dms_MultiYear_FinalYear_Result) -> REGULATORY PERIOD FROM 2026-27 TO 2030-31
B4: 7.1 PLANS, POLICIES, PROCEDURES AND STRATEGIES
B5: TEMPLATE DATE - SEPTEMBER 2024 - FINAL RIN
B7: 7.1.1 - PLANS, POLICIES, PROCEDURES AND STRATEGIES
C8: Brief description | D8: Relevance to regulatory proposal | E8: Expenditure impact
C9: Description of the plan, policy, procedure or strategy. | D9: Identify the element of the proposal/supporting documents that the policy, plan, procedure or strategy is relevant to e.g. replacement capex, capacity utilisation thresholds, opex | E9: Is this policy, plan or procedure identified in the response to section 4 'Step Changes' of the notice (yes or no)?
B10: Corporate
B11: <insert relevant policy, plan, strategy etc>
B31: Governance framework
B32: CP RIN 27 - Governance, forecasting and deliverability overview - Jan2025 - Public | C32: This document provides an overview of our investment approach and governance frameworks | D32: all | E32: no
B49: Accounting policies, procedures and methodologies (including a capitalisation policy, depreciation policy and an approved expenditure allocation methodology)
B50: CP RIN 26 - Cost allocation methodology - Aug2020 - Public | C50: The cost allocation method governs the manner in which we allocate costs for the services we provide. | D50: Opex and capex | E50: Yes
B51: CP ATT 5.01 - Connections policy - Jan2025 - Public | C51: This connection policy provides an outline of our connection services, when connection charges may be payable by customers and how those charges are calculated. | D51: Connections capex | E51: No
B72: Asset management plan or equivalent documentation
B73: Asset Management Policies
B74: CP ATT 4.03 - Network management policy - Jan2025 - Public | C74: This document describes the framework for the management of our electricity distribution system. | D74: all | E74: no
B75: CP ATT 4.04 - Network safety policy - Jan2025 - Public | C75: This document describes the framework for the management of network safety risk on our electricity distribution system | D75: repex | E75: no
B76: CP ATT 3.01 - Bushfire mitigation policy - Jan2025 - Public | C76: This document describes the framework for the management of bushfire safety risk on our electricity distribution system | D76: bushfire | E76: no
B96: Asset Management Strategies
B97: CP ATT 11.04 – Meter asset management strategy – Jan2025 – Public | C97: This document provides an overview of our approach to managing the fleet of network metering | D97: Metering services | E97: No
B117: Asset Management Plans
B118: CP ATT 3.02 – Proposed bushfire mitigation plan – Dec2024 – Public | C118: This document provides a plan for the mitigation of bushfire safety risk on our electricity distribution system | D118: bushfire | E118: No
B142: Capital expenditure policies and procedures (including capex approval policies and procedures and replacement policy)
B143: CP ATT 4.01 - Asset risk quantification guide - Jan2025 - Public | C143: This document describes our process for assessing and quantifying asset risk | D143: repex | E143: No
B163: Internal standards for network planning, design, maintenance and operation
B164: CP ATT 3.05 - Distribution Annual Planning Report (DAPR) - Jan2025 - Public | C164: This document provides an overview of our forecast network development program plan | D164: All | E164: No
B165: CP ATT 3.04 – Network planning framework – Jan2025 – Public | C165: This document provides an overview of our approach to developing the network | D165: Augex | E165: No
B166: CP ATT 2.01 - Customer electrification forecasting methodology - Jan2025 - Public | C166: This document provides an overview of our customer electrification forecasting process | D166: Augex | E166: No
B167: CP ATT 2.02 - Demand forecasting methodology - Jan2025 - Public | C167: This document provides an overview of our demand forecasting process | D167: Augex | E167: No
B168: CP ATT 2.03 - Blunomy - Detailed demand forecasting methodology - Jan2025 - Public | C168: This document provides our demand forecasting method | D168: Augex | E168: No
B169: CP ATT 2.04 - Zepben - Detailed customer electrification forecasting methodology - Jan2025 - Public | C169: This document provides our customer electrification forecasting method | D169: augex | E169: No
B243: Procurement and contracting out policies
B244: <insert relevant policy, plan, strategy etc>
B264: Information technology policies or strategies
B265: CP ATT 6.02 - EY - IT risk monetisation framework - Aug2024 - Public | C265: Benefits framework to support NPV assessments | D265: IT CAPEX & OPEX | E265: No
B301: Demand management policies or strategies
B302: CP ATT 3.03 - Demand side engagement - Jan2025 - Public | C302: The Demand Side Engagement Strategy assists non-network providers in understanding our framework and processes for assessing demand side options and consultation process. | D302: Augex | E302: No
B322: Self insurance guidelines or policy
B323: <insert relevant policy, plan, strategy etc>
B343: Land and easement acquisition polices
B344: <insert relevant policy, plan, strategy etc>
B364: Asset security plans and policies
B365: <insert relevant policy, plan, strategy etc>
B385: Disaster recovery policy
B386: <insert relevant policy, plan, strategy etc>

Sheet 7.2 Contingent projects
B1: =INDEX(dms_Worksheet_List,MATCH(dms_Model,dms_Model_List)) -> REGULATORY REPORTING STATEMENT
B2: =INDEX(dms_TradingNameFull_List,MATCH(dms_TradingName,dms_TradingName_List)) -> CitiPower
B3: =CONCATENATE("REGULATORY PERIOD FROM ", FRCP_y1," TO ",dms_MultiYear_FinalYear_Result) -> REGULATORY PERIOD FROM 2026-27 TO 2030-31
B4: 7.2 CONTINGENT PROJECTS
B5: TEMPLATE DATE - SEPTEMBER 2024 - FINAL RIN
B7: 7.2.1 - PROPOSED CONTINGENT PROJECTS FOR THE FORTHCOMING REGULATORY CONTROL PERIOD
B8: Proposed contingent project name | C8: Proposed contingent capital expenditure ($, nominal) | D8: Proposed trigger events | E8: =CONCATENATE("Proposed annual revenue requirement for ", FRCP_y1, " ($, nominal)") -> Proposed annual revenue requirement for 2026-27 ($, nominal) | F8: =CONCATENATE("5% of the annual revenue requirement for ",FRCP_y1,"") -> 5% of the annual revenue requirement for 2026-27
B9: Lauren Street zone substation rebuild | C9: 70043940 | D9: CitiPower: | E9: 382047417 | F9: =+E9*0.05 -> 19102370.85
C10: 0 | D10: 1. prepares a business case and relevant regulatory investment test for distribution documentation, including a cost-benefit analysis that demonstrates that the Preferred Option is rebuilding the LS Zone Substation; and | E10: =+$E$9 -> 382047417 | F10: 19102370.85
C11: 0 | D11: 2. obtains all relevant internal approvals to proceed with the project. | E11: 382047417 | F11: 19102370.85
C12: 0 | D12: For the purposes of this trigger: | E12: 382047417 | F12: 19102370.85
C13: 0 | D13: 'Regulatory investment test for distribution' has the meaning given to that term in the NER. | E13: 382047417 | F13: 19102370.85
C14: 0 | D14: 'Preferred Option' has the meaning given to that term in clause 5.10.2 of the NER. | E14: 382047417 | F14: 19102370.85
C15: 0 | E15: 382047417 | F15: 19102370.85
B16: Spencer Street zone substation rebuild | C16: 54174223 | D16: 1. CitiPower's forecast of load growth in the area supplied by the JA Zone Substation increases relative to the forecast of load growth set out in CitiPower's 2026-31 regulatory proposal; and | E16: 382047417 | F16: 19102370.85
C17: 0 | D17: 2. The increase in forecast load growth will result in CitiPower not being able to maintain a N-1 Secure Rating in respect of the JA Zone Substation in circumstances where two new jumbo feeders from the Montague Steet (MG) Zone Substation to Docklands South are constructed, without also implementing the J Zone Substation Project in the 2026‒31 regulatory control period. | E17: 382047417 | F17: 19102370.85
C18: 0 | D18: For the purposes of this trigger: | E18: 382047417 | F18: 19102370.85
C19: 0 | D19: 'JA Zone Substation' means the Little Bourke Street Zone Substation. | E19: 382047417 | F19: 19102370.85
C20: 0 | D20: 'N-1 Secure Rating' has the definition given to it in paragraph 3, page 1 of the ESC's 'Final Decision – CBD Security of Supply', dated February 2008. | E20: 382047417 | F20: 19102370.85
C21: 0 | D21: 'J Zone Substation' means the Spencer Street Zone Substation. | E21: 382047417 | F21: 19102370.85
C22: 0 | D22: 'J Zone Substation Project' means the rebuild of the J Zone Substation, at either the current Spencer | E22: 382047417 | F22: 19102370.85
C23: 0 | E23: 382047417 | F23: 19102370.85
B24: Richmond zone substation rebuild | C24: 67509350 | D24: CitiPower: | E24: 382047417 | F24: 19102370.85
C25: 0 | D25: 1. prepares a business case and relevant regulatory investment test for distribution documentation, including a cost-benefit analysis that demonstrates that the Preferred Option is rebuilding the R Zone Substation; and | E25: 382047417 | F25: 19102370.85
C26: 0 | D26: 2. obtains all relevant internal approvals to proceed with the project. | E26: 382047417 | F26: 19102370.85
C27: 0 | D27: For the purposes of this trigger: | E27: 382047417 | F27: 19102370.85
C28: 0 | D28: 'Regulatory investment test for distribution' has the meaning given to that term in the NER. | E28: 382047417 | F28: 19102370.85
C29: 0 | D29: 'Preferred Option' has the meaning given to that term in the NER. | E29: 382047417 | F29: 19102370.85
C30: 0 | E30: 382047417 | F30: 19102370.85
C31: 0 | E31: 382047417 | F31: 19102370.85
C32: 0 | E32: 382047417 | F32: 19102370.85
C33: 0 | E33: 382047417 | F33: 19102370.85
C34: 0 | E34: 382047417 | F34: 19102370.85
C35: 0 | E35: 382047417 | F35: 19102370.85
E36: 382047417 | F36: 19102370.85
E37: 382047417 | F37: 19102370.85
E38: 382047417 | F38: 19102370.85
E39: 382047417 | F39: 19102370.85
E40: 382047417 | F40: 19102370.85
E41: 382047417 | F41: 19102370.85
E42: 382047417 | F42: 19102370.85
E43: 382047417 | F43: 19102370.85
E44: 382047417 | F44: 19102370.85
E45: 382047417 | F45: 19102370.85
E46: 382047417 | F46: 19102370.85

Sheet 7.3 Obligations
B1: =INDEX(dms_Worksheet_List,MATCH(dms_Model,dms_Model_List)) -> REGULATORY REPORTING STATEMENT
B2: =INDEX(dms_TradingNameFull_List,MATCH(dms_TradingName,dms_TradingName_List)) -> CitiPower
B3: =CONCATENATE("REGULATORY PERIOD FROM ", FRCP_y1," TO ",dms_MultiYear_FinalYear_Result) -> REGULATORY PERIOD FROM 2026-27 TO 2030-31
B4: 7.3 OBLIGATIONS, REQUIREMENTS & STANDARDS
B5: TEMPLATE DATE - SEPTEMBER 2024 - FINAL RIN
B7: 7.3.1 - OBLIGATIONS OR REQUIREMENTS
C8: Brief description | D8: Relevance to regulatory proposal | E8: Expenditure impact
C9: Description of relevant obligations or requirements within the instrument (e.g. safety obligations, reliability targets) | D9: Identify what element of the proposal/supporting documents the obligation or requirement is relevant to e.g. replacement capex, capacity utilisation thresholds, opex | E9: Is the obligation or requirement identified in the response to section 4 'Step Changes' of the notice (yes or no)?
B10: LEGISLATION
B11: The National Electricity Law (NEL) and associated regulations | C11: This law states the market objectives to govern the National Electricity Market's (NEM) development; establishes the governance arrangements for the NEM and Victoria's participation in the national market; provides for the making of rules; confers powers and responsibilities with respect to the safety and security of the national system; and provides immunity for service providers in certain circumstances. | D11: Relevant to capital and operating expenditure forecasts. | E11: Yes
B12: Electricity Safety Act 1998 Version 75 (incorp amendments as at 1 April 2019) | C12: This Act regulates the safety of electricity supply and use in Victoria, and the efficiency of electrical equipment. It is administered by Energy Safe Victoria. | D12: Relevant to network capital expenditure and vegetation management step change | E12: Yes
B13: Electricity Safety (Electric Line Clearance) Regulations 2015 | C13: These Regulations prescribe the Code of Practice for Electric Line Clearance 2015, and make it an offence to breach those prescribed provisions. | D13: Relevant to vegetation management expenditure step change | E13: Yes
B14: Electricity Safety (Bushfire Mitigation) Regulations 2013 | C14: Safety obligations related to bushfire mitigation | D14: 0 | E14: Yes
B15: Electricity Safety (Bushfire Mitigation) Amendment Regulations 2016 | C15: The objective of these Regulations is to amend the Electricity Safety (Bushfire Mitigation) Regulations 2016 to make provision for requirements for major electricity companies to increase safety standards on specific components of their networks in order to reduce bushfire risk | D15: 0 | E15: Yes
B16: Electricity Safety (Management) Regulations 2009 | C16: Risk management obligations in managing the network in a safe manner. | D16: Generally relevant all expenditure. | E16: Yes
B17: National Electricity (Victoria) Act 2005 | C17: This Act provides for the regulation of the national electricity wholesale market. It is part of a national scheme which gives effect to the National Electricity Law and the National Electricity Rules made under that Law. The lead legislation under the national scheme is the National Electricity (South Australia) Act 1996. The economic regulator is the Australian Energy Regulator (AER) and the rule-maker is the Australian Energy Market Commission (AEMC). The national electricity wholesale market is administered by the Australian Energy Market Operator (AEMO). | D17: Application of F-Factor Scheme for 2021-2026. | E17: Yes
B18: Environment Protection Act 1970 | C18: An Act to establish an Environment Protection Authority (EPA), to make provision with respect to its powers, duties, and functions and to make further provision for the protection of the environment and for other purposes. | D18: Relevant to capital and operating expenditure forecast on envrionmental expenditure | E18: Yes
B19: Environment Protection Act 2017 | C19: The main purposes of this Act are— (a) to provide for the continuation of the EPA; and (b) to specify a new objective of the EPA; and (c) to provide for a new governance structure of the continued EPA; and to provide for the governing board of the EPA; and (e) to make consequential amendments to the Environment Protection Act 1970 | D19: Relevant to capital and operating expenditure forecast on envrionmental expenditure | E19: Yes
B20: Environment Protection Amendment Act 2018 | C20: The Environment Protection Amendment Act 2018 provides the foundation for a transformation of Victoria’s environment protection laws and the EPA. The Victorian Government intends this new legislation to take effect from 1 July 2020. | D20: Relevant to capital and operating expenditure forecast on envrionmental expenditure | E20: Yes
B21: Environment Protection Regulations 2021 | C21: The objectives of these Regulations are to further the purposes of, and give effect to, the Environment Protection Act 2017 by— (a) imposing obligations in relation to environmental protection, pollution incidents, contaminated land and waste; and (b) providing for activities and other matters for the purposes of permissions under the Act; and (l) prescribing other matters necessary to give effect to the Act. (c) specifying matters in relation to litter, water, air, land, noise and vehicle emissions; and (d) encouraging retailers and consumers to reduce the overall use of plastic bags that often enter the environment as litter, by banning thin, single-use plastic shopping bags; and (e) setting out additional matters in relation to environmental audits; and (f) prescribing activities in respect of which— (i) the environment protection levy is payable; and (ii) the waste levy is payable; and (iii) the Authority may require a financial assurance; and (g) prescribing the form and manner of certain applications; and (h) prescribing infringement offences and infringement penalties; and (i) providing for exemptions from certain provisions of the Act; and (j) prescribing the fees payable under the Act; and (k) providing for transitional arrangements; and | D21: Relevant to capital and operating expenditure forecast on envrionmental expenditure | E21: Yes
B22: Environment Reference Standard 2021 | C22: This environment reference standard sets out the environmental values of the ambient air, acoustic, land and water environments that are sought to be achieved or maintained in Victoria. | D22: Relevant to capital and operating expenditure forecast on envrionmental spen, including the step change due to change in legislation | E22: Yes
B23: Superannuation Guarantee (Administration) Act 1992, No. 111 | C23: The Act sets out relevant superannuation payment requirements. | D23: The Superannuation Guarantee (Administration) Act 1992 required, from 1 July 2024, that we increase our employee superannuation contributions from 11.0% to 11.5% | E23: Yes
B24: Minerals Resource Rent Tax Repeal and Other Measures Bill 2014 | C24: The bill: repeals the Minerals Resource Rent Tax Act 2012, Minerals Resource Rent Tax (Imposition—Customs) Act 2012, Minerals Resource Rent Tax (Imposition—Excise) Act 2012 and Minerals Resource Rent Tax (Imposition—General) Act 2012; amends the: Income Tax Assessment Act 1997 and Income Tax (Transitional Provisions) Act 1997 to provide that companies can carry tax losses forward to use as a deduction for a future year; Income Tax Assessment Act 1997 to: amend the instant asset write-off threshold provisions for small business entities; provide that motor vehicle purchases made by small business entities will be treated as normal business assets for depreciation purposes; and provide that geothermal energy exploration and prospecting expenditure are no longer immediately deductible; Superannuation Guarantee (Administration) Act 1992 to enable the Treasurer by non-disallowable legislative instrument to vary the superannuation guarantee charge percentage for a particular year commencing on 1 July; Superannuation (Government Co-contribution for Low Income Earners) Act 2003 to abolish the low income superannuation contribution; Social Security Act 1991 and Social Security (Administration) Act 1999 to abolish the income support bonus payment; and A New Tax System (Family Assistance) Act 1999, A New Tax System (Family Assistance) (Administration) Act 1999, Income Tax Assessment Act 1997 and Social Security (Administration) Act 1999 to abolish the schoolkids bonus payment; and makes consequential amendments to 13 Acts. | D24: Relevant to all expenditure that includes labour | E24: Yes
B25: Occupational Health and Safety Act 2004 (Vic) | C25: Safety obligations relating to employee health and safety | D25: Relevant to all expenditure | E25: No
B26: Roads Management Act 2004 (Vic) | C26: Safety obligations when carrying out works on public roadways. | D26: Relevant to all capital expenditureand public lighting | E26: No
B27: The Australian Privacy Principles (APPS) within the Privacy Act 1988 (Cth) | C27: The Australian Privacy Principles (or APPs) are the cornerstone of the privacy protection framework in the Privacy Act 1988 (Privacy Act). They apply to any organisation or agency the Privacy Act covers. There are 13 Australian Privacy Principles and they govern standards, rights and obligations around: - the collection, use and disclosure of personal information - an organisation or agency’s governance and accountability - integrity and correction of personal information - the rights of individuals to access their personal information | D27: Relevant to ICT cyber security expenditure | E27: No
B28: Corporations Act 2001 (Cth) | C28: Regulates matters such as the formation and operation of companies (in conjunction with a constitution that may be adopted by a company), duties of officers, takeovers, fundraising and financial reporting obligations | D28: Relevant to SAP upgrade expenditure | E28: No
B29: Foreign Acquisitions and Takeovers Act 1975 | C29: An Act relating to the foreign acquisition of certain land interests and to the foreign control of certain business enterprises and mineral rights | D29: Relevant to the security of critical infrastructure step change | E29: Yes
B30: Security of Critical Infrastructure Act 2018 | C30: The object of this Act is to provide a framework for managing risks to national security relating to critical infrastructure, including by: (a) improving the transparency of the ownership and operational control of critical infrastructure in Australia in order to better understand those risks; and (b) facilitating cooperation and collaboration between all levels of government, and regulators, owners and operators of critical infrastructure, in order to identify and manage those risks. | D30: Relevant to cyber security expenditure and security of critical infrastructure step change | E30: Yes
B31: Regulatory Powers (Standard Provisions) Act 2014 | C31: An Act in relation to monitoring, investigation and enforcement by regulatory agencies, and for related purposes | D31: Relevant to the security of critical infrastructure step change | E31: Yes
B32: Criminal Code Act 1995 | C32: The only offences against laws of the Commonwealth are those offences created by, or under the authority of, this Code or any other Act. | D32: Relevant to the security of critical infrastructure step change | E32: Yes
B33: Australian Energy Market Act 2004 | C33: An Act relating to the regulation of energy markets, and for related purposes | D33: Relevant to the security of critical infrastructure step change | E33: Yes
B34: Energy Safety Legislation Amendment Bill 2019 | C34: A Bill for an Act to amend the Electricity Safety Act 1998 and the Energy Safe Victoria Act 2005 in relation to Energy Safe Victoria and certain classes of electrical work and to make consequential and related amendments to certain other Acts and for other purposes. | D34: Relevant to our obligation to pay Energy Safe Victoria (ESV) levy and the ESV levy step change | E34: Yes
B35: Victoria Fire Factor Scheme 2017 | C35: Financial incentive scheme to encourage improvements in the management of electricity distribution assets, with the aim of reducing the number of fires started by those assets | D35: Relevant to replacement capital expenditure and incentive arrangements | E35: Yes
B36: NEM Metrology Procedure Part A | C36: These procedures set out the obligations as a responsible person and financially responsible metering provider in relation to the engagement of metering service providers for the provision, installation, routine testing and maintenance of metering installations | D36: Provision, installation, routine testing and maintenance of metering installations. Measurement of electrical energy and the provision of data to AEMO | E36: No
B37: Regulatory Information Notices (RINs) | C37: Refers to the RIN issued under Division 4 of Part 3 of the National Electricity (Victoria) Law on 4 October 2019 (Reset RIN) | D37: A completed Reset RIN forms part of our regulatory proposal | E37: No
B38: Distribution Roll Forward Model (RFM) | C38: This handbook sets out the AER's RFM which forms part of a distributor's revenue proposal. Distributors are required to submit a completed RFM to the AER as part of their regulatory proposal. However, the AER recognises that there may be a need for some flexibility in applying the RFM in order to account for the particular circumstances a distributor may face. A number of elements of the RFM where this may be the case have been identified in this handbook. | D38: Population of the roll forward model | E38: No
B39: Distribution post tax revenue model (PTRM) | C39: This handbook sets out the PTRM to be used as part of the building block determinations for standard control services of distributors. Distributors are required to submit a completed PTRM to the AER as part of their regulatory proposals. However, the AER recognises that there may be a need for some flexibility in applying the PTRM in order to account for the particular circumstances a DNSP may face. A number of elements of the PTRM where this may be the case have been identified in this handbook. | D39: Population of the PTRM | E39: No
B40: Electricity distribution network service providers, Annual Benchmarking Report 2024 | C40: The AER must have regard to the benchmarking report in assessing a distributor's expenditure forecasts | D40: Relevant to the assessment of the efficiency of historical and forecast expenditure | E40: No
B41: Victorian Electricity Distribution Network Service Providers - Distribution Determination 2021-2026 – Final Decision | C41: Contains obligations relating to the distributor in the current regulatory control period | D41: Relevant to all expenditure | E41: No
B42: Electricity network service providers, Replacement expenditure model handbook, November 2013 | C42: Obligations related to populating an expenditure forecasting model related to the AER's Forecast Expenditure Assessment Guideline | D42: Relevant to a comparison against replacement capex. | E42: Yes
B43: AER, Framework and approach, AusNet Services, CitiPower, Jemena, Powercor and United Energy, 2026-31, July 2024 (F&A) | C43: The F&A determines, amongst other things, which services we will regulate and the broad nature of the regulatory arrangements. This includes an assessment of services and whether we need to directly control the prices set for those services. | D43: Sets out reclassification of services and form of price control | E43: Yes
B44: Australian Energy Sector Cyber Security Framework (AESCSF) | C44: In 2018 AEMO, in collaboration with industry and government partners, developed a tailored cyber security framework for the Australian energy sector – AESCSF. The framework enables participants to undertake assessments of their own cyber security capability and maturity and use the results to inform and prioritise investment to improve cyber security posture. | D44: Relevant for information and communications technology expenditure on cyber security | E44: No
B45: Bushfire Mitigation Plan | C45: Section 113A (1) of the Electricity Safety Act 1998 requires that a major electricity company must prepare and submit to Energy Safe Victoria, for acceptance, a plan for the company's proposals for mitigation of bushfire in relation to the company’s supply network at the end of each period of 5 years | D45: Relevant to vegetation management step change | E45: Yes
B46: Fire Prevention Plan | C46: Information on asset management approach, processes and strategies applied to the management of the electricity network to prevent fire ignition emanating from the United Energy supply network. | D46: Relevant to network communications busines cases | E46: No
B47: Power System Data Communication Standard | C47: Sets out the standards with which data communication providers must comply when transmitting data to and from AEMO | D47: Relevant to network communications busines cases | E47: No
B48: Industry practice application note - Asset replacement planning Jan 2019 | C48: Provides clarity on how distributors might apply the National Electricity Rule requirements to their replacement expenditure planning of network assets and demonstrate the prudancy and efficiency of network assets investment on asset retirement and de-rating decisions. | D48: Relevent to replacement expenditure | E48: No
B49: Demand Side Engagement Strategy V3.1 30 July 2019 | C49: Used to assist non-network providers in understanding our framework and processes for assessing demand side options. Also discusses the consultation process with non-network providers, which provides information on how CitiPower and Powercor will engage with non-network providers and how it will consider non-network options. It is aligned with clauses 5.13.1 (e)to (j) of the National Electricity Rules | D49: Presents our demand side engagement strategy outlining our process for engaging and consulting with non-network service providers, and for investigating, developing, assessing and reporting on non-network options as alternatives to network augmentation | E49: Yes
B50: Demand Side Engagement Document 18 July 2016 (Document no. UE PL 2202) | C50: Prepared by United Energy as required under clause 5.13.1(e) to (j) of the National Electricity Rules. The purpose of the document is to present United Energy's demand side engagement strategy outlining United Energy's process for engaging and consulting with non-network service providers, and for investigating, developing, assessing and reporting on non-network options as alternatives to network augmentation | D50: Presents our demand side engagement strategy outlining our process for engaging and consulting with non-network service providers, and for investigating, developing, assessing and reporting on non-network options as alternatives to network augmentation. | E50: Yes
B51: National Electricity Rules version 223 (NER) | C51: Applied across a wide range of augmentation, connection, metering and ICT expenditure classes in determining compliance. Also applied in preparing and evidencing the regulatory proposal | D51: The NER is called up in multiple places throughout the regulatory proposal in relation to compliance requirements. | E51: No
B52: Electricity Distriution Code of Practice (version 2) 1 May 2023 | C52: This code of practice regulates the distribution of electricity to customers so that it is undertaken in a safe, efficient and reliable manner. It also covers embedded generating units (such as solar panels). | D52: The Electricity Distriution Code of Practice (EDCoP) is called up multiple times across a variety of expenditure categories in relation to compliance requirements. | E52: No
B222: LICENCES
B227: RULES
B232: ORDERS
B236: CODES
B252: GUIDELINES
B291: DEFAULT AGREEMENTS
B295: OTHER

Sheet 7.4 Shared Assets
B1: =INDEX(dms_Worksheet_List,MATCH(dms_Model,dms_Model_List)) -> REGULATORY REPORTING STATEMENT
B2: =INDEX(dms_TradingNameFull_List,MATCH(dms_TradingName,dms_TradingName_List)) -> CitiPower
B3: =CONCATENATE("REGULATORY PERIOD FROM ", FRCP_y1," TO ",dms_MultiYear_FinalYear_Result) -> REGULATORY PERIOD FROM 2026-27 TO 2030-31
B4: 7.4 SHARED ASSETS
B5: TEMPLATE DATE - SEPTEMBER 2024 - FINAL RIN
B7: 7.4.1 - TOTAL UNREGULATED REVENUE EARNED WITH SHARED ASSETS
B8: Name of shared asset unregulated service | C8: Description of shared assets used to provide the service | D8: =CONCATENATE("Shared asset unregulated revenue ($, real ", dms_DollarReal,")") -> Shared asset unregulated revenue ($, real June 2026)
D9: =CRCP_y4 -> 2024-25 | E9: =CRCP_y5 -> 2025-26 | F9: =FRCP_y1 -> 2026-27 | G9: =FRCP_y2 -> 2027-28 | H9: =FRCP_y3 -> 2028-29 | I9: =FRCP_y4 -> 2029-30 | J9: =FRCP_y5 -> 2030-31 | K9: =CONCATENATE("Total ",FRCP_y1," to ", FRCP_y5) -> Total 2026-27 to 2030-31
B10: Joint use of poles/Telecommunications | C10: Shared use of distribution poles/distribution assets by telecommunication businesses | D10: 4178764.983 | E10: 4178764.983 | F10: 4178764.983 | G10: 4178764.983 | H10: 4178764.983 | I10: 4178764.983 | J10: 4178764.983 | K10: =SUM(F10:J10) -> 20893824.91
B11: Property rentals | C11: Leasing of property | D11: 25454.70482 | E11: 25454.70482 | F11: 25454.70482 | G11: 25454.70482 | H11: 25454.70482 | I11: 25454.70482 | J11: 25454.70482 | K11: 127273.5241
B12: Duct rental | C12: Shared use of ducts i.e telecommunications | D12: 1549092.04 | E12: 1549092.04 | F12: 1549092.04 | G12: 1549092.04 | H12: 1549092.04 | I12: 1549092.04 | J12: 1549092.04 | K12: 7745460.201
K13: 0
K14: 0
K15: 0
K16: 0
K17: 0
K18: 0
K19: 0
K20: 0
K21: 0
K22: 0
K23: 0
K24: 0
B26: 7.4.2 - SHARED ASSET UNREGULATED SERVICES - APPORTIONMENT METHODOLOGY
B27: Name of shared asset unregulated service for which revenues were apportioned | C27: Apportionment methodology

Sheet 7.7 TSS-LRMC
B1: =INDEX(dms_Worksheet_List,MATCH(dms_Model,dms_Model_List)) -> REGULATORY REPORTING STATEMENT
B2: =INDEX(dms_TradingNameFull_List,MATCH(dms_TradingName,dms_TradingName_List)) -> CitiPower
B3: =CONCATENATE("REGULATORY PERIOD FROM ", FRCP_y1," TO ",dms_MultiYear_FinalYear_Result) -> REGULATORY PERIOD FROM 2026-27 TO 2030-31
B4: 7.7 - TARIFF STRUCTURE STATEMENT - INPUTS TO LRMC CALCULATION
B5: TEMPLATE DATE - SEPTEMBER 2024 - FINAL RIN
D7: ="Is "&dms_TradingName&" using the 'Average Incremental Cost' approach?" -> Is CitiPower using the 'Average Incremental Cost' approach?
F8: YES
B10: 7.7.1 - INPUTS TO LRMC CALCULATION - STANDARD CONTROL SERVICES - CAPEX
B11: 7.7.1.1 - SERIES A
C12: =CONCATENATE("FORECAST ($, real ", dms_DollarReal) -> FORECAST ($, real June 2026
C13: =CRCP_y4 -> 2024-25 | D13: =IF(dms_RPT="financial",(VALUE(LEFT(C13,4)+1)&"-"&MID(C13,3,2)+2),VALUE(LEFT(C13,4)+1)) -> 2025-26 | E13: 2026-27 | F13: 2027-28 | G13: 2028-29 | H13: 2029-30 | I13: 2030-31 | J13: 2031-32 | K13: 2032-33 | L13: 2033-34 | M13: 2034-35 | N13: 2035-36 | O13: 2036-37 | P13: 2037-38 | Q13: 2038-39 | R13: 2039-40 | S13: 2040-41 | T13: 2041-42 | U13: 2042-43 | V13: 2043-44
B14: Replacement expenditure | C14: 0 | D14: 0 | E14: 0 | F14: 0 | G14: 0 | H14: 0 | I14: 0 | J14: 0 | K14: 0 | L14: 0 | M14: 0 | N14: 0 | O14: 0 | P14: 0 | Q14: 0 | R14: 0 | S14: 0 | T14: 0 | U14: 0 | V14: 0
B15: Connections | C15: 0 | D15: 0 | E15: 0 | F15: 0 | G15: 0 | H15: 0 | I15: 0 | J15: 0 | K15: 0 | L15: 0 | M15: 0 | N15: 0 | O15: 0 | P15: 0 | Q15: 0 | R15: 0 | S15: 0 | T15: 0 | U15: 0 | V15: 0
B16: Augmentation Expenditure | C16: 0 | D16: 0 | E16: 27020667.45 | F16: 30285367.39 | G16: 23866569.35 | H16: 32342682.28 | I16: 32757443.95 | J16: 0 | K16: 0 | L16: 0 | M16: 0 | N16: 0 | O16: 0 | P16: 0 | Q16: 0 | R16: 0 | S16: 0 | T16: 0 | U16: 0 | V16: 0
B17: Non-network | C17: 0 | D17: 0 | E17: 0 | F17: 0 | G17: 0 | H17: 0 | I17: 0 | J17: 0 | K17: 0 | L17: 0 | M17: 0 | N17: 0 | O17: 0 | P17: 0 | Q17: 0 | R17: 0 | S17: 0 | T17: 0 | U17: 0 | V17: 0
B18: Export services | C18: 0 | D18: 0 | E18: 0 | F18: 0 | G18: 0 | H18: 0 | I18: 0 | J18: 0 | K18: 0 | L18: 0 | M18: 0 | N18: 0 | O18: 0 | P18: 0 | Q18: 0 | R18: 0 | S18: 0 | T18: 0 | U18: 0 | V18: 0
B19: Capitalised network overheads | C19: 0 | D19: 0 | E19: 0 | F19: 0 | G19: 0 | H19: 0 | I19: 0 | J19: 0 | K19: 0 | L19: 0 | M19: 0 | N19: 0 | O19: 0 | P19: 0 | Q19: 0 | R19: 0 | S19: 0 | T19: 0 | U19: 0 | V19: 0
B20: Capitalised corporate overheads | C20: 0 | D20: 0 | E20: 0 | F20: 0 | G20: 0 | H20: 0 | I20: 0 | J20: 0 | K20: 0 | L20: 0 | M20: 0 | N20: 0 | O20: 0 | P20: 0 | Q20: 0 | R20: 0 | S20: 0 | T20: 0 | U20: 0 | V20: 0
B21: Total capex | C21: =SUM(C14:C20) -> 0 | D21: =SUM(D14:D20) -> 0 | E21: 27020667.45 | F21: 30285367.39 | G21: 23866569.35 | H21: 32342682.28 | I21: 32757443.95 | J21: 0 | K21: 0 | L21: 0 | M21: 0 | N21: 0 | O21: 0 | P21: 0 | Q21: 0 | R21: 0 | S21: 0 | T21: 0 | U21: 0 | V21: 0
B23: 7.7.1.2 - SERIES B
C24: =CONCATENATE("FORECAST ($, real ", dms_DollarReal) -> FORECAST ($, real June 2026
C25: =CRCP_y4 -> 2024-25 | D25: =IF(dms_RPT="financial",(VALUE(LEFT(C25,4)+1)&"-"&MID(C25,3,2)+2),VALUE(LEFT(C25,4)+1)) -> 2025-26 | E25: =IF(dms_RPT="financial",(VALUE(LEFT(D25,4)+1)&"-"&MID(D25,3,2)+2),VALUE(LEFT(D25,4)+1)) -> 2026-27 | F25: =IF(dms_RPT="financial",(VALUE(LEFT(E25,4)+1)&"-"&MID(E25,3,2)+2),VALUE(LEFT(E25,4)+1)) -> 2027-28 | G25: =IF(dms_RPT="financial",(VALUE(LEFT(F25,4)+1)&"-"&MID(F25,3,2)+2),VALUE(LEFT(F25,4)+1)) -> 2028-29 | H25: =IF(dms_RPT="financial",(VALUE(LEFT(G25,4)+1)&"-"&MID(G25,3,2)+2),VALUE(LEFT(G25,4)+1)) -> 2029-30 | I25: =IF(dms_RPT="financial",(VALUE(LEFT(H25,4)+1)&"-"&MID(H25,3,2)+2),VALUE(LEFT(H25,4)+1)) -> 2030-31 | J25: =IF(dms_RPT="financial",(VALUE(LEFT(I25,4)+1)&"-"&MID(I25,3,2)+2),VALUE(LEFT(I25,4)+1)) -> 2031-32 | K25: =IF(dms_RPT="financial",(VALUE(LEFT(J25,4)+1)&"-"&MID(J25,3,2)+2),VALUE(LEFT(J25,4)+1)) -> 2032-33 | L25: =IF(dms_RPT="financial",(VALUE(LEFT(K25,4)+1)&"-"&MID(K25,3,2)+2),VALUE(LEFT(K25,4)+1)) -> 2033-34 | M25: =IF(dms_RPT="financial",(VALUE(LEFT(L25,4)+1)&"-"&MID(L25,3,2)+2),VALUE(LEFT(L25,4)+1)) -> 2034-35 | N25: =IF(dms_RPT="financial",(VALUE(LEFT(M25,4)+1)&"-"&MID(M25,3,2)+2),VALUE(LEFT(M25,4)+1)) -> 2035-36 | O25: =IF(dms_RPT="financial",(VALUE(LEFT(N25,4)+1)&"-"&MID(N25,3,2)+2),VALUE(LEFT(N25,4)+1)) -> 2036-37 | P25: =IF(dms_RPT="financial",(VALUE(LEFT(O25,4)+1)&"-"&MID(O25,3,2)+2),VALUE(LEFT(O25,4)+1)) -> 2037-38 | Q25: =IF(dms_RPT="financial",(VALUE(LEFT(P25,4)+1)&"-"&MID(P25,3,2)+2),VALUE(LEFT(P25,4)+1)) -> 2038-39 | R25: =IF(dms_RPT="financial",(VALUE(LEFT(Q25,4)+1)&"-"&MID(Q25,3,2)+2),VALUE(LEFT(Q25,4)+1)) -> 2039-40 | S25: =IF(dms_RPT="financial",(VALUE(LEFT(R25,4)+1)&"-"&MID(R25,3,2)+2),VALUE(LEFT(R25,4)+1)) -> 2040-41 | T25: =IF(dms_RPT="financial",(VALUE(LEFT(S25,4)+1)&"-"&MID(S25,3,2)+2),VALUE(LEFT(S25,4)+1)) -> 2041-42 | U25: =IF(dms_RPT="financial",(VALUE(LEFT(T25,4)+1)&"-"&MID(T25,3,2)+2),VALUE(LEFT(T25,4)+1)) -> 2042-43 | V25: =IF(dms_RPT="financial",(VALUE(LEFT(U25,4)+1)&"-"&MID(U25,3,2)+2),VALUE(LEFT(U25,4)+1)) -> 2043-44
B26: Replacement expenditure | C26: 0 | D26: 0 | E26: 0 | F26: 0 | G26: 0 | H26: 0 | I26: 0 | J26: 0 | K26: 0 | L26: 0 | M26: 0 | N26: 0 | O26: 0 | P26: 0 | Q26: 0 | R26: 0 | S26: 0 | T26: 0 | U26: 0 | V26: 0
B27: Connections | C27: 0 | D27: 0 | E27: 0 | F27: 0 | G27: 0 | H27: 0 | I27: 0 | J27: 0 | K27: 0 | L27: 0 | M27: 0 | N27: 0 | O27: 0 | P27: 0 | Q27: 0 | R27: 0 | S27: 0 | T27: 0 | U27: 0 | V27: 0
B28: Augmentation Expenditure | C28: 0 | D28: 0 | E28: 0 | F28: 0 | G28: 0 | H28: 0 | I28: 0 | J28: 0 | K28: 0 | L28: 0 | M28: 0 | N28: 0 | O28: 0 | P28: 0 | Q28: 0 | R28: 0 | S28: 0 | T28: 0 | U28: 0 | V28: 0
B29: Non-network | C29: 0 | D29: 0 | E29: 0 | F29: 0 | G29: 0 | H29: 0 | I29: 0 | J29: 0 | K29: 0 | L29: 0 | M29: 0 | N29: 0 | O29: 0 | P29: 0 | Q29: 0 | R29: 0 | S29: 0 | T29: 0 | U29: 0 | V29: 0
B30: Export services | C30: 0 | D30: 0 | E30: 0 | F30: 0 | G30: 0 | H30: 0 | I30: 0 | J30: 0 | K30: 0 | L30: 0 | M30: 0 | N30: 0 | O30: 0 | P30: 0 | Q30: 0 | R30: 0 | S30: 0 | T30: 0 | U30: 0 | V30: 0
B31: Capitalised network overheads | C31: 0 | D31: 0 | E31: 0 | F31: 0 | G31: 0 | H31: 0 | I31: 0 | J31: 0 | K31: 0 | L31: 0 | M31: 0 | N31: 0 | O31: 0 | P31: 0 | Q31: 0 | R31: 0 | S31: 0 | T31: 0 | U31: 0 | V31: 0
B32: Capitalised corporate overheads | C32: 0 | D32: 0 | E32: 0 | F32: 0 | G32: 0 | H32: 0 | I32: 0 | J32: 0 | K32: 0 | L32: 0 | M32: 0 | N32: 0 | O32: 0 | P32: 0 | Q32: 0 | R32: 0 | S32: 0 | T32: 0 | U32: 0 | V32: 0
B33: Total capex | C33: =SUM(C26:C32) -> 0 | D33: =SUM(D26:D32) -> 0 | E33: 0 | F33: 0 | G33: 0 | H33: 0 | I33: 0 | J33: 0 | K33: 0 | L33: 0 | M33: 0 | N33: 0 | O33: 0 | P33: 0 | Q33: 0 | R33: 0 | S33: 0 | T33: 0 | U33: 0 | V33: 0
B35: 7.7.1.3 - SERIES C
C36: =CONCATENATE("FORECAST ($, real ", dms_DollarReal) -> FORECAST ($, real June 2026
C37: =CRCP_y4 -> 2024-25 | D37: =IF(dms_RPT="financial",(VALUE(LEFT(C37,4)+1)&"-"&MID(C37,3,2)+2),VALUE(LEFT(C37,4)+1)) -> 2025-26 | E37: =IF(dms_RPT="financial",(VALUE(LEFT(D37,4)+1)&"-"&MID(D37,3,2)+2),VALUE(LEFT(D37,4)+1)) -> 2026-27 | F37: =IF(dms_RPT="financial",(VALUE(LEFT(E37,4)+1)&"-"&MID(E37,3,2)+2),VALUE(LEFT(E37,4)+1)) -> 2027-28 | G37: =IF(dms_RPT="financial",(VALUE(LEFT(F37,4)+1)&"-"&MID(F37,3,2)+2),VALUE(LEFT(F37,4)+1)) -> 2028-29 | H37: =IF(dms_RPT="financial",(VALUE(LEFT(G37,4)+1)&"-"&MID(G37,3,2)+2),VALUE(LEFT(G37,4)+1)) -> 2029-30 | I37: =IF(dms_RPT="financial",(VALUE(LEFT(H37,4)+1)&"-"&MID(H37,3,2)+2),VALUE(LEFT(H37,4)+1)) -> 2030-31 | J37: =IF(dms_RPT="financial",(VALUE(LEFT(I37,4)+1)&"-"&MID(I37,3,2)+2),VALUE(LEFT(I37,4)+1)) -> 2031-32 | K37: =IF(dms_RPT="financial",(VALUE(LEFT(J37,4)+1)&"-"&MID(J37,3,2)+2),VALUE(LEFT(J37,4)+1)) -> 2032-33 | L37: =IF(dms_RPT="financial",(VALUE(LEFT(K37,4)+1)&"-"&MID(K37,3,2)+2),VALUE(LEFT(K37,4)+1)) -> 2033-34 | M37: =IF(dms_RPT="financial",(VALUE(LEFT(L37,4)+1)&"-"&MID(L37,3,2)+2),VALUE(LEFT(L37,4)+1)) -> 2034-35 | N37: =IF(dms_RPT="financial",(VALUE(LEFT(M37,4)+1)&"-"&MID(M37,3,2)+2),VALUE(LEFT(M37,4)+1)) -> 2035-36 | O37: =IF(dms_RPT="financial",(VALUE(LEFT(N37,4)+1)&"-"&MID(N37,3,2)+2),VALUE(LEFT(N37,4)+1)) -> 2036-37 | P37: =IF(dms_RPT="financial",(VALUE(LEFT(O37,4)+1)&"-"&MID(O37,3,2)+2),VALUE(LEFT(O37,4)+1)) -> 2037-38 | Q37: =IF(dms_RPT="financial",(VALUE(LEFT(P37,4)+1)&"-"&MID(P37,3,2)+2),VALUE(LEFT(P37,4)+1)) -> 2038-39 | R37: =IF(dms_RPT="financial",(VALUE(LEFT(Q37,4)+1)&"-"&MID(Q37,3,2)+2),VALUE(LEFT(Q37,4)+1)) -> 2039-40 | S37: =IF(dms_RPT="financial",(VALUE(LEFT(R37,4)+1)&"-"&MID(R37,3,2)+2),VALUE(LEFT(R37,4)+1)) -> 2040-41 | T37: =IF(dms_RPT="financial",(VALUE(LEFT(S37,4)+1)&"-"&MID(S37,3,2)+2),VALUE(LEFT(S37,4)+1)) -> 2041-42 | U37: =IF(dms_RPT="financial",(VALUE(LEFT(T37,4)+1)&"-"&MID(T37,3,2)+2),VALUE(LEFT(T37,4)+1)) -> 2042-43 | V37: =IF(dms_RPT="financial",(VALUE(LEFT(U37,4)+1)&"-"&MID(U37,3,2)+2),VALUE(LEFT(U37,4)+1)) -> 2043-44
B38: Replacement expenditure | C38: 0 | D38: 0 | E38: 0 | F38: 0 | G38: 0 | H38: 0 | I38: 0 | J38: 0 | K38: 0 | L38: 0 | M38: 0 | N38: 0 | O38: 0 | P38: 0 | Q38: 0 | R38: 0 | S38: 0 | T38: 0 | U38: 0 | V38: 0
B39: Connections | C39: 0 | D39: 0 | E39: 0 | F39: 0 | G39: 0 | H39: 0 | I39: 0 | J39: 0 | K39: 0 | L39: 0 | M39: 0 | N39: 0 | O39: 0 | P39: 0 | Q39: 0 | R39: 0 | S39: 0 | T39: 0 | U39: 0 | V39: 0
B40: Augmentation Expenditure | C40: 0 | D40: 0 | E40: 0 | F40: 0 | G40: 0 | H40: 0 | I40: 0 | J40: 0 | K40: 0 | L40: 0 | M40: 0 | N40: 0 | O40: 0 | P40: 0 | Q40: 0 | R40: 0 | S40: 0 | T40: 0 | U40: 0 | V40: 0
B41: Non-network | C41: 0 | D41: 0 | E41: 0 | F41: 0 | G41: 0 | H41: 0 | I41: 0 | J41: 0 | K41: 0 | L41: 0 | M41: 0 | N41: 0 | O41: 0 | P41: 0 | Q41: 0 | R41: 0 | S41: 0 | T41: 0 | U41: 0 | V41: 0
B42: Capitalised network overheads | C42: 0 | D42: 0 | E42: 0 | F42: 0 | G42: 0 | H42: 0 | I42: 0 | J42: 0 | K42: 0 | L42: 0 | M42: 0 | N42: 0 | O42: 0 | P42: 0 | Q42: 0 | R42: 0 | S42: 0 | T42: 0 | U42: 0 | V42: 0
B43: Capitalised corporate overheads | C43: 0 | D43: 0 | E43: 0 | F43: 0 | G43: 0 | H43: 0 | I43: 0 | J43: 0 | K43: 0 | L43: 0 | M43: 0 | N43: 0 | O43: 0 | P43: 0 | Q43: 0 | R43: 0 | S43: 0 | T43: 0 | U43: 0 | V43: 0
B44: Total capex | C44: =SUM(C37:C43) -> 0 | D44: 0 | E44: 0 | F44: 0 | G44: 0 | H44: 0 | I44: 0 | J44: 0 | K44: 0 | L44: 0 | M44: 0 | N44: 0 | O44: 0 | P44: 0 | Q44: 0 | R44: 0 | S44: 0 | T44: 0 | U44: 0 | V44: 0
B48: 7.7.2 - INPUTS TO LRMC CALCULATION - STANDARD CONTROL SERVICES - OPEX
B49: 7.7.2.1 - SERIES A
C50: =CONCATENATE("FORECAST ($, real ", dms_DollarReal) -> FORECAST ($, real June 2026
C51: =CRCP_y4 -> 2024-25 | D51: =IF(dms_RPT="financial",(VALUE(LEFT(C51,4)+1)&"-"&MID(C51,3,2)+2),VALUE(LEFT(C51,4)+1)) -> 2025-26 | E51: =IF(dms_RPT="financial",(VALUE(LEFT(D51,4)+1)&"-"&MID(D51,3,2)+2),VALUE(LEFT(D51,4)+1)) -> 2026-27 | F51: =IF(dms_RPT="financial",(VALUE(LEFT(E51,4)+1)&"-"&MID(E51,3,2)+2),VALUE(LEFT(E51,4)+1)) -> 2027-28 | G51: =IF(dms_RPT="financial",(VALUE(LEFT(F51,4)+1)&"-"&MID(F51,3,2)+2),VALUE(LEFT(F51,4)+1)) -> 2028-29 | H51: =IF(dms_RPT="financial",(VALUE(LEFT(G51,4)+1)&"-"&MID(G51,3,2)+2),VALUE(LEFT(G51,4)+1)) -> 2029-30 | I51: =IF(dms_RPT="financial",(VALUE(LEFT(H51,4)+1)&"-"&MID(H51,3,2)+2),VALUE(LEFT(H51,4)+1)) -> 2030-31 | J51: =IF(dms_RPT="financial",(VALUE(LEFT(I51,4)+1)&"-"&MID(I51,3,2)+2),VALUE(LEFT(I51,4)+1)) -> 2031-32 | K51: =IF(dms_RPT="financial",(VALUE(LEFT(J51,4)+1)&"-"&MID(J51,3,2)+2),VALUE(LEFT(J51,4)+1)) -> 2032-33 | L51: =IF(dms_RPT="financial",(VALUE(LEFT(K51,4)+1)&"-"&MID(K51,3,2)+2),VALUE(LEFT(K51,4)+1)) -> 2033-34 | M51: =IF(dms_RPT="financial",(VALUE(LEFT(L51,4)+1)&"-"&MID(L51,3,2)+2),VALUE(LEFT(L51,4)+1)) -> 2034-35 | N51: =IF(dms_RPT="financial",(VALUE(LEFT(M51,4)+1)&"-"&MID(M51,3,2)+2),VALUE(LEFT(M51,4)+1)) -> 2035-36 | O51: =IF(dms_RPT="financial",(VALUE(LEFT(N51,4)+1)&"-"&MID(N51,3,2)+2),VALUE(LEFT(N51,4)+1)) -> 2036-37 | P51: =IF(dms_RPT="financial",(VALUE(LEFT(O51,4)+1)&"-"&MID(O51,3,2)+2),VALUE(LEFT(O51,4)+1)) -> 2037-38 | Q51: =IF(dms_RPT="financial",(VALUE(LEFT(P51,4)+1)&"-"&MID(P51,3,2)+2),VALUE(LEFT(P51,4)+1)) -> 2038-39 | R51: =IF(dms_RPT="financial",(VALUE(LEFT(Q51,4)+1)&"-"&MID(Q51,3,2)+2),VALUE(LEFT(Q51,4)+1)) -> 2039-40 | S51: =IF(dms_RPT="financial",(VALUE(LEFT(R51,4)+1)&"-"&MID(R51,3,2)+2),VALUE(LEFT(R51,4)+1)) -> 2040-41 | T51: =IF(dms_RPT="financial",(VALUE(LEFT(S51,4)+1)&"-"&MID(S51,3,2)+2),VALUE(LEFT(S51,4)+1)) -> 2041-42 | U51: =IF(dms_RPT="financial",(VALUE(LEFT(T51,4)+1)&"-"&MID(T51,3,2)+2),VALUE(LEFT(T51,4)+1)) -> 2042-43 | V51: =IF(dms_RPT="financial",(VALUE(LEFT(U51,4)+1)&"-"&MID(U51,3,2)+2),VALUE(LEFT(U51,4)+1)) -> 2043-44
B52: Total | C52: 0 | D52: 0 | E52: 135103.3372 | F52: 286530.1742 | G52: 405863.021 | H52: 567576.4323 | I52: 731363.6521 | J52: 0 | K52: 0 | L52: 0 | M52: 0 | N52: 0 | O52: 0 | P52: 0 | Q52: 0 | R52: 0 | S52: 0 | T52: 0 | U52: 0 | V52: 0
C53: 0 | D53: 0 | E53: 0 | F53: 0 | G53: 0 | H53: 0 | I53: 0 | J53: 0 | K53: 0 | L53: 0 | M53: 0 | N53: 0 | O53: 0 | P53: 0 | Q53: 0 | R53: 0 | S53: 0 | T53: 0 | U53: 0 | V53: 0
C54: 0 | D54: 0 | E54: 0 | F54: 0 | G54: 0 | H54: 0 | I54: 0 | J54: 0 | K54: 0 | L54: 0 | M54: 0 | N54: 0 | O54: 0 | P54: 0 | Q54: 0 | R54: 0 | S54: 0 | T54: 0 | U54: 0 | V54: 0
C55: 0 | D55: 0 | E55: 0 | F55: 0 | G55: 0 | H55: 0 | I55: 0 | J55: 0 | K55: 0 | L55: 0 | M55: 0 | N55: 0 | O55: 0 | P55: 0 | Q55: 0 | R55: 0 | S55: 0 | T55: 0 | U55: 0 | V55: 0
C56: 0 | D56: 0 | E56: 0 | F56: 0 | G56: 0 | H56: 0 | I56: 0 | J56: 0 | K56: 0 | L56: 0 | M56: 0 | N56: 0 | O56: 0 | P56: 0 | Q56: 0 | R56: 0 | S56: 0 | T56: 0 | U56: 0 | V56: 0
C57: 0 | D57: 0 | E57: 0 | F57: 0 | G57: 0 | H57: 0 | I57: 0 | J57: 0 | K57: 0 | L57: 0 | M57: 0 | N57: 0 | O57: 0 | P57: 0 | Q57: 0 | R57: 0 | S57: 0 | T57: 0 | U57: 0 | V57: 0
C58: 0 | D58: 0 | E58: 0 | F58: 0 | G58: 0 | H58: 0 | I58: 0 | J58: 0 | K58: 0 | L58: 0 | M58: 0 | N58: 0 | O58: 0 | P58: 0 | Q58: 0 | R58: 0 | S58: 0 | T58: 0 | U58: 0 | V58: 0
C59: 0 | D59: 0 | E59: 0 | F59: 0 | G59: 0 | H59: 0 | I59: 0 | J59: 0 | K59: 0 | L59: 0 | M59: 0 | N59: 0 | O59: 0 | P59: 0 | Q59: 0 | R59: 0 | S59: 0 | T59: 0 | U59: 0 | V59: 0
C60: 0 | D60: 0 | E60: 0 | F60: 0 | G60: 0 | H60: 0 | I60: 0 | J60: 0 | K60: 0 | L60: 0 | M60: 0 | N60: 0 | O60: 0 | P60: 0 | Q60: 0 | R60: 0 | S60: 0 | T60: 0 | U60: 0 | V60: 0
C61: 0 | D61: 0 | E61: 0 | F61: 0 | G61: 0 | H61: 0 | I61: 0 | J61: 0 | K61: 0 | L61: 0 | M61: 0 | N61: 0 | O61: 0 | P61: 0 | Q61: 0 | R61: 0 | S61: 0 | T61: 0 | U61: 0 | V61: 0
C62: 0 | D62: 0 | E62: 0 | F62: 0 | G62: 0 | H62: 0 | I62: 0 | J62: 0 | K62: 0 | L62: 0 | M62: 0 | N62: 0 | O62: 0 | P62: 0 | Q62: 0 | R62: 0 | S62: 0 | T62: 0 | U62: 0 | V62: 0
C63: 0 | D63: 0 | E63: 0 | F63: 0 | G63: 0 | H63: 0 | I63: 0 | J63: 0 | K63: 0 | L63: 0 | M63: 0 | N63: 0 | O63: 0 | P63: 0 | Q63: 0 | R63: 0 | S63: 0 | T63: 0 | U63: 0 | V63: 0
C64: 0 | D64: 0 | E64: 0 | F64: 0 | G64: 0 | H64: 0 | I64: 0 | J64: 0 | K64: 0 | L64: 0 | M64: 0 | N64: 0 | O64: 0 | P64: 0 | Q64: 0 | R64: 0 | S64: 0 | T64: 0 | U64: 0 | V64: 0
C65: 0 | D65: 0 | E65: 0 | F65: 0 | G65: 0 | H65: 0 | I65: 0 | J65: 0 | K65: 0 | L65: 0 | M65: 0 | N65: 0 | O65: 0 | P65: 0 | Q65: 0 | R65: 0 | S65: 0 | T65: 0 | U65: 0 | V65: 0
C66: 0 | D66: 0 | E66: 0 | F66: 0 | G66: 0 | H66: 0 | I66: 0 | J66: 0 | K66: 0 | L66: 0 | M66: 0 | N66: 0 | O66: 0 | P66: 0 | Q66: 0 | R66: 0 | S66: 0 | T66: 0 | U66: 0 | V66: 0
B67: Total opex | C67: =SUM(C52:C66) -> 0 | D67: =SUM(D52:D66) -> 0 | E67: 135103.3372 | F67: 286530.1742 | G67: 405863.021 | H67: 567576.4323 | I67: 731363.6521 | J67: 0 | K67: 0 | L67: 0 | M67: 0 | N67: 0 | O67: 0 | P67: 0 | Q67: 0 | R67: 0 | S67: 0 | T67: 0 | U67: 0 | V67: 0
B69: 7.7.2.2- SERIES B
C70: =CONCATENATE("FORECAST ($, real ", dms_DollarReal) -> FORECAST ($, real June 2026
C71: =CRCP_y4 -> 2024-25 | D71: =IF(dms_RPT="financial",(VALUE(LEFT(C71,4)+1)&"-"&MID(C71,3,2)+2),VALUE(LEFT(C71,4)+1)) -> 2025-26 | E71: =IF(dms_RPT="financial",(VALUE(LEFT(D71,4)+1)&"-"&MID(D71,3,2)+2),VALUE(LEFT(D71,4)+1)) -> 2026-27 | F71: =IF(dms_RPT="financial",(VALUE(LEFT(E71,4)+1)&"-"&MID(E71,3,2)+2),VALUE(LEFT(E71,4)+1)) -> 2027-28 | G71: =IF(dms_RPT="financial",(VALUE(LEFT(F71,4)+1)&"-"&MID(F71,3,2)+2),VALUE(LEFT(F71,4)+1)) -> 2028-29 | H71: =IF(dms_RPT="financial",(VALUE(LEFT(G71,4)+1)&"-"&MID(G71,3,2)+2),VALUE(LEFT(G71,4)+1)) -> 2029-30 | I71: =IF(dms_RPT="financial",(VALUE(LEFT(H71,4)+1)&"-"&MID(H71,3,2)+2),VALUE(LEFT(H71,4)+1)) -> 2030-31 | J71: =IF(dms_RPT="financial",(VALUE(LEFT(I71,4)+1)&"-"&MID(I71,3,2)+2),VALUE(LEFT(I71,4)+1)) -> 2031-32 | K71: =IF(dms_RPT="financial",(VALUE(LEFT(J71,4)+1)&"-"&MID(J71,3,2)+2),VALUE(LEFT(J71,4)+1)) -> 2032-33 | L71: =IF(dms_RPT="financial",(VALUE(LEFT(K71,4)+1)&"-"&MID(K71,3,2)+2),VALUE(LEFT(K71,4)+1)) -> 2033-34 | M71: =IF(dms_RPT="financial",(VALUE(LEFT(L71,4)+1)&"-"&MID(L71,3,2)+2),VALUE(LEFT(L71,4)+1)) -> 2034-35 | N71: =IF(dms_RPT="financial",(VALUE(LEFT(M71,4)+1)&"-"&MID(M71,3,2)+2),VALUE(LEFT(M71,4)+1)) -> 2035-36 | O71: =IF(dms_RPT="financial",(VALUE(LEFT(N71,4)+1)&"-"&MID(N71,3,2)+2),VALUE(LEFT(N71,4)+1)) -> 2036-37 | P71: =IF(dms_RPT="financial",(VALUE(LEFT(O71,4)+1)&"-"&MID(O71,3,2)+2),VALUE(LEFT(O71,4)+1)) -> 2037-38 | Q71: =IF(dms_RPT="financial",(VALUE(LEFT(P71,4)+1)&"-"&MID(P71,3,2)+2),VALUE(LEFT(P71,4)+1)) -> 2038-39 | R71: =IF(dms_RPT="financial",(VALUE(LEFT(Q71,4)+1)&"-"&MID(Q71,3,2)+2),VALUE(LEFT(Q71,4)+1)) -> 2039-40 | S71: =IF(dms_RPT="financial",(VALUE(LEFT(R71,4)+1)&"-"&MID(R71,3,2)+2),VALUE(LEFT(R71,4)+1)) -> 2040-41 | T71: =IF(dms_RPT="financial",(VALUE(LEFT(S71,4)+1)&"-"&MID(S71,3,2)+2),VALUE(LEFT(S71,4)+1)) -> 2041-42 | U71: =IF(dms_RPT="financial",(VALUE(LEFT(T71,4)+1)&"-"&MID(T71,3,2)+2),VALUE(LEFT(T71,4)+1)) -> 2042-43 | V71: =IF(dms_RPT="financial",(VALUE(LEFT(U71,4)+1)&"-"&MID(U71,3,2)+2),VALUE(LEFT(U71,4)+1)) -> 2043-44
C72: 0 | D72: 0 | E72: 0 | F72: 0 | G72: 0 | H72: 0 | I72: 0 | J72: 0 | K72: 0 | L72: 0 | M72: 0 | N72: 0 | O72: 0 | P72: 0 | Q72: 0 | R72: 0 | S72: 0 | T72: 0 | U72: 0 | V72: 0
C73: 0 | D73: 0 | E73: 0 | F73: 0 | G73: 0 | H73: 0 | I73: 0 | J73: 0 | K73: 0 | L73: 0 | M73: 0 | N73: 0 | O73: 0 | P73: 0 | Q73: 0 | R73: 0 | S73: 0 | T73: 0 | U73: 0 | V73: 0
C74: 0 | D74: 0 | E74: 0 | F74: 0 | G74: 0 | H74: 0 | I74: 0 | J74: 0 | K74: 0 | L74: 0 | M74: 0 | N74: 0 | O74: 0 | P74: 0 | Q74: 0 | R74: 0 | S74: 0 | T74: 0 | U74: 0 | V74: 0
C75: 0 | D75: 0 | E75: 0 | F75: 0 | G75: 0 | H75: 0 | I75: 0 | J75: 0 | K75: 0 | L75: 0 | M75: 0 | N75: 0 | O75: 0 | P75: 0 | Q75: 0 | R75: 0 | S75: 0 | T75: 0 | U75: 0 | V75: 0
C76: 0 | D76: 0 | E76: 0 | F76: 0 | G76: 0 | H76: 0 | I76: 0 | J76: 0 | K76: 0 | L76: 0 | M76: 0 | N76: 0 | O76: 0 | P76: 0 | Q76: 0 | R76: 0 | S76: 0 | T76: 0 | U76: 0 | V76: 0
C77: 0 | D77: 0 | E77: 0 | F77: 0 | G77: 0 | H77: 0 | I77: 0 | J77: 0 | K77: 0 | L77: 0 | M77: 0 | N77: 0 | O77: 0 | P77: 0 | Q77: 0 | R77: 0 | S77: 0 | T77: 0 | U77: 0 | V77: 0
C78: 0 | D78: 0 | E78: 0 | F78: 0 | G78: 0 | H78: 0 | I78: 0 | J78: 0 | K78: 0 | L78: 0 | M78: 0 | N78: 0 | O78: 0 | P78: 0 | Q78: 0 | R78: 0 | S78: 0 | T78: 0 | U78: 0 | V78: 0
C79: 0 | D79: 0 | E79: 0 | F79: 0 | G79: 0 | H79: 0 | I79: 0 | J79: 0 | K79: 0 | L79: 0 | M79: 0 | N79: 0 | O79: 0 | P79: 0 | Q79: 0 | R79: 0 | S79: 0 | T79: 0 | U79: 0 | V79: 0
C80: 0 | D80: 0 | E80: 0 | F80: 0 | G80: 0 | H80: 0 | I80: 0 | J80: 0 | K80: 0 | L80: 0 | M80: 0 | N80: 0 | O80: 0 | P80: 0 | Q80: 0 | R80: 0 | S80: 0 | T80: 0 | U80: 0 | V80: 0
C81: 0 | D81: 0 | E81: 0 | F81: 0 | G81: 0 | H81: 0 | I81: 0 | J81: 0 | K81: 0 | L81: 0 | M81: 0 | N81: 0 | O81: 0 | P81: 0 | Q81: 0 | R81: 0 | S81: 0 | T81: 0 | U81: 0 | V81: 0
C82: 0 | D82: 0 | E82: 0 | F82: 0 | G82: 0 | H82: 0 | I82: 0 | J82: 0 | K82: 0 | L82: 0 | M82: 0 | N82: 0 | O82: 0 | P82: 0 | Q82: 0 | R82: 0 | S82: 0 | T82: 0 | U82: 0 | V82: 0
C83: 0 | D83: 0 | E83: 0 | F83: 0 | G83: 0 | H83: 0 | I83: 0 | J83: 0 | K83: 0 | L83: 0 | M83: 0 | N83: 0 | O83: 0 | P83: 0 | Q83: 0 | R83: 0 | S83: 0 | T83: 0 | U83: 0 | V83: 0
C84: 0 | D84: 0 | E84: 0 | F84: 0 | G84: 0 | H84: 0 | I84: 0 | J84: 0 | K84: 0 | L84: 0 | M84: 0 | N84: 0 | O84: 0 | P84: 0 | Q84: 0 | R84: 0 | S84: 0 | T84: 0 | U84: 0 | V84: 0
C85: 0 | D85: 0 | E85: 0 | F85: 0 | G85: 0 | H85: 0 | I85: 0 | J85: 0 | K85: 0 | L85: 0 | M85: 0 | N85: 0 | O85: 0 | P85: 0 | Q85: 0 | R85: 0 | S85: 0 | T85: 0 | U85: 0 | V85: 0
C86: 0 | D86: 0 | E86: 0 | F86: 0 | G86: 0 | H86: 0 | I86: 0 | J86: 0 | K86: 0 | L86: 0 | M86: 0 | N86: 0 | O86: 0 | P86: 0 | Q86: 0 | R86: 0 | S86: 0 | T86: 0 | U86: 0 | V86: 0
B87: Total opex | C87: =SUM(C72:C86) -> 0 | D87: =SUM(D72:D86) -> 0 | E87: =SUM(E72:E86) -> 0 | F87: =SUM(F72:F86) -> 0 | G87: =SUM(G72:G86) -> 0 | H87: =SUM(H72:H86) -> 0 | I87: =SUM(I72:I86) -> 0 | J87: =SUM(J72:J86) -> 0 | K87: =SUM(K72:K86) -> 0 | L87: =SUM(L72:L86) -> 0 | M87: =SUM(M72:M86) -> 0 | N87: =SUM(N72:N86) -> 0 | O87: =SUM(O72:O86) -> 0 | P87: =SUM(P72:P86) -> 0 | Q87: =SUM(Q72:Q86) -> 0 | R87: =SUM(R72:R86) -> 0 | S87: =SUM(S72:S86) -> 0 | T87: =SUM(T72:T86) -> 0 | U87: =SUM(U72:U86) -> 0 | V87: =SUM(V72:V86) -> 0
B89: 7.7.2.3 - SERIES C
C90: =CONCATENATE("FORECAST ($, real ", dms_DollarReal) -> FORECAST ($, real June 2026
C91: =CRCP_y4 -> 2024-25 | D91: =IF(dms_RPT="financial",(VALUE(LEFT(C91,4)+1)&"-"&MID(C91,3,2)+2),VALUE(LEFT(C91,4)+1)) -> 2025-26 | E91: =IF(dms_RPT="financial",(VALUE(LEFT(D91,4)+1)&"-"&MID(D91,3,2)+2),VALUE(LEFT(D91,4)+1)) -> 2026-27 | F91: =IF(dms_RPT="financial",(VALUE(LEFT(E91,4)+1)&"-"&MID(E91,3,2)+2),VALUE(LEFT(E91,4)+1)) -> 2027-28 | G91: =IF(dms_RPT="financial",(VALUE(LEFT(F91,4)+1)&"-"&MID(F91,3,2)+2),VALUE(LEFT(F91,4)+1)) -> 2028-29 | H91: =IF(dms_RPT="financial",(VALUE(LEFT(G91,4)+1)&"-"&MID(G91,3,2)+2),VALUE(LEFT(G91,4)+1)) -> 2029-30 | I91: =IF(dms_RPT="financial",(VALUE(LEFT(H91,4)+1)&"-"&MID(H91,3,2)+2),VALUE(LEFT(H91,4)+1)) -> 2030-31 | J91: =IF(dms_RPT="financial",(VALUE(LEFT(I91,4)+1)&"-"&MID(I91,3,2)+2),VALUE(LEFT(I91,4)+1)) -> 2031-32 | K91: =IF(dms_RPT="financial",(VALUE(LEFT(J91,4)+1)&"-"&MID(J91,3,2)+2),VALUE(LEFT(J91,4)+1)) -> 2032-33 | L91: =IF(dms_RPT="financial",(VALUE(LEFT(K91,4)+1)&"-"&MID(K91,3,2)+2),VALUE(LEFT(K91,4)+1)) -> 2033-34 | M91: =IF(dms_RPT="financial",(VALUE(LEFT(L91,4)+1)&"-"&MID(L91,3,2)+2),VALUE(LEFT(L91,4)+1)) -> 2034-35 | N91: =IF(dms_RPT="financial",(VALUE(LEFT(M91,4)+1)&"-"&MID(M91,3,2)+2),VALUE(LEFT(M91,4)+1)) -> 2035-36 | O91: =IF(dms_RPT="financial",(VALUE(LEFT(N91,4)+1)&"-"&MID(N91,3,2)+2),VALUE(LEFT(N91,4)+1)) -> 2036-37 | P91: =IF(dms_RPT="financial",(VALUE(LEFT(O91,4)+1)&"-"&MID(O91,3,2)+2),VALUE(LEFT(O91,4)+1)) -> 2037-38 | Q91: =IF(dms_RPT="financial",(VALUE(LEFT(P91,4)+1)&"-"&MID(P91,3,2)+2),VALUE(LEFT(P91,4)+1)) -> 2038-39 | R91: =IF(dms_RPT="financial",(VALUE(LEFT(Q91,4)+1)&"-"&MID(Q91,3,2)+2),VALUE(LEFT(Q91,4)+1)) -> 2039-40 | S91: =IF(dms_RPT="financial",(VALUE(LEFT(R91,4)+1)&"-"&MID(R91,3,2)+2),VALUE(LEFT(R91,4)+1)) -> 2040-41 | T91: =IF(dms_RPT="financial",(VALUE(LEFT(S91,4)+1)&"-"&MID(S91,3,2)+2),VALUE(LEFT(S91,4)+1)) -> 2041-42 | U91: =IF(dms_RPT="financial",(VALUE(LEFT(T91,4)+1)&"-"&MID(T91,3,2)+2),VALUE(LEFT(T91,4)+1)) -> 2042-43 | V91: =IF(dms_RPT="financial",(VALUE(LEFT(U91,4)+1)&"-"&MID(U91,3,2)+2),VALUE(LEFT(U91,4)+1)) -> 2043-44
C92: 0 | D92: 0 | E92: 0 | F92: 0 | G92: 0 | H92: 0 | I92: 0 | J92: 0 | K92: 0 | L92: 0 | M92: 0 | N92: 0 | O92: 0 | P92: 0 | Q92: 0 | R92: 0 | S92: 0 | T92: 0 | U92: 0 | V92: 0
C93: 0 | D93: 0 | E93: 0 | F93: 0 | G93: 0 | H93: 0 | I93: 0 | J93: 0 | K93: 0 | L93: 0 | M93: 0 | N93: 0 | O93: 0 | P93: 0 | Q93: 0 | R93: 0 | S93: 0 | T93: 0 | U93: 0 | V93: 0
C94: 0 | D94: 0 | E94: 0 | F94: 0 | G94: 0 | H94: 0 | I94: 0 | J94: 0 | K94: 0 | L94: 0 | M94: 0 | N94: 0 | O94: 0 | P94: 0 | Q94: 0 | R94: 0 | S94: 0 | T94: 0 | U94: 0 | V94: 0
C95: 0 | D95: 0 | E95: 0 | F95: 0 | G95: 0 | H95: 0 | I95: 0 | J95: 0 | K95: 0 | L95: 0 | M95: 0 | N95: 0 | O95: 0 | P95: 0 | Q95: 0 | R95: 0 | S95: 0 | T95: 0 | U95: 0 | V95: 0
C96: 0 | D96: 0 | E96: 0 | F96: 0 | G96: 0 | H96: 0 | I96: 0 | J96: 0 | K96: 0 | L96: 0 | M96: 0 | N96: 0 | O96: 0 | P96: 0 | Q96: 0 | R96: 0 | S96: 0 | T96: 0 | U96: 0 | V96: 0
C97: 0 | D97: 0 | E97: 0 | F97: 0 | G97: 0 | H97: 0 | I97: 0 | J97: 0 | K97: 0 | L97: 0 | M97: 0 | N97: 0 | O97: 0 | P97: 0 | Q97: 0 | R97: 0 | S97: 0 | T97: 0 | U97: 0 | V97: 0
C98: 0 | D98: 0 | E98: 0 | F98: 0 | G98: 0 | H98: 0 | I98: 0 | J98: 0 | K98: 0 | L98: 0 | M98: 0 | N98: 0 | O98: 0 | P98: 0 | Q98: 0 | R98: 0 | S98: 0 | T98: 0 | U98: 0 | V98: 0
C99: 0 | D99: 0 | E99: 0 | F99: 0 | G99: 0 | H99: 0 | I99: 0 | J99: 0 | K99: 0 | L99: 0 | M99: 0 | N99: 0 | O99: 0 | P99: 0 | Q99: 0 | R99: 0 | S99: 0 | T99: 0 | U99: 0 | V99: 0
C100: 0 | D100: 0 | E100: 0 | F100: 0 | G100: 0 | H100: 0 | I100: 0 | J100: 0 | K100: 0 | L100: 0 | M100: 0 | N100: 0 | O100: 0 | P100: 0 | Q100: 0 | R100: 0 | S100: 0 | T100: 0 | U100: 0 | V100: 0
C101: 0 | D101: 0 | E101: 0 | F101: 0 | G101: 0 | H101: 0 | I101: 0 | J101: 0 | K101: 0 | L101: 0 | M101: 0 | N101: 0 | O101: 0 | P101: 0 | Q101: 0 | R101: 0 | S101: 0 | T101: 0 | U101: 0 | V101: 0
C102: 0 | D102: 0 | E102: 0 | F102: 0 | G102: 0 | H102: 0 | I102: 0 | J102: 0 | K102: 0 | L102: 0 | M102: 0 | N102: 0 | O102: 0 | P102: 0 | Q102: 0 | R102: 0 | S102: 0 | T102: 0 | U102: 0 | V102: 0
C103: 0 | D103: 0 | E103: 0 | F103: 0 | G103: 0 | H103: 0 | I103: 0 | J103: 0 | K103: 0 | L103: 0 | M103: 0 | N103: 0 | O103: 0 | P103: 0 | Q103: 0 | R103: 0 | S103: 0 | T103: 0 | U103: 0 | V103: 0
C104: 0 | D104: 0 | E104: 0 | F104: 0 | G104: 0 | H104: 0 | I104: 0 | J104: 0 | K104: 0 | L104: 0 | M104: 0 | N104: 0 | O104: 0 | P104: 0 | Q104: 0 | R104: 0 | S104: 0 | T104: 0 | U104: 0 | V104: 0
C105: 0 | D105: 0 | E105: 0 | F105: 0 | G105: 0 | H105: 0 | I105: 0 | J105: 0 | K105: 0 | L105: 0 | M105: 0 | N105: 0 | O105: 0 | P105: 0 | Q105: 0 | R105: 0 | S105: 0 | T105: 0 | U105: 0 | V105: 0
C106: 0 | D106: 0 | E106: 0 | F106: 0 | G106: 0 | H106: 0 | I106: 0 | J106: 0 | K106: 0 | L106: 0 | M106: 0 | N106: 0 | O106: 0 | P106: 0 | Q106: 0 | R106: 0 | S106: 0 | T106: 0 | U106: 0 | V106: 0
B107: Total opex | C107: =SUM(C92:C106) -> 0 | D107: =SUM(D92:D106) -> 0 | E107: =SUM(E92:E106) -> 0 | F107: =SUM(F92:F106) -> 0 | G107: =SUM(G92:G106) -> 0 | H107: =SUM(H92:H106) -> 0 | I107: =SUM(I92:I106) -> 0 | J107: =SUM(J92:J106) -> 0 | K107: =SUM(K92:K106) -> 0 | L107: =SUM(L92:L106) -> 0 | M107: =SUM(M92:M106) -> 0 | N107: =SUM(N92:N106) -> 0 | O107: =SUM(O92:O106) -> 0 | P107: =SUM(P92:P106) -> 0 | Q107: =SUM(Q92:Q106) -> 0 | R107: =SUM(R92:R106) -> 0 | S107: =SUM(S92:S106) -> 0 | T107: =SUM(T92:T106) -> 0 | U107: =SUM(U92:U106) -> 0 | V107: =SUM(V92:V106) -> 0
B111: 7.7.3 - INPUTS TO LRMC CALCULATION - DEMAND
B112: 7.7.3.1 - SERIES A
C113: FORECAST (MWh)
C114: =CRCP_y4 -> 2024-25 | D114: =IF(dms_RPT="financial",(VALUE(LEFT(C114,4)+1)&"-"&MID(C114,3,2)+2),VALUE(LEFT(C114,4)+1)) -> 2025-26 | E114: =IF(dms_RPT="financial",(VALUE(LEFT(D114,4)+1)&"-"&MID(D114,3,2)+2),VALUE(LEFT(D114,4)+1)) -> 2026-27 | F114: =IF(dms_RPT="financial",(VALUE(LEFT(E114,4)+1)&"-"&MID(E114,3,2)+2),VALUE(LEFT(E114,4)+1)) -> 2027-28 | G114: =IF(dms_RPT="financial",(VALUE(LEFT(F114,4)+1)&"-"&MID(F114,3,2)+2),VALUE(LEFT(F114,4)+1)) -> 2028-29 | H114: =IF(dms_RPT="financial",(VALUE(LEFT(G114,4)+1)&"-"&MID(G114,3,2)+2),VALUE(LEFT(G114,4)+1)) -> 2029-30 | I114: =IF(dms_RPT="financial",(VALUE(LEFT(H114,4)+1)&"-"&MID(H114,3,2)+2),VALUE(LEFT(H114,4)+1)) -> 2030-31 | J114: =IF(dms_RPT="financial",(VALUE(LEFT(I114,4)+1)&"-"&MID(I114,3,2)+2),VALUE(LEFT(I114,4)+1)) -> 2031-32 | K114: =IF(dms_RPT="financial",(VALUE(LEFT(J114,4)+1)&"-"&MID(J114,3,2)+2),VALUE(LEFT(J114,4)+1)) -> 2032-33 | L114: =IF(dms_RPT="financial",(VALUE(LEFT(K114,4)+1)&"-"&MID(K114,3,2)+2),VALUE(LEFT(K114,4)+1)) -> 2033-34 | M114: =IF(dms_RPT="financial",(VALUE(LEFT(L114,4)+1)&"-"&MID(L114,3,2)+2),VALUE(LEFT(L114,4)+1)) -> 2034-35 | N114: =IF(dms_RPT="financial",(VALUE(LEFT(M114,4)+1)&"-"&MID(M114,3,2)+2),VALUE(LEFT(M114,4)+1)) -> 2035-36 | O114: =IF(dms_RPT="financial",(VALUE(LEFT(N114,4)+1)&"-"&MID(N114,3,2)+2),VALUE(LEFT(N114,4)+1)) -> 2036-37 | P114: =IF(dms_RPT="financial",(VALUE(LEFT(O114,4)+1)&"-"&MID(O114,3,2)+2),VALUE(LEFT(O114,4)+1)) -> 2037-38 | Q114: =IF(dms_RPT="financial",(VALUE(LEFT(P114,4)+1)&"-"&MID(P114,3,2)+2),VALUE(LEFT(P114,4)+1)) -> 2038-39 | R114: =IF(dms_RPT="financial",(VALUE(LEFT(Q114,4)+1)&"-"&MID(Q114,3,2)+2),VALUE(LEFT(Q114,4)+1)) -> 2039-40 | S114: =IF(dms_RPT="financial",(VALUE(LEFT(R114,4)+1)&"-"&MID(R114,3,2)+2),VALUE(LEFT(R114,4)+1)) -> 2040-41 | T114: =IF(dms_RPT="financial",(VALUE(LEFT(S114,4)+1)&"-"&MID(S114,3,2)+2),VALUE(LEFT(S114,4)+1)) -> 2041-42 | U114: =IF(dms_RPT="financial",(VALUE(LEFT(T114,4)+1)&"-"&MID(T114,3,2)+2),VALUE(LEFT(T114,4)+1)) -> 2042-43 | V114: =IF(dms_RPT="financial",(VALUE(LEFT(U114,4)+1)&"-"&MID(U114,3,2)+2),VALUE(LEFT(U114,4)+1)) -> 2043-44
B115: Sub transmission | C115: 0 | D115: 0 | E115: 21830.889 | F115: 37850.488 | G115: 67115.815 | H115: 84353.067 | I115: 104091.954 | J115: 0 | K115: 0 | L115: 0 | M115: 0 | N115: 0 | O115: 0 | P115: 0 | Q115: 0 | R115: 0 | S115: 0 | T115: 0 | U115: 0 | V115: 0
B116: Zone substations | C116: 0 | D116: 0 | E116: 21994.647 | F116: 53708.414 | G116: 82677.067 | H116: 105364.285 | I116: 130388.445 | J116: 0 | K116: 0 | L116: 0 | M116: 0 | N116: 0 | O116: 0 | P116: 0 | Q116: 0 | R116: 0 | S116: 0 | T116: 0 | U116: 0 | V116: 0
B117: High Voltage network | C117: 0 | D117: 0 | E117: 22838.746 | F117: 62112.932 | G117: 94487.049 | H117: 118225.568 | I117: 147917.539 | J117: 0 | K117: 0 | L117: 0 | M117: 0 | N117: 0 | O117: 0 | P117: 0 | Q117: 0 | R117: 0 | S117: 0 | T117: 0 | U117: 0 | V117: 0
B118: DSS and Low Voltage network | C118: 0 | D118: 0 | E118: 23222 | F118: 42904 | G118: 73980 | H118: 96688 | I118: 124015 | J118: 0 | K118: 0 | L118: 0 | M118: 0 | N118: 0 | O118: 0 | P118: 0 | Q118: 0 | R118: 0 | S118: 0 | T118: 0 | U118: 0 | V118: 0
C119: 0 | D119: 0 | E119: 0 | F119: 0 | G119: 0 | H119: 0 | I119: 0 | J119: 0 | K119: 0 | L119: 0 | M119: 0 | N119: 0 | O119: 0 | P119: 0 | Q119: 0 | R119: 0 | S119: 0 | T119: 0 | U119: 0 | V119: 0
C120: 0 | D120: 0 | E120: 0 | F120: 0 | G120: 0 | H120: 0 | I120: 0 | J120: 0 | K120: 0 | L120: 0 | M120: 0 | N120: 0 | O120: 0 | P120: 0 | Q120: 0 | R120: 0 | S120: 0 | T120: 0 | U120: 0 | V120: 0
C121: 0 | D121: 0 | E121: 0 | F121: 0 | G121: 0 | H121: 0 | I121: 0 | J121: 0 | K121: 0 | L121: 0 | M121: 0 | N121: 0 | O121: 0 | P121: 0 | Q121: 0 | R121: 0 | S121: 0 | T121: 0 | U121: 0 | V121: 0
C122: 0 | D122: 0 | E122: 0 | F122: 0 | G122: 0 | H122: 0 | I122: 0 | J122: 0 | K122: 0 | L122: 0 | M122: 0 | N122: 0 | O122: 0 | P122: 0 | Q122: 0 | R122: 0 | S122: 0 | T122: 0 | U122: 0 | V122: 0
C123: 0 | D123: 0 | E123: 0 | F123: 0 | G123: 0 | H123: 0 | I123: 0 | J123: 0 | K123: 0 | L123: 0 | M123: 0 | N123: 0 | O123: 0 | P123: 0 | Q123: 0 | R123: 0 | S123: 0 | T123: 0 | U123: 0 | V123: 0
C124: 0 | D124: 0 | E124: 0 | F124: 0 | G124: 0 | H124: 0 | I124: 0 | J124: 0 | K124: 0 | L124: 0 | M124: 0 | N124: 0 | O124: 0 | P124: 0 | Q124: 0 | R124: 0 | S124: 0 | T124: 0 | U124: 0 | V124: 0
B125: Total demand | C125: =-SUM(C115:C124) -> 0 | D125: =-SUM(D115:D124) -> 0 | E125: -89886.282 | F125: -196575.834 | G125: -318259.931 | H125: -404630.92 | I125: -506412.938 | J125: 0 | K125: 0 | L125: 0 | M125: 0 | N125: 0 | O125: 0 | P125: 0 | Q125: 0 | R125: 0 | S125: 0 | T125: 0 | U125: 0 | V125: 0
B127: 7.7.3.2 - SERIES B
C128: FORECAST (MWh)
